Workbook

Sheet params
B1: (名前定義) | C1: 実験共通パラメータ・ワークシート
B2: WBtitle | D2: 2020.01/01 Ar(X01)
C3: ※このシートの名前定義のスコープは「ブック」全体にしてある。
C4: ※でも各計算シートでは、これらの名前を参照する表を作り、その参照表に基づいてローカルな計算をする事。計算シートのコピペ時に、名前定義が正しく参照されるように。
C5: ※このシートを別シートへコピーする時は、コピー先で同じ名前を削除してから、コピー先のブックの《末尾へ移動》コピーを作成。先ブック最初シートへコピーすると、スコープがシートに変更され上書き不可になる。
C7: Edeg | D7: 採用 | E7: 秤量 | L7: ver.Log
C8: Deg# | D8: μm | E8: μm
B9: ThEDtbl | C9: 1 | D9: 10.2 | E9: 10.10～10.33 | L9: 20.12/09 | M9: E5照射実験用 build
C10: 2 | D10: 12.8 | E10: 12.8 | M10: 2012 Kr,Ar 用から継承
C11: 3 | D11: 23.8 | E11: 23.8
C12: 4 | D12: 48.59 | E12: 48.59
C13: 5 | D13: 100.24 | E13: 100.24
C14: 6 | D14: 100.8 | E14: 100.8
C15: 7 | D15: 196.39 | E15: 196.39
C16: 8 | D16: 485.95 | E16: 485.95
C17: 9 | D17: 5000 | E17: 5000
C18: A | D18: 5.48 | E18: 5.48
C19: B | D19: 975.39 | E19: 975.39
C20: C | D20: 2000 | E20: 2000
C22: Beam | D22: 採用 | E22: 公称・秤量
C23: Mon系 | D23: μm | E23: μm | G23: 40Ar | H23: 84Kr
B24: ThAu | C24: Au | D24: 73 | E24: 50 | G24: 73 | H24: 48.8
B25: ThKapton | C25: Kapton | D25: 78 | E25: 75 | G25: 78 | H25: 78
B26: ThICal | C26: IC1.Al | D26: 14 | E26: 14
B27: ThICmylar | C27: IC1.mylar | D27: 25.6 | E27: 25.6 | G27: 25.6 | H27: 25.6
B28: ThPLmylar | C28: PL.mylar | D28: 33.8 | E28: 33.8 | G28: 33.8 | H28: 33.8
B29: ThPLmyAl | C29: PL.myAl | D29: 30 | E29: ?
B30: ThPL | C30: PL.EJ212 | D30: 500 | E30: 100 | G30: 500 | H30: 100
D31: mm | E31: mm
B32: ThAir1 | C32: Air1 | D32: 145 | E32: Kap～Edeg出口 | G32: 145 | H32: 145
B33: ThAir2 | C33: Air2 | D33: 200 | E33: Edeg出口～SSD | G33: 160 | H33: 160
B34: AirT | C34: avr気温 | D34: 27 | E34: ℃
B35: AirP | C35: avr気圧 | D35: 1007 | E35: hPa
C37: IC2 | D37: 採用 | E37: 公称
B38: ICs_Mylar | C38: 電極Al.Mylar [μm] | D38: 4 | E38: 4
B39: ICs_Th | C39: 空気層 [mm] | D39: 2 | E39: 2mm
D41: 採用 | E41: 秤量・公称
C42: ssdA12 | D42: μm | E42: μm | G42: メノコfit 結果
B43: ssdA_Al | C43: 遮光Al | D43: 4.72 | E43: 4.72
B44: ssdA1_d1 | C44: dead11 | D44: 0 | E44: ?? | G44: 0 | H44: ＋10
B45: ssdA1_Th | C45: 空乏層 | D45: 145 | E45: 150 | G45: 145 | H45: ±10
B46: ssdA1_d2 | C46: dead12 | D46: 0 | E46: ??
C47: SSD2 | D47: μm | E47: μm
B48: ssdA2_d1 | C48: dead21 | D48: 20 | E48: 0 | G48: 20 | H48: －10
B49: ssdA2_Th | C49: 空乏層 | D49: 2040 | E49: 1500 | G49: 2040 | H49: ±20
B50: ssdA2_d2 | C50: dead22 | D50: 0 | E50: 0
D52: 採用 | E52: 秤量・公称
C53: ssdB12 | D53: μm | E53: μm
B54: ssdB_Al | C54: 遮光Al | D54: 4.72 | E54: 4.72
B55: ssdB1_d1 | C55: dead11 | D55: 0 | E55: ?? | G55: 0 | H55: ＋ 0
B56: ssdB1_Th | C56: 空乏層 | D56: 2050 | E56: 2000 | G56: 2050 | H56: ±20
B57: ssdB1_d2 | C57: dead12 | D57: =D55 -> 0 | E57: ??
C58: SSD2 | D58: μm | E58: μm
B59: ssdB2_d1 | C59: dead21 | D59: 40 | E59: 0 | G59: 40 | H59: ±20
B60: ssdB2_Th | C60: 空乏層 | D60: 2000 | E60: 2000 | G60: > 1550
B61: ssdB2_d2 | C61: dead22 | D61: 0 | E61: 0
C63: Beam | D63: 採用 | E63: 公称 | G63: 40Ar | H63: 84Kr
B64: BeamE | C64: E [MeV/u] | D64: 95 | E64: 95 | G64: 95 | H64: 70
B65: BeamWS | C65: WS_header | D65: srim40Ar_
C67: Range | D67: 採用 | E67: 予想値
C68: Anal. | D68: μm
B69: ExpR | C69: ExpR | D69: 3330 | E69: 3351.3 | G69: 3260 | H69: 708
C70: 決定 | G70: 3260 | H70: 715
D71: ssd Ecalib | G71: 3260 | H71: 708
C72: ssdA1 | D72: 採用 | G72: ±10 | H72: ±10
B73: ssdA1_Ea | C73: MeV/ch
B74: ssdA1_Eb | C74: Zero [ch]
C75: ssdA2
B76: ssdA2_Ea | C76: MeV/ch
B77: ssdA2_Eb | C77: Zero [ch]
C78: ssdB1
B79: ssdB1_Ea | C79: MeV/ch
B80: ssdB1_Eb | C80: Zero [ch]
C81: ssdB2
B82: ssdB2_Ea | C82: MeV/ch
B83: ssdB2_Eb | C83: Zero [ch]
J86: 数式で使用：名前の貼付け：リスト貼り付け
J88: AirP | K88: =params!$D$34
J89: AirT | K89: =params!$D$33
J90: BeamE | K90: =params!$D$63
J91: BeamWS | K91: =params!$D$64
J92: ExpR | K92: =params!$D$68
J93: ICs_Mylar | K93: =params!$D$37
J94: ICs_Th | K94: =params!$D$38
J95: ssdA_Al | K95: =params!$D$42
J96: ssdA1_d1 | K96: =params!$D$43
J97: ssdA1_d2 | K97: =params!$D$45
J98: ssdA1_Ea | K98: =params!$D$72
J99: ssdA1_Eb | K99: =params!$D$73
J100: ssdA1_Th | K100: =params!$D$44
J101: ssdA2_d1 | K101: =params!$D$47
J102: ssdA2_d2 | K102: =params!$D$49
J103: ssdA2_Ea | K103: =params!$D$75
J104: ssdA2_Eb | K104: =params!$D$76
J105: ssdA2_Th | K105: =params!$D$48
J106: ssdB_Al | K106: =params!$D$53
J107: ssdB1_d1 | K107: =params!$D$54
J108: ssdB1_d2 | K108: =params!$D$56
J109: ssdB1_Ea | K109: =params!$D$78
J110: ssdB1_Eb | K110: =params!$D$79
J111: ssdB1_Th | K111: =params!$D$55
J112: ssdB2_d1 | K112: =params!$D$58
J113: ssdB2_d2 | K113: =params!$D$60
J114: ssdB2_Ea | K114: =params!$D$81
J115: ssdB2_Eb | K115: =params!$D$82
J116: ssdB2_Th | K116: =params!$D$59
J117: ThAir1 | K117: =params!$D$31
J118: ThAir2 | K118: =params!$D$32
J119: ThAu | K119: =params!$D$24
J120: ThEDtbl | K120: =params!$D$9:$D$20
J121: ThICal | K121: =params!$D$26
J122: ThICmylar | K122: =params!$D$27
J123: ThKapton | K123: =params!$D$25
J124: ThPL | K124: =params!$D$29
J125: ThPLmylar | K125: =params!$D$28
J126: WBtitle | K126: =params!$D$2

Sheet 1_ED検討用
P1: 名前定義：
B2: =WBtitle -> 2020.01/01 Ar(X01) | U2: 非表示：V～AB
C3: Edeg 選択検討用 | U3: =$D$7 -> Ar
AE4: Gttl1 | AF4: ="LET@"&AF5 -> LET@試料表面で | AK4: Gttl2 | AL4: ="LET@ "&AK5 -> LET@ 感応層１入口で | AO4: Gttl2 | AP4: ="LET@ "&AO5 -> LET@ 感応層２入口で | AS4: Gttl2 | AT4: ="LET@ "&AS5 -> LET@ 感応層２出口で
B5: 《本シートの参照パラメータ》 | U5: 上流・組合せ | AD5: Air2通過後 = | AF5: 試料表面で | AH5: 不感物通過後のE | AK5: 感応層１入口で | AO5: 感応層２入口で | AR5: =感応層１出口 | AS5: 感応層２出口で
B6: WS_head | C6: =BeamWS -> srim40Ar_ | U6: Ebmから算出 | AD6: EAir2 | AH6: Mld1 | AI6: Mld2 | AJ6: Mld3 | AK6: Device | AM6: LET in | AN6: Rng | AO6: Device | AQ6: LET in | AR6: Rng | AS6: Device | AU6: LET in | AV6: Rng
B7: BeamA | C7: =[1]!srInfoIonA($C$11) -> 40 | D7: =[1]!srElmNm([1]!srInfoIonZ($C$11)) -> Ar | F7: 上流・組み合わせ | U7: Th1 | V7: ＥＡｕ | W7: Kap | X7: IC1al | Y7: IC1my | Z7: PLmy | AA7: PLmAl | AB7: PL | AC7: EAir1 | AD7: E00 | AF7: LET | AH7: =$B$19 -> Epoxy | AI7: =$B$20 -> SiO2 | AJ7: =$B$21 -> Kapton | AK7: =$B$23 -> Si | AM7: =AK7 -> Si | AN7: in Si | AO7: =$B$23 -> Si | AQ7: =AO7 -> Si | AR7: in Si | AS7: =$B$23 -> Si | AU7: =AS7 -> Si | AV7: in Si
B8: Ebm | C8: =BeamE -> 95 | D8: MeV/u | F8: Au | G8: Kap | H8: IC1 | I8: PL | R8: 上流/下流誤差 | U8: μm | V8: MeV/u | AC8: MeV/u | AD8: MeV/u | AE8: MeV | AF8: in Si | AH8: MeV/u | AI8: MeV/u | AJ8: MeV/u | AK8: MeV/u | AL8: MeV | AN8: μm | AO8: MeV/u | AP8: MeV | AR8: μm | AS8: MeV/u | AT8: MeV | AV8: μm
B9: ビームライン常設 | U9: 0 | V9: =IF($F9="",$C$8,[1]!srEnew($C$15,$C$8,$C$47)) -> 95 | W9: =IF($G9="",V9,[1]!srEnew($C$16,V9,$C$48)) -> 95 | X9: =IF($H9="",W9,[1]!srEnew($C$12,W9,$C$49)) -> 95 | Y9: =IF($H9="",X9,[1]!srEnew($C$14,X9,$C$50)) -> 95 | Z9: =IF($I9="",Y9,[1]!srEnew($C$14,Y9,$C$51)) -> 95 | AA9: =IF($I9="",Z9,[1]!srEnew($C$12,Z9,$C$52)) -> 95 | AB9: =IF($I9="",AA9,[1]!srEnew($C$17,AA9,$C$53)) -> 95 | AC9: =[1]!srEnewGas($C$13,AB9,$C$56,$C$61*100,$C$60) -> 94.06419669 | AD9: =[1]!srEnewGas($C$13,AC9,$C$57,$C$61*100,$C$60) -> 92.71857023 | AE9: =AD9*$C$7 -> 3708.742809 | AF9: =[1]!srE2LETt($C$11,AD9,0) -> 2.071406883 | AH9: =[1]!srEnew($C$19,$AD9,$C$38) -> 86.67731304 | AI9: =[1]!srEnew($C$20,AH9,$C$39) -> 83.95992173 | AJ9: =[1]!srEnew($C$21,AI9,$C$40) -> 83.95992173 | AK9: =[1]!srEnew($C$23,AJ9,$C$41) -> 82.6578384 | AL9: =AK9*$C$7 -> 3306.313536 | AM9: =[1]!srE2LETt($C$23,AK9,0) -> 2.255350328 | AN9: =[1]!srE2Rng($C$23,AK9) -> 3678.121989 | AO9: =[1]!srEnew($C$23,AK9,$C$42) -> 82.59273423 | AP9: =AO9*$C$7 -> 3303.709369 | AQ9: =[1]!srE2LETt($C$23,AO9,0) -> 2.256621733 | AR9: =[1]!srE2Rng($C$23,AO9) -> 3673.121989 | AS9: =[1]!srEnew($C$23,AO9,$C$43) -> 82.33231757 | AT9: =AS9*$C$7 -> 3293.292703 | AU9: =[1]!srE2LETt($C$23,AS9,0) -> 2.261707354 | AV9: =[1]!srE2Rng($C$23,AS9) -> 3653.121989
B10: Mat | C10: SRIM Fit W.S.name | G10: ○ | Q10: EAir1:上流 = | R10: =$AC$17 -> 84.17609724 | S10: MeV/u 上流から計算 | U10: 0 | V10: =IF($F10="",$C$8,[1]!srEnew($C$15,$C$8,$C$47)) -> 95 | W10: =IF($G10="",V10,[1]!srEnew($C$16,V10,$C$48)) -> 94.36688312 | X10: =IF($H10="",W10,[1]!srEnew($C$12,W10,$C$49)) -> 94.36688312 | Y10: =IF($H10="",X10,[1]!srEnew($C$14,X10,$C$50)) -> 94.36688312 | Z10: =IF($I10="",Y10,[1]!srEnew($C$14,Y10,$C$51)) -> 94.36688312 | AA10: =IF($I10="",Z10,[1]!srEnew($C$12,Z10,$C$52)) -> 94.36688312 | AB10: =IF($I10="",AA10,[1]!srEnew($C$17,AA10,$C$53)) -> 94.36688312 | AC10: =[1]!srEnewGas($C$13,AB10,$C$56,$C$61*100,$C$60) -> 93.41316295 | AD10: =[1]!srEnewGas($C$13,AC10,$C$57,$C$61*100,$C$60) -> 92.04988498 | AE10: 3681.995399 | AF10: =[1]!srE2LETt($C$11,AD10,0) -> 2.082859899 | AH10: =[1]!srEnew($C$19,$AD10,$C$38) -> 85.98188038 | AI10: =[1]!srEnew($C$20,AH10,$C$39) -> 83.26448908 | AJ10: =[1]!srEnew($C$21,AI10,$C$40) -> 83.26448908 | AK10: =[1]!srEnew($C$23,AJ10,$C$41) -> 81.96240574 | AL10: 3278.49623 | AM10: =[1]!srE2LETt($C$23,AK10,0) -> 2.268931282 | AN10: =[1]!srE2Rng($C$23,AK10) -> 3624.712761 | AO10: =[1]!srEnew($C$23,AK10,$C$42) -> 81.89730158 | AP10: 3275.892063 | AQ10: =[1]!srE2LETt($C$23,AO10,0) -> 2.270202687 | AR10: =[1]!srE2Rng($C$23,AO10) -> 3619.712761 | AS10: =[1]!srEnew($C$23,AO10,$C$43) -> 81.63688491 | AT10: 3265.475396 | AU10: =[1]!srE2LETt($C$23,AS10,0) -> 2.275288308 | AV10: =[1]!srE2Rng($C$23,AS10) -> 3599.712761
A11: 1 | B11: Si | C11: =$C$6&B11 -> srim40Ar_Si | G11: ○ | H11: ○ | Q11: EAir1:下流 = | R11: =$AC$24 -> 83.86627907 | S11: MeV/u 下流 ExpR実測から | U11: 0 | V11: =IF($F11="",$C$8,[1]!srEnew($C$15,$C$8,$C$47)) -> 95 | W11: =IF($G11="",V11,[1]!srEnew($C$16,V11,$C$48)) -> 94.36688312 | X11: =IF($H11="",W11,[1]!srEnew($C$12,W11,$C$49)) -> 94.18459145 | Y11: =IF($H11="",X11,[1]!srEnew($C$14,X11,$C$50)) -> 93.97406513 | Z11: =IF($I11="",Y11,[1]!srEnew($C$14,Y11,$C$51)) -> 93.97406513 | AA11: =IF($I11="",Z11,[1]!srEnew($C$12,Z11,$C$52)) -> 93.97406513 | AB11: =IF($I11="",AA11,[1]!srEnew($C$17,AA11,$C$53)) -> 93.97406513 | AC11: =[1]!srEnewGas($C$13,AB11,$C$56,$C$61*100,$C$60) -> 92.99827654 | AD11: =[1]!srEnewGas($C$13,AC11,$C$57,$C$61*100,$C$60) -> 91.63499857 | AE11: 3665.399943 | AF11: =[1]!srE2LETt($C$11,AD11,0) -> 2.089965934 | AH11: =[1]!srEnew($C$19,$AD11,$C$38) -> 85.55039852 | AI11: =[1]!srEnew($C$20,AH11,$C$39) -> 82.83300721 | AJ11: =[1]!srEnew($C$21,AI11,$C$40) -> 82.83300721 | AK11: =[1]!srEnew($C$23,AJ11,$C$41) -> 81.53092388 | AL11: 3261.236955 | AM11: =[1]!srE2LETt($C$23,AK11,0) -> 2.277357598 | AN11: =[1]!srE2Rng($C$23,AK11) -> 3591.574954 | AO11: =[1]!srEnew($C$23,AK11,$C$42) -> 81.46581971 | AP11: 3258.632788 | AQ11: =[1]!srE2LETt($C$23,AO11,0) -> 2.278629003 | AR11: =[1]!srE2Rng($C$23,AO11) -> 3586.574954 | AS11: =[1]!srEnew($C$23,AO11,$C$43) -> 81.20346405 | AT11: 3248.138562 | AU11: =[1]!srE2LETt($C$23,AS11,0) -> 2.283894025 | AV11: =[1]!srE2Rng($C$23,AS11) -> 3566.574954
A12: 2 | B12: Al | C12: srim40Ar_Al | G12: ○ | I12: ○ | R12: =R10/R11 -> 1.003694192 | S12: 比 上流/下流 | U12: 0 | V12: =IF($F12="",$C$8,[1]!srEnew($C$15,$C$8,$C$47)) -> 95 | W12: =IF($G12="",V12,[1]!srEnew($C$16,V12,$C$48)) -> 94.36688312 | X12: =IF($H12="",W12,[1]!srEnew($C$12,W12,$C$49)) -> 94.36688312 | Y12: =IF($H12="",X12,[1]!srEnew($C$14,X12,$C$50)) -> 94.36688312 | Z12: =IF($I12="",Y12,[1]!srEnew($C$14,Y12,$C$51)) -> 94.08892259 | AA12: =IF($I12="",Z12,[1]!srEnew($C$12,Z12,$C$52)) -> 93.69485076 | AB12: =IF($I12="",AA12,[1]!srEnew($C$17,AA12,$C$53)) -> 90.33463571 | AC12: =[1]!srEnewGas($C$13,AB12,$C$56,$C$61*100,$C$60) -> 89.34625918 | AD12: =[1]!srEnewGas($C$13,AC12,$C$57,$C$61*100,$C$60) -> 87.98298122 | AE12: 3519.319249 | AF12: =[1]!srE2LETt($C$11,AD12,0) -> 2.15251646 | AH12: =[1]!srEnew($C$19,$AD12,$C$38) -> 81.75230047 | AI12: =[1]!srEnew($C$20,AH12,$C$39) -> 78.93422322 | AJ12: =[1]!srEnew($C$21,AI12,$C$40) -> 78.93422322 | AK12: =[1]!srEnew($C$23,AJ12,$C$41) -> 77.57552756 | AL12: 3103.021103 | AM12: =[1]!srE2LETt($C$23,AK12,0) -> 2.36577719 | AN12: =[1]!srE2Rng($C$23,AK12) -> 3299.558829 | AO12: =[1]!srEnew($C$23,AK12,$C$42) -> 77.50759278 | AP12: 3100.303711 | AQ12: =[1]!srE2LETt($C$23,AO12,0) -> 2.36731049 | AR12: =[1]!srE2Rng($C$23,AO12) -> 3294.558829 | AS12: =[1]!srEnew($C$23,AO12,$C$43) -> 77.23585365 | AT12: 3089.434146 | AU12: =[1]!srE2LETt($C$23,AS12,0) -> 2.37344369 | AV12: =[1]!srE2Rng($C$23,AS12) -> 3274.558829
A13: 3 | B13: Air | C13: srim40Ar_Air | G13: ○ | H13: ○ | I13: ○ | R13: Rng in Al(EAir1) | U13: 0 | V13: =IF($F13="",$C$8,[1]!srEnew($C$15,$C$8,$C$47)) -> 95 | W13: =IF($G13="",V13,[1]!srEnew($C$16,V13,$C$48)) -> 94.36688312 | X13: =IF($H13="",W13,[1]!srEnew($C$12,W13,$C$49)) -> 94.18459145 | Y13: =IF($H13="",X13,[1]!srEnew($C$14,X13,$C$50)) -> 93.97406513 | Z13: =IF($I13="",Y13,[1]!srEnew($C$14,Y13,$C$51)) -> 93.69388973 | AA13: =IF($I13="",Z13,[1]!srEnew($C$12,Z13,$C$52)) -> 93.27722306 | AB13: =IF($I13="",AA13,[1]!srEnew($C$17,AA13,$C$53)) -> 89.91700801 | AC13: =[1]!srEnewGas($C$13,AB13,$C$56,$C$61*100,$C$60) -> 88.92863148 | AD13: =[1]!srEnewGas($C$13,AC13,$C$57,$C$61*100,$C$60) -> 87.56535352 | AE13: 3502.614141 | AF13: =[1]!srE2LETt($C$11,AD13,0) -> 2.159669447 | AH13: =[1]!srEnew($C$19,$AD13,$C$38) -> 81.31796766 | AI13: =[1]!srEnew($C$20,AH13,$C$39) -> 78.48014801 | AJ13: =[1]!srEnew($C$21,AI13,$C$40) -> 78.48014801 | AK13: =[1]!srEnew($C$23,AJ13,$C$41) -> 77.12145235 | AL13: 3084.858094 | AM13: =[1]!srE2LETt($C$23,AK13,0) -> 2.376025747 | AN13: =[1]!srE2Rng($C$23,AK13) -> 3266.138893 | AO13: =[1]!srEnew($C$23,AK13,$C$42) -> 77.05351757 | AP13: 3082.140703 | AQ13: =[1]!srE2LETt($C$23,AO13,0) -> 2.377559047 | AR13: =[1]!srE2Rng($C$23,AO13) -> 3261.138893 | AS13: =[1]!srEnew($C$23,AO13,$C$43) -> 76.78177844 | AT13: 3071.271138 | AU13: =[1]!srE2LETt($C$23,AS13,0) -> 2.383692247 | AV13: =[1]!srE2Rng($C$23,AS13) -> 3241.138893
A14: 4 | B14: Mylar | C14: srim40Ar_Mylar | F14: ○ | G14: ○ | Q14: 上流 = | R14: =[1]!srE2Rng($C$12,R10) -> 3351.31549 | S14: μm | U14: 0 | V14: =IF($F14="",$C$8,[1]!srEnew($C$15,$C$8,$C$47)) -> 90.49102203 | W14: =IF($G14="",V14,[1]!srEnew($C$16,V14,$C$48)) -> 89.8139387 | X14: =IF($H14="",W14,[1]!srEnew($C$12,W14,$C$49)) -> 89.8139387 | Y14: =IF($H14="",X14,[1]!srEnew($C$14,X14,$C$50)) -> 89.8139387 | Z14: =IF($I14="",Y14,[1]!srEnew($C$14,Y14,$C$51)) -> 89.8139387 | AA14: =IF($I14="",Z14,[1]!srEnew($C$12,Z14,$C$52)) -> 89.8139387 | AB14: =IF($I14="",AA14,[1]!srEnew($C$17,AA14,$C$53)) -> 89.8139387 | AC14: =[1]!srEnewGas($C$13,AB14,$C$56,$C$61*100,$C$60) -> 88.82556217 | AD14: =[1]!srEnewGas($C$13,AC14,$C$57,$C$61*100,$C$60) -> 87.46050935 | AE14: 3498.420374 | AF14: =[1]!srE2LETt($C$11,AD14,0) -> 2.161560004 | AH14: =[1]!srEnew($C$19,$AD14,$C$38) -> 81.2088639 | AI14: =[1]!srEnew($C$20,AH14,$C$39) -> 78.36795481 | AJ14: =[1]!srEnew($C$21,AI14,$C$40) -> 78.36795481 | AK14: =[1]!srEnew($C$23,AJ14,$C$41) -> 77.00925916 | AL14: 3080.370366 | AM14: =[1]!srE2LETt($C$23,AK14,0) -> 2.378557967 | AN14: =[1]!srE2Rng($C$23,AK14) -> 3257.881474 | AO14: =[1]!srEnew($C$23,AK14,$C$42) -> 76.94132438 | AP14: 3077.652975 | AQ14: =[1]!srE2LETt($C$23,AO14,0) -> 2.380091267 | AR14: =[1]!srE2Rng($C$23,AO14) -> 3252.881474 | AS14: =[1]!srEnew($C$23,AO14,$C$43) -> 76.66958525 | AT14: 3066.78341 | AU14: =[1]!srE2LETt($C$23,AS14,0) -> 2.386224467 | AV14: =[1]!srE2Rng($C$23,AS14) -> 3232.881474
A15: 5 | B15: Au | C15: srim40Ar_Au | F15: ○ | G15: ○ | H15: ○ | Q15: 下流 = | R15: =[1]!srE2Rng($C$12,R11) -> 3330 | S15: μm | U15: 0 | V15: =IF($F15="",$C$8,[1]!srEnew($C$15,$C$8,$C$47)) -> 90.49102203 | W15: =IF($G15="",V15,[1]!srEnew($C$16,V15,$C$48)) -> 89.8139387 | X15: =IF($H15="",W15,[1]!srEnew($C$12,W15,$C$49)) -> 89.61949425 | Y15: =IF($H15="",X15,[1]!srEnew($C$14,X15,$C$50)) -> 89.40031617 | Z15: =IF($I15="",Y15,[1]!srEnew($C$14,Y15,$C$51)) -> 89.40031617 | AA15: =IF($I15="",Z15,[1]!srEnew($C$12,Z15,$C$52)) -> 89.40031617 | AB15: =IF($I15="",AA15,[1]!srEnew($C$17,AA15,$C$53)) -> 89.40031617 | AC15: =[1]!srEnewGas($C$13,AB15,$C$56,$C$61*100,$C$60) -> 88.41193964 | AD15: =[1]!srEnewGas($C$13,AC15,$C$57,$C$61*100,$C$60) -> 87.02742223 | AE15: 3481.096889 | AF15: =[1]!srE2LETt($C$11,AD15,0) -> 2.170017669 | AH15: =[1]!srEnew($C$19,$AD15,$C$38) -> 80.75773149 | AI15: =[1]!srEnew($C$20,AH15,$C$39) -> 77.9168224 | AJ15: =[1]!srEnew($C$21,AI15,$C$40) -> 77.9168224 | AK15: =[1]!srEnew($C$23,AJ15,$C$41) -> 76.55812675 | AL15: 3062.32507 | AM15: =[1]!srE2LETt($C$23,AK15,0) -> 2.388740105 | AN15: =[1]!srE2Rng($C$23,AK15) -> 3224.678128 | AO15: =[1]!srEnew($C$23,AK15,$C$42) -> 76.49019196 | AP15: 3059.607679 | AQ15: =[1]!srE2LETt($C$23,AO15,0) -> 2.390273405 | AR15: =[1]!srE2Rng($C$23,AO15) -> 3219.678128 | AS15: =[1]!srEnew($C$23,AO15,$C$43) -> 76.21845283 | AT15: 3048.738113 | AU15: =[1]!srE2LETt($C$23,AS15,0) -> 2.396406605 | AV15: =[1]!srE2Rng($C$23,AS15) -> 3199.678128
A16: 6 | B16: Kapton | C16: srim40Ar_Kapton | F16: ○ | G16: ○ | I16: ○ | Q16: 上流 - 下流 = | R16: =R14-R15 -> 21.31548984 | S16: μm Al 相当Range差 | U16: 0 | V16: =IF($F16="",$C$8,[1]!srEnew($C$15,$C$8,$C$47)) -> 90.49102203 | W16: =IF($G16="",V16,[1]!srEnew($C$16,V16,$C$48)) -> 89.8139387 | X16: =IF($H16="",W16,[1]!srEnew($C$12,W16,$C$49)) -> 89.8139387 | Y16: =IF($H16="",X16,[1]!srEnew($C$14,X16,$C$50)) -> 89.8139387 | Z16: =IF($I16="",Y16,[1]!srEnew($C$14,Y16,$C$51)) -> 89.52455513 | AA16: =IF($I16="",Z16,[1]!srEnew($C$12,Z16,$C$52)) -> 89.10788847 | AB16: =IF($I16="",AA16,[1]!srEnew($C$17,AA16,$C$53)) -> 85.6481094 | AC16: =[1]!srEnewGas($C$13,AB16,$C$56,$C$61*100,$C$60) -> 84.61322104 | AD16: =[1]!srEnewGas($C$13,AC16,$C$57,$C$61*100,$C$60) -> 83.18578882 | AE16: 3327.431553 | AF16: =[1]!srE2LETt($C$11,AD16,0) -> 2.245040098 | AH16: =[1]!srEnew($C$19,$AD16,$C$38) -> 76.75603002 | AI16: =[1]!srEnew($C$20,AH16,$C$39) -> 73.83573953 | AJ16: =[1]!srEnew($C$21,AI16,$C$40) -> 73.83573953 | AK16: =[1]!srEnew($C$23,AJ16,$C$41) -> 72.38225116 | AL16: 2895.290046 | AM16: =[1]!srE2LETt($C$23,AK16,0) -> 2.492628191 | AN16: =[1]!srE2Rng($C$23,AK16) -> 2929.89888 | AO16: =[1]!srEnew($C$23,AK16,$C$42) -> 72.30957674 | AP16: 2892.38307 | AQ16: =[1]!srE2LETt($C$23,AO16,0) -> 2.494536033 | AR16: =[1]!srE2Rng($C$23,AO16) -> 2924.89888 | AS16: =[1]!srEnew($C$23,AO16,$C$43) -> 72.01887907 | AT16: 2880.755163 | AU16: =[1]!srE2LETt($C$23,AS16,0) -> 2.5021674 | AV16: =[1]!srE2Rng($C$23,AS16) -> 2904.89888
A17: 7 | B17: EJ212 | C17: srim40Ar_EJ212 | F17: ○ | G17: ○ | H17: ○ | I17: ○ | U17: 0 | V17: =IF($F17="",$C$8,[1]!srEnew($C$15,$C$8,$C$47)) -> 90.49102203 | W17: =IF($G17="",V17,[1]!srEnew($C$16,V17,$C$48)) -> 89.8139387 | X17: =IF($H17="",W17,[1]!srEnew($C$12,W17,$C$49)) -> 89.61949425 | Y17: =IF($H17="",X17,[1]!srEnew($C$14,X17,$C$50)) -> 89.40031617 | Z17: =IF($I17="",Y17,[1]!srEnew($C$14,Y17,$C$51)) -> 89.11093261 | AA17: =IF($I17="",Z17,[1]!srEnew($C$12,Z17,$C$52)) -> 88.69426594 | AB17: =IF($I17="",AA17,[1]!srEnew($C$17,AA17,$C$53)) -> 85.2109856 | AC17: =[1]!srEnewGas($C$13,AB17,$C$56,$C$61*100,$C$60) -> 84.17609724 | AD17: =[1]!srEnewGas($C$13,AC17,$C$57,$C$61*100,$C$60) -> 82.74866501 | AE17: 3309.946601 | AF17: =[1]!srE2LETt($C$11,AD17,0) -> 2.253576595 | AH17: =[1]!srEnew($C$19,$AD17,$C$38) -> 76.30069272 | AI17: =[1]!srEnew($C$20,AH17,$C$39) -> 73.34708487 | AJ17: =[1]!srEnew($C$21,AI17,$C$40) -> 73.34708487 | AK17: =[1]!srEnew($C$23,AJ17,$C$41) -> 71.8935965 | AL17: 2875.74386 | AM17: =[1]!srE2LETt($C$23,AK17,0) -> 2.505456306 | AN17: =[1]!srE2Rng($C$23,AK17) -> 2896.279439 | AO17: =[1]!srEnew($C$23,AK17,$C$42) -> 71.82092208 | AP17: 2872.836883 | AQ17: =[1]!srE2LETt($C$23,AO17,0) -> 2.507364148 | AR17: =[1]!srE2Rng($C$23,AO17) -> 2891.279439 | AS17: =[1]!srEnew($C$23,AO17,$C$43) -> 71.53022441 | AT17: 2861.208976 | AU17: =[1]!srE2LETt($C$23,AS17,0) -> 2.514995516 | AV17: =[1]!srE2Rng($C$23,AS17) -> 2871.279439
B18: 照射物表面・モールド材質
A19: Mld1 | B19: Epoxy | C19: =$C$6&B19 -> srim40Ar_Epoxy | Q19: RinAl(Ebm)= | R19: =[1]!srE2Rng($C$12,$C$8) -> 4126 | S19: μm | U19: Edeg出口で | AF19: 試料表面で | AH19: 不感物通過後のE | AK19: 感応層１入口で | AO19: 感応層２入口で | AR19: =感応層１出口 | AS19: 感応層２出口で
A20: Mld2 | B20: SiO2 | C20: =$C$6&B20 -> srim40Ar_SiO2 | G20: (全sort済) | R20: ED | U20: ExR-ED | AD20: EAir2 | AH20: Mld1 | AI20: Mld2 | AJ20: Mld3 | AK20: Device | AM20: LET in | AN20: Rng in | AO20: Device | AQ20: LET in | AR20: Rng in | AS20: Device | AU20: LET in | AV20: Rng in
A21: Mld3 | B21: Kapton | C21: =$C$6&B21 -> srim40Ar_Kapton | G21: Al-Edeg 組合せ (Ptn文字) | R21: Th0 | S21: ⊿Th | U21: Th1 | V21: ＥＡｕ | W21: Ekap | X21: EIC1 | Y21: EIC1 | Z21: EPLmy | AB21: EPL | AC21: EAir1 | AD21: E00 | AF21: LET | AH21: =$B$19 -> Epoxy | AI21: =$B$20 -> SiO2 | AJ21: =$B$21 -> Kapton | AK21: =$B$23 -> Si | AM21: =AK21 -> Si | AN21: =AK21 -> Si | AO21: =$B$23 -> Si | AQ21: =AO21 -> Si | AR21: =AO21 -> Si | AS21: =$B$23 -> Si | AU21: =AS21 -> Si | AV21: =AS21 -> Si
B22: 照射物・材質 | F22: 1 | G22: 2 | H22: 3 | I22: 4 | J22: 5 | K22: 6 | L22: 7 | M22: 8 | N22: 9 | O22: A | P22: B | Q22: C | R22: μm | S22: μm | T22: EDstr | U22: μm | V22: MeV/u | W22: MeV/u | X22: MeV/u | Y22: MeV/u | Z22: MeV/u | AB22: MeV/u | AC22: MeV/u | AD22: MeV/u | AE22: MeV | AF22: in Si | AH22: MeV/u | AI22: MeV/u | AJ22: MeV/u | AK22: MeV/u | AL22: MeV | AN22: μm | AO22: MeV/u | AP22: MeV | AR22: μm | AS22: MeV/u | AT22: MeV | AV22: μm
A23: Dev | B23: Si | C23: =$C$6&B23 -> srim40Ar_Si | R23: =[2]!e5aEDthkI(ThEDtbl,F23:Q23) -> 0 | T23: =[2]!e5aEDflgI2S(F23:Q23) -> 0000000000000 | U23: =$C$65-$R23 -> 3330 | AC23: =[1]!srRng2E($C$12,U23) -> 83.86627907 | AD23: =[1]!srEnewGas($C$13,AC23,$C$57,$C$61*100,$C$60) -> 82.43884685 | AE23: =AD23*$C$7 -> 3297.553874 | AF23: =[1]!srE2LETt($C$11,AD23,0) -> 2.259626967 | AH23: =[1]!srEnew($C$19,$AD23,$C$38) -> 75.97796547 | AI23: =[1]!srEnew($C$20,AH23,$C$39) -> 73.00074343 | AJ23: =[1]!srEnew($C$21,AI23,$C$40) -> 73.00074343 | AK23: =[1]!srEnew($C$23,AJ23,$C$41) -> 71.54725505 | AL23: =AK23*$C$7 -> 2861.890202 | AM23: =[1]!srE2LETt($C$23,AK23,0) -> 2.514548429 | AN23: =[1]!srE2Rng($C$23,AK23) -> 2872.451148 | AO23: =[1]!srEnew($C$23,AK23,$C$42) -> 71.47458064 | AP23: =AO23*$C$7 -> 2858.983225 | AQ23: =[1]!srE2LETt($C$23,AO23,0) -> 2.516456271 | AR23: =[1]!srE2Rng($C$23,AO23) -> 2867.451148 | AS23: =[1]!srEnew($C$23,AO23,$C$43) -> 71.18388296 | AT23: =AS23*$C$7 -> 2847.355318 | AU23: =[1]!srE2LETt($C$23,AS23,0) -> 2.524087638 | AV23: =[1]!srE2Rng($C$23,AS23) -> 2847.451148
F24: 0 | G24: 0 | H24: 0 | I24: 0 | J24: 0 | K24: 0 | L24: 0 | M24: 0 | N24: 0 | O24: 0 | P24: 0 | Q24: 0 | R24: =[2]!e5aEDthkI(ThEDtbl,F24:Q24) -> 0 | T24: =[2]!e5aEDflgI2S(F24:Q24) -> 0000000000000 | U24: 3330 | AC24: =[1]!srRng2E($C$12,U24) -> 83.86627907 | AD24: =[1]!srEnewGas($C$13,AC24,$C$57,$C$61*100,$C$60) -> 82.43884685 | AE24: 3297.553874 | AF24: =[1]!srE2LETt($C$11,AD24,0) -> 2.259626967 | AH24: =[1]!srEnew($C$19,$AD24,$C$38) -> 75.97796547 | AI24: =[1]!srEnew($C$20,AH24,$C$39) -> 73.00074343 | AJ24: =[1]!srEnew($C$21,AI24,$C$40) -> 73.00074343 | AK24: =[1]!srEnew($C$23,AJ24,$C$41) -> 71.54725505 | AL24: 2861.890202 | AM24: =[1]!srE2LETt($C$23,AK24,0) -> 2.514548429 | AN24: =[1]!srE2Rng($C$23,AK24) -> 2872.451148 | AO24: =[1]!srEnew($C$23,AK24,$C$42) -> 71.47458064 | AP24: =AO24*$C$7 -> 2858.983225 | AQ24: =[1]!srE2LETt($C$23,AO24,0) -> 2.516456271 | AR24: =[1]!srE2Rng($C$23,AO24) -> 2867.451148 | AS24: =[1]!srEnew($C$23,AO24,$C$43) -> 71.18388296 | AT24: =AS24*$C$7 -> 2847.355318 | AU24: =[1]!srE2LETt($C$23,AS24,0) -> 2.524087638 | AV24: =[1]!srE2Rng($C$23,AS24) -> 2847.451148
B25: 照射物表層のモールド材 | F25: 0 | G25: 0 | H25: 0 | I25: 0 | J25: 0 | K25: 0 | L25: 0 | M25: 0 | N25: 0 | O25: A | P25: 0 | Q25: 0 | R25: =[2]!e5aEDthkI(ThEDtbl,F25:Q25) -> 5.48 | S25: =R25-R24 -> 5.48 | T25: =[2]!e5aEDflgI2S(F25:Q25) -> 000000000A000 | U25: 3324.52 | AC25: =[1]!srRng2E($C$12,U25) -> 83.78662791 | AD25: =[1]!srEnewGas($C$13,AC25,$C$57,$C$61*100,$C$60) -> 82.35919568 | AE25: 3294.367827 | AF25: =[1]!srE2LETt($C$11,AD25,0) -> 2.261182457 | AH25: =[1]!srEnew($C$19,$AD25,$C$38) -> 75.8949955 | AI25: =[1]!srEnew($C$20,AH25,$C$39) -> 72.91170249 | AJ25: =[1]!srEnew($C$21,AI25,$C$40) -> 72.91170249 | AK25: =[1]!srEnew($C$23,AJ25,$C$41) -> 71.45821412 | AL25: 2858.328565 | AM25: =[1]!srE2LETt($C$23,AK25,0) -> 2.516885923 | AN25: =[1]!srE2Rng($C$23,AK25) -> 2866.325131 | AO25: =[1]!srEnew($C$23,AK25,$C$42) -> 71.3855397 | AP25: =AO25*$C$7 -> 2855.421588 | AQ25: =[1]!srE2LETt($C$23,AO25,0) -> 2.518793765 | AR25: =[1]!srE2Rng($C$23,AO25) -> 2861.325131 | AS25: =[1]!srEnew($C$23,AO25,$C$43) -> 71.09484203 | AT25: =AS25*$C$7 -> 2843.793681 | AU25: =[1]!srE2LETt($C$23,AS25,0) -> 2.526425132 | AV25: =[1]!srE2Rng($C$23,AS25) -> 2841.325131
A26: Mld1 | B26: =B19 -> Epoxy | C26: 500 | D26: µm 不感1 | F26: 1 | G26: 0 | H26: 0 | I26: 0 | J26: 0 | K26: 0 | L26: 0 | M26: 0 | N26: 0 | O26: 0 | P26: 0 | Q26: 0 | R26: =[2]!e5aEDthkI(ThEDtbl,F26:Q26) -> 10.2 | S26: =R26-R25 -> 4.72 | T26: =[2]!e5aEDflgI2S(F26:Q26) -> 1000000000000 | U26: 3319.8 | AC26: =[1]!srRng2E($C$12,U26) -> 83.71802326 | AD26: =[1]!srEnewGas($C$13,AC26,$C$57,$C$61*100,$C$60) -> 82.29059103 | AE26: 3291.623641 | AF26: =[1]!srE2LETt($C$11,AD26,0) -> 2.262522222 | AH26: =[1]!srEnew($C$19,$AD26,$C$38) -> 75.82353233 | AI26: =[1]!srEnew($C$20,AH26,$C$39) -> 72.8350103 | AJ26: =[1]!srEnew($C$21,AI26,$C$40) -> 72.8350103 | AK26: =[1]!srEnew($C$23,AJ26,$C$41) -> 71.38152193 | AL26: 2855.260877 | AM26: =[1]!srE2LETt($C$23,AK26,0) -> 2.518899239 | AN26: =[1]!srE2Rng($C$23,AK26) -> 2861.048709 | AO26: =[1]!srEnew($C$23,AK26,$C$42) -> 71.30884751 | AP26: =AO26*$C$7 -> 2852.3539 | AQ26: =[1]!srE2LETt($C$23,AO26,0) -> 2.520807081 | AR26: =[1]!srE2Rng($C$23,AO26) -> 2856.048709 | AS26: =[1]!srEnew($C$23,AO26,$C$43) -> 71.01814984 | AT26: =AS26*$C$7 -> 2840.725993 | AU26: =[1]!srE2LETt($C$23,AS26,0) -> 2.528438448 | AV26: =[1]!srE2Rng($C$23,AS26) -> 2836.048709
A27: Mld2 | B27: =B20 -> SiO2 | C27: 200 | D27: µm 不感2 | F27: 0 | G27: 2 | H27: 0 | I27: 0 | J27: 0 | K27: 0 | L27: 0 | M27: 0 | N27: 0 | O27: 0 | P27: 0 | Q27: 0 | R27: =[2]!e5aEDthkI(ThEDtbl,F27:Q27) -> 12.8 | S27: 2.6 | T27: =[2]!e5aEDflgI2S(F27:Q27) -> 0200000000000 | U27: 3317.2 | AC27: =[1]!srRng2E($C$12,U27) -> 83.68023256 | AD27: =[1]!srEnewGas($C$13,AC27,$C$57,$C$61*100,$C$60) -> 82.25280034 | AE27: 3290.112013 | AF27: =[1]!srE2LETt($C$11,AD27,0) -> 2.263260229 | AH27: =[1]!srEnew($C$19,$AD27,$C$38) -> 75.78416702 | AI27: =[1]!srEnew($C$20,AH27,$C$39) -> 72.7927646 | AJ27: =[1]!srEnew($C$21,AI27,$C$40) -> 72.7927646 | AK27: =[1]!srEnew($C$23,AJ27,$C$41) -> 71.33927623 | AL27: 2853.571049 | AM27: =[1]!srE2LETt($C$23,AK27,0) -> 2.520008269 | AN27: =[1]!srE2Rng($C$23,AK27) -> 2858.142205 | AO27: =[1]!srEnew($C$23,AK27,$C$42) -> 71.26660181 | AP27: 2850.664072 | AQ27: =[1]!srE2LETt($C$23,AO27,0) -> 2.521916111 | AR27: =[1]!srE2Rng($C$23,AO27) -> 2853.142205 | AS27: =[1]!srEnew($C$23,AO27,$C$43) -> 70.97590414 | AT27: 2839.036165 | AU27: =[1]!srE2LETt($C$23,AS27,0) -> 2.529547478 | AV27: =[1]!srE2Rng($C$23,AS27) -> 2833.142205
A28: Mld3 | B28: =B21 -> Kapton | C28: 0 | D28: µm 不感3 | F28: 1 | G28: 0 | H28: 0 | I28: 0 | J28: 0 | K28: 0 | L28: 0 | M28: 0 | N28: 0 | O28: A | P28: 0 | Q28: 0 | R28: =[2]!e5aEDthkI(ThEDtbl,F28:Q28) -> 15.68 | S28: 2.88 | T28: =[2]!e5aEDflgI2S(F28:Q28) -> 100000000A000 | U28: 3314.32 | AC28: =[1]!srRng2E($C$12,U28) -> 83.63837209 | AD28: =[1]!srEnewGas($C$13,AC28,$C$57,$C$61*100,$C$60) -> 82.21093987 | AE28: 3288.437595 | AF28: =[1]!srE2LETt($C$11,AD28,0) -> 2.264077713 | AH28: =[1]!srEnew($C$19,$AD28,$C$38) -> 75.74056236 | AI28: =[1]!srEnew($C$20,AH28,$C$39) -> 72.74596937 | AJ28: =[1]!srEnew($C$21,AI28,$C$40) -> 72.74596937 | AK28: =[1]!srEnew($C$23,AJ28,$C$41) -> 71.292481 | AL28: 2851.69924 | AM28: =[1]!srE2LETt($C$23,AK28,0) -> 2.521236733 | AN28: =[1]!srE2Rng($C$23,AK28) -> 2854.922692 | AO28: =[1]!srEnew($C$23,AK28,$C$42) -> 71.21980658 | AP28: 2848.792263 | AQ28: =[1]!srE2LETt($C$23,AO28,0) -> 2.523144575 | AR28: =[1]!srE2Rng($C$23,AO28) -> 2849.922692 | AS28: =[1]!srEnew($C$23,AO28,$C$43) -> 70.9291089 | AT28: 2837.164356 | AU28: =[1]!srE2LETt($C$23,AS28,0) -> 2.530775942 | AV28: =[1]!srE2Rng($C$23,AS28) -> 2829.922692
B29: 不感3～感応層1まで | F29: 0 | G29: 2 | H29: 0 | I29: 0 | J29: 0 | K29: 0 | L29: 0 | M29: 0 | N29: 0 | O29: A | P29: 0 | Q29: 0 | R29: =[2]!e5aEDthkI(ThEDtbl,F29:Q29) -> 18.28 | S29: =R29-R27 -> 5.48 | T29: =[2]!e5aEDflgI2S(F29:Q29) -> 020000000A000 | U29: 3311.72 | AC29: =[1]!srRng2E($C$12,U29) -> 83.6005814 | AD29: =[1]!srEnewGas($C$13,AC29,$C$57,$C$61*100,$C$60) -> 82.17314917 | AE29: 3286.925967 | AF29: =[1]!srE2LETt($C$11,AD29,0) -> 2.264815719 | AH29: =[1]!srEnew($C$19,$AD29,$C$38) -> 75.70119705 | AI29: =[1]!srEnew($C$20,AH29,$C$39) -> 72.70372367 | AJ29: =[1]!srEnew($C$21,AI29,$C$40) -> 72.70372367 | AK29: =[1]!srEnew($C$23,AJ29,$C$41) -> 71.2502353 | AL29: 2850.009412 | AM29: =[1]!srE2LETt($C$23,AK29,0) -> 2.522345763 | AN29: =[1]!srE2Rng($C$23,AK29) -> 2852.016188 | AO29: =[1]!srEnew($C$23,AK29,$C$42) -> 71.17756088 | AP29: 2847.102435 | AQ29: =[1]!srE2LETt($C$23,AO29,0) -> 2.524253605 | AR29: =[1]!srE2Rng($C$23,AO29) -> 2847.016188 | AS29: =[1]!srEnew($C$23,AO29,$C$43) -> 70.8868632 | AT29: 2835.474528 | AU29: =[1]!srE2LETt($C$23,AS29,0) -> 2.531884972 | AV29: =[1]!srE2Rng($C$23,AS29) -> 2827.016188
A30: Dev1 | B30: =B23 -> Si | C30: 100 | D30: µm 不感4 | F30: 1 | G30: 2 | H30: 0 | I30: 0 | J30: 0 | K30: 0 | L30: 0 | M30: 0 | N30: 0 | O30: 0 | P30: 0 | Q30: 0 | R30: =[2]!e5aEDthkI(ThEDtbl,F30:Q30) -> 23 | S30: 4.72 | T30: =[2]!e5aEDflgI2S(F30:Q30) -> 1200000000000 | U30: 3307 | AC30: =[1]!srRng2E($C$12,U30) -> 83.53197674 | AD30: =[1]!srEnewGas($C$13,AC30,$C$57,$C$61*100,$C$60) -> 82.10454452 | AE30: 3284.181781 | AF30: =[1]!srE2LETt($C$11,AD30,0) -> 2.266155485 | AH30: =[1]!srEnew($C$19,$AD30,$C$38) -> 75.62973388 | AI30: =[1]!srEnew($C$20,AH30,$C$39) -> 72.62703148 | AJ30: =[1]!srEnew($C$21,AI30,$C$40) -> 72.62703148 | AK30: =[1]!srEnew($C$23,AJ30,$C$41) -> 71.17354311 | AL30: 2846.941724 | AM30: =[1]!srE2LETt($C$23,AK30,0) -> 2.524359079 | AN30: =[1]!srE2Rng($C$23,AK30) -> 2846.739766 | AO30: =[1]!srEnew($C$23,AK30,$C$42) -> 71.10086869 | AP30: 2844.034747 | AQ30: =[1]!srE2LETt($C$23,AO30,0) -> 2.526266921 | AR30: =[1]!srE2Rng($C$23,AO30) -> 2841.739766 | AS30: =[1]!srEnew($C$23,AO30,$C$43) -> 70.81017101 | AT30: 2832.40684 | AU30: =[1]!srE2LETt($C$23,AS30,0) -> 2.533898288 | AV30: =[1]!srE2Rng($C$23,AS30) -> 2821.739766
B31: 感応層1厚さ | F31: 0 | G31: 0 | H31: 3 | I31: 0 | J31: 0 | K31: 0 | L31: 0 | M31: 0 | N31: 0 | O31: 0 | P31: 0 | Q31: 0 | R31: =[2]!e5aEDthkI(ThEDtbl,F31:Q31) -> 23.8 | S31: 0.8 | T31: =[2]!e5aEDflgI2S(F31:Q31) -> 0030000000000 | U31: 3306.2 | AC31: =[1]!srRng2E($C$12,U31) -> 83.52034884 | AD31: =[1]!srEnewGas($C$13,AC31,$C$57,$C$61*100,$C$60) -> 82.09291661 | AE31: 3283.716665 | AF31: =[1]!srE2LETt($C$11,AD31,0) -> 2.266382564 | AH31: =[1]!srEnew($C$19,$AD31,$C$38) -> 75.61762147 | AI31: =[1]!srEnew($C$20,AH31,$C$39) -> 72.6140328 | AJ31: =[1]!srEnew($C$21,AI31,$C$40) -> 72.6140328 | AK31: =[1]!srEnew($C$23,AJ31,$C$41) -> 71.16054443 | AL31: 2846.421777 | AM31: =[1]!srE2LETt($C$23,AK31,0) -> 2.524700319 | AN31: =[1]!srE2Rng($C$23,AK31) -> 2845.845457 | AO31: =[1]!srEnew($C$23,AK31,$C$42) -> 71.08787001 | AP31: 2843.5148 | AQ31: =[1]!srE2LETt($C$23,AO31,0) -> 2.526608161 | AR31: =[1]!srE2Rng($C$23,AO31) -> 2840.845457 | AS31: =[1]!srEnew($C$23,AO31,$C$43) -> 70.79717234 | AT31: 2831.886893 | AU31: =[1]!srE2LETt($C$23,AS31,0) -> 2.534239528 | AV31: =[1]!srE2Rng($C$23,AS31) -> 2820.845457
A32: Dev2 | B32: =B23 -> Si | C32: 5 | D32: µm 感応1 | F32: 1 | G32: 2 | H32: 0 | I32: 0 | J32: 0 | K32: 0 | L32: 0 | M32: 0 | N32: 0 | O32: A | P32: 0 | Q32: 0 | R32: =[2]!e5aEDthkI(ThEDtbl,F32:Q32) -> 28.48 | S32: 4.68 | T32: =[2]!e5aEDflgI2S(F32:Q32) -> 120000000A000 | U32: 3301.52 | AC32: =[1]!srRng2E($C$12,U32) -> 83.45232558 | AD32: =[1]!srEnewGas($C$13,AC32,$C$57,$C$61*100,$C$60) -> 82.02489336 | AE32: 3280.995734 | AF32: =[1]!srE2LETt($C$11,AD32,0) -> 2.267710975 | AH32: =[1]!srEnew($C$19,$AD32,$C$38) -> 75.54676392 | AI32: =[1]!srEnew($C$20,AH32,$C$39) -> 72.53799054 | AJ32: =[1]!srEnew($C$21,AI32,$C$40) -> 72.53799054 | AK32: =[1]!srEnew($C$23,AJ32,$C$41) -> 71.08450217 | AL32: 2843.380087 | AM32: =[1]!srE2LETt($C$23,AK32,0) -> 2.526696573 | AN32: =[1]!srE2Rng($C$23,AK32) -> 2840.613749 | AO32: =[1]!srEnew($C$23,AK32,$C$42) -> 71.01182775 | AP32: 2840.47311 | AQ32: =[1]!srE2LETt($C$23,AO32,0) -> 2.528604415 | AR32: =[1]!srE2Rng($C$23,AO32) -> 2835.613749 | AS32: =[1]!srEnew($C$23,AO32,$C$43) -> 70.72113008 | AT32: 2828.845203 | AU32: =[1]!srE2LETt($C$23,AS32,0) -> 2.536235782 | AV32: =[1]!srE2Rng($C$23,AS32) -> 2815.613749
B33: 感応層2厚さ | F33: 0 | G33: 0 | H33: 3 | I33: 0 | J33: 0 | K33: 0 | L33: 0 | M33: 0 | N33: 0 | O33: A | P33: 0 | Q33: 0 | R33: =[2]!e5aEDthkI(ThEDtbl,F33:Q33) -> 29.28 | S33: 0.8 | T33: =[2]!e5aEDflgI2S(F33:Q33) -> 003000000A000 | U33: 3300.72 | AC33: =[1]!srRng2E($C$12,U33) -> 83.44069767 | AD33: =[1]!srEnewGas($C$13,AC33,$C$57,$C$61*100,$C$60) -> 82.01326545 | AE33: 3280.530618 | AF33: =[1]!srE2LETt($C$11,AD33,0) -> 2.267938054 | AH33: =[1]!srEnew($C$19,$AD33,$C$38) -> 75.53465151 | AI33: =[1]!srEnew($C$20,AH33,$C$39) -> 72.52499187 | AJ33: =[1]!srEnew($C$21,AI33,$C$40) -> 72.52499187 | AK33: =[1]!srEnew($C$23,AJ33,$C$41) -> 71.07150349 | AL33: 2842.86014 | AM33: =[1]!srE2LETt($C$23,AK33,0) -> 2.527037813 | AN33: =[1]!srE2Rng($C$23,AK33) -> 2839.71944 | AO33: =[1]!srEnew($C$23,AK33,$C$42) -> 70.99882908 | AP33: 2839.953163 | AQ33: =[1]!srE2LETt($C$23,AO33,0) -> 2.528945655 | AR33: =[1]!srE2Rng($C$23,AO33) -> 2834.71944 | AS33: =[1]!srEnew($C$23,AO33,$C$43) -> 70.7081314 | AT33: 2828.325256 | AU33: =[1]!srE2LETt($C$23,AS33,0) -> 2.536577022 | AV33: =[1]!srE2Rng($C$23,AS33) -> 2814.71944
A34: Dev3 | B34: =B23 -> Si | C34: 20 | D34: µm 感応2 | F34: 1 | G34: 0 | H34: 3 | I34: 0 | J34: 0 | K34: 0 | L34: 0 | M34: 0 | N34: 0 | O34: 0 | P34: 0 | Q34: 0 | R34: =[2]!e5aEDthkI(ThEDtbl,F34:Q34) -> 34 | S34: 4.72 | T34: =[2]!e5aEDflgI2S(F34:Q34) -> 1030000000000 | U34: 3296 | AC34: =[1]!srRng2E($C$12,U34) -> 83.37209302 | AD34: =[1]!srEnewGas($C$13,AC34,$C$57,$C$61*100,$C$60) -> 81.9446608 | AE34: 3277.786432 | AF34: =[1]!srE2LETt($C$11,AD34,0) -> 2.269277819 | AH34: =[1]!srEnew($C$19,$AD34,$C$38) -> 75.46318833 | AI34: =[1]!srEnew($C$20,AH34,$C$39) -> 72.44829968 | AJ34: =[1]!srEnew($C$21,AI34,$C$40) -> 72.44829968 | AK34: =[1]!srEnew($C$23,AJ34,$C$41) -> 70.9948113 | AL34: 2839.792452 | AM34: =[1]!srE2LETt($C$23,AK34,0) -> 2.529051129 | AN34: =[1]!srE2Rng($C$23,AK34) -> 2834.443018 | AO34: =[1]!srEnew($C$23,AK34,$C$42) -> 70.92213688 | AP34: 2836.885475 | AQ34: =[1]!srE2LETt($C$23,AO34,0) -> 2.530958971 | AR34: =[1]!srE2Rng($C$23,AO34) -> 2829.443018 | AS34: =[1]!srEnew($C$23,AO34,$C$43) -> 70.63143921 | AT34: 2825.257568 | AU34: =[1]!srE2LETt($C$23,AS34,0) -> 2.538590338 | AV34: =[1]!srE2Rng($C$23,AS34) -> 2809.443018
B35: これらの照射角度 | F35: 0 | G35: 2 | H35: 3 | I35: 0 | J35: 0 | K35: 0 | L35: 0 | M35: 0 | N35: 0 | O35: 0 | P35: 0 | Q35: 0 | R35: =[2]!e5aEDthkI(ThEDtbl,F35:Q35) -> 36.6 | S35: 2.6 | T35: =[2]!e5aEDflgI2S(F35:Q35) -> 0230000000000 | U35: 3293.4 | AC35: =[1]!srRng2E($C$12,U35) -> 83.33430233 | AD35: =[1]!srEnewGas($C$13,AC35,$C$57,$C$61*100,$C$60) -> 81.9068701 | AE35: 3276.274804 | AF35: =[1]!srE2LETt($C$11,AD35,0) -> 2.270015826 | AH35: =[1]!srEnew($C$19,$AD35,$C$38) -> 75.42382302 | AI35: =[1]!srEnew($C$20,AH35,$C$39) -> 72.40605398 | AJ35: =[1]!srEnew($C$21,AI35,$C$40) -> 72.40605398 | AK35: =[1]!srEnew($C$23,AJ35,$C$41) -> 70.9525656 | AL35: 2838.102624 | AM35: =[1]!srE2LETt($C$23,AK35,0) -> 2.530160159 | AN35: =[1]!srE2Rng($C$23,AK35) -> 2831.536514 | AO35: =[1]!srEnew($C$23,AK35,$C$42) -> 70.87989119 | AP35: 2835.195647 | AQ35: =[1]!srE2LETt($C$23,AO35,0) -> 2.532068001 | AR35: =[1]!srE2Rng($C$23,AO35) -> 2826.536514 | AS35: =[1]!srEnew($C$23,AO35,$C$43) -> 70.58919351 | AT35: 2823.56774 | AU35: =[1]!srE2LETt($C$23,AS35,0) -> 2.539699368 | AV35: =[1]!srE2Rng($C$23,AS35) -> 2806.536514
C36: 0 | D36: 度 | F36: 1 | G36: 0 | H36: 3 | I36: 0 | J36: 0 | K36: 0 | L36: 0 | M36: 0 | N36: 0 | O36: A | P36: 0 | Q36: 0 | R36: =[2]!e5aEDthkI(ThEDtbl,F36:Q36) -> 39.48 | S36: 2.88 | T36: =[2]!e5aEDflgI2S(F36:Q36) -> 103000000A000 | U36: 3290.52 | AC36: =[1]!srRng2E($C$12,U36) -> 83.29244186 | AD36: =[1]!srEnewGas($C$13,AC36,$C$57,$C$61*100,$C$60) -> 81.86500964 | AE36: 3274.600386 | AF36: =[1]!srE2LETt($C$11,AD36,0) -> 2.27083331 | AH36: =[1]!srEnew($C$19,$AD36,$C$38) -> 75.38021837 | AI36: =[1]!srEnew($C$20,AH36,$C$39) -> 72.35925874 | AJ36: =[1]!srEnew($C$21,AI36,$C$40) -> 72.35925874 | AK36: =[1]!srEnew($C$23,AJ36,$C$41) -> 70.90577037 | AL36: 2836.230815 | AM36: =[1]!srE2LETt($C$23,AK36,0) -> 2.531388623 | AN36: =[1]!srE2Rng($C$23,AK36) -> 2828.317001 | AO36: =[1]!srEnew($C$23,AK36,$C$42) -> 70.83309595 | AP36: 2833.323838 | AQ36: =[1]!srE2LETt($C$23,AO36,0) -> 2.533296465 | AR36: =[1]!srE2Rng($C$23,AO36) -> 2823.317001 | AS36: =[1]!srEnew($C$23,AO36,$C$43) -> 70.54239828 | AT36: 2821.695931 | AU36: =[1]!srE2LETt($C$23,AS36,0) -> 2.540927833 | AV36: =[1]!srE2Rng($C$23,AS36) -> 2803.317001
B37: 不感部の角度換算厚さ | F37: 0 | G37: 2 | H37: 3 | I37: 0 | J37: 0 | K37: 0 | L37: 0 | M37: 0 | N37: 0 | O37: A | P37: 0 | Q37: 0 | R37: =[2]!e5aEDthkI(ThEDtbl,F37:Q37) -> 42.08 | S37: 2.6 | T37: =[2]!e5aEDflgI2S(F37:Q37) -> 023000000A000 | U37: 3287.92 | AC37: =[1]!srRng2E($C$12,U37) -> 83.25465116 | AD37: =[1]!srEnewGas($C$13,AC37,$C$57,$C$61*100,$C$60) -> 81.82721894 | AE37: 3273.088758 | AF37: =[1]!srE2LETt($C$11,AD37,0) -> 2.271571316 | AH37: =[1]!srEnew($C$19,$AD37,$C$38) -> 75.34085306 | AI37: =[1]!srEnew($C$20,AH37,$C$39) -> 72.31701304 | AJ37: =[1]!srEnew($C$21,AI37,$C$40) -> 72.31701304 | AK37: =[1]!srEnew($C$23,AJ37,$C$41) -> 70.86352467 | AL37: 2834.540987 | AM37: =[1]!srE2LETt($C$23,AK37,0) -> 2.532497653 | AN37: =[1]!srE2Rng($C$23,AK37) -> 2825.410497 | AO37: =[1]!srEnew($C$23,AK37,$C$42) -> 70.79085025 | AP37: 2831.63401 | AQ37: =[1]!srE2LETt($C$23,AO37,0) -> 2.534405495 | AR37: =[1]!srE2Rng($C$23,AO37) -> 2820.410497 | AS37: =[1]!srEnew($C$23,AO37,$C$43) -> 70.50015258 | AT37: 2820.006103 | AU37: =[1]!srE2LETt($C$23,AS37,0) -> 2.542036863 | AV37: =[1]!srE2Rng($C$23,AS37) -> 2800.410497
A38: Mld1 | B38: =B19 -> Epoxy | C38: =C26/COS(RADIANS(C36)) -> 500 | D38: µm 不感1 | F38: 1 | G38: 2 | H38: 3 | I38: 0 | J38: 0 | K38: 0 | L38: 0 | M38: 0 | N38: 0 | O38: 0 | P38: 0 | Q38: 0 | R38: =[2]!e5aEDthkI(ThEDtbl,F38:Q38) -> 46.8 | S38: 4.72 | T38: =[2]!e5aEDflgI2S(F38:Q38) -> 1230000000000 | U38: 3283.2 | AC38: =[1]!srRng2E($C$12,U38) -> 83.18604651 | AD38: =[1]!srEnewGas($C$13,AC38,$C$57,$C$61*100,$C$60) -> 81.75861429 | AE38: 3270.344572 | AF38: =[1]!srE2LETt($C$11,AD38,0) -> 2.272911081 | AH38: =[1]!srEnew($C$19,$AD38,$C$38) -> 75.26938988 | AI38: =[1]!srEnew($C$20,AH38,$C$39) -> 72.24032085 | AJ38: =[1]!srEnew($C$21,AI38,$C$40) -> 72.24032085 | AK38: =[1]!srEnew($C$23,AJ38,$C$41) -> 70.78683248 | AL38: 2831.473299 | AM38: =[1]!srE2LETt($C$23,AK38,0) -> 2.534510969 | AN38: =[1]!srE2Rng($C$23,AK38) -> 2820.134075 | AO38: =[1]!srEnew($C$23,AK38,$C$42) -> 70.71415806 | AP38: 2828.566322 | AQ38: =[1]!srE2LETt($C$23,AO38,0) -> 2.536418811 | AR38: =[1]!srE2Rng($C$23,AO38) -> 2815.134075 | AS38: =[1]!srEnew($C$23,AO38,$C$43) -> 70.42346039 | AT38: 2816.938415 | AU38: =[1]!srE2LETt($C$23,AS38,0) -> 2.544050179 | AV38: =[1]!srE2Rng($C$23,AS38) -> 2795.134075
A39: Mld2 | B39: =B20 -> SiO2 | C39: =C27/COS(RADIANS(C36)) -> 200 | D39: µm 不感2 | F39: 0 | G39: 0 | H39: 0 | I39: 4 | J39: 0 | K39: 0 | L39: 0 | M39: 0 | N39: 0 | O39: 0 | P39: 0 | Q39: 0 | R39: =[2]!e5aEDthkI(ThEDtbl,F39:Q39) -> 48.59 | S39: 1.79 | T39: =[2]!e5aEDflgI2S(F39:Q39) -> 0004000000000 | U39: 3281.41 | AC39: =[1]!srRng2E($C$12,U39) -> 83.16002907 | AD39: =[1]!srEnewGas($C$13,AC39,$C$57,$C$61*100,$C$60) -> 81.73259685 | AE39: 3269.303874 | AF39: =[1]!srE2LETt($C$11,AD39,0) -> 2.27341917 | AH39: =[1]!srEnew($C$19,$AD39,$C$38) -> 75.24228838 | AI39: =[1]!srEnew($C$20,AH39,$C$39) -> 72.21123631 | AJ39: =[1]!srEnew($C$21,AI39,$C$40) -> 72.21123631 | AK39: =[1]!srEnew($C$23,AJ39,$C$41) -> 70.75774794 | AL39: 2830.309918 | AM39: =[1]!srE2LETt($C$23,AK39,0) -> 2.535274494 | AN39: =[1]!srE2Rng($C$23,AK39) -> 2818.133058 | AO39: =[1]!srEnew($C$23,AK39,$C$42) -> 70.68507352 | AP39: 2827.402941 | AQ39: =[1]!srE2LETt($C$23,AO39,0) -> 2.537182336 | AR39: =[1]!srE2Rng($C$23,AO39) -> 2813.133058 | AS39: =[1]!srEnew($C$23,AO39,$C$43) -> 70.39437585 | AT39: 2815.775034 | AU39: =[1]!srE2LETt($C$23,AS39,0) -> 2.544813703 | AV39: =[1]!srE2Rng($C$23,AS39) -> 2793.133058
A40: Mld3 | B40: =B21 -> Kapton | C40: =C28/COS(RADIANS(C36)) -> 0 | D40: µm 不感3 | F40: 1 | G40: 2 | H40: 3 | I40: 0 | J40: 0 | K40: 0 | L40: 0 | M40: 0 | N40: 0 | O40: A | P40: 0 | Q40: 0 | R40: =[2]!e5aEDthkI(ThEDtbl,F40:Q40) -> 52.28 | S40: 3.69 | T40: =[2]!e5aEDflgI2S(F40:Q40) -> 123000000A000 | U40: 3277.72 | AC40: =[1]!srRng2E($C$12,U40) -> 83.10639535 | AD40: =[1]!srEnewGas($C$13,AC40,$C$57,$C$61*100,$C$60) -> 81.67896313 | AE40: 3267.158525 | AF40: =[1]!srE2LETt($C$11,AD40,0) -> 2.274466572 | AH40: =[1]!srEnew($C$19,$AD40,$C$38) -> 75.18641992 | AI40: =[1]!srEnew($C$20,AH40,$C$39) -> 72.15127992 | AJ40: =[1]!srEnew($C$21,AI40,$C$40) -> 72.15127992 | AK40: =[1]!srEnew($C$23,AJ40,$C$41) -> 70.69779155 | AL40: 2827.911662 | AM40: =[1]!srE2LETt($C$23,AK40,0) -> 2.536848463 | AN40: =[1]!srE2Rng($C$23,AK40) -> 2814.008058 | AO40: =[1]!srEnew($C$23,AK40,$C$42) -> 70.62511713 | AP40: 2825.004685 | AQ40: =[1]!srE2LETt($C$23,AO40,0) -> 2.538756305 | AR40: =[1]!srE2Rng($C$23,AO40) -> 2809.008058 | AS40: =[1]!srEnew($C$23,AO40,$C$43) -> 70.33441945 | AT40: 2813.376778 | AU40: =[1]!srE2LETt($C$23,AS40,0) -> 2.546387673 | AV40: =[1]!srE2Rng($C$23,AS40) -> 2789.008058
A41: Dev1 | B41: =B30 -> Si | C41: =C30/COS(RADIANS(C36)) -> 100 | D41: µm 不感4 | F41: 0 | G41: 0 | H41: 0 | I41: 4 | J41: 0 | K41: 0 | L41: 0 | M41: 0 | N41: 0 | O41: A | P41: 0 | Q41: 0 | R41: =[2]!e5aEDthkI(ThEDtbl,F41:Q41) -> 54.07 | S41: 1.79 | T41: =[2]!e5aEDflgI2S(F41:Q41) -> 000400000A000 | U41: 3275.93 | AC41: =[1]!srRng2E($C$12,U41) -> 83.08037791 | AD41: =[1]!srEnewGas($C$13,AC41,$C$57,$C$61*100,$C$60) -> 81.65294568 | AE41: 3266.117827 | AF41: =[1]!srE2LETt($C$11,AD41,0) -> 2.274974661 | AH41: =[1]!srEnew($C$19,$AD41,$C$38) -> 75.15931842 | AI41: =[1]!srEnew($C$20,AH41,$C$39) -> 72.12219538 | AJ41: =[1]!srEnew($C$21,AI41,$C$40) -> 72.12219538 | AK41: =[1]!srEnew($C$23,AJ41,$C$41) -> 70.66870701 | AL41: 2826.74828 | AM41: =[1]!srE2LETt($C$23,AK41,0) -> 2.537611988 | AN41: =[1]!srE2Rng($C$23,AK41) -> 2812.007042 | AO41: =[1]!srEnew($C$23,AK41,$C$42) -> 70.59603259 | AP41: 2823.841304 | AQ41: =[1]!srE2LETt($C$23,AO41,0) -> 2.53951983 | AR41: =[1]!srE2Rng($C$23,AO41) -> 2807.007042 | AS41: =[1]!srEnew($C$23,AO41,$C$43) -> 70.30533491 | AT41: 2812.213397 | AU41: =[1]!srE2LETt($C$23,AS41,0) -> 2.547151197 | AV41: =[1]!srE2Rng($C$23,AS41) -> 2787.007042
A42: Dev2 | B42: =B30 -> Si | C42: =C32/COS(RADIANS(C36)) -> 5 | D42: µm 感応1 | F42: 1 | G42: 0 | H42: 0 | I42: 4 | J42: 0 | K42: 0 | L42: 0 | M42: 0 | N42: 0 | O42: 0 | P42: 0 | Q42: 0 | R42: =[2]!e5aEDthkI(ThEDtbl,F42:Q42) -> 58.79 | S42: 4.72 | T42: =[2]!e5aEDflgI2S(F42:Q42) -> 1004000000000 | U42: 3271.21 | AC42: =[1]!srRng2E($C$12,U42) -> 83.01177326 | AD42: =[1]!srEnewGas($C$13,AC42,$C$57,$C$61*100,$C$60) -> 81.58434103 | AE42: 3263.373641 | AF42: =[1]!srE2LETt($C$11,AD42,0) -> 2.276314426 | AH42: =[1]!srEnew($C$19,$AD42,$C$38) -> 75.08785524 | AI42: =[1]!srEnew($C$20,AH42,$C$39) -> 72.04550319 | AJ42: =[1]!srEnew($C$21,AI42,$C$40) -> 72.04550319 | AK42: =[1]!srEnew($C$23,AJ42,$C$41) -> 70.59201482 | AL42: 2823.680593 | AM42: =[1]!srE2LETt($C$23,AK42,0) -> 2.539625304 | AN42: =[1]!srE2Rng($C$23,AK42) -> 2806.730619 | AO42: =[1]!srEnew($C$23,AK42,$C$42) -> 70.5193404 | AP42: 2820.773616 | AQ42: =[1]!srE2LETt($C$23,AO42,0) -> 2.541533146 | AR42: =[1]!srE2Rng($C$23,AO42) -> 2801.730619 | AS42: =[1]!srEnew($C$23,AO42,$C$43) -> 70.22864272 | AT42: 2809.145709 | AU42: =[1]!srE2LETt($C$23,AS42,0) -> 2.549164513 | AV42: =[1]!srE2Rng($C$23,AS42) -> 2781.730619
A43: Dev3 | B43: =B30 -> Si | C43: =C34/COS(RADIANS(C36)) -> 20 | D43: µm 感応2 | F43: 0 | G43: 2 | H43: 0 | I43: 4 | J43: 0 | K43: 0 | L43: 0 | M43: 0 | N43: 0 | O43: 0 | P43: 0 | Q43: 0 | R43: =[2]!e5aEDthkI(ThEDtbl,F43:Q43) -> 61.39 | S43: 2.6 | T43: =[2]!e5aEDflgI2S(F43:Q43) -> 0204000000000 | U43: 3268.61 | AC43: =[1]!srRng2E($C$12,U43) -> 82.97398256 | AD43: =[1]!srEnewGas($C$13,AC43,$C$57,$C$61*100,$C$60) -> 81.54655034 | AE43: 3261.862013 | AF43: =[1]!srE2LETt($C$11,AD43,0) -> 2.277052433 | AH43: =[1]!srEnew($C$19,$AD43,$C$38) -> 75.04848993 | AI43: =[1]!srEnew($C$20,AH43,$C$39) -> 72.00325749 | AJ43: =[1]!srEnew($C$21,AI43,$C$40) -> 72.00325749 | AK43: =[1]!srEnew($C$23,AJ43,$C$41) -> 70.54976912 | AL43: 2821.990765 | AM43: =[1]!srE2LETt($C$23,AK43,0) -> 2.540734334 | AN43: =[1]!srE2Rng($C$23,AK43) -> 2803.824115 | AO43: =[1]!srEnew($C$23,AK43,$C$42) -> 70.4770947 | AP43: 2819.083788 | AQ43: =[1]!srE2LETt($C$23,AO43,0) -> 2.542642176 | AR43: =[1]!srE2Rng($C$23,AO43) -> 2798.824115 | AS43: =[1]!srEnew($C$23,AO43,$C$43) -> 70.18639702 | AT43: 2807.455881 | AU43: =[1]!srE2LETt($C$23,AS43,0) -> 2.550273543 | AV43: =[1]!srE2Rng($C$23,AS43) -> 2778.824115
F44: 1 | G44: 0 | H44: 0 | I44: 4 | J44: 0 | K44: 0 | L44: 0 | M44: 0 | N44: 0 | O44: A | P44: 0 | Q44: 0 | R44: =[2]!e5aEDthkI(ThEDtbl,F44:Q44) -> 64.27 | S44: 2.88 | T44: =[2]!e5aEDflgI2S(F44:Q44) -> 100400000A000 | U44: 3265.73 | AC44: =[1]!srRng2E($C$12,U44) -> 82.93212209 | AD44: =[1]!srEnewGas($C$13,AC44,$C$57,$C$61*100,$C$60) -> 81.50468987 | AE44: 3260.187595 | AF44: =[1]!srE2LETt($C$11,AD44,0) -> 2.277869917 | AH44: =[1]!srEnew($C$19,$AD44,$C$38) -> 75.00488528 | AI44: =[1]!srEnew($C$20,AH44,$C$39) -> 71.95646225 | AJ44: =[1]!srEnew($C$21,AI44,$C$40) -> 71.95646225 | AK44: =[1]!srEnew($C$23,AJ44,$C$41) -> 70.50297388 | AL44: 2820.118955 | AM44: =[1]!srE2LETt($C$23,AK44,0) -> 2.541962798 | AN44: =[1]!srE2Rng($C$23,AK44) -> 2800.604603 | AO44: =[1]!srEnew($C$23,AK44,$C$42) -> 70.43029946 | AP44: 2817.211979 | AQ44: =[1]!srE2LETt($C$23,AO44,0) -> 2.54387064 | AR44: =[1]!srE2Rng($C$23,AO44) -> 2795.604603 | AS44: =[1]!srEnew($C$23,AO44,$C$43) -> 70.13960179 | AT44: 2805.584072 | AU44: =[1]!srE2LETt($C$23,AS44,0) -> 2.551502007 | AV44: =[1]!srE2Rng($C$23,AS44) -> 2775.604603
B45: Beam | C45: 適用 | D45: ref)params | F45: 0 | G45: 2 | H45: 0 | I45: 4 | J45: 0 | K45: 0 | L45: 0 | M45: 0 | N45: 0 | O45: A | P45: 0 | Q45: 0 | R45: =[2]!e5aEDthkI(ThEDtbl,F45:Q45) -> 66.87 | S45: 2.6 | T45: =[2]!e5aEDflgI2S(F45:Q45) -> 020400000A000 | U45: 3263.13 | AC45: =[1]!srRng2E($C$12,U45) -> 82.8943314 | AD45: =[1]!srEnewGas($C$13,AC45,$C$57,$C$61*100,$C$60) -> 81.46689917 | AE45: 3258.675967 | AF45: =[1]!srE2LETt($C$11,AD45,0) -> 2.278607923 | AH45: =[1]!srEnew($C$19,$AD45,$C$38) -> 74.96238542 | AI45: =[1]!srEnew($C$20,AH45,$C$39) -> 71.91360494 | AJ45: =[1]!srEnew($C$21,AI45,$C$40) -> 71.91360494 | AK45: =[1]!srEnew($C$23,AJ45,$C$41) -> 70.46011656 | AL45: 2818.404663 | AM45: =[1]!srE2LETt($C$23,AK45,0) -> 2.543087884 | AN45: =[1]!srE2Rng($C$23,AK45) -> 2797.65602 | AO45: =[1]!srEnew($C$23,AK45,$C$42) -> 70.38744214 | AP45: 2815.497686 | AQ45: =[1]!srE2LETt($C$23,AO45,0) -> 2.544995726 | AR45: =[1]!srE2Rng($C$23,AO45) -> 2792.65602 | AS45: =[1]!srEnew($C$23,AO45,$C$43) -> 70.09674447 | AT45: 2803.869779 | AU45: =[1]!srE2LETt($C$23,AS45,0) -> 2.552627093 | AV45: =[1]!srE2Rng($C$23,AS45) -> 2772.65602
B46: Mon系 | C46: μm | D46: μm | F46: 1 | G46: 2 | H46: 0 | I46: 4 | J46: 0 | K46: 0 | L46: 0 | M46: 0 | N46: 0 | O46: 0 | P46: 0 | Q46: 0 | R46: =[2]!e5aEDthkI(ThEDtbl,F46:Q46) -> 71.59 | S46: 4.72 | T46: =[2]!e5aEDflgI2S(F46:Q46) -> 1204000000000 | U46: 3258.41 | AC46: =[1]!srRng2E($C$12,U46) -> 82.82572674 | AD46: =[1]!srEnewGas($C$13,AC46,$C$57,$C$61*100,$C$60) -> 81.39829452 | AE46: 3255.931781 | AF46: =[1]!srE2LETt($C$11,AD46,0) -> 2.279947688 | AH46: =[1]!srEnew($C$19,$AD46,$C$38) -> 74.88442559 | AI46: =[1]!srEnew($C$20,AH46,$C$39) -> 71.8356451 | AJ46: =[1]!srEnew($C$21,AI46,$C$40) -> 71.8356451 | AK46: =[1]!srEnew($C$23,AJ46,$C$41) -> 70.38215673 | AL46: 2815.286269 | AM46: =[1]!srE2LETt($C$23,AK46,0) -> 2.545134478 | AN46: =[1]!srE2Rng($C$23,AK46) -> 2792.292383 | AO46: =[1]!srEnew($C$23,AK46,$C$42) -> 70.30948231 | AP46: 2812.379293 | AQ46: =[1]!srE2LETt($C$23,AO46,0) -> 2.54704232 | AR46: =[1]!srE2Rng($C$23,AO46) -> 2787.292383 | AS46: =[1]!srEnew($C$23,AO46,$C$43) -> 70.01878464 | AT46: 2800.751386 | AU46: =[1]!srE2LETt($C$23,AS46,0) -> 2.554673687 | AV46: =[1]!srE2Rng($C$23,AS46) -> 2767.292383
B47: Au | C47: =D47 -> 73 | D47: =ThAu -> 73 | F47: 0 | G47: 0 | H47: 3 | I47: 4 | J47: 0 | K47: 0 | L47: 0 | M47: 0 | N47: 0 | O47: 0 | P47: 0 | Q47: 0 | R47: =[2]!e5aEDthkI(ThEDtbl,F47:Q47) -> 72.39 | S47: 0.8 | T47: =[2]!e5aEDflgI2S(F47:Q47) -> 0034000000000 | U47: 3257.61 | AC47: =[1]!srRng2E($C$12,U47) -> 82.81409884 | AD47: =[1]!srEnewGas($C$13,AC47,$C$57,$C$61*100,$C$60) -> 81.38666661 | AE47: 3255.466665 | AF47: =[1]!srE2LETt($C$11,AD47,0) -> 2.280174767 | AH47: =[1]!srEnew($C$19,$AD47,$C$38) -> 74.87121206 | AI47: =[1]!srEnew($C$20,AH47,$C$39) -> 71.82243157 | AJ47: =[1]!srEnew($C$21,AI47,$C$40) -> 71.82243157 | AK47: =[1]!srEnew($C$23,AJ47,$C$41) -> 70.3689432 | AL47: 2814.757728 | AM47: =[1]!srE2LETt($C$23,AK47,0) -> 2.545481358 | AN47: =[1]!srE2Rng($C$23,AK47) -> 2791.383292 | AO47: =[1]!srEnew($C$23,AK47,$C$42) -> 70.29626878 | AP47: 2811.850751 | AQ47: =[1]!srE2LETt($C$23,AO47,0) -> 2.5473892 | AR47: =[1]!srE2Rng($C$23,AO47) -> 2786.383292 | AS47: =[1]!srEnew($C$23,AO47,$C$43) -> 70.00557111 | AT47: 2800.222844 | AU47: =[1]!srE2LETt($C$23,AS47,0) -> 2.555020568 | AV47: =[1]!srE2Rng($C$23,AS47) -> 2766.383292
B48: Kapton | C48: 78 | D48: =ThKapton -> 78 | F48: 1 | G48: 2 | H48: 0 | I48: 4 | J48: 0 | K48: 0 | L48: 0 | M48: 0 | N48: 0 | O48: A | P48: 0 | Q48: 0 | R48: =[2]!e5aEDthkI(ThEDtbl,F48:Q48) -> 77.07 | S48: 4.68 | T48: =[2]!e5aEDflgI2S(F48:Q48) -> 120400000A000 | U48: 3252.93 | AC48: =[1]!srRng2E($C$12,U48) -> 82.74607558 | AD48: =[1]!srEnewGas($C$13,AC48,$C$57,$C$61*100,$C$60) -> 81.31864336 | AE48: 3252.745734 | AF48: =[1]!srE2LETt($C$11,AD48,0) -> 2.281503179 | AH48: =[1]!srEnew($C$19,$AD48,$C$38) -> 74.79391291 | AI48: =[1]!srEnew($C$20,AH48,$C$39) -> 71.74513242 | AJ48: =[1]!srEnew($C$21,AI48,$C$40) -> 71.74513242 | AK48: =[1]!srEnew($C$23,AJ48,$C$41) -> 70.29164405 | AL48: 2811.665762 | AM48: =[1]!srE2LETt($C$23,AK48,0) -> 2.547510608 | AN48: =[1]!srE2Rng($C$23,AK48) -> 2786.06511 | AO48: =[1]!srEnew($C$23,AK48,$C$42) -> 70.21896963 | AP48: 2808.758785 | AQ48: =[1]!srE2LETt($C$23,AO48,0) -> 2.54941845 | AR48: =[1]!srE2Rng($C$23,AO48) -> 2781.06511 | AS48: =[1]!srEnew($C$23,AO48,$C$43) -> 69.92827195 | AT48: 2797.130878 | AU48: =[1]!srE2LETt($C$23,AS48,0) -> 2.557049818 | AV48: =[1]!srE2Rng($C$23,AS48) -> 2761.06511
B49: IC1.Al | C49: 14 | D49: =ThICal -> 14 | F49: 0 | G49: 0 | H49: 3 | I49: 4 | J49: 0 | K49: 0 | L49: 0 | M49: 0 | N49: 0 | O49: A | P49: 0 | Q49: 0 | R49: =[2]!e5aEDthkI(ThEDtbl,F49:Q49) -> 77.87 | S49: 0.8 | T49: =[2]!e5aEDflgI2S(F49:Q49) -> 003400000A000 | U49: 3252.13 | AC49: =[1]!srRng2E($C$12,U49) -> 82.73444767 | AD49: =[1]!srEnewGas($C$13,AC49,$C$57,$C$61*100,$C$60) -> 81.30701545 | AE49: 3252.280618 | AF49: =[1]!srE2LETt($C$11,AD49,0) -> 2.281730258 | AH49: =[1]!srEnew($C$19,$AD49,$C$38) -> 74.78069938 | AI49: =[1]!srEnew($C$20,AH49,$C$39) -> 71.73191889 | AJ49: =[1]!srEnew($C$21,AI49,$C$40) -> 71.73191889 | AK49: =[1]!srEnew($C$23,AJ49,$C$41) -> 70.27843052 | AL49: 2811.137221 | AM49: =[1]!srE2LETt($C$23,AK49,0) -> 2.547857489 | AN49: =[1]!srE2Rng($C$23,AK49) -> 2785.15602 | AO49: =[1]!srEnew($C$23,AK49,$C$42) -> 70.2057561 | AP49: 2808.230244 | AQ49: =[1]!srE2LETt($C$23,AO49,0) -> 2.549765331 | AR49: =[1]!srE2Rng($C$23,AO49) -> 2780.15602 | AS49: =[1]!srEnew($C$23,AO49,$C$43) -> 69.91505842 | AT49: 2796.602337 | AU49: =[1]!srE2LETt($C$23,AS49,0) -> 2.557396698 | AV49: =[1]!srE2Rng($C$23,AS49) -> 2760.15602
B50: IC1.mylar | C50: 25.6 | D50: =ThICmylar -> 25.6 | F50: 1 | G50: 0 | H50: 3 | I50: 4 | J50: 0 | K50: 0 | L50: 0 | M50: 0 | N50: 0 | O50: 0 | P50: 0 | Q50: 0 | R50: =[2]!e5aEDthkI(ThEDtbl,F50:Q50) -> 82.59 | S50: 4.72 | T50: =[2]!e5aEDflgI2S(F50:Q50) -> 1034000000000 | U50: 3247.41 | AC50: =[1]!srRng2E($C$12,U50) -> 82.66584302 | AD50: =[1]!srEnewGas($C$13,AC50,$C$57,$C$61*100,$C$60) -> 81.23768648 | AE50: 3249.507459 | AF50: =[1]!srE2LETt($C$11,AD50,0) -> 2.283121618 | AH50: =[1]!srEnew($C$19,$AD50,$C$38) -> 74.70247616 | AI50: =[1]!srEnew($C$20,AH50,$C$39) -> 71.65369567 | AJ50: =[1]!srEnew($C$21,AI50,$C$40) -> 71.65369567 | AK50: =[1]!srEnew($C$23,AJ50,$C$41) -> 70.2002073 | AL50: 2808.008292 | AM50: =[1]!srE2LETt($C$23,AK50,0) -> 2.549910997 | AN50: =[1]!srE2Rng($C$23,AK50) -> 2779.774262 | AO50: =[1]!srEnew($C$23,AK50,$C$42) -> 70.12753288 | AP50: 2805.101315 | AQ50: =[1]!srE2LETt($C$23,AO50,0) -> 2.551818839 | AR50: =[1]!srE2Rng($C$23,AO50) -> 2774.774262 | AS50: =[1]!srEnew($C$23,AO50,$C$43) -> 69.8368352 | AT50: 2793.473408 | AU50: =[1]!srE2LETt($C$23,AS50,0) -> 2.559450207 | AV50: =[1]!srE2Rng($C$23,AS50) -> 2754.774262
B51: PL.mylar | C51: 33.8 | D51: =ThPLmylar -> 33.8 | F51: 0 | G51: 2 | H51: 3 | I51: 4 | J51: 0 | K51: 0 | L51: 0 | M51: 0 | N51: 0 | O51: 0 | P51: 0 | Q51: 0 | R51: =[2]!e5aEDthkI(ThEDtbl,F51:Q51) -> 85.19 | S51: 2.6 | T51: =[2]!e5aEDflgI2S(F51:Q51) -> 0234000000000 | U51: 3244.81 | AC51: =[1]!srRng2E($C$12,U51) -> 82.62805233 | AD51: =[1]!srEnewGas($C$13,AC51,$C$57,$C$61*100,$C$60) -> 81.19753386 | AE51: 3247.901354 | AF51: =[1]!srE2LETt($C$11,AD51,0) -> 2.28402787 | AH51: =[1]!srEnew($C$19,$AD51,$C$38) -> 74.6586733 | AI51: =[1]!srEnew($C$20,AH51,$C$39) -> 71.60989281 | AJ51: =[1]!srEnew($C$21,AI51,$C$40) -> 71.60989281 | AK51: =[1]!srEnew($C$23,AJ51,$C$41) -> 70.15640444 | AL51: 2806.256178 | AM51: =[1]!srE2LETt($C$23,AK51,0) -> 2.551060906 | AN51: =[1]!srE2Rng($C$23,AK51) -> 2776.760626 | AO51: =[1]!srEnew($C$23,AK51,$C$42) -> 70.08373002 | AP51: 2803.349201 | AQ51: =[1]!srE2LETt($C$23,AO51,0) -> 2.552968747 | AR51: =[1]!srE2Rng($C$23,AO51) -> 2771.760626 | AS51: =[1]!srEnew($C$23,AO51,$C$43) -> 69.79303235 | AT51: 2791.721294 | AU51: =[1]!srE2LETt($C$23,AS51,0) -> 2.560600115 | AV51: =[1]!srE2Rng($C$23,AS51) -> 2751.760626
B52: PL.myAl | C52: 30 | D52: =ThPLmyAl -> 30 | F52: 1 | G52: 0 | H52: 3 | I52: 4 | J52: 0 | K52: 0 | L52: 0 | M52: 0 | N52: 0 | O52: A | P52: 0 | Q52: 0 | R52: =[2]!e5aEDthkI(ThEDtbl,F52:Q52) -> 88.07 | S52: 2.88 | T52: =[2]!e5aEDflgI2S(F52:Q52) -> 103400000A000 | U52: 3241.93 | AC52: =[1]!srRng2E($C$12,U52) -> 82.58619186 | AD52: =[1]!srEnewGas($C$13,AC52,$C$57,$C$61*100,$C$60) -> 81.15305712 | AE52: 3246.122285 | AF52: =[1]!srE2LETt($C$11,AD52,0) -> 2.285031718 | AH52: =[1]!srEnew($C$19,$AD52,$C$38) -> 74.61015322 | AI52: =[1]!srEnew($C$20,AH52,$C$39) -> 71.56137273 | AJ52: =[1]!srEnew($C$21,AI52,$C$40) -> 71.56137273 | AK52: =[1]!srEnew($C$23,AJ52,$C$41) -> 70.10788436 | AL52: 2804.315374 | AM52: =[1]!srE2LETt($C$23,AK52,0) -> 2.55233465 | AN52: =[1]!srE2Rng($C$23,AK52) -> 2773.422444 | AO52: =[1]!srEnew($C$23,AK52,$C$42) -> 70.03520994 | AP52: 2801.408398 | AQ52: =[1]!srE2LETt($C$23,AO52,0) -> 2.554242492 | AR52: =[1]!srE2Rng($C$23,AO52) -> 2768.422444 | AS52: =[1]!srEnew($C$23,AO52,$C$43) -> 69.74451226 | AT52: 2789.780491 | AU52: =[1]!srE2LETt($C$23,AS52,0) -> 2.56187386 | AV52: =[1]!srE2Rng($C$23,AS52) -> 2748.422444
B53: PL.EJ212 | C53: 500 | D53: =ThPL -> 500 | F53: 0 | G53: 2 | H53: 3 | I53: 4 | J53: 0 | K53: 0 | L53: 0 | M53: 0 | N53: 0 | O53: A | P53: 0 | Q53: 0 | R53: =[2]!e5aEDthkI(ThEDtbl,F53:Q53) -> 90.67 | S53: 2.6 | T53: =[2]!e5aEDflgI2S(F53:Q53) -> 023400000A000 | U53: 3239.33 | AC53: =[1]!srRng2E($C$12,U53) -> 82.54840116 | AD53: =[1]!srEnewGas($C$13,AC53,$C$57,$C$61*100,$C$60) -> 81.1129045 | AE53: 3244.51618 | AF53: =[1]!srE2LETt($C$11,AD53,0) -> 2.28593797 | AH53: =[1]!srEnew($C$19,$AD53,$C$38) -> 74.56635036 | AI53: =[1]!srEnew($C$20,AH53,$C$39) -> 71.51756987 | AJ53: =[1]!srEnew($C$21,AI53,$C$40) -> 71.51756987 | AK53: =[1]!srEnew($C$23,AJ53,$C$41) -> 70.0640815 | AL53: 2802.56326 | AM53: =[1]!srE2LETt($C$23,AK53,0) -> 2.553484559 | AN53: =[1]!srE2Rng($C$23,AK53) -> 2770.408807 | AO53: =[1]!srEnew($C$23,AK53,$C$42) -> 69.99140708 | AP53: 2799.656283 | AQ53: =[1]!srE2LETt($C$23,AO53,0) -> 2.5553924 | AR53: =[1]!srE2Rng($C$23,AO53) -> 2765.408807 | AS53: =[1]!srEnew($C$23,AO53,$C$43) -> 69.70070941 | AT53: 2788.028376 | AU53: =[1]!srE2LETt($C$23,AS53,0) -> 2.563023768 | AV53: =[1]!srE2Rng($C$23,AS53) -> 2745.408807
F54: 1 | G54: 2 | H54: 3 | I54: 4 | J54: 0 | K54: 0 | L54: 0 | M54: 0 | N54: 0 | O54: 0 | P54: 0 | Q54: 0 | R54: =[2]!e5aEDthkI(ThEDtbl,F54:Q54) -> 95.39 | S54: 4.72 | T54: =[2]!e5aEDflgI2S(F54:Q54) -> 1234000000000 | U54: 3234.61 | AC54: =[1]!srRng2E($C$12,U54) -> 82.47979651 | AD54: =[1]!srEnewGas($C$13,AC54,$C$57,$C$61*100,$C$60) -> 81.04001206 | AE54: 3241.600482 | AF54: =[1]!srE2LETt($C$11,AD54,0) -> 2.287583165 | AH54: =[1]!srEnew($C$19,$AD54,$C$38) -> 74.48683133 | AI54: =[1]!srEnew($C$20,AH54,$C$39) -> 71.43805085 | AJ54: =[1]!srEnew($C$21,AI54,$C$40) -> 71.43805085 | AK54: =[1]!srEnew($C$23,AJ54,$C$41) -> 69.98456247 | AL54: 2799.382499 | AM54: =[1]!srE2LETt($C$23,AK54,0) -> 2.555572084 | AN54: =[1]!srE2Rng($C$23,AK54) -> 2764.937898 | AO54: =[1]!srEnew($C$23,AK54,$C$42) -> 69.91188806 | AP54: 2796.475522 | AQ54: =[1]!srE2LETt($C$23,AO54,0) -> 2.557479926 | AR54: =[1]!srE2Rng($C$23,AO54) -> 2759.937898 | AS54: =[1]!srEnew($C$23,AO54,$C$43) -> 69.62119038 | AT54: 2784.847615 | AU54: =[1]!srE2LETt($C$23,AS54,0) -> 2.565111294 | AV54: =[1]!srE2Rng($C$23,AS54) -> 2739.937898
B55: 空気層 | C55: mm | D55: ref)params | F55: 0 | G55: 0 | H55: 0 | I55: 0 | J55: 5 | K55: 0 | L55: 0 | M55: 0 | N55: 0 | O55: 0 | P55: 0 | Q55: 0 | R55: =[2]!e5aEDthkI(ThEDtbl,F55:Q55) -> 100.24 | S55: 4.85 | T55: =[2]!e5aEDflgI2S(F55:Q55) -> 0000500000000 | U55: 3229.76 | AC55: =[1]!srRng2E($C$12,U55) -> 82.40930233 | AD55: =[1]!srEnewGas($C$13,AC55,$C$57,$C$61*100,$C$60) -> 80.96511198 | AE55: 3238.604479 | AF55: =[1]!srE2LETt($C$11,AD55,0) -> 2.289273673 | AH55: =[1]!srEnew($C$19,$AD55,$C$38) -> 74.40512216 | AI55: =[1]!srEnew($C$20,AH55,$C$39) -> 71.35634168 | AJ55: =[1]!srEnew($C$21,AI55,$C$40) -> 71.35634168 | AK55: =[1]!srEnew($C$23,AJ55,$C$41) -> 69.9028533 | AL55: 2796.114132 | AM55: =[1]!srE2LETt($C$23,AK55,0) -> 2.557717106 | AN55: =[1]!srE2Rng($C$23,AK55) -> 2759.316307 | AO55: =[1]!srEnew($C$23,AK55,$C$42) -> 69.83017889 | AP55: 2793.207155 | AQ55: =[1]!srE2LETt($C$23,AO55,0) -> 2.559624948 | AR55: =[1]!srE2Rng($C$23,AO55) -> 2754.316307 | AS55: =[1]!srEnew($C$23,AO55,$C$43) -> 69.53948121 | AT55: 2781.579248 | AU55: =[1]!srE2LETt($C$23,AS55,0) -> 2.567256315 | AV55: =[1]!srE2Rng($C$23,AS55) -> 2734.316307
B56: Air1 | C56: =D56 -> 145 | D56: =ThAir1 -> 145 | F56: 0 | G56: 0 | H56: 0 | I56: 0 | J56: 0 | K56: 6 | L56: 0 | M56: 0 | N56: 0 | O56: 0 | P56: 0 | Q56: 0 | R56: =[2]!e5aEDthkI(ThEDtbl,F56:Q56) -> 100.8 | S56: 0.56 | T56: =[2]!e5aEDflgI2S(F56:Q56) -> 0000060000000 | U56: 3229.2 | AC56: =[1]!srRng2E($C$12,U56) -> 82.40116279 | AD56: =[1]!srEnewGas($C$13,AC56,$C$57,$C$61*100,$C$60) -> 80.95646373 | AE56: 3238.258549 | AF56: =[1]!srE2LETt($C$11,AD56,0) -> 2.289468865 | AH56: =[1]!srEnew($C$19,$AD56,$C$38) -> 74.3956877 | AI56: =[1]!srEnew($C$20,AH56,$C$39) -> 71.34690722 | AJ56: =[1]!srEnew($C$21,AI56,$C$40) -> 71.34690722 | AK56: =[1]!srEnew($C$23,AJ56,$C$41) -> 69.89341884 | AL56: 2795.736754 | AM56: =[1]!srE2LETt($C$23,AK56,0) -> 2.557964778 | AN56: =[1]!srE2Rng($C$23,AK56) -> 2758.667216 | AO56: =[1]!srEnew($C$23,AK56,$C$42) -> 69.82074443 | AP56: 2792.829777 | AQ56: =[1]!srE2LETt($C$23,AO56,0) -> 2.55987262 | AR56: =[1]!srE2Rng($C$23,AO56) -> 2753.667216 | AS56: =[1]!srEnew($C$23,AO56,$C$43) -> 69.53004675 | AT56: 2781.20187 | AU56: =[1]!srE2LETt($C$23,AS56,0) -> 2.567503988 | AV56: =[1]!srE2Rng($C$23,AS56) -> 2733.667216
B57: Air2 | C57: =D57 -> 200 | D57: =ThAir2 -> 200 | F57: 1 | G57: 2 | H57: 3 | I57: 4 | J57: 0 | K57: 0 | L57: 0 | M57: 0 | N57: 0 | O57: A | P57: 0 | Q57: 0 | R57: =[2]!e5aEDthkI(ThEDtbl,F57:Q57) -> 100.87 | S57: 0.07 | T57: =[2]!e5aEDflgI2S(F57:Q57) -> 123400000A000 | U57: 3229.13 | AC57: =[1]!srRng2E($C$12,U57) -> 82.40014535 | AD57: =[1]!srEnewGas($C$13,AC57,$C$57,$C$61*100,$C$60) -> 80.9553827 | AE57: 3238.215308 | AF57: =[1]!srE2LETt($C$11,AD57,0) -> 2.289493264 | AH57: =[1]!srEnew($C$19,$AD57,$C$38) -> 74.3945084 | AI57: =[1]!srEnew($C$20,AH57,$C$39) -> 71.34572791 | AJ57: =[1]!srEnew($C$21,AI57,$C$40) -> 71.34572791 | AK57: =[1]!srEnew($C$23,AJ57,$C$41) -> 69.89223954 | AL57: 2795.689581 | AM57: =[1]!srE2LETt($C$23,AK57,0) -> 2.557995737 | AN57: =[1]!srE2Rng($C$23,AK57) -> 2758.58608 | AO57: =[1]!srEnew($C$23,AK57,$C$42) -> 69.81956512 | AP57: 2792.782605 | AQ57: =[1]!srE2LETt($C$23,AO57,0) -> 2.559903579 | AR57: =[1]!srE2Rng($C$23,AO57) -> 2753.58608 | AS57: =[1]!srEnew($C$23,AO57,$C$43) -> 69.52886744 | AT57: 2781.154698 | AU57: =[1]!srE2LETt($C$23,AS57,0) -> 2.567534947 | AV57: =[1]!srE2Rng($C$23,AS57) -> 2733.58608
C58: 今回の設定値 | F58: 0 | G58: 0 | H58: 0 | I58: 0 | J58: 5 | K58: 0 | L58: 0 | M58: 0 | N58: 0 | O58: A | P58: 0 | Q58: 0 | R58: =[2]!e5aEDthkI(ThEDtbl,F58:Q58) -> 105.72 | S58: 4.85 | T58: =[2]!e5aEDflgI2S(F58:Q58) -> 000050000A000 | U58: 3224.28 | AC58: =[1]!srRng2E($C$12,U58) -> 82.32965116 | AD58: =[1]!srEnewGas($C$13,AC58,$C$57,$C$61*100,$C$60) -> 80.88048262 | AE58: 3235.219305 | AF58: =[1]!srE2LETt($C$11,AD58,0) -> 2.291183772 | AH58: =[1]!srEnew($C$19,$AD58,$C$38) -> 74.31279923 | AI58: =[1]!srEnew($C$20,AH58,$C$39) -> 71.26401874 | AJ58: =[1]!srEnew($C$21,AI58,$C$40) -> 71.26401874 | AK58: =[1]!srEnew($C$23,AJ58,$C$41) -> 69.81053037 | AL58: 2792.421215 | AM58: =[1]!srE2LETt($C$23,AK58,0) -> 2.560140759 | AN58: =[1]!srE2Rng($C$23,AK58) -> 2752.964489 | AO58: =[1]!srEnew($C$23,AK58,$C$42) -> 69.73785595 | AP58: 2789.514238 | AQ58: =[1]!srE2LETt($C$23,AO58,0) -> 2.562048601 | AR58: =[1]!srE2Rng($C$23,AO58) -> 2747.964489 | AS58: =[1]!srEnew($C$23,AO58,$C$43) -> 69.44715827 | AT58: 2777.886331 | AU58: =[1]!srE2LETt($C$23,AS58,0) -> 2.569679968 | AV58: =[1]!srE2Rng($C$23,AS58) -> 2727.964489
F59: 0 | G59: 0 | H59: 0 | I59: 0 | J59: 0 | K59: 6 | L59: 0 | M59: 0 | N59: 0 | O59: A | P59: 0 | Q59: 0 | R59: =[2]!e5aEDthkI(ThEDtbl,F59:Q59) -> 106.28 | S59: 0.56 | T59: =[2]!e5aEDflgI2S(F59:Q59) -> 000006000A000 | U59: 3223.72 | AC59: =[1]!srRng2E($C$12,U59) -> 82.32151163 | AD59: =[1]!srEnewGas($C$13,AC59,$C$57,$C$61*100,$C$60) -> 80.87183437 | AE59: 3234.873375 | AF59: =[1]!srE2LETt($C$11,AD59,0) -> 2.291378965 | AH59: =[1]!srEnew($C$19,$AD59,$C$38) -> 74.30336477 | AI59: =[1]!srEnew($C$20,AH59,$C$39) -> 71.25458428 | AJ59: =[1]!srEnew($C$21,AI59,$C$40) -> 71.25458428 | AK59: =[1]!srEnew($C$23,AJ59,$C$41) -> 69.80109591 | AL59: 2792.043836 | AM59: =[1]!srE2LETt($C$23,AK59,0) -> 2.560388431 | AN59: =[1]!srE2Rng($C$23,AK59) -> 2752.315398 | AO59: =[1]!srEnew($C$23,AK59,$C$42) -> 69.72842149 | AP59: 2789.136859 | AQ59: =[1]!srE2LETt($C$23,AO59,0) -> 2.562296273 | AR59: =[1]!srE2Rng($C$23,AO59) -> 2747.315398 | AS59: =[1]!srEnew($C$23,AO59,$C$43) -> 69.43772381 | AT59: 2777.508952 | AU59: =[1]!srE2LETt($C$23,AS59,0) -> 2.569927641 | AV59: =[1]!srE2Rng($C$23,AS59) -> 2727.315398
B60: 気温℃ | C60: =D60 -> 27 | D60: =AirT -> 27 | F60: 1 | G60: 0 | H60: 0 | I60: 0 | J60: 5 | K60: 0 | L60: 0 | M60: 0 | N60: 0 | O60: 0 | P60: 0 | Q60: 0 | R60: =[2]!e5aEDthkI(ThEDtbl,F60:Q60) -> 110.44 | S60: 4.16 | T60: =[2]!e5aEDflgI2S(F60:Q60) -> 1000500000000 | U60: 3219.56 | AC60: =[1]!srRng2E($C$12,U60) -> 82.26104651 | AD60: =[1]!srEnewGas($C$13,AC60,$C$57,$C$61*100,$C$60) -> 80.80759018 | AE60: 3232.303607 | AF60: =[1]!srE2LETt($C$11,AD60,0) -> 2.292828967 | AH60: =[1]!srEnew($C$19,$AD60,$C$38) -> 74.2332802 | AI60: =[1]!srEnew($C$20,AH60,$C$39) -> 71.18449971 | AJ60: =[1]!srEnew($C$21,AI60,$C$40) -> 71.18449971 | AK60: =[1]!srEnew($C$23,AJ60,$C$41) -> 69.73101134 | AL60: 2789.240454 | AM60: =[1]!srE2LETt($C$23,AK60,0) -> 2.562228285 | AN60: =[1]!srE2Rng($C$23,AK60) -> 2747.49358 | AO60: =[1]!srEnew($C$23,AK60,$C$42) -> 69.65833692 | AP60: 2786.333477 | AQ60: =[1]!srE2LETt($C$23,AO60,0) -> 2.564136126 | AR60: =[1]!srE2Rng($C$23,AO60) -> 2742.49358 | AS60: =[1]!srEnew($C$23,AO60,$C$43) -> 69.36763925 | AT60: 2774.70557 | AU60: =[1]!srE2LETt($C$23,AS60,0) -> 2.571767494 | AV60: =[1]!srE2Rng($C$23,AS60) -> 2722.49358
B61: 気圧hPa | C61: =D61 -> 1007 | D61: =AirP -> 1007 | F61: 1 | G61: 0 | H61: 0 | I61: 0 | J61: 0 | K61: 6 | L61: 0 | M61: 0 | N61: 0 | O61: 0 | P61: 0 | Q61: 0 | R61: =[2]!e5aEDthkI(ThEDtbl,F61:Q61) -> 111 | S61: 0.56 | T61: =[2]!e5aEDflgI2S(F61:Q61) -> 1000060000000 | U61: 3219 | AC61: =[1]!srRng2E($C$12,U61) -> 82.25290698 | AD61: =[1]!srEnewGas($C$13,AC61,$C$57,$C$61*100,$C$60) -> 80.79894193 | AE61: 3231.957677 | AF61: =[1]!srE2LETt($C$11,AD61,0) -> 2.29302416 | AH61: =[1]!srEnew($C$19,$AD61,$C$38) -> 74.22384574 | AI61: =[1]!srEnew($C$20,AH61,$C$39) -> 71.17506525 | AJ61: =[1]!srEnew($C$21,AI61,$C$40) -> 71.17506525 | AK61: =[1]!srEnew($C$23,AJ61,$C$41) -> 69.72157688 | AL61: 2788.863075 | AM61: =[1]!srE2LETt($C$23,AK61,0) -> 2.562475957 | AN61: =[1]!srE2Rng($C$23,AK61) -> 2746.844489 | AO61: =[1]!srEnew($C$23,AK61,$C$42) -> 69.64890246 | AP61: 2785.956098 | AQ61: =[1]!srE2LETt($C$23,AO61,0) -> 2.564383799 | AR61: =[1]!srE2Rng($C$23,AO61) -> 2741.844489 | AS61: =[1]!srEnew($C$23,AO61,$C$43) -> 69.35820478 | AT61: 2774.328191 | AU61: =[1]!srE2LETt($C$23,AS61,0) -> 2.572015166 | AV61: =[1]!srE2Rng($C$23,AS61) -> 2721.844489
C62: ビーム調整・測定値 | F62: 0 | G62: 2 | H62: 0 | I62: 0 | J62: 5 | K62: 0 | L62: 0 | M62: 0 | N62: 0 | O62: 0 | P62: 0 | Q62: 0 | R62: =[2]!e5aEDthkI(ThEDtbl,F62:Q62) -> 113.04 | S62: 2.04 | T62: =[2]!e5aEDflgI2S(F62:Q62) -> 0200500000000 | U62: 3216.96 | AC62: =[1]!srRng2E($C$12,U62) -> 82.22325581 | AD62: =[1]!srEnewGas($C$13,AC62,$C$57,$C$61*100,$C$60) -> 80.76743757 | AE62: 3230.697503 | AF62: =[1]!srE2LETt($C$11,AD62,0) -> 2.293735219 | AH62: =[1]!srEnew($C$19,$AD62,$C$38) -> 74.18947734 | AI62: =[1]!srEnew($C$20,AH62,$C$39) -> 71.14069686 | AJ62: =[1]!srEnew($C$21,AI62,$C$40) -> 71.14069686 | AK62: =[1]!srEnew($C$23,AJ62,$C$41) -> 69.68720848 | AL62: 2787.488339 | AM62: =[1]!srE2LETt($C$23,AK62,0) -> 2.563378193 | AN62: =[1]!srE2Rng($C$23,AK62) -> 2744.479944 | AO62: =[1]!srEnew($C$23,AK62,$C$42) -> 69.61453407 | AP62: 2784.581363 | AQ62: =[1]!srE2LETt($C$23,AO62,0) -> 2.565286035 | AR62: =[1]!srE2Rng($C$23,AO62) -> 2739.479944 | AS62: =[1]!srEnew($C$23,AO62,$C$43) -> 69.32383639 | AT62: 2772.953456 | AU62: =[1]!srE2LETt($C$23,AS62,0) -> 2.572917402 | AV62: =[1]!srE2Rng($C$23,AS62) -> 2719.479944
F63: 0 | G63: 2 | H63: 0 | I63: 0 | J63: 0 | K63: 6 | L63: 0 | M63: 0 | N63: 0 | O63: 0 | P63: 0 | Q63: 0 | R63: =[2]!e5aEDthkI(ThEDtbl,F63:Q63) -> 113.6 | S63: 0.56 | T63: =[2]!e5aEDflgI2S(F63:Q63) -> 0200060000000 | U63: 3216.4 | AC63: =[1]!srRng2E($C$12,U63) -> 82.21511628 | AD63: =[1]!srEnewGas($C$13,AC63,$C$57,$C$61*100,$C$60) -> 80.75878931 | AE63: 3230.351572 | AF63: =[1]!srE2LETt($C$11,AD63,0) -> 2.293930412 | AH63: =[1]!srEnew($C$19,$AD63,$C$38) -> 74.18004288 | AI63: =[1]!srEnew($C$20,AH63,$C$39) -> 71.1312624 | AJ63: =[1]!srEnew($C$21,AI63,$C$40) -> 71.1312624 | AK63: =[1]!srEnew($C$23,AJ63,$C$41) -> 69.67777402 | AL63: 2787.110961 | AM63: =[1]!srE2LETt($C$23,AK63,0) -> 2.563625865 | AN63: =[1]!srE2Rng($C$23,AK63) -> 2743.830853 | AO63: =[1]!srEnew($C$23,AK63,$C$42) -> 69.6050996 | AP63: 2784.203984 | AQ63: =[1]!srE2LETt($C$23,AO63,0) -> 2.565533707 | AR63: =[1]!srE2Rng($C$23,AO63) -> 2738.830853 | AS63: =[1]!srEnew($C$23,AO63,$C$43) -> 69.31440193 | AT63: 2772.576077 | AU63: =[1]!srE2LETt($C$23,AS63,0) -> 2.573165075 | AV63: =[1]!srE2Rng($C$23,AS63) -> 2718.830853
B64: IC測定で求めた | F64: 1 | G64: 0 | H64: 0 | I64: 0 | J64: 5 | K64: 0 | L64: 0 | M64: 0 | N64: 0 | O64: A | P64: 0 | Q64: 0 | R64: =[2]!e5aEDthkI(ThEDtbl,F64:Q64) -> 115.92 | S64: 2.32 | T64: =[2]!e5aEDflgI2S(F64:Q64) -> 100050000A000 | U64: 3214.08 | AC64: =[1]!srRng2E($C$12,U64) -> 82.18139535 | AD64: =[1]!srEnewGas($C$13,AC64,$C$57,$C$61*100,$C$60) -> 80.72296082 | AE64: 3228.918433 | AF64: =[1]!srE2LETt($C$11,AD64,0) -> 2.294739067 | AH64: =[1]!srEnew($C$19,$AD64,$C$38) -> 74.14095726 | AI64: =[1]!srEnew($C$20,AH64,$C$39) -> 71.09217677 | AJ64: =[1]!srEnew($C$21,AI64,$C$40) -> 71.09217677 | AK64: =[1]!srEnew($C$23,AJ64,$C$41) -> 69.6386884 | AL64: 2785.547536 | AM64: =[1]!srE2LETt($C$23,AK64,0) -> 2.564651937 | AN64: =[1]!srE2Rng($C$23,AK64) -> 2741.141762 | AO64: =[1]!srEnew($C$23,AK64,$C$42) -> 69.56601398 | AP64: 2782.640559 | AQ64: =[1]!srE2LETt($C$23,AO64,0) -> 2.566559779 | AR64: =[1]!srE2Rng($C$23,AO64) -> 2736.141762 | AS64: =[1]!srEnew($C$23,AO64,$C$43) -> 69.27531631 | AT64: 2771.012652 | AU64: =[1]!srE2LETt($C$23,AS64,0) -> 2.574191147 | AV64: =[1]!srE2Rng($C$23,AS64) -> 2716.141762
B65: ExpR µm | C65: =D65 -> 3330 | D65: =ExpR -> 3330 | F65: 1 | G65: 0 | H65: 0 | I65: 0 | J65: 0 | K65: 6 | L65: 0 | M65: 0 | N65: 0 | O65: A | P65: 0 | Q65: 0 | R65: =[2]!e5aEDthkI(ThEDtbl,F65:Q65) -> 116.48 | S65: 0.56 | T65: =[2]!e5aEDflgI2S(F65:Q65) -> 100006000A000 | U65: 3213.52 | AC65: =[1]!srRng2E($C$12,U65) -> 82.17325581 | AD65: =[1]!srEnewGas($C$13,AC65,$C$57,$C$61*100,$C$60) -> 80.71431257 | AE65: 3228.572503 | AF65: =[1]!srE2LETt($C$11,AD65,0) -> 2.29493426 | AH65: =[1]!srEnew($C$19,$AD65,$C$38) -> 74.1315228 | AI65: =[1]!srEnew($C$20,AH65,$C$39) -> 71.08274231 | AJ65: =[1]!srEnew($C$21,AI65,$C$40) -> 71.08274231 | AK65: =[1]!srEnew($C$23,AJ65,$C$41) -> 69.62925394 | AL65: 2785.170158 | AM65: =[1]!srE2LETt($C$23,AK65,0) -> 2.56489961 | AN65: =[1]!srE2Rng($C$23,AK65) -> 2740.492671 | AO65: =[1]!srEnew($C$23,AK65,$C$42) -> 69.55657952 | AP65: 2782.263181 | AQ65: =[1]!srE2LETt($C$23,AO65,0) -> 2.566807452 | AR65: =[1]!srE2Rng($C$23,AO65) -> 2735.492671 | AS65: =[1]!srEnew($C$23,AO65,$C$43) -> 69.26588185 | AT65: 2770.635274 | AU65: =[1]!srE2LETt($C$23,AS65,0) -> 2.574438819 | AV65: =[1]!srE2Rng($C$23,AS65) -> 2715.492671
C66: ビーム調整・測定値 | F66: 0 | G66: 2 | H66: 0 | I66: 0 | J66: 5 | K66: 0 | L66: 0 | M66: 0 | N66: 0 | O66: A | P66: 0 | Q66: 0 | R66: =[2]!e5aEDthkI(ThEDtbl,F66:Q66) -> 118.52 | S66: 2.04 | T66: =[2]!e5aEDflgI2S(F66:Q66) -> 020050000A000 | U66: 3211.48 | AC66: =[1]!srRng2E($C$12,U66) -> 82.14360465 | AD66: =[1]!srEnewGas($C$13,AC66,$C$57,$C$61*100,$C$60) -> 80.68280821 | AE66: 3227.312328 | AF66: =[1]!srE2LETt($C$11,AD66,0) -> 2.295645319 | AH66: =[1]!srEnew($C$19,$AD66,$C$38) -> 74.09715441 | AI66: =[1]!srEnew($C$20,AH66,$C$39) -> 71.04837392 | AJ66: =[1]!srEnew($C$21,AI66,$C$40) -> 71.04837392 | AK66: =[1]!srEnew($C$23,AJ66,$C$41) -> 69.59488555 | AL66: 2783.795422 | AM66: =[1]!srE2LETt($C$23,AK66,0) -> 2.565801846 | AN66: =[1]!srE2Rng($C$23,AK66) -> 2738.128126 | AO66: =[1]!srEnew($C$23,AK66,$C$42) -> 69.52221113 | AP66: 2780.888445 | AQ66: =[1]!srE2LETt($C$23,AO66,0) -> 2.567709688 | AR66: =[1]!srE2Rng($C$23,AO66) -> 2733.128126 | AS66: =[1]!srEnew($C$23,AO66,$C$43) -> 69.23151345 | AT66: 2769.260538 | AU66: =[1]!srE2LETt($C$23,AS66,0) -> 2.575341055 | AV66: =[1]!srE2Rng($C$23,AS66) -> 2713.128126
F67: 0 | G67: 2 | H67: 0 | I67: 0 | J67: 0 | K67: 6 | L67: 0 | M67: 0 | N67: 0 | O67: A | P67: 0 | Q67: 0 | R67: =[2]!e5aEDthkI(ThEDtbl,F67:Q67) -> 119.08 | S67: 0.56 | T67: =[2]!e5aEDflgI2S(F67:Q67) -> 020006000A000 | U67: 3210.92 | AC67: =[1]!srRng2E($C$12,U67) -> 82.13546512 | AD67: =[1]!srEnewGas($C$13,AC67,$C$57,$C$61*100,$C$60) -> 80.67415995 | AE67: 3226.966398 | AF67: =[1]!srE2LETt($C$11,AD67,0) -> 2.295840511 | AH67: =[1]!srEnew($C$19,$AD67,$C$38) -> 74.08771994 | AI67: =[1]!srEnew($C$20,AH67,$C$39) -> 71.03893946 | AJ67: =[1]!srEnew($C$21,AI67,$C$40) -> 71.03893946 | AK67: =[1]!srEnew($C$23,AJ67,$C$41) -> 69.58545108 | AL67: 2783.418043 | AM67: =[1]!srE2LETt($C$23,AK67,0) -> 2.566049518 | AN67: =[1]!srE2Rng($C$23,AK67) -> 2737.479035 | AO67: =[1]!srEnew($C$23,AK67,$C$42) -> 69.51277667 | AP67: 2780.511067 | AQ67: =[1]!srE2LETt($C$23,AO67,0) -> 2.56795736 | AR67: =[1]!srE2Rng($C$23,AO67) -> 2732.479035 | AS67: =[1]!srEnew($C$23,AO67,$C$43) -> 69.22207899 | AT67: 2768.88316 | AU67: =[1]!srE2LETt($C$23,AS67,0) -> 2.575588728 | AV67: =[1]!srE2Rng($C$23,AS67) -> 2712.479035
B68: Edeg | C68: ref)params | F68: 1 | G68: 2 | H68: 0 | I68: 0 | J68: 5 | K68: 0 | L68: 0 | M68: 0 | N68: 0 | O68: 0 | P68: 0 | Q68: 0 | R68: =[2]!e5aEDthkI(ThEDtbl,F68:Q68) -> 123.24 | S68: 4.16 | T68: =[2]!e5aEDflgI2S(F68:Q68) -> 1200500000000 | U68: 3206.76 | AC68: =[1]!srRng2E($C$12,U68) -> 82.075 | AD68: =[1]!srEnewGas($C$13,AC68,$C$57,$C$61*100,$C$60) -> 80.60991576 | AE68: 3224.396631 | AF68: =[1]!srE2LETt($C$11,AD68,0) -> 2.297290514 | AH68: =[1]!srEnew($C$19,$AD68,$C$38) -> 74.01763538 | AI68: =[1]!srEnew($C$20,AH68,$C$39) -> 70.96885489 | AJ68: =[1]!srEnew($C$21,AI68,$C$40) -> 70.96885489 | AK68: =[1]!srEnew($C$23,AJ68,$C$41) -> 69.51536652 | AL68: 2780.614661 | AM68: =[1]!srE2LETt($C$23,AK68,0) -> 2.567889372 | AN68: =[1]!srE2Rng($C$23,AK68) -> 2732.657216 | AO68: =[1]!srEnew($C$23,AK68,$C$42) -> 69.4426921 | AP68: 2777.707684 | AQ68: =[1]!srE2LETt($C$23,AO68,0) -> 2.569797213 | AR68: =[1]!srE2Rng($C$23,AO68) -> 2727.657216 | AS68: =[1]!srEnew($C$23,AO68,$C$43) -> 69.15199443 | AT68: 2766.079777 | AU68: =[1]!srE2LETt($C$23,AS68,0) -> 2.577428581 | AV68: =[1]!srE2Rng($C$23,AS68) -> 2707.657216
B69: Deg# | C69: μm | F69: 1 | G69: 2 | H69: 0 | I69: 0 | J69: 0 | K69: 6 | L69: 0 | M69: 0 | N69: 0 | O69: 0 | P69: 0 | Q69: 0 | R69: =[2]!e5aEDthkI(ThEDtbl,F69:Q69) -> 123.8 | S69: 0.56 | T69: =[2]!e5aEDflgI2S(F69:Q69) -> 1200060000000 | U69: 3206.2 | AC69: =[1]!srRng2E($C$12,U69) -> 82.06686047 | AD69: =[1]!srEnewGas($C$13,AC69,$C$57,$C$61*100,$C$60) -> 80.60126751 | AE69: 3224.0507 | AF69: =[1]!srE2LETt($C$11,AD69,0) -> 2.297485707 | AH69: =[1]!srEnew($C$19,$AD69,$C$38) -> 74.00820092 | AI69: =[1]!srEnew($C$20,AH69,$C$39) -> 70.95942043 | AJ69: =[1]!srEnew($C$21,AI69,$C$40) -> 70.95942043 | AK69: =[1]!srEnew($C$23,AJ69,$C$41) -> 69.50593206 | AL69: 2780.237282 | AM69: =[1]!srE2LETt($C$23,AK69,0) -> 2.568137044 | AN69: =[1]!srE2Rng($C$23,AK69) -> 2732.008126 | AO69: =[1]!srEnew($C$23,AK69,$C$42) -> 69.43325764 | AP69: 2777.330306 | AQ69: =[1]!srE2LETt($C$23,AO69,0) -> 2.570044886 | AR69: =[1]!srE2Rng($C$23,AO69) -> 2727.008126 | AS69: =[1]!srEnew($C$23,AO69,$C$43) -> 69.14255996 | AT69: 2765.702399 | AU69: =[1]!srE2LETt($C$23,AS69,0) -> 2.577676254 | AV69: =[1]!srE2Rng($C$23,AS69) -> 2707.008126
B70: 1 | C70: =ThEDtbl -> 10.2 | F70: 0 | G70: 0 | H70: 3 | I70: 0 | J70: 5 | K70: 0 | L70: 0 | M70: 0 | N70: 0 | O70: 0 | P70: 0 | Q70: 0 | R70: =[2]!e5aEDthkI(ThEDtbl,F70:Q70) -> 124.04 | S70: 0.24 | T70: =[2]!e5aEDflgI2S(F70:Q70) -> 0030500000000 | U70: 3205.96 | AC70: =[1]!srRng2E($C$12,U70) -> 82.06337209 | AD70: =[1]!srEnewGas($C$13,AC70,$C$57,$C$61*100,$C$60) -> 80.59756111 | AE70: 3223.902444 | AF70: =[1]!srE2LETt($C$11,AD70,0) -> 2.297569361 | AH70: =[1]!srEnew($C$19,$AD70,$C$38) -> 74.00415758 | AI70: =[1]!srEnew($C$20,AH70,$C$39) -> 70.95537709 | AJ70: =[1]!srEnew($C$21,AI70,$C$40) -> 70.95537709 | AK70: =[1]!srEnew($C$23,AJ70,$C$41) -> 69.50188872 | AL70: 2780.075549 | AM70: =[1]!srE2LETt($C$23,AK70,0) -> 2.56824319 | AN70: =[1]!srE2Rng($C$23,AK70) -> 2731.729944 | AO70: =[1]!srEnew($C$23,AK70,$C$42) -> 69.4292143 | AP70: 2777.168572 | AQ70: =[1]!srE2LETt($C$23,AO70,0) -> 2.570151031 | AR70: =[1]!srE2Rng($C$23,AO70) -> 2726.729944 | AS70: =[1]!srEnew($C$23,AO70,$C$43) -> 69.13851662 | AT70: 2765.540665 | AU70: =[1]!srE2LETt($C$23,AS70,0) -> 2.577782399 | AV70: =[1]!srE2Rng($C$23,AS70) -> 2706.729944
B71: 2 | C71: 12.8 | F71: 0 | G71: 0 | H71: 3 | I71: 0 | J71: 0 | K71: 6 | L71: 0 | M71: 0 | N71: 0 | O71: 0 | P71: 0 | Q71: 0 | R71: =[2]!e5aEDthkI(ThEDtbl,F71:Q71) -> 124.6 | S71: 0.56 | T71: =[2]!e5aEDflgI2S(F71:Q71) -> 0030060000000 | U71: 3205.4 | AC71: =[1]!srRng2E($C$12,U71) -> 82.05523256 | AD71: =[1]!srEnewGas($C$13,AC71,$C$57,$C$61*100,$C$60) -> 80.58891286 | AE71: 3223.556514 | AF71: =[1]!srE2LETt($C$11,AD71,0) -> 2.297764553 | AH71: =[1]!srEnew($C$19,$AD71,$C$38) -> 73.99472312 | AI71: =[1]!srEnew($C$20,AH71,$C$39) -> 70.94594263 | AJ71: =[1]!srEnew($C$21,AI71,$C$40) -> 70.94594263 | AK71: =[1]!srEnew($C$23,AJ71,$C$41) -> 69.49245426 | AL71: 2779.69817 | AM71: =[1]!srE2LETt($C$23,AK71,0) -> 2.568490862 | AN71: =[1]!srE2Rng($C$23,AK71) -> 2731.080853 | AO71: =[1]!srEnew($C$23,AK71,$C$42) -> 69.41977984 | AP71: 2776.791194 | AQ71: =[1]!srE2LETt($C$23,AO71,0) -> 2.570398704 | AR71: =[1]!srE2Rng($C$23,AO71) -> 2726.080853 | AS71: =[1]!srEnew($C$23,AO71,$C$43) -> 69.12908216 | AT71: 2765.163287 | AU71: =[1]!srE2LETt($C$23,AS71,0) -> 2.578030071 | AV71: =[1]!srE2Rng($C$23,AS71) -> 2706.080853
B72: 3 | C72: 23.8 | F72: 1 | G72: 2 | H72: 0 | I72: 0 | J72: 5 | K72: 0 | L72: 0 | M72: 0 | N72: 0 | O72: A | P72: 0 | Q72: 0 | R72: =[2]!e5aEDthkI(ThEDtbl,F72:Q72) -> 128.72 | S72: 4.12 | T72: =[2]!e5aEDflgI2S(F72:Q72) -> 120050000A000 | U72: 3201.28 | AC72: =[1]!srRng2E($C$12,U72) -> 81.99534884 | AD72: =[1]!srEnewGas($C$13,AC72,$C$57,$C$61*100,$C$60) -> 80.5252864 | AE72: 3221.011456 | AF72: =[1]!srE2LETt($C$11,AD72,0) -> 2.299200613 | AH72: =[1]!srEnew($C$19,$AD72,$C$38) -> 73.92531244 | AI72: =[1]!srEnew($C$20,AH72,$C$39) -> 70.87653195 | AJ72: =[1]!srEnew($C$21,AI72,$C$40) -> 70.87653195 | AK72: =[1]!srEnew($C$23,AJ72,$C$41) -> 69.42304358 | AL72: 2776.921743 | AM72: =[1]!srE2LETt($C$23,AK72,0) -> 2.570313025 | AN72: =[1]!srE2Rng($C$23,AK72) -> 2726.305398 | AO72: =[1]!srEnew($C$23,AK72,$C$42) -> 69.35036916 | AP72: 2774.014766 | AQ72: =[1]!srE2LETt($C$23,AO72,0) -> 2.572220866 | AR72: =[1]!srE2Rng($C$23,AO72) -> 2721.305398 | AS72: =[1]!srEnew($C$23,AO72,$C$43) -> 69.05967149 | AT72: 2762.386859 | AU72: =[1]!srE2LETt($C$23,AS72,0) -> 2.579852234 | AV72: =[1]!srE2Rng($C$23,AS72) -> 2701.305398
B73: 4 | C73: 48.59 | F73: 1 | G73: 2 | H73: 0 | I73: 0 | J73: 0 | K73: 6 | L73: 0 | M73: 0 | N73: 0 | O73: A | P73: 0 | Q73: 0 | R73: =[2]!e5aEDthkI(ThEDtbl,F73:Q73) -> 129.28 | S73: 0.56 | T73: =[2]!e5aEDflgI2S(F73:Q73) -> 120006000A000 | U73: 3200.72 | AC73: =[1]!srRng2E($C$12,U73) -> 81.9872093 | AD73: =[1]!srEnewGas($C$13,AC73,$C$57,$C$61*100,$C$60) -> 80.51663815 | AE73: 3220.665526 | AF73: =[1]!srE2LETt($C$11,AD73,0) -> 2.299395806 | AH73: =[1]!srEnew($C$19,$AD73,$C$38) -> 73.91587798 | AI73: =[1]!srEnew($C$20,AH73,$C$39) -> 70.86709749 | AJ73: =[1]!srEnew($C$21,AI73,$C$40) -> 70.86709749 | AK73: =[1]!srEnew($C$23,AJ73,$C$41) -> 69.41360912 | AL73: 2776.544365 | AM73: =[1]!srE2LETt($C$23,AK73,0) -> 2.570560697 | AN73: =[1]!srE2Rng($C$23,AK73) -> 2725.656307 | AO73: =[1]!srEnew($C$23,AK73,$C$42) -> 69.3409347 | AP73: 2773.637388 | AQ73: =[1]!srE2LETt($C$23,AO73,0) -> 2.572468539 | AR73: =[1]!srE2Rng($C$23,AO73) -> 2720.656307 | AS73: =[1]!srEnew($C$23,AO73,$C$43) -> 69.05023703 | AT73: 2762.009481 | AU73: =[1]!srE2LETt($C$23,AS73,0) -> 2.580099906 | AV73: =[1]!srE2Rng($C$23,AS73) -> 2700.656307
B74: 5 | C74: 100.24 | F74: 0 | G74: 0 | H74: 3 | I74: 0 | J74: 5 | K74: 0 | L74: 0 | M74: 0 | N74: 0 | O74: A | P74: 0 | Q74: 0 | R74: =[2]!e5aEDthkI(ThEDtbl,F74:Q74) -> 129.52 | S74: 0.24 | T74: =[2]!e5aEDflgI2S(F74:Q74) -> 003050000A000 | U74: 3200.48 | AC74: =[1]!srRng2E($C$12,U74) -> 81.98372093 | AD74: =[1]!srEnewGas($C$13,AC74,$C$57,$C$61*100,$C$60) -> 80.51293175 | AE74: 3220.51727 | AF74: =[1]!srE2LETt($C$11,AD74,0) -> 2.29947946 | AH74: =[1]!srEnew($C$19,$AD74,$C$38) -> 73.91183464 | AI74: =[1]!srEnew($C$20,AH74,$C$39) -> 70.86305415 | AJ74: =[1]!srEnew($C$21,AI74,$C$40) -> 70.86305415 | AK74: =[1]!srEnew($C$23,AJ74,$C$41) -> 69.40956578 | AL74: 2776.382631 | AM74: =[1]!srE2LETt($C$23,AK74,0) -> 2.570666843 | AN74: =[1]!srE2Rng($C$23,AK74) -> 2725.378126 | AO74: =[1]!srEnew($C$23,AK74,$C$42) -> 69.33689136 | AP74: 2773.475654 | AQ74: =[1]!srE2LETt($C$23,AO74,0) -> 2.572574684 | AR74: =[1]!srE2Rng($C$23,AO74) -> 2720.378126 | AS74: =[1]!srEnew($C$23,AO74,$C$43) -> 69.04619369 | AT74: 2761.847747 | AU74: =[1]!srE2LETt($C$23,AS74,0) -> 2.580206052 | AV74: =[1]!srE2Rng($C$23,AS74) -> 2700.378126
B75: 6 | C75: 100.8 | F75: 0 | G75: 0 | H75: 3 | I75: 0 | J75: 0 | K75: 6 | L75: 0 | M75: 0 | N75: 0 | O75: A | P75: 0 | Q75: 0 | R75: =[2]!e5aEDthkI(ThEDtbl,F75:Q75) -> 130.08 | S75: 0.56 | T75: =[2]!e5aEDflgI2S(F75:Q75) -> 003006000A000 | U75: 3199.92 | AC75: =[1]!srRng2E($C$12,U75) -> 81.9755814 | AD75: =[1]!srEnewGas($C$13,AC75,$C$57,$C$61*100,$C$60) -> 80.5042835 | AE75: 3220.17134 | AF75: =[1]!srE2LETt($C$11,AD75,0) -> 2.299674653 | AH75: =[1]!srEnew($C$19,$AD75,$C$38) -> 73.90240018 | AI75: =[1]!srEnew($C$20,AH75,$C$39) -> 70.85361969 | AJ75: =[1]!srEnew($C$21,AI75,$C$40) -> 70.85361969 | AK75: =[1]!srEnew($C$23,AJ75,$C$41) -> 69.40013132 | AL75: 2776.005253 | AM75: =[1]!srE2LETt($C$23,AK75,0) -> 2.570914515 | AN75: =[1]!srE2Rng($C$23,AK75) -> 2724.729035 | AO75: =[1]!srEnew($C$23,AK75,$C$42) -> 69.3274569 | AP75: 2773.098276 | AQ75: =[1]!srE2LETt($C$23,AO75,0) -> 2.572822357 | AR75: =[1]!srE2Rng($C$23,AO75) -> 2719.729035 | AS75: =[1]!srEnew($C$23,AO75,$C$43) -> 69.03675922 | AT75: 2761.470369 | AU75: =[1]!srE2LETt($C$23,AS75,0) -> 2.580453724 | AV75: =[1]!srE2Rng($C$23,AS75) -> 2699.729035
B76: 7 | C76: 196.39 | F76: 1 | G76: 0 | H76: 3 | I76: 0 | J76: 5 | K76: 0 | L76: 0 | M76: 0 | N76: 0 | O76: 0 | P76: 0 | Q76: 0 | R76: =[2]!e5aEDthkI(ThEDtbl,F76:Q76) -> 134.24 | S76: 4.16 | T76: =[2]!e5aEDflgI2S(F76:Q76) -> 1030500000000 | U76: 3195.76 | AC76: =[1]!srRng2E($C$12,U76) -> 81.91511628 | AD76: =[1]!srEnewGas($C$13,AC76,$C$57,$C$61*100,$C$60) -> 80.44003931 | AE76: 3217.601572 | AF76: =[1]!srE2LETt($C$11,AD76,0) -> 2.301124655 | AH76: =[1]!srEnew($C$19,$AD76,$C$38) -> 73.83231561 | AI76: =[1]!srEnew($C$20,AH76,$C$39) -> 70.78353512 | AJ76: =[1]!srEnew($C$21,AI76,$C$40) -> 70.78353512 | AK76: =[1]!srEnew($C$23,AJ76,$C$41) -> 69.33004675 | AL76: 2773.20187 | AM76: =[1]!srE2LETt($C$23,AK76,0) -> 2.572754368 | AN76: =[1]!srE2Rng($C$23,AK76) -> 2719.907216 | AO76: =[1]!srEnew($C$23,AK76,$C$42) -> 69.25737233 | AP76: 2770.294893 | AQ76: =[1]!srE2LETt($C$23,AO76,0) -> 2.57466221 | AR76: =[1]!srE2Rng($C$23,AO76) -> 2714.907216 | AS76: =[1]!srEnew($C$23,AO76,$C$43) -> 68.96667466 | AT76: 2758.666986 | AU76: =[1]!srE2LETt($C$23,AS76,0) -> 2.582293578 | AV76: =[1]!srE2Rng($C$23,AS76) -> 2694.907216
B77: 8 | C77: 485.95 | F77: 1 | G77: 0 | H77: 3 | I77: 0 | J77: 0 | K77: 6 | L77: 0 | M77: 0 | N77: 0 | O77: 0 | P77: 0 | Q77: 0 | R77: =[2]!e5aEDthkI(ThEDtbl,F77:Q77) -> 134.8 | S77: 0.56 | T77: =[2]!e5aEDflgI2S(F77:Q77) -> 1030060000000 | U77: 3195.2 | AC77: =[1]!srRng2E($C$12,U77) -> 81.90697674 | AD77: =[1]!srEnewGas($C$13,AC77,$C$57,$C$61*100,$C$60) -> 80.43139105 | AE77: 3217.255642 | AF77: =[1]!srE2LETt($C$11,AD77,0) -> 2.301319848 | AH77: =[1]!srEnew($C$19,$AD77,$C$38) -> 73.82288115 | AI77: =[1]!srEnew($C$20,AH77,$C$39) -> 70.77410066 | AJ77: =[1]!srEnew($C$21,AI77,$C$40) -> 70.77410066 | AK77: =[1]!srEnew($C$23,AJ77,$C$41) -> 69.32061229 | AL77: 2772.824492 | AM77: =[1]!srE2LETt($C$23,AK77,0) -> 2.573002041 | AN77: =[1]!srE2Rng($C$23,AK77) -> 2719.258126 | AO77: =[1]!srEnew($C$23,AK77,$C$42) -> 69.24793787 | AP77: 2769.917515 | AQ77: =[1]!srE2LETt($C$23,AO77,0) -> 2.574909883 | AR77: =[1]!srE2Rng($C$23,AO77) -> 2714.258126 | AS77: =[1]!srEnew($C$23,AO77,$C$43) -> 68.9572402 | AT77: 2758.289608 | AU77: =[1]!srE2LETt($C$23,AS77,0) -> 2.58254125 | AV77: =[1]!srE2Rng($C$23,AS77) -> 2694.258126
B78: 9 | C78: 5000 | F78: 0 | G78: 2 | H78: 3 | I78: 0 | J78: 5 | K78: 0 | L78: 0 | M78: 0 | N78: 0 | O78: 0 | P78: 0 | Q78: 0 | R78: =[2]!e5aEDthkI(ThEDtbl,F78:Q78) -> 136.84 | S78: 2.04 | T78: =[2]!e5aEDflgI2S(F78:Q78) -> 0230500000000 | U78: 3193.16 | AC78: =[1]!srRng2E($C$12,U78) -> 81.87732558 | AD78: =[1]!srEnewGas($C$13,AC78,$C$57,$C$61*100,$C$60) -> 80.39988669 | AE78: 3215.995468 | AF78: =[1]!srE2LETt($C$11,AD78,0) -> 2.302030907 | AH78: =[1]!srEnew($C$19,$AD78,$C$38) -> 73.78851276 | AI78: =[1]!srEnew($C$20,AH78,$C$39) -> 70.73973227 | AJ78: =[1]!srEnew($C$21,AI78,$C$40) -> 70.73973227 | AK78: =[1]!srEnew($C$23,AJ78,$C$41) -> 69.2862439 | AL78: 2771.449756 | AM78: =[1]!srE2LETt($C$23,AK78,0) -> 2.573904277 | AN78: =[1]!srE2Rng($C$23,AK78) -> 2716.89358 | AO78: =[1]!srEnew($C$23,AK78,$C$42) -> 69.21356948 | AP78: 2768.542779 | AQ78: =[1]!srE2LETt($C$23,AO78,0) -> 2.575812119 | AR78: =[1]!srE2Rng($C$23,AO78) -> 2711.89358 | AS78: =[1]!srEnew($C$23,AO78,$C$43) -> 68.9228718 | AT78: 2756.914872 | AU78: =[1]!srE2LETt($C$23,AS78,0) -> 2.583443486 | AV78: =[1]!srE2Rng($C$23,AS78) -> 2691.89358
B79: A | C79: 5.48 | F79: 0 | G79: 2 | H79: 3 | I79: 0 | J79: 0 | K79: 6 | L79: 0 | M79: 0 | N79: 0 | O79: 0 | P79: 0 | Q79: 0 | R79: =[2]!e5aEDthkI(ThEDtbl,F79:Q79) -> 137.4 | S79: 0.56 | T79: =[2]!e5aEDflgI2S(F79:Q79) -> 0230060000000 | U79: 3192.6 | AC79: =[1]!srRng2E($C$12,U79) -> 81.86918605 | AD79: =[1]!srEnewGas($C$13,AC79,$C$57,$C$61*100,$C$60) -> 80.39123844 | AE79: 3215.649538 | AF79: =[1]!srE2LETt($C$11,AD79,0) -> 2.3022261 | AH79: =[1]!srEnew($C$19,$AD79,$C$38) -> 73.7790783 | AI79: =[1]!srEnew($C$20,AH79,$C$39) -> 70.73029781 | AJ79: =[1]!srEnew($C$21,AI79,$C$40) -> 70.73029781 | AK79: =[1]!srEnew($C$23,AJ79,$C$41) -> 69.27680944 | AL79: 2771.072377 | AM79: =[1]!srE2LETt($C$23,AK79,0) -> 2.574151949 | AN79: =[1]!srE2Rng($C$23,AK79) -> 2716.244489 | AO79: =[1]!srEnew($C$23,AK79,$C$42) -> 69.20413502 | AP79: 2768.165401 | AQ79: =[1]!srE2LETt($C$23,AO79,0) -> 2.576059791 | AR79: =[1]!srE2Rng($C$23,AO79) -> 2711.244489 | AS79: =[1]!srEnew($C$23,AO79,$C$43) -> 68.91343734 | AT79: 2756.537494 | AU79: =[1]!srE2LETt($C$23,AS79,0) -> 2.583691159 | AV79: =[1]!srE2Rng($C$23,AS79) -> 2691.244489
B80: B | C80: 975.39 | F80: 1 | G80: 0 | H80: 3 | I80: 0 | J80: 5 | K80: 0 | L80: 0 | M80: 0 | N80: 0 | O80: A | P80: 0 | Q80: 0 | R80: =[2]!e5aEDthkI(ThEDtbl,F80:Q80) -> 139.72 | S80: 2.32 | T80: =[2]!e5aEDflgI2S(F80:Q80) -> 103050000A000 | U80: 3190.28 | AC80: =[1]!srRng2E($C$12,U80) -> 81.83546512 | AD80: =[1]!srEnewGas($C$13,AC80,$C$57,$C$61*100,$C$60) -> 80.35540995 | AE80: 3214.216398 | AF80: =[1]!srE2LETt($C$11,AD80,0) -> 2.303034755 | AH80: =[1]!srEnew($C$19,$AD80,$C$38) -> 73.73999267 | AI80: =[1]!srEnew($C$20,AH80,$C$39) -> 70.69121218 | AJ80: =[1]!srEnew($C$21,AI80,$C$40) -> 70.69121218 | AK80: =[1]!srEnew($C$23,AJ80,$C$41) -> 69.23772381 | AL80: 2769.508952 | AM80: =[1]!srE2LETt($C$23,AK80,0) -> 2.575178021 | AN80: =[1]!srE2Rng($C$23,AK80) -> 2713.555398 | AO80: =[1]!srEnew($C$23,AK80,$C$42) -> 69.16504939 | AP80: 2766.601976 | AQ80: =[1]!srE2LETt($C$23,AO80,0) -> 2.577085863 | AR80: =[1]!srE2Rng($C$23,AO80) -> 2708.555398 | AS80: =[1]!srEnew($C$23,AO80,$C$43) -> 68.87435172 | AT80: 2754.974069 | AU80: =[1]!srE2LETt($C$23,AS80,0) -> 2.584717231 | AV80: =[1]!srE2Rng($C$23,AS80) -> 2688.555398
B81: C | C81: 2000 | F81: 1 | G81: 0 | H81: 3 | I81: 0 | J81: 0 | K81: 6 | L81: 0 | M81: 0 | N81: 0 | O81: A | P81: 0 | Q81: 0 | R81: =[2]!e5aEDthkI(ThEDtbl,F81:Q81) -> 140.28 | S81: 0.56 | T81: =[2]!e5aEDflgI2S(F81:Q81) -> 103006000A000 | U81: 3189.72 | AC81: =[1]!srRng2E($C$12,U81) -> 81.82732558 | AD81: =[1]!srEnewGas($C$13,AC81,$C$57,$C$61*100,$C$60) -> 80.34676169 | AE81: 3213.870468 | AF81: =[1]!srE2LETt($C$11,AD81,0) -> 2.303229948 | AH81: =[1]!srEnew($C$19,$AD81,$C$38) -> 73.73055821 | AI81: =[1]!srEnew($C$20,AH81,$C$39) -> 70.68177772 | AJ81: =[1]!srEnew($C$21,AI81,$C$40) -> 70.68177772 | AK81: =[1]!srEnew($C$23,AJ81,$C$41) -> 69.22828935 | AL81: 2769.131574 | AM81: =[1]!srE2LETt($C$23,AK81,0) -> 2.575425694 | AN81: =[1]!srE2Rng($C$23,AK81) -> 2712.906307 | AO81: =[1]!srEnew($C$23,AK81,$C$42) -> 69.15561493 | AP81: 2766.224597 | AQ81: =[1]!srE2LETt($C$23,AO81,0) -> 2.577333536 | AR81: =[1]!srE2Rng($C$23,AO81) -> 2707.906307 | AS81: =[1]!srEnew($C$23,AO81,$C$43) -> 68.86491726 | AT81: 2754.59669 | AU81: =[1]!srE2LETt($C$23,AS81,0) -> 2.584964903 | AV81: =[1]!srE2Rng($C$23,AS81) -> 2687.906307
F82: 0 | G82: 2 | H82: 3 | I82: 0 | J82: 5 | K82: 0 | L82: 0 | M82: 0 | N82: 0 | O82: A | P82: 0 | Q82: 0 | R82: =[2]!e5aEDthkI(ThEDtbl,F82:Q82) -> 142.32 | S82: 2.04 | T82: =[2]!e5aEDflgI2S(F82:Q82) -> 023050000A000 | U82: 3187.68 | AC82: =[1]!srRng2E($C$12,U82) -> 81.79767442 | AD82: =[1]!srEnewGas($C$13,AC82,$C$57,$C$61*100,$C$60) -> 80.31525733 | AE82: 3212.610293 | AF82: =[1]!srE2LETt($C$11,AD82,0) -> 2.303941007 | AH82: =[1]!srEnew($C$19,$AD82,$C$38) -> 73.69618982 | AI82: =[1]!srEnew($C$20,AH82,$C$39) -> 70.64740933 | AJ82: =[1]!srEnew($C$21,AI82,$C$40) -> 70.64740933 | AK82: =[1]!srEnew($C$23,AJ82,$C$41) -> 69.19392096 | AL82: 2767.756838 | AM82: =[1]!srE2LETt($C$23,AK82,0) -> 2.57632793 | AN82: =[1]!srE2Rng($C$23,AK82) -> 2710.541762 | AO82: =[1]!srEnew($C$23,AK82,$C$42) -> 69.12124654 | AP82: 2764.849862 | AQ82: =[1]!srE2LETt($C$23,AO82,0) -> 2.578235771 | AR82: =[1]!srE2Rng($C$23,AO82) -> 2705.541762 | AS82: =[1]!srEnew($C$23,AO82,$C$43) -> 68.83054887 | AT82: 2753.221955 | AU82: =[1]!srE2LETt($C$23,AS82,0) -> 2.585867139 | AV82: =[1]!srE2Rng($C$23,AS82) -> 2685.541762
B83: IC2 | C83: ref)params | F83: 0 | G83: 2 | H83: 3 | I83: 0 | J83: 0 | K83: 6 | L83: 0 | M83: 0 | N83: 0 | O83: A | P83: 0 | Q83: 0 | R83: =[2]!e5aEDthkI(ThEDtbl,F83:Q83) -> 142.88 | S83: 0.56 | T83: =[2]!e5aEDflgI2S(F83:Q83) -> 023006000A000 | U83: 3187.12 | AC83: =[1]!srRng2E($C$12,U83) -> 81.78953488 | AD83: =[1]!srEnewGas($C$13,AC83,$C$57,$C$61*100,$C$60) -> 80.30660908 | AE83: 3212.264363 | AF83: =[1]!srE2LETt($C$11,AD83,0) -> 2.304136199 | AH83: =[1]!srEnew($C$19,$AD83,$C$38) -> 73.68675536 | AI83: =[1]!srEnew($C$20,AH83,$C$39) -> 70.63797487 | AJ83: =[1]!srEnew($C$21,AI83,$C$40) -> 70.63797487 | AK83: =[1]!srEnew($C$23,AJ83,$C$41) -> 69.1844865 | AL83: 2767.37946 | AM83: =[1]!srE2LETt($C$23,AK83,0) -> 2.576575602 | AN83: =[1]!srE2Rng($C$23,AK83) -> 2709.892671 | AO83: =[1]!srEnew($C$23,AK83,$C$42) -> 69.11181208 | AP83: 2764.472483 | AQ83: =[1]!srE2LETt($C$23,AO83,0) -> 2.578483444 | AR83: =[1]!srE2Rng($C$23,AO83) -> 2704.892671 | AS83: =[1]!srEnew($C$23,AO83,$C$43) -> 68.8211144 | AT83: 2752.844576 | AU83: =[1]!srE2LETt($C$23,AS83,0) -> 2.586114811 | AV83: =[1]!srE2Rng($C$23,AS83) -> 2684.892671
B84: 電極Al.Mylar [μm] | C84: =ICs_Mylar -> 4 | F84: 1 | G84: 2 | H84: 3 | I84: 0 | J84: 5 | K84: 0 | L84: 0 | M84: 0 | N84: 0 | O84: 0 | P84: 0 | Q84: 0 | R84: =[2]!e5aEDthkI(ThEDtbl,F84:Q84) -> 147.04 | S84: 4.16 | T84: =[2]!e5aEDflgI2S(F84:Q84) -> 1230500000000 | U84: 3182.96 | AC84: =[1]!srRng2E($C$12,U84) -> 81.72906977 | AD84: =[1]!srEnewGas($C$13,AC84,$C$57,$C$61*100,$C$60) -> 80.24236489 | AE84: 3209.694596 | AF84: =[1]!srE2LETt($C$11,AD84,0) -> 2.305586202 | AH84: =[1]!srEnew($C$19,$AD84,$C$38) -> 73.61667079 | AI84: =[1]!srEnew($C$20,AH84,$C$39) -> 70.5678903 | AJ84: =[1]!srEnew($C$21,AI84,$C$40) -> 70.5678903 | AK84: =[1]!srEnew($C$23,AJ84,$C$41) -> 69.11440193 | AL84: 2764.576077 | AM84: =[1]!srE2LETt($C$23,AK84,0) -> 2.578415456 | AN84: =[1]!srE2Rng($C$23,AK84) -> 2705.070853 | AO84: =[1]!srEnew($C$23,AK84,$C$42) -> 69.04172751 | AP84: 2761.6691 | AQ84: =[1]!srE2LETt($C$23,AO84,0) -> 2.580323297 | AR84: =[1]!srE2Rng($C$23,AO84) -> 2700.070853 | AS84: =[1]!srEnew($C$23,AO84,$C$43) -> 68.75102984 | AT84: 2750.041194 | AU84: =[1]!srE2LETt($C$23,AS84,0) -> 2.587954665 | AV84: =[1]!srE2Rng($C$23,AS84) -> 2680.070853
B85: 空気層 [mm] | C85: =ICs_Th -> 2 | F85: 1 | G85: 2 | H85: 3 | I85: 0 | J85: 0 | K85: 6 | L85: 0 | M85: 0 | N85: 0 | O85: 0 | P85: 0 | Q85: 0 | R85: =[2]!e5aEDthkI(ThEDtbl,F85:Q85) -> 147.6 | S85: 0.56 | T85: =[2]!e5aEDflgI2S(F85:Q85) -> 1230060000000 | U85: 3182.4 | AC85: =[1]!srRng2E($C$12,U85) -> 81.72093023 | AD85: =[1]!srEnewGas($C$13,AC85,$C$57,$C$61*100,$C$60) -> 80.23371664 | AE85: 3209.348665 | AF85: =[1]!srE2LETt($C$11,AD85,0) -> 2.305781394 | AH85: =[1]!srEnew($C$19,$AD85,$C$38) -> 73.60723633 | AI85: =[1]!srEnew($C$20,AH85,$C$39) -> 70.55845584 | AJ85: =[1]!srEnew($C$21,AI85,$C$40) -> 70.55845584 | AK85: =[1]!srEnew($C$23,AJ85,$C$41) -> 69.10496747 | AL85: 2764.198699 | AM85: =[1]!srE2LETt($C$23,AK85,0) -> 2.578663128 | AN85: =[1]!srE2Rng($C$23,AK85) -> 2704.421762 | AO85: =[1]!srEnew($C$23,AK85,$C$42) -> 69.03229305 | AP85: 2761.291722 | AQ85: =[1]!srE2LETt($C$23,AO85,0) -> 2.58057097 | AR85: =[1]!srE2Rng($C$23,AO85) -> 2699.421762 | AS85: =[1]!srEnew($C$23,AO85,$C$43) -> 68.74096503 | AT85: 2749.638601 | AU85: =[1]!srE2LETt($C$23,AS85,0) -> 2.588260828 | AV85: =[1]!srE2Rng($C$23,AS85) -> 2679.421762
F86: 0 | G86: 0 | H86: 0 | I86: 4 | J86: 5 | K86: 0 | L86: 0 | M86: 0 | N86: 0 | O86: 0 | P86: 0 | Q86: 0 | R86: =[2]!e5aEDthkI(ThEDtbl,F86:Q86) -> 148.83 | S86: 1.23 | T86: =[2]!e5aEDflgI2S(F86:Q86) -> 0004500000000 | U86: 3181.17 | AC86: =[1]!srRng2E($C$12,U86) -> 81.70305233 | AD86: =[1]!srEnewGas($C$13,AC86,$C$57,$C$61*100,$C$60) -> 80.21472136 | AE86: 3208.588854 | AF86: =[1]!srE2LETt($C$11,AD86,0) -> 2.306210121 | AH86: =[1]!srEnew($C$19,$AD86,$C$38) -> 73.58651421 | AI86: =[1]!srEnew($C$20,AH86,$C$39) -> 70.53773372 | AJ86: =[1]!srEnew($C$21,AI86,$C$40) -> 70.53773372 | AK86: =[1]!srEnew($C$23,AJ86,$C$41) -> 69.08424535 | AL86: 2763.369814 | AM86: =[1]!srE2LETt($C$23,AK86,0) -> 2.579207123 | AN86: =[1]!srE2Rng($C$23,AK86) -> 2702.99608 | AO86: =[1]!srEnew($C$23,AK86,$C$42) -> 69.01157093 | AP86: 2760.462837 | AQ86: =[1]!srE2LETt($C$23,AO86,0) -> 2.581114965 | AR86: =[1]!srE2Rng($C$23,AO86) -> 2697.99608 | AS86: =[1]!srEnew($C$23,AO86,$C$43) -> 68.71868875 | AT86: 2748.74755 | AU86: =[1]!srE2LETt($C$23,AS86,0) -> 2.588949034 | AV86: =[1]!srE2Rng($C$23,AS86) -> 2677.99608
B87: ssd | C87: ref)params | F87: 0 | G87: 0 | H87: 0 | I87: 4 | J87: 0 | K87: 6 | L87: 0 | M87: 0 | N87: 0 | O87: 0 | P87: 0 | Q87: 0 | R87: =[2]!e5aEDthkI(ThEDtbl,F87:Q87) -> 149.39 | S87: 0.56 | T87: =[2]!e5aEDflgI2S(F87:Q87) -> 0004060000000 | U87: =$C$65-$R87 -> 3180.61 | AC87: =[1]!srRng2E($C$12,U87) -> 81.69491279 | AD87: =[1]!srEnewGas($C$13,AC87,$C$57,$C$61*100,$C$60) -> 80.2060731 | AE87: =AD87*$C$7 -> 3208.242924 | AF87: =[1]!srE2LETt($C$11,AD87,0) -> 2.306405314 | AH87: =[1]!srEnew($C$19,$AD87,$C$38) -> 73.57707975 | AI87: =[1]!srEnew($C$20,AH87,$C$39) -> 70.52829926 | AJ87: =[1]!srEnew($C$21,AI87,$C$40) -> 70.52829926 | AK87: =[1]!srEnew($C$23,AJ87,$C$41) -> 69.07481089 | AL87: =AK87*$C$7 -> 2762.992436 | AM87: =[1]!srE2LETt($C$23,AK87,0) -> 2.579454796 | AN87: =[1]!srE2Rng($C$23,AK87) -> 2702.346989 | AO87: =[1]!srEnew($C$23,AK87,$C$42) -> 69.00213647 | AP87: 2760.085459 | AQ87: =[1]!srE2LETt($C$23,AO87,0) -> 2.581362638 | AR87: =[1]!srE2Rng($C$23,AO87) -> 2697.346989 | AS87: =[1]!srEnew($C$23,AO87,$C$43) -> 68.70854671 | AT87: 2748.341868 | AU87: =[1]!srE2LETt($C$23,AS87,0) -> 2.589262363 | AV87: =[1]!srE2Rng($C$23,AS87) -> 2677.346989
B88: A1,A2 | C88: μm | F88: 1 | G88: 2 | H88: 3 | I88: 0 | J88: 5 | K88: 0 | L88: 0 | M88: 0 | N88: 0 | O88: A | P88: 0 | Q88: 0 | R88: =[2]!e5aEDthkI(ThEDtbl,F88:Q88) -> 152.52 | S88: 3.13 | T88: =[2]!e5aEDflgI2S(F88:Q88) -> 123050000A000 | U88: 3177.48 | AC88: =[1]!srRng2E($C$12,U88) -> 81.6494186 | AD88: =[1]!srEnewGas($C$13,AC88,$C$57,$C$61*100,$C$60) -> 80.15773553 | AE88: 3206.309421 | AF88: =[1]!srE2LETt($C$11,AD88,0) -> 2.307496301 | AH88: =[1]!srEnew($C$19,$AD88,$C$38) -> 73.52434785 | AI88: =[1]!srEnew($C$20,AH88,$C$39) -> 70.47556736 | AJ88: =[1]!srEnew($C$21,AI88,$C$40) -> 70.47556736 | AK88: =[1]!srEnew($C$23,AJ88,$C$41) -> 69.02207899 | AL88: 2760.88316 | AM88: =[1]!srE2LETt($C$23,AK88,0) -> 2.580839108 | AN88: =[1]!srE2Rng($C$23,AK88) -> 2698.719035 | AO88: =[1]!srEnew($C$23,AK88,$C$42) -> 68.94940457 | AP88: 2757.976183 | AQ88: =[1]!srE2LETt($C$23,AO88,0) -> 2.58274695 | AR88: =[1]!srE2Rng($C$23,AO88) -> 2693.719035 | AS88: =[1]!srEnew($C$23,AO88,$C$43) -> 68.65185992 | AT88: 2746.074397 | AU88: =[1]!srE2LETt($C$23,AS88,0) -> 2.591013652 | AV88: =[1]!srE2Rng($C$23,AS88) -> 2673.719035
B89: 遮光Al | C89: =ssdA_Al -> 4.72 | F89: 1 | G89: 2 | H89: 3 | I89: 0 | J89: 0 | K89: 6 | L89: 0 | M89: 0 | N89: 0 | O89: A | P89: 0 | Q89: 0 | R89: =[2]!e5aEDthkI(ThEDtbl,F89:Q89) -> 153.08 | S89: 0.56 | T89: =[2]!e5aEDflgI2S(F89:Q89) -> 123006000A000 | U89: 3176.92 | AC89: =[1]!srRng2E($C$12,U89) -> 81.64127907 | AD89: =[1]!srEnewGas($C$13,AC89,$C$57,$C$61*100,$C$60) -> 80.14908727 | AE89: 3205.963491 | AF89: =[1]!srE2LETt($C$11,AD89,0) -> 2.307691494 | AH89: =[1]!srEnew($C$19,$AD89,$C$38) -> 73.51491339 | AI89: =[1]!srEnew($C$20,AH89,$C$39) -> 70.4661329 | AJ89: =[1]!srEnew($C$21,AI89,$C$40) -> 70.4661329 | AK89: =[1]!srEnew($C$23,AJ89,$C$41) -> 69.01264453 | AL89: 2760.505781 | AM89: =[1]!srE2LETt($C$23,AK89,0) -> 2.581086781 | AN89: =[1]!srE2Rng($C$23,AK89) -> 2698.069944 | AO89: =[1]!srEnew($C$23,AK89,$C$42) -> 68.93997011 | AP89: 2757.598804 | AQ89: =[1]!srE2LETt($C$23,AO89,0) -> 2.582994623 | AR89: =[1]!srE2Rng($C$23,AO89) -> 2693.069944 | AS89: =[1]!srEnew($C$23,AO89,$C$43) -> 68.64171787 | AT89: 2745.668715 | AU89: =[1]!srE2LETt($C$23,AS89,0) -> 2.591326982 | AV89: =[1]!srE2Rng($C$23,AS89) -> 2673.069944
B90: dead11 | C90: =ssdA1_d1 -> 0 | F90: 0 | G90: 0 | H90: 0 | I90: 4 | J90: 5 | K90: 0 | L90: 0 | M90: 0 | N90: 0 | O90: A | P90: 0 | Q90: 0 | R90: =[2]!e5aEDthkI(ThEDtbl,F90:Q90) -> 154.31 | S90: 1.23 | T90: =[2]!e5aEDflgI2S(F90:Q90) -> 000450000A000 | U90: 3175.69 | AC90: =[1]!srRng2E($C$12,U90) -> 81.62340116 | AD90: =[1]!srEnewGas($C$13,AC90,$C$57,$C$61*100,$C$60) -> 80.130092 | AE90: 3205.20368 | AF90: =[1]!srE2LETt($C$11,AD90,0) -> 2.308120221 | AH90: =[1]!srEnew($C$19,$AD90,$C$38) -> 73.49419127 | AI90: =[1]!srEnew($C$20,AH90,$C$39) -> 70.44541078 | AJ90: =[1]!srEnew($C$21,AI90,$C$40) -> 70.44541078 | AK90: =[1]!srEnew($C$23,AJ90,$C$41) -> 68.99192241 | AL90: 2759.676896 | AM90: =[1]!srE2LETt($C$23,AK90,0) -> 2.581630776 | AN90: =[1]!srE2Rng($C$23,AK90) -> 2696.644262 | AO90: =[1]!srEnew($C$23,AK90,$C$42) -> 68.91924799 | AP90: =AO90*$C$7 -> 2756.76992 | AQ90: =[1]!srE2LETt($C$23,AO90,0) -> 2.583538618 | AR90: =[1]!srE2Rng($C$23,AO90) -> 2691.644262 | AS90: =[1]!srEnew($C$23,AO90,$C$43) -> 68.61944159 | AT90: =AS90*$C$7 -> 2744.777664 | AU90: =[1]!srE2LETt($C$23,AS90,0) -> 2.592015188 | AV90: =[1]!srE2Rng($C$23,AS90) -> 2671.644262
B91: 空乏層 | C91: =ssdA1_Th -> 145 | F91: 0 | G91: 0 | H91: 0 | I91: 4 | J91: 0 | K91: 6 | L91: 0 | M91: 0 | N91: 0 | O91: A | P91: 0 | Q91: 0 | R91: =[2]!e5aEDthkI(ThEDtbl,F91:Q91) -> 154.87 | S91: =R91-R90 -> 0.56 | T91: =[2]!e5aEDflgI2S(F91:Q91) -> 000406000A000 | U91: 3175.13 | AC91: =[1]!srRng2E($C$12,U91) -> 81.61526163 | AD91: =[1]!srEnewGas($C$13,AC91,$C$57,$C$61*100,$C$60) -> 80.12144374 | AE91: 3204.85775 | AF91: =[1]!srE2LETt($C$11,AD91,0) -> 2.308315413 | AH91: =[1]!srEnew($C$19,$AD91,$C$38) -> 73.48475681 | AI91: =[1]!srEnew($C$20,AH91,$C$39) -> 70.43597632 | AJ91: =[1]!srEnew($C$21,AI91,$C$40) -> 70.43597632 | AK91: =[1]!srEnew($C$23,AJ91,$C$41) -> 68.98248795 | AL91: 2759.299518 | AM91: =[1]!srE2LETt($C$23,AK91,0) -> 2.581878449 | AN91: =[1]!srE2Rng($C$23,AK91) -> 2695.995171 | AO91: =[1]!srEnew($C$23,AK91,$C$42) -> 68.90981353 | AP91: 2756.392541 | AQ91: =[1]!srE2LETt($C$23,AO91,0) -> 2.58378629 | AR91: =[1]!srE2Rng($C$23,AO91) -> 2690.995171 | AS91: =[1]!srEnew($C$23,AO91,$C$43) -> 68.60929955 | AT91: 2744.371982 | AU91: =[1]!srE2LETt($C$23,AS91,0) -> 2.592328518 | AV91: =[1]!srE2Rng($C$23,AS91) -> 2670.995171
B92: dead12 | C92: =ssdA1_d2 -> 0 | F92: 1 | G92: 0 | H92: 0 | I92: 4 | J92: 5 | K92: 0 | L92: 0 | M92: 0 | N92: 0 | O92: 0 | P92: 0 | Q92: 0 | R92: =[2]!e5aEDthkI(ThEDtbl,F92:Q92) -> 159.03 | S92: 4.16 | T92: =[2]!e5aEDflgI2S(F92:Q92) -> 1004500000000 | U92: 3170.97 | AC92: =[1]!srRng2E($C$12,U92) -> 81.55479651 | AD92: =[1]!srEnewGas($C$13,AC92,$C$57,$C$61*100,$C$60) -> 80.05719956 | AE92: 3202.287982 | AF92: =[1]!srE2LETt($C$11,AD92,0) -> 2.309765416 | AH92: =[1]!srEnew($C$19,$AD92,$C$38) -> 73.41467224 | AI92: =[1]!srEnew($C$20,AH92,$C$39) -> 70.36589176 | AJ92: =[1]!srEnew($C$21,AI92,$C$40) -> 70.36589176 | AK92: =[1]!srEnew($C$23,AJ92,$C$41) -> 68.91240338 | AL92: 2756.496135 | AM92: =[1]!srE2LETt($C$23,AK92,0) -> 2.583718302 | AN92: =[1]!srE2Rng($C$23,AK92) -> 2691.173353 | AO92: =[1]!srEnew($C$23,AK92,$C$42) -> 68.83972897 | AP92: 2753.589159 | AQ92: =[1]!srE2LETt($C$23,AO92,0) -> 2.585626144 | AR92: =[1]!srE2Rng($C$23,AO92) -> 2686.173353 | AS92: =[1]!srEnew($C$23,AO92,$C$43) -> 68.53395864 | AT92: 2741.358346 | AU92: =[1]!srE2LETt($C$23,AS92,0) -> 2.594656109 | AV92: =[1]!srE2Rng($C$23,AS92) -> 2666.173353
B93: dead21 | C93: =ssdA2_d1 -> 20 | F93: 1 | G93: 0 | H93: 0 | I93: 4 | J93: 0 | K93: 6 | L93: 0 | M93: 0 | N93: 0 | O93: 0 | P93: 0 | Q93: 0 | R93: =[2]!e5aEDthkI(ThEDtbl,F93:Q93) -> 159.59 | S93: 0.56 | T93: =[2]!e5aEDflgI2S(F93:Q93) -> 1004060000000 | U93: 3170.41 | AC93: =[1]!srRng2E($C$12,U93) -> 81.54665698 | AD93: =[1]!srEnewGas($C$13,AC93,$C$57,$C$61*100,$C$60) -> 80.0485513 | AE93: 3201.942052 | AF93: =[1]!srE2LETt($C$11,AD93,0) -> 2.309960609 | AH93: =[1]!srEnew($C$19,$AD93,$C$38) -> 73.40523778 | AI93: =[1]!srEnew($C$20,AH93,$C$39) -> 70.3564573 | AJ93: =[1]!srEnew($C$21,AI93,$C$40) -> 70.3564573 | AK93: =[1]!srEnew($C$23,AJ93,$C$41) -> 68.90296892 | AL93: 2756.118757 | AM93: =[1]!srE2LETt($C$23,AK93,0) -> 2.583965975 | AN93: =[1]!srE2Rng($C$23,AK93) -> 2690.524262 | AO93: =[1]!srEnew($C$23,AK93,$C$42) -> 68.8302945 | AP93: 2753.21178 | AQ93: =[1]!srE2LETt($C$23,AO93,0) -> 2.585873816 | AR93: =[1]!srE2Rng($C$23,AO93) -> 2685.524262 | AS93: =[1]!srEnew($C$23,AO93,$C$43) -> 68.52381659 | AT93: 2740.952664 | AU93: =[1]!srE2LETt($C$23,AS93,0) -> 2.594969439 | AV93: =[1]!srE2Rng($C$23,AS93) -> 2665.524262
B94: 空乏層 | C94: =ssdA2_Th -> 2040 | F94: 0 | G94: 2 | H94: 0 | I94: 4 | J94: 5 | K94: 0 | L94: 0 | M94: 0 | N94: 0 | O94: 0 | P94: 0 | Q94: 0 | R94: =[2]!e5aEDthkI(ThEDtbl,F94:Q94) -> 161.63 | S94: 2.04 | T94: =[2]!e5aEDflgI2S(F94:Q94) -> 0204500000000 | U94: 3168.37 | AC94: =[1]!srRng2E($C$12,U94) -> 81.51700581 | AD94: =[1]!srEnewGas($C$13,AC94,$C$57,$C$61*100,$C$60) -> 80.01704694 | AE94: 3200.681878 | AF94: =[1]!srE2LETt($C$11,AD94,0) -> 2.310671668 | AH94: =[1]!srEnew($C$19,$AD94,$C$38) -> 73.37086939 | AI94: =[1]!srEnew($C$20,AH94,$C$39) -> 70.3220889 | AJ94: =[1]!srEnew($C$21,AI94,$C$40) -> 70.3220889 | AK94: =[1]!srEnew($C$23,AJ94,$C$41) -> 68.86860053 | AL94: 2754.744021 | AM94: =[1]!srE2LETt($C$23,AK94,0) -> 2.58486821 | AN94: =[1]!srE2Rng($C$23,AK94) -> 2688.159716 | AO94: =[1]!srEnew($C$23,AK94,$C$42) -> 68.79592611 | AP94: 2751.837044 | AQ94: =[1]!srE2LETt($C$23,AO94,0) -> 2.586776052 | AR94: =[1]!srE2Rng($C$23,AO94) -> 2683.159716 | AS94: =[1]!srEnew($C$23,AO94,$C$43) -> 68.48687057 | AT94: 2739.474823 | AU94: =[1]!srE2LETt($C$23,AS94,0) -> 2.596110854 | AV94: =[1]!srE2Rng($C$23,AS94) -> 2663.159716
B95: dead22 | C95: =ssdA2_d2 -> 0 | F95: 0 | G95: 2 | H95: 0 | I95: 4 | J95: 0 | K95: 6 | L95: 0 | M95: 0 | N95: 0 | O95: 0 | P95: 0 | Q95: 0 | R95: =[2]!e5aEDthkI(ThEDtbl,F95:Q95) -> 162.19 | S95: 0.56 | T95: =[2]!e5aEDflgI2S(F95:Q95) -> 0204060000000 | U95: 3167.81 | AC95: =[1]!srRng2E($C$12,U95) -> 81.50886628 | AD95: =[1]!srEnewGas($C$13,AC95,$C$57,$C$61*100,$C$60) -> 80.00839868 | AE95: 3200.335947 | AF95: =[1]!srE2LETt($C$11,AD95,0) -> 2.31086686 | AH95: =[1]!srEnew($C$19,$AD95,$C$38) -> 73.36143493 | AI95: =[1]!srEnew($C$20,AH95,$C$39) -> 70.31265444 | AJ95: =[1]!srEnew($C$21,AI95,$C$40) -> 70.31265444 | AK95: =[1]!srEnew($C$23,AJ95,$C$41) -> 68.85916607 | AL95: 2754.366643 | AM95: =[1]!srE2LETt($C$23,AK95,0) -> 2.585115883 | AN95: =[1]!srE2Rng($C$23,AK95) -> 2687.510626 | AO95: =[1]!srEnew($C$23,AK95,$C$42) -> 68.78649165 | AP95: 2751.459666 | AQ95: =[1]!srE2LETt($C$23,AO95,0) -> 2.587023725 | AR95: =[1]!srE2Rng($C$23,AO95) -> 2682.510626 | AS95: =[1]!srEnew($C$23,AO95,$C$43) -> 68.47672852 | AT95: 2739.069141 | AU95: =[1]!srE2LETt($C$23,AS95,0) -> 2.596424184 | AV95: =[1]!srE2Rng($C$23,AS95) -> 2662.510626
F96: 1 | G96: 0 | H96: 0 | I96: 4 | J96: 5 | K96: 0 | L96: 0 | M96: 0 | N96: 0 | O96: A | P96: 0 | Q96: 0 | R96: =[2]!e5aEDthkI(ThEDtbl,F96:Q96) -> 164.51 | S96: 2.32 | T96: =[2]!e5aEDflgI2S(F96:Q96) -> 100450000A000 | U96: 3165.49 | AC96: =[1]!srRng2E($C$12,U96) -> 81.47514535 | AD96: =[1]!srEnewGas($C$13,AC96,$C$57,$C$61*100,$C$60) -> 79.9725702 | AE96: 3198.902808 | AF96: =[1]!srE2LETt($C$11,AD96,0) -> 2.311675515 | AH96: =[1]!srEnew($C$19,$AD96,$C$38) -> 73.32234931 | AI96: =[1]!srEnew($C$20,AH96,$C$39) -> 70.27356882 | AJ96: =[1]!srEnew($C$21,AI96,$C$40) -> 70.27356882 | AK96: =[1]!srEnew($C$23,AJ96,$C$41) -> 68.82008045 | AL96: 2752.803218 | AM96: =[1]!srE2LETt($C$23,AK96,0) -> 2.586141955 | AN96: =[1]!srE2Rng($C$23,AK96) -> 2684.821535 | AO96: =[1]!srEnew($C$23,AK96,$C$42) -> 68.74721148 | AP96: 2749.888459 | AQ96: =[1]!srE2LETt($C$23,AO96,0) -> 2.588067849 | AR96: =[1]!srE2Rng($C$23,AO96) -> 2679.821535 | AS96: =[1]!srEnew($C$23,AO96,$C$43) -> 68.43471148 | AT96: 2737.388459 | AU96: =[1]!srE2LETt($C$23,AS96,0) -> 2.597722264 | AV96: =[1]!srE2Rng($C$23,AS96) -> 2659.821535
B97: ssd | C97: ref)params | F97: 1 | G97: 0 | H97: 0 | I97: 4 | J97: 0 | K97: 6 | L97: 0 | M97: 0 | N97: 0 | O97: A | P97: 0 | Q97: 0 | R97: =[2]!e5aEDthkI(ThEDtbl,F97:Q97) -> 165.07 | S97: 0.56 | T97: =[2]!e5aEDflgI2S(F97:Q97) -> 100406000A000 | U97: 3164.93 | AC97: =[1]!srRng2E($C$12,U97) -> 81.46700581 | AD97: =[1]!srEnewGas($C$13,AC97,$C$57,$C$61*100,$C$60) -> 79.96392194 | AE97: 3198.556878 | AF97: =[1]!srE2LETt($C$11,AD97,0) -> 2.311870708 | AH97: =[1]!srEnew($C$19,$AD97,$C$38) -> 73.31291484 | AI97: =[1]!srEnew($C$20,AH97,$C$39) -> 70.26413436 | AJ97: =[1]!srEnew($C$21,AI97,$C$40) -> 70.26413436 | AK97: =[1]!srEnew($C$23,AJ97,$C$41) -> 68.81064598 | AL97: 2752.425839 | AM97: =[1]!srE2LETt($C$23,AK97,0) -> 2.586389627 | AN97: =[1]!srE2Rng($C$23,AK97) -> 2684.172444 | AO97: =[1]!srEnew($C$23,AK97,$C$42) -> 68.73706943 | AP97: 2749.482777 | AQ97: =[1]!srE2LETt($C$23,AO97,0) -> 2.588381179 | AR97: =[1]!srE2Rng($C$23,AO97) -> 2679.172444 | AS97: =[1]!srEnew($C$23,AO97,$C$43) -> 68.42456943 | AT97: 2736.982777 | AU97: =[1]!srE2LETt($C$23,AS97,0) -> 2.598035594 | AV97: =[1]!srE2Rng($C$23,AS97) -> 2659.172444
B98: B1,B2 | C98: μm | F98: 0 | G98: 2 | H98: 0 | I98: 4 | J98: 5 | K98: 0 | L98: 0 | M98: 0 | N98: 0 | O98: A | P98: 0 | Q98: 0 | R98: =[2]!e5aEDthkI(ThEDtbl,F98:Q98) -> 167.11 | S98: 2.04 | T98: =[2]!e5aEDflgI2S(F98:Q98) -> 020450000A000 | U98: 3162.89 | AC98: =[1]!srRng2E($C$12,U98) -> 81.43735465 | AD98: =[1]!srEnewGas($C$13,AC98,$C$57,$C$61*100,$C$60) -> 79.93241758 | AE98: 3197.296703 | AF98: =[1]!srE2LETt($C$11,AD98,0) -> 2.312581767 | AH98: =[1]!srEnew($C$19,$AD98,$C$38) -> 73.27854645 | AI98: =[1]!srEnew($C$20,AH98,$C$39) -> 70.22976596 | AJ98: =[1]!srEnew($C$21,AI98,$C$40) -> 70.22976596 | AK98: =[1]!srEnew($C$23,AJ98,$C$41) -> 68.77627759 | AL98: 2751.051104 | AM98: =[1]!srE2LETt($C$23,AK98,0) -> 2.587291863 | AN98: =[1]!srE2Rng($C$23,AK98) -> 2681.807898 | AO98: =[1]!srEnew($C$23,AK98,$C$42) -> 68.70012341 | AP98: 2748.004936 | AQ98: =[1]!srE2LETt($C$23,AO98,0) -> 2.589522594 | AR98: =[1]!srE2Rng($C$23,AO98) -> 2676.807898 | AS98: =[1]!srEnew($C$23,AO98,$C$43) -> 68.38762341 | AT98: 2735.504936 | AU98: =[1]!srE2LETt($C$23,AS98,0) -> 2.599177009 | AV98: =[1]!srE2Rng($C$23,AS98) -> 2656.807898
B99: 遮光Al | C99: =ssdB_Al -> 4.72 | F99: 0 | G99: 2 | H99: 0 | I99: 4 | J99: 0 | K99: 6 | L99: 0 | M99: 0 | N99: 0 | O99: A | P99: 0 | Q99: 0 | R99: =[2]!e5aEDthkI(ThEDtbl,F99:Q99) -> 167.67 | S99: 0.56 | T99: =[2]!e5aEDflgI2S(F99:Q99) -> 020406000A000 | U99: 3162.33 | AC99: =[1]!srRng2E($C$12,U99) -> 81.42921512 | AD99: =[1]!srEnewGas($C$13,AC99,$C$57,$C$61*100,$C$60) -> 79.92376932 | AE99: 3196.950773 | AF99: =[1]!srE2LETt($C$11,AD99,0) -> 2.31277696 | AH99: =[1]!srEnew($C$19,$AD99,$C$38) -> 73.26911199 | AI99: =[1]!srEnew($C$20,AH99,$C$39) -> 70.2203315 | AJ99: =[1]!srEnew($C$21,AI99,$C$40) -> 70.2203315 | AK99: =[1]!srEnew($C$23,AJ99,$C$41) -> 68.76684313 | AL99: 2750.673725 | AM99: =[1]!srE2LETt($C$23,AK99,0) -> 2.587539536 | AN99: =[1]!srE2Rng($C$23,AK99) -> 2681.158807 | AO99: =[1]!srEnew($C$23,AK99,$C$42) -> 68.68998137 | AP99: 2747.599255 | AQ99: =[1]!srE2LETt($C$23,AO99,0) -> 2.589835923 | AR99: =[1]!srE2Rng($C$23,AO99) -> 2676.158807 | AS99: =[1]!srEnew($C$23,AO99,$C$43) -> 68.37748137 | AT99: 2735.099255 | AU99: =[1]!srE2LETt($C$23,AS99,0) -> 2.599490338 | AV99: =[1]!srE2Rng($C$23,AS99) -> 2656.158807
B100: dead11 | C100: =ssdB1_d1 -> 0 | F100: 1 | G100: 2 | H100: 0 | I100: 4 | J100: 5 | K100: 0 | L100: 0 | M100: 0 | N100: 0 | O100: 0 | P100: 0 | Q100: 0 | R100: =[2]!e5aEDthkI(ThEDtbl,F100:Q100) -> 171.83 | S100: 4.16 | T100: =[2]!e5aEDflgI2S(F100:Q100) -> 1204500000000 | U100: 3158.17 | AC100: =[1]!srRng2E($C$12,U100) -> 81.36875 | AD100: =[1]!srEnewGas($C$13,AC100,$C$57,$C$61*100,$C$60) -> 79.85952514 | AE100: 3194.381006 | AF100: =[1]!srE2LETt($C$11,AD100,0) -> 2.314226962 | AH100: =[1]!srEnew($C$19,$AD100,$C$38) -> 73.19902742 | AI100: =[1]!srEnew($C$20,AH100,$C$39) -> 70.15024694 | AJ100: =[1]!srEnew($C$21,AI100,$C$40) -> 70.15024694 | AK100: =[1]!srEnew($C$23,AJ100,$C$41) -> 68.69276546 | AL100: 2747.710618 | AM100: =[1]!srE2LETt($C$23,AK100,0) -> 2.589749911 | AN100: =[1]!srE2Rng($C$23,AK100) -> 2676.336989 | AO100: =[1]!srEnew($C$23,AK100,$C$42) -> 68.61464046 | AP100: 2744.585618 | AQ100: =[1]!srE2LETt($C$23,AO100,0) -> 2.592163515 | AR100: =[1]!srE2Rng($C$23,AO100) -> 2671.336989 | AS100: =[1]!srEnew($C$23,AO100,$C$43) -> 68.30214046 | AT100: 2732.085618 | AU100: =[1]!srE2LETt($C$23,AS100,0) -> 2.60181793 | AV100: =[1]!srE2Rng($C$23,AS100) -> 2651.336989
B101: 空乏層 | C101: =ssdB1_Th -> 2050 | F101: 1 | G101: 2 | H101: 0 | I101: 4 | J101: 0 | K101: 6 | L101: 0 | M101: 0 | N101: 0 | O101: 0 | P101: 0 | Q101: 0 | R101: =[2]!e5aEDthkI(ThEDtbl,F101:Q101) -> 172.39 | S101: 0.56 | T101: =[2]!e5aEDflgI2S(F101:Q101) -> 1204060000000 | U101: 3157.61 | AC101: =[1]!srRng2E($C$12,U101) -> 81.36061047 | AD101: =[1]!srEnewGas($C$13,AC101,$C$57,$C$61*100,$C$60) -> 79.85087688 | AE101: 3194.035075 | AF101: =[1]!srE2LETt($C$11,AD101,0) -> 2.314422155 | AH101: =[1]!srEnew($C$19,$AD101,$C$38) -> 73.18959296 | AI101: =[1]!srEnew($C$20,AH101,$C$39) -> 70.14081247 | AJ101: =[1]!srEnew($C$21,AI101,$C$40) -> 70.14081247 | AK101: =[1]!srEnew($C$23,AJ101,$C$41) -> 68.68262341 | AL101: 2747.304936 | AM101: =[1]!srE2LETt($C$23,AK101,0) -> 2.590063241 | AN101: =[1]!srE2Rng($C$23,AK101) -> 2675.687898 | AO101: =[1]!srEnew($C$23,AK101,$C$42) -> 68.60449841 | AP101: 2744.179936 | AQ101: =[1]!srE2LETt($C$23,AO101,0) -> 2.592476845 | AR101: =[1]!srE2Rng($C$23,AO101) -> 2670.687898 | AS101: =[1]!srEnew($C$23,AO101,$C$43) -> 68.29199841 | AT101: 2731.679936 | AU101: =[1]!srE2LETt($C$23,AS101,0) -> 2.60213126 | AV101: =[1]!srE2Rng($C$23,AS101) -> 2650.687898
B102: dead12 | C102: =ssdB1_d2 -> 0 | F102: 0 | G102: 0 | H102: 3 | I102: 4 | J102: 5 | K102: 0 | L102: 0 | M102: 0 | N102: 0 | O102: 0 | P102: 0 | Q102: 0 | R102: =[2]!e5aEDthkI(ThEDtbl,F102:Q102) -> 172.63 | S102: 0.24 | T102: =[2]!e5aEDflgI2S(F102:Q102) -> 0034500000000 | U102: 3157.37 | AC102: =[1]!srRng2E($C$12,U102) -> 81.35712209 | AD102: =[1]!srEnewGas($C$13,AC102,$C$57,$C$61*100,$C$60) -> 79.84717049 | AE102: 3193.886819 | AF102: =[1]!srE2LETt($C$11,AD102,0) -> 2.314505809 | AH102: =[1]!srEnew($C$19,$AD102,$C$38) -> 73.18554962 | AI102: =[1]!srEnew($C$20,AH102,$C$39) -> 70.13676913 | AJ102: =[1]!srEnew($C$21,AI102,$C$40) -> 70.13676913 | AK102: =[1]!srEnew($C$23,AJ102,$C$41) -> 68.67827682 | AL102: 2747.131073 | AM102: =[1]!srE2LETt($C$23,AK102,0) -> 2.590197525 | AN102: =[1]!srE2Rng($C$23,AK102) -> 2675.409716 | AO102: =[1]!srEnew($C$23,AK102,$C$42) -> 68.60015182 | AP102: 2744.006073 | AQ102: =[1]!srE2LETt($C$23,AO102,0) -> 2.592611129 | AR102: =[1]!srE2Rng($C$23,AO102) -> 2670.409716 | AS102: =[1]!srEnew($C$23,AO102,$C$43) -> 68.28765182 | AT102: 2731.506073 | AU102: =[1]!srE2LETt($C$23,AS102,0) -> 2.602265544 | AV102: =[1]!srE2Rng($C$23,AS102) -> 2650.409716
B103: dead21 | C103: =ssdB2_d1 -> 40 | F103: 0 | G103: 0 | H103: 3 | I103: 4 | J103: 0 | K103: 6 | L103: 0 | M103: 0 | N103: 0 | O103: 0 | P103: 0 | Q103: 0 | R103: =[2]!e5aEDthkI(ThEDtbl,F103:Q103) -> 173.19 | S103: 0.56 | T103: =[2]!e5aEDflgI2S(F103:Q103) -> 0034060000000 | U103: 3156.81 | AC103: =[1]!srRng2E($C$12,U103) -> 81.34898256 | AD103: =[1]!srEnewGas($C$13,AC103,$C$57,$C$61*100,$C$60) -> 79.83852223 | AE103: 3193.540889 | AF103: =[1]!srE2LETt($C$11,AD103,0) -> 2.314701002 | AH103: =[1]!srEnew($C$19,$AD103,$C$38) -> 73.17611516 | AI103: =[1]!srEnew($C$20,AH103,$C$39) -> 70.12733467 | AJ103: =[1]!srEnew($C$21,AI103,$C$40) -> 70.12733467 | AK103: =[1]!srEnew($C$23,AJ103,$C$41) -> 68.66813477 | AL103: 2746.725391 | AM103: =[1]!srE2LETt($C$23,AK103,0) -> 2.590510855 | AN103: =[1]!srE2Rng($C$23,AK103) -> 2674.760626 | AO103: =[1]!srEnew($C$23,AK103,$C$42) -> 68.59000977 | AP103: 2743.600391 | AQ103: =[1]!srE2LETt($C$23,AO103,0) -> 2.592924459 | AR103: =[1]!srE2Rng($C$23,AO103) -> 2669.760626 | AS103: =[1]!srEnew($C$23,AO103,$C$43) -> 68.27750977 | AT103: 2731.100391 | AU103: =[1]!srE2LETt($C$23,AS103,0) -> 2.602578874 | AV103: =[1]!srE2Rng($C$23,AS103) -> 2649.760626
B104: 空乏層 | C104: =ssdB2_Th -> 2000 | F104: 1 | G104: 2 | H104: 0 | I104: 4 | J104: 5 | K104: 0 | L104: 0 | M104: 0 | N104: 0 | O104: A | P104: 0 | Q104: 0 | R104: =[2]!e5aEDthkI(ThEDtbl,F104:Q104) -> 177.31 | S104: 4.12 | T104: =[2]!e5aEDflgI2S(F104:Q104) -> 120450000A000 | U104: 3152.69 | AC104: =[1]!srRng2E($C$12,U104) -> 81.28909884 | AD104: =[1]!srEnewGas($C$13,AC104,$C$57,$C$61*100,$C$60) -> 79.77489578 | AE104: 3190.995831 | AF104: =[1]!srE2LETt($C$11,AD104,0) -> 2.316137062 | AH104: =[1]!srEnew($C$19,$AD104,$C$38) -> 73.10670448 | AI104: =[1]!srEnew($C$20,AH104,$C$39) -> 70.057924 | AJ104: =[1]!srEnew($C$21,AI104,$C$40) -> 70.057924 | AK104: =[1]!srEnew($C$23,AJ104,$C$41) -> 68.5935183 | AL104: 2743.740732 | AM104: =[1]!srE2LETt($C$23,AK104,0) -> 2.592816066 | AN104: =[1]!srE2Rng($C$23,AK104) -> 2669.985171 | AO104: =[1]!srEnew($C$23,AK104,$C$42) -> 68.5153933 | AP104: 2740.615732 | AQ104: =[1]!srE2LETt($C$23,AO104,0) -> 2.59522967 | AR104: =[1]!srE2Rng($C$23,AO104) -> 2664.985171 | AS104: =[1]!srEnew($C$23,AO104,$C$43) -> 68.2028933 | AT104: 2728.115732 | AU104: =[1]!srE2LETt($C$23,AS104,0) -> 2.604884085 | AV104: =[1]!srE2Rng($C$23,AS104) -> 2644.985171
B105: dead22 | C105: =ssdB2_d2 -> 0 | F105: 1 | G105: 2 | H105: 0 | I105: 4 | J105: 0 | K105: 6 | L105: 0 | M105: 0 | N105: 0 | O105: A | P105: 0 | Q105: 0 | R105: =[2]!e5aEDthkI(ThEDtbl,F105:Q105) -> 177.87 | S105: 0.56 | T105: =[2]!e5aEDflgI2S(F105:Q105) -> 120406000A000 | U105: 3152.13 | AC105: =[1]!srRng2E($C$12,U105) -> 81.2809593 | AD105: =[1]!srEnewGas($C$13,AC105,$C$57,$C$61*100,$C$60) -> 79.76624752 | AE105: 3190.649901 | AF105: =[1]!srE2LETt($C$11,AD105,0) -> 2.316332255 | AH105: =[1]!srEnew($C$19,$AD105,$C$38) -> 73.09727002 | AI105: =[1]!srEnew($C$20,AH105,$C$39) -> 70.04848954 | AJ105: =[1]!srEnew($C$21,AI105,$C$40) -> 70.04848954 | AK105: =[1]!srEnew($C$23,AJ105,$C$41) -> 68.58337625 | AL105: 2743.33505 | AM105: =[1]!srE2LETt($C$23,AK105,0) -> 2.593129395 | AN105: =[1]!srE2Rng($C$23,AK105) -> 2669.33608 | AO105: =[1]!srEnew($C$23,AK105,$C$42) -> 68.50525125 | AP105: 2740.21005 | AQ105: =[1]!srE2LETt($C$23,AO105,0) -> 2.595542999 | AR105: =[1]!srE2Rng($C$23,AO105) -> 2664.33608 | AS105: =[1]!srEnew($C$23,AO105,$C$43) -> 68.19275125 | AT105: 2727.71005 | AU105: =[1]!srE2LETt($C$23,AS105,0) -> 2.605197414 | AV105: =[1]!srE2Rng($C$23,AS105) -> 2644.33608
F106: 0 | G106: 0 | H106: 3 | I106: 4 | J106: 5 | K106: 0 | L106: 0 | M106: 0 | N106: 0 | O106: A | P106: 0 | Q106: 0 | R106: =[2]!e5aEDthkI(ThEDtbl,F106:Q106) -> 178.11 | S106: 0.24 | T106: =[2]!e5aEDflgI2S(F106:Q106) -> 003450000A000 | U106: 3151.89 | AC106: =[1]!srRng2E($C$12,U106) -> 81.27747093 | AD106: =[1]!srEnewGas($C$13,AC106,$C$57,$C$61*100,$C$60) -> 79.76254113 | AE106: 3190.501645 | AF106: =[1]!srE2LETt($C$11,AD106,0) -> 2.316415909 | AH106: =[1]!srEnew($C$19,$AD106,$C$38) -> 73.09322668 | AI106: =[1]!srEnew($C$20,AH106,$C$39) -> 70.0444462 | AJ106: =[1]!srEnew($C$21,AI106,$C$40) -> 70.0444462 | AK106: =[1]!srEnew($C$23,AJ106,$C$41) -> 68.57902966 | AL106: 2743.161186 | AM106: =[1]!srE2LETt($C$23,AK106,0) -> 2.59326368 | AN106: =[1]!srE2Rng($C$23,AK106) -> 2669.057898 | AO106: =[1]!srEnew($C$23,AK106,$C$42) -> 68.50090466 | AP106: 2740.036186 | AQ106: =[1]!srE2LETt($C$23,AO106,0) -> 2.595677283 | AR106: =[1]!srE2Rng($C$23,AO106) -> 2664.057898 | AS106: =[1]!srEnew($C$23,AO106,$C$43) -> 68.18840466 | AT106: 2727.536186 | AU106: =[1]!srE2LETt($C$23,AS106,0) -> 2.605331698 | AV106: =[1]!srE2Rng($C$23,AS106) -> 2644.057898
F107: 0 | G107: 0 | H107: 3 | I107: 4 | J107: 0 | K107: 6 | L107: 0 | M107: 0 | N107: 0 | O107: A | P107: 0 | Q107: 0 | R107: =[2]!e5aEDthkI(ThEDtbl,F107:Q107) -> 178.67 | S107: 0.56 | T107: =[2]!e5aEDflgI2S(F107:Q107) -> 003406000A000 | U107: 3151.33 | AC107: =[1]!srRng2E($C$12,U107) -> 81.2693314 | AD107: =[1]!srEnewGas($C$13,AC107,$C$57,$C$61*100,$C$60) -> 79.75389287 | AE107: 3190.155715 | AF107: =[1]!srE2LETt($C$11,AD107,0) -> 2.316611101 | AH107: =[1]!srEnew($C$19,$AD107,$C$38) -> 73.08379222 | AI107: =[1]!srEnew($C$20,AH107,$C$39) -> 70.03501173 | AJ107: =[1]!srEnew($C$21,AI107,$C$40) -> 70.03501173 | AK107: =[1]!srEnew($C$23,AJ107,$C$41) -> 68.56888762 | AL107: 2742.755505 | AM107: =[1]!srE2LETt($C$23,AK107,0) -> 2.593577009 | AN107: =[1]!srE2Rng($C$23,AK107) -> 2668.408807 | AO107: =[1]!srEnew($C$23,AK107,$C$42) -> 68.49076262 | AP107: 2739.630505 | AQ107: =[1]!srE2LETt($C$23,AO107,0) -> 2.595990613 | AR107: =[1]!srE2Rng($C$23,AO107) -> 2663.408807 | AS107: =[1]!srEnew($C$23,AO107,$C$43) -> 68.17826262 | AT107: 2727.130505 | AU107: =[1]!srE2LETt($C$23,AS107,0) -> 2.605645028 | AV107: =[1]!srE2Rng($C$23,AS107) -> 2643.408807
F108: 1 | G108: 0 | H108: 3 | I108: 4 | J108: 5 | K108: 0 | L108: 0 | M108: 0 | N108: 0 | O108: 0 | P108: 0 | Q108: 0 | R108: =[2]!e5aEDthkI(ThEDtbl,F108:Q108) -> 182.83 | S108: 4.16 | T108: =[2]!e5aEDflgI2S(F108:Q108) -> 1034500000000 | U108: 3147.17 | AC108: =[1]!srRng2E($C$12,U108) -> 81.20578125 | AD108: =[1]!srEnewGas($C$13,AC108,$C$57,$C$61*100,$C$60) -> 79.68913451 | AE108: 3187.565381 | AF108: =[1]!srE2LETt($C$11,AD108,0) -> 2.318072709 | AH108: =[1]!srEnew($C$19,$AD108,$C$38) -> 73.01314674 | AI108: =[1]!srEnew($C$20,AH108,$C$39) -> 69.96436625 | AJ108: =[1]!srEnew($C$21,AI108,$C$40) -> 69.96436625 | AK108: =[1]!srEnew($C$23,AJ108,$C$41) -> 68.49294372 | AL108: 2739.717749 | AM108: =[1]!srE2LETt($C$23,AK108,0) -> 2.59592323 | AN108: =[1]!srE2Rng($C$23,AK108) -> 2663.548398 | AO108: =[1]!srEnew($C$23,AK108,$C$42) -> 68.41481872 | AP108: 2736.592749 | AQ108: =[1]!srE2LETt($C$23,AO108,0) -> 2.598336833 | AR108: =[1]!srE2Rng($C$23,AO108) -> 2658.548398 | AS108: =[1]!srEnew($C$23,AO108,$C$43) -> 68.10231872 | AT108: 2724.092749 | AU108: =[1]!srE2LETt($C$23,AS108,0) -> 2.607991248 | AV108: =[1]!srE2Rng($C$23,AS108) -> 2638.548398
F109: 1 | G109: 0 | H109: 3 | I109: 4 | J109: 0 | K109: 6 | L109: 0 | M109: 0 | N109: 0 | O109: 0 | P109: 0 | Q109: 0 | R109: =[2]!e5aEDthkI(ThEDtbl,F109:Q109) -> 183.39 | S109: 0.56 | T109: =[2]!e5aEDflgI2S(F109:Q109) -> 1034060000000 | U109: 3146.61 | AC109: =[1]!srRng2E($C$12,U109) -> 81.19703125 | AD109: =[1]!srEnewGas($C$13,AC109,$C$57,$C$61*100,$C$60) -> 79.68038451 | AE109: 3187.215381 | AF109: =[1]!srE2LETt($C$11,AD109,0) -> 2.318270198 | AH109: =[1]!srEnew($C$19,$AD109,$C$38) -> 73.00360129 | AI109: =[1]!srEnew($C$20,AH109,$C$39) -> 69.9548208 | AJ109: =[1]!srEnew($C$21,AI109,$C$40) -> 69.9548208 | AK109: =[1]!srEnew($C$23,AJ109,$C$41) -> 68.48268236 | AL109: 2739.307294 | AM109: =[1]!srE2LETt($C$23,AK109,0) -> 2.596240245 | AN109: =[1]!srE2Rng($C$23,AK109) -> 2662.891671 | AO109: =[1]!srEnew($C$23,AK109,$C$42) -> 68.40455736 | AP109: 2736.182294 | AQ109: =[1]!srE2LETt($C$23,AO109,0) -> 2.598653849 | AR109: =[1]!srE2Rng($C$23,AO109) -> 2657.891671 | AS109: =[1]!srEnew($C$23,AO109,$C$43) -> 68.09205736 | AT109: 2723.682294 | AU109: =[1]!srE2LETt($C$23,AS109,0) -> 2.608308264 | AV109: =[1]!srE2Rng($C$23,AS109) -> 2637.891671
F110: 0 | G110: 2 | H110: 3 | I110: 4 | J110: 5 | K110: 0 | L110: 0 | M110: 0 | N110: 0 | O110: 0 | P110: 0 | Q110: 0 | R110: =[2]!e5aEDthkI(ThEDtbl,F110:Q110) -> 185.43 | S110: 2.04 | T110: =[2]!e5aEDflgI2S(F110:Q110) -> 0234500000000 | U110: 3144.57 | AC110: =[1]!srRng2E($C$12,U110) -> 81.16515625 | AD110: =[1]!srEnewGas($C$13,AC110,$C$57,$C$61*100,$C$60) -> 79.64850951 | AE110: 3185.940381 | AF110: =[1]!srE2LETt($C$11,AD110,0) -> 2.318989622 | AH110: =[1]!srEnew($C$19,$AD110,$C$38) -> 72.96882856 | AI110: =[1]!srEnew($C$20,AH110,$C$39) -> 69.92004807 | AJ110: =[1]!srEnew($C$21,AI110,$C$40) -> 69.92004807 | AK110: =[1]!srEnew($C$23,AJ110,$C$41) -> 68.44530168 | AL110: 2737.812067 | AM110: =[1]!srE2LETt($C$23,AK110,0) -> 2.597395089 | AN110: =[1]!srE2Rng($C$23,AK110) -> 2660.499307 | AO110: =[1]!srEnew($C$23,AK110,$C$42) -> 68.36717668 | AP110: 2734.687067 | AQ110: =[1]!srE2LETt($C$23,AO110,0) -> 2.599808693 | AR110: =[1]!srE2Rng($C$23,AO110) -> 2655.499307 | AS110: =[1]!srEnew($C$23,AO110,$C$43) -> 68.05467668 | AT110: 2722.187067 | AU110: =[1]!srE2LETt($C$23,AS110,0) -> 2.609463108 | AV110: =[1]!srE2Rng($C$23,AS110) -> 2635.499307
F111: 0 | G111: 2 | H111: 3 | I111: 4 | J111: 0 | K111: 6 | L111: 0 | M111: 0 | N111: 0 | O111: 0 | P111: 0 | Q111: 0 | R111: =[2]!e5aEDthkI(ThEDtbl,F111:Q111) -> 185.99 | S111: 0.56 | T111: =[2]!e5aEDflgI2S(F111:Q111) -> 0234060000000 | U111: 3144.01 | AC111: =[1]!srRng2E($C$12,U111) -> 81.15640625 | AD111: =[1]!srEnewGas($C$13,AC111,$C$57,$C$61*100,$C$60) -> 79.63975951 | AE111: 3185.590381 | AF111: =[1]!srE2LETt($C$11,AD111,0) -> 2.319187111 | AH111: =[1]!srEnew($C$19,$AD111,$C$38) -> 72.95928311 | AI111: =[1]!srEnew($C$20,AH111,$C$39) -> 69.91050262 | AJ111: =[1]!srEnew($C$21,AI111,$C$40) -> 69.91050262 | AK111: =[1]!srEnew($C$23,AJ111,$C$41) -> 68.43504031 | AL111: 2737.401613 | AM111: =[1]!srE2LETt($C$23,AK111,0) -> 2.597712105 | AN111: =[1]!srE2Rng($C$23,AK111) -> 2659.84258 | AO111: =[1]!srEnew($C$23,AK111,$C$42) -> 68.35691531 | AP111: 2734.276613 | AQ111: =[1]!srE2LETt($C$23,AO111,0) -> 2.600125709 | AR111: =[1]!srE2Rng($C$23,AO111) -> 2654.84258 | AS111: =[1]!srEnew($C$23,AO111,$C$43) -> 68.04441531 | AT111: 2721.776613 | AU111: =[1]!srE2LETt($C$23,AS111,0) -> 2.609780124 | AV111: =[1]!srE2Rng($C$23,AS111) -> 2634.84258
F112: 1 | G112: 0 | H112: 3 | I112: 4 | J112: 5 | K112: 0 | L112: 0 | M112: 0 | N112: 0 | O112: A | P112: 0 | Q112: 0 | R112: =[2]!e5aEDthkI(ThEDtbl,F112:Q112) -> 188.31 | S112: 2.32 | T112: =[2]!e5aEDflgI2S(F112:Q112) -> 103450000A000 | U112: 3141.69 | AC112: =[1]!srRng2E($C$12,U112) -> 81.12015625 | AD112: =[1]!srEnewGas($C$13,AC112,$C$57,$C$61*100,$C$60) -> 79.60350951 | AE112: 3184.140381 | AF112: =[1]!srE2LETt($C$11,AD112,0) -> 2.32000528 | AH112: =[1]!srEnew($C$19,$AD112,$C$38) -> 72.91973765 | AI112: =[1]!srEnew($C$20,AH112,$C$39) -> 69.87095716 | AJ112: =[1]!srEnew($C$21,AI112,$C$40) -> 69.87095716 | AK112: =[1]!srEnew($C$23,AJ112,$C$41) -> 68.39252895 | AL112: 2735.701158 | AM112: =[1]!srE2LETt($C$23,AK112,0) -> 2.599025456 | AN112: =[1]!srE2Rng($C$23,AK112) -> 2657.121853 | AO112: =[1]!srEnew($C$23,AK112,$C$42) -> 68.31440395 | AP112: 2732.576158 | AQ112: =[1]!srE2LETt($C$23,AO112,0) -> 2.60143906 | AR112: =[1]!srE2Rng($C$23,AO112) -> 2652.121853 | AS112: =[1]!srEnew($C$23,AO112,$C$43) -> 68.00190395 | AT112: 2720.076158 | AU112: =[1]!srE2LETt($C$23,AS112,0) -> 2.611093475 | AV112: =[1]!srE2Rng($C$23,AS112) -> 2632.121853
F113: 1 | G113: 0 | H113: 3 | I113: 4 | J113: 0 | K113: 6 | L113: 0 | M113: 0 | N113: 0 | O113: A | P113: 0 | Q113: 0 | R113: =[2]!e5aEDthkI(ThEDtbl,F113:Q113) -> 188.87 | S113: 0.56 | T113: =[2]!e5aEDflgI2S(F113:Q113) -> 103406000A000 | U113: 3141.13 | AC113: =[1]!srRng2E($C$12,U113) -> 81.11140625 | AD113: =[1]!srEnewGas($C$13,AC113,$C$57,$C$61*100,$C$60) -> 79.59475951 | AE113: 3183.790381 | AF113: =[1]!srE2LETt($C$11,AD113,0) -> 2.320202769 | AH113: =[1]!srEnew($C$19,$AD113,$C$38) -> 72.9101922 | AI113: =[1]!srEnew($C$20,AH113,$C$39) -> 69.86141171 | AJ113: =[1]!srEnew($C$21,AI113,$C$40) -> 69.86141171 | AK113: =[1]!srEnew($C$23,AJ113,$C$41) -> 68.38226759 | AL113: 2735.290703 | AM113: =[1]!srE2LETt($C$23,AK113,0) -> 2.599342472 | AN113: =[1]!srE2Rng($C$23,AK113) -> 2656.465126 | AO113: =[1]!srEnew($C$23,AK113,$C$42) -> 68.30414259 | AP113: 2732.165703 | AQ113: =[1]!srE2LETt($C$23,AO113,0) -> 2.601756076 | AR113: =[1]!srE2Rng($C$23,AO113) -> 2651.465126 | AS113: =[1]!srEnew($C$23,AO113,$C$43) -> 67.99164259 | AT113: 2719.665703 | AU113: =[1]!srE2LETt($C$23,AS113,0) -> 2.611410491 | AV113: =[1]!srE2Rng($C$23,AS113) -> 2631.465126
F114: 0 | G114: 2 | H114: 3 | I114: 4 | J114: 5 | K114: 0 | L114: 0 | M114: 0 | N114: 0 | O114: A | P114: 0 | Q114: 0 | R114: =[2]!e5aEDthkI(ThEDtbl,F114:Q114) -> 190.91 | S114: 2.04 | T114: =[2]!e5aEDflgI2S(F114:Q114) -> 023450000A000 | U114: 3139.09 | AC114: =[1]!srRng2E($C$12,U114) -> 81.07953125 | AD114: =[1]!srEnewGas($C$13,AC114,$C$57,$C$61*100,$C$60) -> 79.56288451 | AE114: 3182.515381 | AF114: =[1]!srE2LETt($C$11,AD114,0) -> 2.320922193 | AH114: =[1]!srEnew($C$19,$AD114,$C$38) -> 72.87541947 | AI114: =[1]!srEnew($C$20,AH114,$C$39) -> 69.82663898 | AJ114: =[1]!srEnew($C$21,AI114,$C$40) -> 69.82663898 | AK114: =[1]!srEnew($C$23,AJ114,$C$41) -> 68.3448869 | AL114: 2733.795476 | AM114: =[1]!srE2LETt($C$23,AK114,0) -> 2.600497316 | AN114: =[1]!srE2Rng($C$23,AK114) -> 2654.072762 | AO114: =[1]!srEnew($C$23,AK114,$C$42) -> 68.2667619 | AP114: 2730.670476 | AQ114: =[1]!srE2LETt($C$23,AO114,0) -> 2.60291092 | AR114: =[1]!srE2Rng($C$23,AO114) -> 2649.072762 | AS114: =[1]!srEnew($C$23,AO114,$C$43) -> 67.9542619 | AT114: 2718.170476 | AU114: =[1]!srE2LETt($C$23,AS114,0) -> 2.612565335 | AV114: =[1]!srE2Rng($C$23,AS114) -> 2629.072762
F115: 0 | G115: 2 | H115: 3 | I115: 4 | J115: 0 | K115: 6 | L115: 0 | M115: 0 | N115: 0 | O115: A | P115: 0 | Q115: 0 | R115: =[2]!e5aEDthkI(ThEDtbl,F115:Q115) -> 191.47 | S115: 0.56 | T115: =[2]!e5aEDflgI2S(F115:Q115) -> 023406000A000 | U115: 3138.53 | AC115: =[1]!srRng2E($C$12,U115) -> 81.07078125 | AD115: =[1]!srEnewGas($C$13,AC115,$C$57,$C$61*100,$C$60) -> 79.55413451 | AE115: 3182.165381 | AF115: =[1]!srE2LETt($C$11,AD115,0) -> 2.321119683 | AH115: =[1]!srEnew($C$19,$AD115,$C$38) -> 72.86587401 | AI115: =[1]!srEnew($C$20,AH115,$C$39) -> 69.81709353 | AJ115: =[1]!srEnew($C$21,AI115,$C$40) -> 69.81709353 | AK115: =[1]!srEnew($C$23,AJ115,$C$41) -> 68.33462554 | AL115: 2733.385022 | AM115: =[1]!srE2LETt($C$23,AK115,0) -> 2.600814332 | AN115: =[1]!srE2Rng($C$23,AK115) -> 2653.416035 | AO115: =[1]!srEnew($C$23,AK115,$C$42) -> 68.25650054 | AP115: 2730.260022 | AQ115: =[1]!srE2LETt($C$23,AO115,0) -> 2.603227935 | AR115: =[1]!srE2Rng($C$23,AO115) -> 2648.416035 | AS115: =[1]!srEnew($C$23,AO115,$C$43) -> 67.94400054 | AT115: 2717.760022 | AU115: =[1]!srE2LETt($C$23,AS115,0) -> 2.61288235 | AV115: =[1]!srE2Rng($C$23,AS115) -> 2628.416035
F116: 1 | G116: 2 | H116: 3 | I116: 4 | J116: 5 | K116: 0 | L116: 0 | M116: 0 | N116: 0 | O116: 0 | P116: 0 | Q116: 0 | R116: =[2]!e5aEDthkI(ThEDtbl,F116:Q116) -> 195.63 | S116: 4.16 | T116: =[2]!e5aEDflgI2S(F116:Q116) -> 1234500000000 | U116: 3134.37 | AC116: =[1]!srRng2E($C$12,U116) -> 81.00578125 | AD116: =[1]!srEnewGas($C$13,AC116,$C$57,$C$61*100,$C$60) -> 79.48913451 | AE116: 3179.565381 | AF116: =[1]!srE2LETt($C$11,AD116,0) -> 2.322586744 | AH116: =[1]!srEnew($C$19,$AD116,$C$38) -> 72.79496492 | AI116: =[1]!srEnew($C$20,AH116,$C$39) -> 69.74618444 | AJ116: =[1]!srEnew($C$21,AI116,$C$40) -> 69.74618444 | AK116: =[1]!srEnew($C$23,AJ116,$C$41) -> 68.25839827 | AL116: 2730.335931 | AM116: =[1]!srE2LETt($C$23,AK116,0) -> 2.603169307 | AN116: =[1]!srE2Rng($C$23,AK116) -> 2648.537489 | AO116: =[1]!srEnew($C$23,AK116,$C$42) -> 68.18027327 | AP116: 2727.210931 | AQ116: =[1]!srE2LETt($C$23,AO116,0) -> 2.605582911 | AR116: =[1]!srE2Rng($C$23,AO116) -> 2643.537489 | AS116: =[1]!srEnew($C$23,AO116,$C$43) -> 67.86777327 | AT116: 2714.710931 | AU116: =[1]!srE2LETt($C$23,AS116,0) -> 2.615237326 | AV116: =[1]!srE2Rng($C$23,AS116) -> 2623.537489
F117: 1 | G117: 2 | H117: 3 | I117: 4 | J117: 0 | K117: 6 | L117: 0 | M117: 0 | N117: 0 | O117: 0 | P117: 0 | Q117: 0 | R117: =[2]!e5aEDthkI(ThEDtbl,F117:Q117) -> 196.19 | S117: 0.56 | T117: =[2]!e5aEDflgI2S(F117:Q117) -> 1234060000000 | U117: 3133.81 | AC117: =[1]!srRng2E($C$12,U117) -> 80.99703125 | AD117: =[1]!srEnewGas($C$13,AC117,$C$57,$C$61*100,$C$60) -> 79.48038451 | AE117: 3179.215381 | AF117: =[1]!srE2LETt($C$11,AD117,0) -> 2.322784233 | AH117: =[1]!srEnew($C$19,$AD117,$C$38) -> 72.78541947 | AI117: =[1]!srEnew($C$20,AH117,$C$39) -> 69.73663898 | AJ117: =[1]!srEnew($C$21,AI117,$C$40) -> 69.73663898 | AK117: =[1]!srEnew($C$23,AJ117,$C$41) -> 68.2481369 | AL117: 2729.925476 | AM117: =[1]!srE2LETt($C$23,AK117,0) -> 2.603486323 | AN117: =[1]!srE2Rng($C$23,AK117) -> 2647.880762 | AO117: =[1]!srEnew($C$23,AK117,$C$42) -> 68.1700119 | AP117: 2726.800476 | AQ117: =[1]!srE2LETt($C$23,AO117,0) -> 2.605899926 | AR117: =[1]!srE2Rng($C$23,AO117) -> 2642.880762 | AS117: =[1]!srEnew($C$23,AO117,$C$43) -> 67.8575119 | AT117: 2714.300476 | AU117: =[1]!srE2LETt($C$23,AS117,0) -> 2.615554341 | AV117: =[1]!srE2Rng($C$23,AS117) -> 2622.880762
F118: 0 | G118: 0 | H118: 0 | I118: 0 | J118: 0 | K118: 0 | L118: 7 | M118: 0 | N118: 0 | O118: 0 | P118: 0 | Q118: 0 | R118: =[2]!e5aEDthkI(ThEDtbl,F118:Q118) -> 196.39 | S118: 0.2 | T118: =[2]!e5aEDflgI2S(F118:Q118) -> 0000007000000 | U118: 3133.61 | AC118: =[1]!srRng2E($C$12,U118) -> 80.99390625 | AD118: =[1]!srEnewGas($C$13,AC118,$C$57,$C$61*100,$C$60) -> 79.47725951 | AE118: 3179.090381 | AF118: =[1]!srE2LETt($C$11,AD118,0) -> 2.322854765 | AH118: =[1]!srEnew($C$19,$AD118,$C$38) -> 72.78201038 | AI118: =[1]!srEnew($C$20,AH118,$C$39) -> 69.73322989 | AJ118: =[1]!srEnew($C$21,AI118,$C$40) -> 69.73322989 | AK118: =[1]!srEnew($C$23,AJ118,$C$41) -> 68.24447213 | AL118: 2729.778885 | AM118: =[1]!srE2LETt($C$23,AK118,0) -> 2.603599543 | AN118: =[1]!srE2Rng($C$23,AK118) -> 2647.646216 | AO118: =[1]!srEnew($C$23,AK118,$C$42) -> 68.16634713 | AP118: 2726.653885 | AQ118: =[1]!srE2LETt($C$23,AO118,0) -> 2.606013146 | AR118: =[1]!srE2Rng($C$23,AO118) -> 2642.646216 | AS118: =[1]!srEnew($C$23,AO118,$C$43) -> 67.85384713 | AT118: 2714.153885 | AU118: =[1]!srE2LETt($C$23,AS118,0) -> 2.615667561 | AV118: =[1]!srE2Rng($C$23,AS118) -> 2622.646216
F119: 0 | G119: 0 | H119: 0 | I119: 0 | J119: 5 | K119: 6 | L119: 0 | M119: 0 | N119: 0 | O119: 0 | P119: 0 | Q119: 0 | R119: =[2]!e5aEDthkI(ThEDtbl,F119:Q119) -> 201.04 | S119: 4.65 | T119: =[2]!e5aEDflgI2S(F119:Q119) -> 0000560000000 | U119: 3128.96 | AC119: =[1]!srRng2E($C$12,U119) -> 80.92125 | AD119: =[1]!srEnewGas($C$13,AC119,$C$57,$C$61*100,$C$60) -> 79.40460326 | AE119: 3176.184131 | AF119: =[1]!srE2LETt($C$11,AD119,0) -> 2.324494629 | AH119: =[1]!srEnew($C$19,$AD119,$C$38) -> 72.70274901 | AI119: =[1]!srEnew($C$20,AH119,$C$39) -> 69.65396853 | AJ119: =[1]!srEnew($C$21,AI119,$C$40) -> 69.65396853 | AK119: =[1]!srEnew($C$23,AJ119,$C$41) -> 68.15926617 | AL119: 2726.370647 | AM119: =[1]!srE2LETt($C$23,AK119,0) -> 2.606231907 | AN119: =[1]!srE2Rng($C$23,AK119) -> 2642.193035 | AO119: =[1]!srEnew($C$23,AK119,$C$42) -> 68.08114117 | AP119: 2723.245647 | AQ119: =[1]!srE2LETt($C$23,AO119,0) -> 2.60864551 | AR119: =[1]!srE2Rng($C$23,AO119) -> 2637.193035 | AS119: =[1]!srEnew($C$23,AO119,$C$43) -> 67.76864117 | AT119: 2710.745647 | AU119: =[1]!srE2LETt($C$23,AS119,0) -> 2.618299925 | AV119: =[1]!srE2Rng($C$23,AS119) -> 2617.193035
F120: 1 | G120: 2 | H120: 3 | I120: 4 | J120: 5 | K120: 0 | L120: 0 | M120: 0 | N120: 0 | O120: A | P120: 0 | Q120: 0 | R120: =[2]!e5aEDthkI(ThEDtbl,F120:Q120) -> 201.11 | S120: 0.07 | T120: =[2]!e5aEDflgI2S(F120:Q120) -> 123450000A000 | U120: 3128.89 | AC120: =[1]!srRng2E($C$12,U120) -> 80.92015625 | AD120: =[1]!srEnewGas($C$13,AC120,$C$57,$C$61*100,$C$60) -> 79.40350951 | AE120: 3176.140381 | AF120: =[1]!srE2LETt($C$11,AD120,0) -> 2.324519315 | AH120: =[1]!srEnew($C$19,$AD120,$C$38) -> 72.70155583 | AI120: =[1]!srEnew($C$20,AH120,$C$39) -> 69.65277534 | AJ120: =[1]!srEnew($C$21,AI120,$C$40) -> 69.65277534 | AK120: =[1]!srEnew($C$23,AJ120,$C$41) -> 68.1579835 | AL120: 2726.31934 | AM120: =[1]!srE2LETt($C$23,AK120,0) -> 2.606271534 | AN120: =[1]!srE2Rng($C$23,AK120) -> 2642.110944 | AO120: =[1]!srEnew($C$23,AK120,$C$42) -> 68.0798585 | AP120: 2723.19434 | AQ120: =[1]!srE2LETt($C$23,AO120,0) -> 2.608685137 | AR120: =[1]!srE2Rng($C$23,AO120) -> 2637.110944 | AS120: =[1]!srEnew($C$23,AO120,$C$43) -> 67.7673585 | AT120: 2710.69434 | AU120: =[1]!srE2LETt($C$23,AS120,0) -> 2.618339552 | AV120: =[1]!srE2Rng($C$23,AS120) -> 2617.110944
F121: 1 | G121: 2 | H121: 3 | I121: 4 | J121: 0 | K121: 6 | L121: 0 | M121: 0 | N121: 0 | O121: A | P121: 0 | Q121: 0 | R121: =[2]!e5aEDthkI(ThEDtbl,F121:Q121) -> 201.67 | S121: 0.56 | T121: =[2]!e5aEDflgI2S(F121:Q121) -> 123406000A000 | U121: 3128.33 | AC121: =[1]!srRng2E($C$12,U121) -> 80.91140625 | AD121: =[1]!srEnewGas($C$13,AC121,$C$57,$C$61*100,$C$60) -> 79.39475951 | AE121: 3175.790381 | AF121: =[1]!srE2LETt($C$11,AD121,0) -> 2.324716804 | AH121: =[1]!srEnew($C$19,$AD121,$C$38) -> 72.69201038 | AI121: =[1]!srEnew($C$20,AH121,$C$39) -> 69.64322989 | AJ121: =[1]!srEnew($C$21,AI121,$C$40) -> 69.64322989 | AK121: =[1]!srEnew($C$23,AJ121,$C$41) -> 68.14772213 | AL121: 2725.908885 | AM121: =[1]!srE2LETt($C$23,AK121,0) -> 2.60658855 | AN121: =[1]!srE2Rng($C$23,AK121) -> 2641.454216 | AO121: =[1]!srEnew($C$23,AK121,$C$42) -> 68.06959713 | AP121: 2722.783885 | AQ121: =[1]!srE2LETt($C$23,AO121,0) -> 2.609002153 | AR121: =[1]!srE2Rng($C$23,AO121) -> 2636.454216 | AS121: =[1]!srEnew($C$23,AO121,$C$43) -> 67.75709713 | AT121: 2710.283885 | AU121: =[1]!srE2LETt($C$23,AS121,0) -> 2.618656568 | AV121: =[1]!srE2Rng($C$23,AS121) -> 2616.454216
F122: 0 | G122: 0 | H122: 0 | I122: 0 | J122: 0 | K122: 0 | L122: 7 | M122: 0 | N122: 0 | O122: A | P122: 0 | Q122: 0 | R122: =[2]!e5aEDthkI(ThEDtbl,F122:Q122) -> 201.87 | S122: 0.2 | T122: =[2]!e5aEDflgI2S(F122:Q122) -> 000000700A000 | U122: 3128.13 | AC122: =[1]!srRng2E($C$12,U122) -> 80.90828125 | AD122: =[1]!srEnewGas($C$13,AC122,$C$57,$C$61*100,$C$60) -> 79.39163451 | AE122: 3175.665381 | AF122: =[1]!srE2LETt($C$11,AD122,0) -> 2.324787336 | AH122: =[1]!srEnew($C$19,$AD122,$C$38) -> 72.68860129 | AI122: =[1]!srEnew($C$20,AH122,$C$39) -> 69.6398208 | AJ122: =[1]!srEnew($C$21,AI122,$C$40) -> 69.6398208 | AK122: =[1]!srEnew($C$23,AJ122,$C$41) -> 68.14405736 | AL122: 2725.762294 | AM122: =[1]!srE2LETt($C$23,AK122,0) -> 2.606701769 | AN122: =[1]!srE2Rng($C$23,AK122) -> 2641.219671 | AO122: =[1]!srEnew($C$23,AK122,$C$42) -> 68.06593236 | AP122: 2722.637294 | AQ122: =[1]!srE2LETt($C$23,AO122,0) -> 2.609115373 | AR122: =[1]!srE2Rng($C$23,AO122) -> 2636.219671 | AS122: =[1]!srEnew($C$23,AO122,$C$43) -> 67.75343236 | AT122: 2710.137294 | AU122: =[1]!srE2LETt($C$23,AS122,0) -> 2.618769788 | AV122: =[1]!srE2Rng($C$23,AS122) -> 2616.219671
F123: 0 | G123: 0 | H123: 0 | I123: 0 | J123: 5 | K123: 6 | L123: 0 | M123: 0 | N123: 0 | O123: A | P123: 0 | Q123: 0 | R123: =[2]!e5aEDthkI(ThEDtbl,F123:Q123) -> 206.52 | S123: 4.65 | T123: =[2]!e5aEDflgI2S(F123:Q123) -> 000056000A000 | U123: 3123.48 | AC123: =[1]!srRng2E($C$12,U123) -> 80.835625 | AD123: =[1]!srEnewGas($C$13,AC123,$C$57,$C$61*100,$C$60) -> 79.31897826 | AE123: 3172.759131 | AF123: =[1]!srE2LETt($C$11,AD123,0) -> 2.3264272 | AH123: =[1]!srEnew($C$19,$AD123,$C$38) -> 72.60933992 | AI123: =[1]!srEnew($C$20,AH123,$C$39) -> 69.56055944 | AJ123: =[1]!srEnew($C$21,AI123,$C$40) -> 69.56055944 | AK123: =[1]!srEnew($C$23,AJ123,$C$41) -> 68.05885139 | AL123: 2722.354056 | AM123: =[1]!srE2LETt($C$23,AK123,0) -> 2.609334134 | AN123: =[1]!srE2Rng($C$23,AK123) -> 2635.766489 | AO123: =[1]!srEnew($C$23,AK123,$C$42) -> 67.98072639 | AP123: 2719.229056 | AQ123: =[1]!srE2LETt($C$23,AO123,0) -> 2.611747737 | AR123: =[1]!srE2Rng($C$23,AO123) -> 2630.766489 | AS123: =[1]!srEnew($C$23,AO123,$C$43) -> 67.66822639 | AT123: 2706.729056 | AU123: =[1]!srE2LETt($C$23,AS123,0) -> 2.621402152 | AV123: =[1]!srE2Rng($C$23,AS123) -> 2610.766489
F124: 1 | G124: 0 | H124: 0 | I124: 0 | J124: 0 | K124: 0 | L124: 7 | M124: 0 | N124: 0 | O124: 0 | P124: 0 | Q124: 0 | R124: =[2]!e5aEDthkI(ThEDtbl,F124:Q124) -> 206.59 | S124: 0.07 | T124: =[2]!e5aEDflgI2S(F124:Q124) -> 1000007000000 | U124: 3123.41 | AC124: =[1]!srRng2E($C$12,U124) -> 80.83453125 | AD124: =[1]!srEnewGas($C$13,AC124,$C$57,$C$61*100,$C$60) -> 79.31788451 | AE124: 3172.715381 | AF124: =[1]!srE2LETt($C$11,AD124,0) -> 2.326451887 | AH124: =[1]!srEnew($C$19,$AD124,$C$38) -> 72.60814674 | AI124: =[1]!srEnew($C$20,AH124,$C$39) -> 69.55936625 | AJ124: =[1]!srEnew($C$21,AI124,$C$40) -> 69.55936625 | AK124: =[1]!srEnew($C$23,AJ124,$C$41) -> 68.05756872 | AL124: 2722.302749 | AM124: =[1]!srE2LETt($C$23,AK124,0) -> 2.609373761 | AN124: =[1]!srE2Rng($C$23,AK124) -> 2635.684398 | AO124: =[1]!srEnew($C$23,AK124,$C$42) -> 67.97944372 | AP124: 2719.177749 | AQ124: =[1]!srE2LETt($C$23,AO124,0) -> 2.611787364 | AR124: =[1]!srE2Rng($C$23,AO124) -> 2630.684398 | AS124: =[1]!srEnew($C$23,AO124,$C$43) -> 67.66694372 | AT124: 2706.677749 | AU124: =[1]!srE2LETt($C$23,AS124,0) -> 2.621441779 | AV124: =[1]!srE2Rng($C$23,AS124) -> 2610.684398
F125: 0 | G125: 2 | H125: 0 | I125: 0 | J125: 0 | K125: 0 | L125: 7 | M125: 0 | N125: 0 | O125: 0 | P125: 0 | Q125: 0 | R125: =[2]!e5aEDthkI(ThEDtbl,F125:Q125) -> 209.19 | S125: 2.6 | T125: =[2]!e5aEDflgI2S(F125:Q125) -> 0200007000000 | U125: 3120.81 | AC125: =[1]!srRng2E($C$12,U125) -> 80.79390625 | AD125: =[1]!srEnewGas($C$13,AC125,$C$57,$C$61*100,$C$60) -> 79.27725951 | AE125: 3171.090381 | AF125: =[1]!srE2LETt($C$11,AD125,0) -> 2.3273688 | AH125: =[1]!srEnew($C$19,$AD125,$C$38) -> 72.56382856 | AI125: =[1]!srEnew($C$20,AH125,$C$39) -> 69.51504807 | AJ125: =[1]!srEnew($C$21,AI125,$C$40) -> 69.51504807 | AK125: =[1]!srEnew($C$23,AJ125,$C$41) -> 68.00992668 | AL125: 2720.397067 | AM125: =[1]!srE2LETt($C$23,AK125,0) -> 2.61084562 | AN125: =[1]!srE2Rng($C$23,AK125) -> 2632.635307 | AO125: =[1]!srEnew($C$23,AK125,$C$42) -> 67.93180168 | AP125: 2717.272067 | AQ125: =[1]!srE2LETt($C$23,AO125,0) -> 2.613259224 | AR125: =[1]!srE2Rng($C$23,AO125) -> 2627.635307 | AS125: =[1]!srEnew($C$23,AO125,$C$43) -> 67.61930168 | AT125: 2704.772067 | AU125: =[1]!srE2LETt($C$23,AS125,0) -> 2.622913639 | AV125: =[1]!srE2Rng($C$23,AS125) -> 2607.635307
F126: 1 | G126: 0 | H126: 0 | I126: 0 | J126: 5 | K126: 6 | L126: 0 | M126: 0 | N126: 0 | O126: 0 | P126: 0 | Q126: 0 | R126: =[2]!e5aEDthkI(ThEDtbl,F126:Q126) -> 211.24 | S126: 2.05 | T126: =[2]!e5aEDflgI2S(F126:Q126) -> 1000560000000 | U126: 3118.76 | AC126: =[1]!srRng2E($C$12,U126) -> 80.761875 | AD126: =[1]!srEnewGas($C$13,AC126,$C$57,$C$61*100,$C$60) -> 79.24522826 | AE126: 3169.809131 | AF126: =[1]!srE2LETt($C$11,AD126,0) -> 2.328091751 | AH126: =[1]!srEnew($C$19,$AD126,$C$38) -> 72.52888538 | AI126: =[1]!srEnew($C$20,AH126,$C$39) -> 69.48010489 | AJ126: =[1]!srEnew($C$21,AI126,$C$40) -> 69.48010489 | AK126: =[1]!srEnew($C$23,AJ126,$C$41) -> 67.97236276 | AL126: 2718.89451 | AM126: =[1]!srE2LETt($C$23,AK126,0) -> 2.612006125 | AN126: =[1]!srE2Rng($C$23,AK126) -> 2630.231216 | AO126: =[1]!srEnew($C$23,AK126,$C$42) -> 67.89423776 | AP126: 2715.76951 | AQ126: =[1]!srE2LETt($C$23,AO126,0) -> 2.614419728 | AR126: =[1]!srE2Rng($C$23,AO126) -> 2625.231216 | AS126: =[1]!srEnew($C$23,AO126,$C$43) -> 67.58173776 | AT126: 2703.26951 | AU126: =[1]!srE2LETt($C$23,AS126,0) -> 2.624074143 | AV126: =[1]!srE2Rng($C$23,AS126) -> 2605.231216
F127: 1 | G127: 0 | H127: 0 | I127: 0 | J127: 0 | K127: 0 | L127: 7 | M127: 0 | N127: 0 | O127: A | P127: 0 | Q127: 0 | R127: =[2]!e5aEDthkI(ThEDtbl,F127:Q127) -> 212.07 | S127: 0.83 | T127: =[2]!e5aEDflgI2S(F127:Q127) -> 100000700A000 | U127: 3117.93 | AC127: =[1]!srRng2E($C$12,U127) -> 80.74890625 | AD127: =[1]!srEnewGas($C$13,AC127,$C$57,$C$61*100,$C$60) -> 79.23225951 | AE127: 3169.290381 | AF127: =[1]!srE2LETt($C$11,AD127,0) -> 2.328384458 | AH127: =[1]!srEnew($C$19,$AD127,$C$38) -> 72.51473765 | AI127: =[1]!srEnew($C$20,AH127,$C$39) -> 69.46595716 | AJ127: =[1]!srEnew($C$21,AI127,$C$40) -> 69.46595716 | AK127: =[1]!srEnew($C$23,AJ127,$C$41) -> 67.95715395 | AL127: 2718.286158 | AM127: =[1]!srE2LETt($C$23,AK127,0) -> 2.612475987 | AN127: =[1]!srE2Rng($C$23,AK127) -> 2629.257853 | AO127: =[1]!srEnew($C$23,AK127,$C$42) -> 67.87902895 | AP127: 2715.161158 | AQ127: =[1]!srE2LETt($C$23,AO127,0) -> 2.614889591 | AR127: =[1]!srE2Rng($C$23,AO127) -> 2624.257853 | AS127: =[1]!srEnew($C$23,AO127,$C$43) -> 67.56652895 | AT127: 2702.661158 | AU127: =[1]!srE2LETt($C$23,AS127,0) -> 2.624544006 | AV127: =[1]!srE2Rng($C$23,AS127) -> 2604.257853
F128: 0 | G128: 2 | H128: 0 | I128: 0 | J128: 5 | K128: 6 | L128: 0 | M128: 0 | N128: 0 | O128: 0 | P128: 0 | Q128: 0 | R128: =[2]!e5aEDthkI(ThEDtbl,F128:Q128) -> 213.84 | S128: 1.77 | T128: =[2]!e5aEDflgI2S(F128:Q128) -> 0200560000000 | U128: 3116.16 | AC128: =[1]!srRng2E($C$12,U128) -> 80.72125 | AD128: =[1]!srEnewGas($C$13,AC128,$C$57,$C$61*100,$C$60) -> 79.20460326 | AE128: 3168.184131 | AF128: =[1]!srE2LETt($C$11,AD128,0) -> 2.329008664 | AH128: =[1]!srEnew($C$19,$AD128,$C$38) -> 72.4845672 | AI128: =[1]!srEnew($C$20,AH128,$C$39) -> 69.43578671 | AJ128: =[1]!srEnew($C$21,AI128,$C$40) -> 69.43578671 | AK128: =[1]!srEnew($C$23,AJ128,$C$41) -> 67.92472071 | AL128: 2716.988828 | AM128: =[1]!srE2LETt($C$23,AK128,0) -> 2.613477984 | AN128: =[1]!srE2Rng($C$23,AK128) -> 2627.182126 | AO128: =[1]!srEnew($C$23,AK128,$C$42) -> 67.84659571 | AP128: 2713.863828 | AQ128: =[1]!srE2LETt($C$23,AO128,0) -> 2.615891588 | AR128: =[1]!srE2Rng($C$23,AO128) -> 2622.182126 | AS128: =[1]!srEnew($C$23,AO128,$C$43) -> 67.53409571 | AT128: 2701.363828 | AU128: =[1]!srE2LETt($C$23,AS128,0) -> 2.625546003 | AV128: =[1]!srE2Rng($C$23,AS128) -> 2602.182126
F129: 0 | G129: 2 | H129: 0 | I129: 0 | J129: 0 | K129: 0 | L129: 7 | M129: 0 | N129: 0 | O129: A | P129: 0 | Q129: 0 | R129: =[2]!e5aEDthkI(ThEDtbl,F129:Q129) -> 214.67 | S129: 0.83 | T129: =[2]!e5aEDflgI2S(F129:Q129) -> 020000700A000 | U129: 3115.33 | AC129: =[1]!srRng2E($C$12,U129) -> 80.70828125 | AD129: =[1]!srEnewGas($C$13,AC129,$C$57,$C$61*100,$C$60) -> 79.19163451 | AE129: 3167.665381 | AF129: =[1]!srE2LETt($C$11,AD129,0) -> 2.329301371 | AH129: =[1]!srEnew($C$19,$AD129,$C$38) -> 72.47041947 | AI129: =[1]!srEnew($C$20,AH129,$C$39) -> 69.42163898 | AJ129: =[1]!srEnew($C$21,AI129,$C$40) -> 69.42163898 | AK129: =[1]!srEnew($C$23,AJ129,$C$41) -> 67.9095119 | AL129: 2716.380476 | AM129: =[1]!srE2LETt($C$23,AK129,0) -> 2.613947847 | AN129: =[1]!srE2Rng($C$23,AK129) -> 2626.208762 | AO129: =[1]!srEnew($C$23,AK129,$C$42) -> 67.8313869 | AP129: 2713.255476 | AQ129: =[1]!srE2LETt($C$23,AO129,0) -> 2.616361451 | AR129: =[1]!srE2Rng($C$23,AO129) -> 2621.208762 | AS129: =[1]!srEnew($C$23,AO129,$C$43) -> 67.5188869 | AT129: 2700.755476 | AU129: =[1]!srE2LETt($C$23,AS129,0) -> 2.626015866 | AV129: =[1]!srE2Rng($C$23,AS129) -> 2601.208762
F130: 1 | G130: 0 | H130: 0 | I130: 0 | J130: 5 | K130: 6 | L130: 0 | M130: 0 | N130: 0 | O130: A | P130: 0 | Q130: 0 | R130: =[2]!e5aEDthkI(ThEDtbl,F130:Q130) -> 216.72 | S130: 2.05 | T130: =[2]!e5aEDflgI2S(F130:Q130) -> 100056000A000 | U130: 3113.28 | AC130: =[1]!srRng2E($C$12,U130) -> 80.67625 | AD130: =[1]!srEnewGas($C$13,AC130,$C$57,$C$61*100,$C$60) -> 79.15960326 | AE130: 3166.384131 | AF130: =[1]!srE2LETt($C$11,AD130,0) -> 2.330024322 | AH130: =[1]!srEnew($C$19,$AD130,$C$38) -> 72.43547629 | AI130: =[1]!srEnew($C$20,AH130,$C$39) -> 69.3866958 | AJ130: =[1]!srEnew($C$21,AI130,$C$40) -> 69.3866958 | AK130: =[1]!srEnew($C$23,AJ130,$C$41) -> 67.87194798 | AL130: 2714.877919 | AM130: =[1]!srE2LETt($C$23,AK130,0) -> 2.615108351 | AN130: =[1]!srE2Rng($C$23,AK130) -> 2623.804671 | AO130: =[1]!srEnew($C$23,AK130,$C$42) -> 67.79382298 | AP130: 2711.752919 | AQ130: =[1]!srE2LETt($C$23,AO130,0) -> 2.617521955 | AR130: =[1]!srE2Rng($C$23,AO130) -> 2618.804671 | AS130: =[1]!srEnew($C$23,AO130,$C$43) -> 67.48132298 | AT130: 2699.252919 | AU130: =[1]!srE2LETt($C$23,AS130,0) -> 2.62717637 | AV130: =[1]!srE2Rng($C$23,AS130) -> 2598.804671
F131: 0 | G131: 2 | H131: 0 | I131: 0 | J131: 5 | K131: 6 | L131: 0 | M131: 0 | N131: 0 | O131: A | P131: 0 | Q131: 0 | R131: =[2]!e5aEDthkI(ThEDtbl,F131:Q131) -> 219.32 | S131: 2.6 | T131: =[2]!e5aEDflgI2S(F131:Q131) -> 020056000A000 | U131: 3110.68 | AC131: =[1]!srRng2E($C$12,U131) -> 80.635625 | AD131: =[1]!srEnewGas($C$13,AC131,$C$57,$C$61*100,$C$60) -> 79.11897826 | AE131: 3164.759131 | AF131: =[1]!srE2LETt($C$11,AD131,0) -> 2.330941236 | AH131: =[1]!srEnew($C$19,$AD131,$C$38) -> 72.39115811 | AI131: =[1]!srEnew($C$20,AH131,$C$39) -> 69.34237762 | AJ131: =[1]!srEnew($C$21,AI131,$C$40) -> 69.34237762 | AK131: =[1]!srEnew($C$23,AJ131,$C$41) -> 67.82430594 | AL131: 2712.972238 | AM131: =[1]!srE2LETt($C$23,AK131,0) -> 2.616580211 | AN131: =[1]!srE2Rng($C$23,AK131) -> 2620.75558 | AO131: =[1]!srEnew($C$23,AK131,$C$42) -> 67.74618094 | AP131: 2709.847238 | AQ131: =[1]!srE2LETt($C$23,AO131,0) -> 2.618993815 | AR131: =[1]!srE2Rng($C$23,AO131) -> 2615.75558 | AS131: =[1]!srEnew($C$23,AO131,$C$43) -> 67.43368094 | AT131: 2697.347238 | AU131: =[1]!srE2LETt($C$23,AS131,0) -> 2.62864823 | AV131: =[1]!srE2Rng($C$23,AS131) -> 2595.75558
F132: 1 | G132: 2 | H132: 0 | I132: 0 | J132: 0 | K132: 0 | L132: 7 | M132: 0 | N132: 0 | O132: 0 | P132: 0 | Q132: 0 | R132: =[2]!e5aEDthkI(ThEDtbl,F132:Q132) -> 219.39 | S132: 0.07 | T132: =[2]!e5aEDflgI2S(F132:Q132) -> 1200007000000 | U132: 3110.61 | AC132: =[1]!srRng2E($C$12,U132) -> 80.63453125 | AD132: =[1]!srEnewGas($C$13,AC132,$C$57,$C$61*100,$C$60) -> 79.11788451 | AE132: 3164.715381 | AF132: =[1]!srE2LETt($C$11,AD132,0) -> 2.330965922 | AH132: =[1]!srEnew($C$19,$AD132,$C$38) -> 72.38996492 | AI132: =[1]!srEnew($C$20,AH132,$C$39) -> 69.34118444 | AJ132: =[1]!srEnew($C$21,AI132,$C$40) -> 69.34118444 | AK132: =[1]!srEnew($C$23,AJ132,$C$41) -> 67.82302327 | AL132: 2712.920931 | AM132: =[1]!srE2LETt($C$23,AK132,0) -> 2.616619838 | AN132: =[1]!srE2Rng($C$23,AK132) -> 2620.673489 | AO132: =[1]!srEnew($C$23,AK132,$C$42) -> 67.74489827 | AP132: 2709.795931 | AQ132: =[1]!srE2LETt($C$23,AO132,0) -> 2.619033442 | AR132: =[1]!srE2Rng($C$23,AO132) -> 2615.673489 | AS132: =[1]!srEnew($C$23,AO132,$C$43) -> 67.43239827 | AT132: 2697.295931 | AU132: =[1]!srE2LETt($C$23,AS132,0) -> 2.628687857 | AV132: =[1]!srE2Rng($C$23,AS132) -> 2595.673489
F133: 0 | G133: 0 | H133: 3 | I133: 0 | J133: 0 | K133: 0 | L133: 7 | M133: 0 | N133: 0 | O133: 0 | P133: 0 | Q133: 0 | R133: =[2]!e5aEDthkI(ThEDtbl,F133:Q133) -> 220.19 | S133: 0.8 | T133: =[2]!e5aEDflgI2S(F133:Q133) -> 0030007000000 | U133: 3109.81 | AC133: =[1]!srRng2E($C$12,U133) -> 80.62203125 | AD133: =[1]!srEnewGas($C$13,AC133,$C$57,$C$61*100,$C$60) -> 79.10538451 | AE133: 3164.215381 | AF133: =[1]!srE2LETt($C$11,AD133,0) -> 2.331248049 | AH133: =[1]!srEnew($C$19,$AD133,$C$38) -> 72.37632856 | AI133: =[1]!srEnew($C$20,AH133,$C$39) -> 69.32754807 | AJ133: =[1]!srEnew($C$21,AI133,$C$40) -> 69.32754807 | AK133: =[1]!srEnew($C$23,AJ133,$C$41) -> 67.80836418 | AL133: 2712.334567 | AM133: =[1]!srE2LETt($C$23,AK133,0) -> 2.617072718 | AN133: =[1]!srE2Rng($C$23,AK133) -> 2619.735307 | AO133: =[1]!srEnew($C$23,AK133,$C$42) -> 67.73023918 | AP133: 2709.209567 | AQ133: =[1]!srE2LETt($C$23,AO133,0) -> 2.619486321 | AR133: =[1]!srE2Rng($C$23,AO133) -> 2614.735307 | AS133: =[1]!srEnew($C$23,AO133,$C$43) -> 67.41773918 | AT133: 2696.709567 | AU133: =[1]!srE2LETt($C$23,AS133,0) -> 2.629140736 | AV133: =[1]!srE2Rng($C$23,AS133) -> 2594.735307
F134: 1 | G134: 2 | H134: 0 | I134: 0 | J134: 5 | K134: 6 | L134: 0 | M134: 0 | N134: 0 | O134: 0 | P134: 0 | Q134: 0 | R134: =[2]!e5aEDthkI(ThEDtbl,F134:Q134) -> 224.04 | S134: 3.85 | T134: =[2]!e5aEDflgI2S(F134:Q134) -> 1200560000000 | U134: 3105.96 | AC134: =[1]!srRng2E($C$12,U134) -> 80.561875 | AD134: =[1]!srEnewGas($C$13,AC134,$C$57,$C$61*100,$C$60) -> 79.04522826 | AE134: 3161.809131 | AF134: =[1]!srE2LETt($C$11,AD134,0) -> 2.332605786 | AH134: =[1]!srEnew($C$19,$AD134,$C$38) -> 72.31070356 | AI134: =[1]!srEnew($C$20,AH134,$C$39) -> 69.26192307 | AJ134: =[1]!srEnew($C$21,AI134,$C$40) -> 69.26192307 | AK134: =[1]!srEnew($C$23,AJ134,$C$41) -> 67.7378173 | AL134: 2709.512692 | AM134: =[1]!srE2LETt($C$23,AK134,0) -> 2.619252202 | AN134: =[1]!srE2Rng($C$23,AK134) -> 2615.220307 | AO134: =[1]!srEnew($C$23,AK134,$C$42) -> 67.6596923 | AP134: 2706.387692 | AQ134: =[1]!srE2LETt($C$23,AO134,0) -> 2.621665806 | AR134: =[1]!srE2Rng($C$23,AO134) -> 2610.220307 | AS134: =[1]!srEnew($C$23,AO134,$C$43) -> 67.3471923 | AT134: 2693.887692 | AU134: =[1]!srE2LETt($C$23,AS134,0) -> 2.631320221 | AV134: =[1]!srE2Rng($C$23,AS134) -> 2590.220307
F135: 0 | G135: 0 | H135: 3 | I135: 0 | J135: 5 | K135: 6 | L135: 0 | M135: 0 | N135: 0 | O135: 0 | P135: 0 | Q135: 0 | R135: =[2]!e5aEDthkI(ThEDtbl,F135:Q135) -> 224.84 | S135: 0.8 | T135: =[2]!e5aEDflgI2S(F135:Q135) -> 0030560000000 | U135: 3105.16 | AC135: =[1]!srRng2E($C$12,U135) -> 80.549375 | AD135: =[1]!srEnewGas($C$13,AC135,$C$57,$C$61*100,$C$60) -> 79.03272826 | AE135: 3161.309131 | AF135: =[1]!srE2LETt($C$11,AD135,0) -> 2.332887913 | AH135: =[1]!srEnew($C$19,$AD135,$C$38) -> 72.2970672 | AI135: =[1]!srEnew($C$20,AH135,$C$39) -> 69.24828671 | AJ135: =[1]!srEnew($C$21,AI135,$C$40) -> 69.24828671 | AK135: =[1]!srEnew($C$23,AJ135,$C$41) -> 67.72315821 | AL135: 2708.926328 | AM135: =[1]!srE2LETt($C$23,AK135,0) -> 2.619705082 | AN135: =[1]!srE2Rng($C$23,AK135) -> 2614.282126 | AO135: =[1]!srEnew($C$23,AK135,$C$42) -> 67.64503321 | AP135: 2705.801328 | AQ135: =[1]!srE2LETt($C$23,AO135,0) -> 2.622118685 | AR135: =[1]!srE2Rng($C$23,AO135) -> 2609.282126 | AS135: =[1]!srEnew($C$23,AO135,$C$43) -> 67.33253321 | AT135: 2693.301328 | AU135: =[1]!srE2LETt($C$23,AS135,0) -> 2.6317731 | AV135: =[1]!srE2Rng($C$23,AS135) -> 2589.282126
F136: 1 | G136: 2 | H136: 0 | I136: 0 | J136: 0 | K136: 0 | L136: 7 | M136: 0 | N136: 0 | O136: A | P136: 0 | Q136: 0 | R136: =[2]!e5aEDthkI(ThEDtbl,F136:Q136) -> 224.87 | S136: 0.03 | T136: =[2]!e5aEDflgI2S(F136:Q136) -> 120000700A000 | U136: 3105.13 | AC136: =[1]!srRng2E($C$12,U136) -> 80.54890625 | AD136: =[1]!srEnewGas($C$13,AC136,$C$57,$C$61*100,$C$60) -> 79.03225951 | AE136: 3161.290381 | AF136: =[1]!srE2LETt($C$11,AD136,0) -> 2.332898493 | AH136: =[1]!srEnew($C$19,$AD136,$C$38) -> 72.29655583 | AI136: =[1]!srEnew($C$20,AH136,$C$39) -> 69.24777534 | AJ136: =[1]!srEnew($C$21,AI136,$C$40) -> 69.24777534 | AK136: =[1]!srEnew($C$23,AJ136,$C$41) -> 67.7226085 | AL136: 2708.90434 | AM136: =[1]!srE2LETt($C$23,AK136,0) -> 2.619722065 | AN136: =[1]!srE2Rng($C$23,AK136) -> 2614.246944 | AO136: =[1]!srEnew($C$23,AK136,$C$42) -> 67.6444835 | AP136: 2705.77934 | AQ136: =[1]!srE2LETt($C$23,AO136,0) -> 2.622135668 | AR136: =[1]!srE2Rng($C$23,AO136) -> 2609.246944 | AS136: =[1]!srEnew($C$23,AO136,$C$43) -> 67.3319835 | AT136: 2693.27934 | AU136: =[1]!srE2LETt($C$23,AS136,0) -> 2.631790083 | AV136: =[1]!srE2Rng($C$23,AS136) -> 2589.246944
F137: 0 | G137: 0 | H137: 3 | I137: 0 | J137: 0 | K137: 0 | L137: 7 | M137: 0 | N137: 0 | O137: A | P137: 0 | Q137: 0 | R137: =[2]!e5aEDthkI(ThEDtbl,F137:Q137) -> 225.67 | S137: 0.8 | T137: =[2]!e5aEDflgI2S(F137:Q137) -> 003000700A000 | U137: 3104.33 | AC137: =[1]!srRng2E($C$12,U137) -> 80.53640625 | AD137: =[1]!srEnewGas($C$13,AC137,$C$57,$C$61*100,$C$60) -> 79.01975951 | AE137: 3160.790381 | AF137: =[1]!srE2LETt($C$11,AD137,0) -> 2.33318062 | AH137: =[1]!srEnew($C$19,$AD137,$C$38) -> 72.28291947 | AI137: =[1]!srEnew($C$20,AH137,$C$39) -> 69.23413898 | AJ137: =[1]!srEnew($C$21,AI137,$C$40) -> 69.23413898 | AK137: =[1]!srEnew($C$23,AJ137,$C$41) -> 67.7079494 | AL137: 2708.317976 | AM137: =[1]!srE2LETt($C$23,AK137,0) -> 2.620174944 | AN137: =[1]!srE2Rng($C$23,AK137) -> 2613.308762 | AO137: =[1]!srEnew($C$23,AK137,$C$42) -> 67.6298244 | AP137: 2705.192976 | AQ137: =[1]!srE2LETt($C$23,AO137,0) -> 2.622588548 | AR137: =[1]!srE2Rng($C$23,AO137) -> 2608.308762 | AS137: =[1]!srEnew($C$23,AO137,$C$43) -> 67.3173244 | AT137: 2692.692976 | AU137: =[1]!srE2LETt($C$23,AS137,0) -> 2.632242963 | AV137: =[1]!srE2Rng($C$23,AS137) -> 2588.308762
F138: 1 | G138: 2 | H138: 0 | I138: 0 | J138: 5 | K138: 6 | L138: 0 | M138: 0 | N138: 0 | O138: A | P138: 0 | Q138: 0 | R138: =[2]!e5aEDthkI(ThEDtbl,F138:Q138) -> 229.52 | S138: 3.85 | T138: =[2]!e5aEDflgI2S(F138:Q138) -> 120056000A000 | U138: 3100.48 | AC138: =[1]!srRng2E($C$12,U138) -> 80.47625 | AD138: =[1]!srEnewGas($C$13,AC138,$C$57,$C$61*100,$C$60) -> 78.95960326 | AE138: 3158.384131 | AF138: =[1]!srE2LETt($C$11,AD138,0) -> 2.334538357 | AH138: =[1]!srEnew($C$19,$AD138,$C$38) -> 72.21729447 | AI138: =[1]!srEnew($C$20,AH138,$C$39) -> 69.16851398 | AJ138: =[1]!srEnew($C$21,AI138,$C$40) -> 69.16851398 | AK138: =[1]!srEnew($C$23,AJ138,$C$41) -> 67.63740253 | AL138: 2705.496101 | AM138: =[1]!srE2LETt($C$23,AK138,0) -> 2.622354429 | AN138: =[1]!srE2Rng($C$23,AK138) -> 2608.793762 | AO138: =[1]!srEnew($C$23,AK138,$C$42) -> 67.55927753 | AP138: 2702.371101 | AQ138: =[1]!srE2LETt($C$23,AO138,0) -> 2.624768032 | AR138: =[1]!srE2Rng($C$23,AO138) -> 2603.793762 | AS138: =[1]!srEnew($C$23,AO138,$C$43) -> 67.24677753 | AT138: 2689.871101 | AU138: =[1]!srE2LETt($C$23,AS138,0) -> 2.634422447 | AV138: =[1]!srE2Rng($C$23,AS138) -> 2583.793762
F139: 0 | G139: 0 | H139: 3 | I139: 0 | J139: 5 | K139: 6 | L139: 0 | M139: 0 | N139: 0 | O139: A | P139: 0 | Q139: 0 | R139: =[2]!e5aEDthkI(ThEDtbl,F139:Q139) -> 230.32 | S139: 0.8 | T139: =[2]!e5aEDflgI2S(F139:Q139) -> 003056000A000 | U139: 3099.68 | AC139: =[1]!srRng2E($C$12,U139) -> 80.46375 | AD139: =[1]!srEnewGas($C$13,AC139,$C$57,$C$61*100,$C$60) -> 78.94710326 | AE139: 3157.884131 | AF139: =[1]!srE2LETt($C$11,AD139,0) -> 2.334820485 | AH139: =[1]!srEnew($C$19,$AD139,$C$38) -> 72.20365811 | AI139: =[1]!srEnew($C$20,AH139,$C$39) -> 69.15487762 | AJ139: =[1]!srEnew($C$21,AI139,$C$40) -> 69.15487762 | AK139: =[1]!srEnew($C$23,AJ139,$C$41) -> 67.62274344 | AL139: 2704.909738 | AM139: =[1]!srE2LETt($C$23,AK139,0) -> 2.622807308 | AN139: =[1]!srE2Rng($C$23,AK139) -> 2607.85558 | AO139: =[1]!srEnew($C$23,AK139,$C$42) -> 67.54461844 | AP139: 2701.784738 | AQ139: =[1]!srE2LETt($C$23,AO139,0) -> 2.625220912 | AR139: =[1]!srE2Rng($C$23,AO139) -> 2602.85558 | AS139: =[1]!srEnew($C$23,AO139,$C$43) -> 67.23211844 | AT139: 2689.284738 | AU139: =[1]!srE2LETt($C$23,AS139,0) -> 2.634875327 | AV139: =[1]!srE2Rng($C$23,AS139) -> 2582.85558
F140: 1 | G140: 0 | H140: 3 | I140: 0 | J140: 0 | K140: 0 | L140: 7 | M140: 0 | N140: 0 | O140: 0 | P140: 0 | Q140: 0 | R140: =[2]!e5aEDthkI(ThEDtbl,F140:Q140) -> 230.39 | S140: 0.07 | T140: =[2]!e5aEDflgI2S(F140:Q140) -> 1030007000000 | U140: 3099.61 | AC140: =[1]!srRng2E($C$12,U140) -> 80.46265625 | AD140: =[1]!srEnewGas($C$13,AC140,$C$57,$C$61*100,$C$60) -> 78.94600951 | AE140: 3157.840381 | AF140: =[1]!srE2LETt($C$11,AD140,0) -> 2.334845171 | AH140: =[1]!srEnew($C$19,$AD140,$C$38) -> 72.20246492 | AI140: =[1]!srEnew($C$20,AH140,$C$39) -> 69.15368444 | AJ140: =[1]!srEnew($C$21,AI140,$C$40) -> 69.15368444 | AK140: =[1]!srEnew($C$23,AJ140,$C$41) -> 67.62146077 | AL140: 2704.858431 | AM140: =[1]!srE2LETt($C$23,AK140,0) -> 2.622846935 | AN140: =[1]!srE2Rng($C$23,AK140) -> 2607.773489 | AO140: =[1]!srEnew($C$23,AK140,$C$42) -> 67.54333577 | AP140: 2701.733431 | AQ140: =[1]!srE2LETt($C$23,AO140,0) -> 2.625260539 | AR140: =[1]!srE2Rng($C$23,AO140) -> 2602.773489 | AS140: =[1]!srEnew($C$23,AO140,$C$43) -> 67.23083577 | AT140: 2689.233431 | AU140: =[1]!srE2LETt($C$23,AS140,0) -> 2.634914954 | AV140: =[1]!srE2Rng($C$23,AS140) -> 2582.773489
F141: 0 | G141: 2 | H141: 3 | I141: 0 | J141: 0 | K141: 0 | L141: 7 | M141: 0 | N141: 0 | O141: 0 | P141: 0 | Q141: 0 | R141: =[2]!e5aEDthkI(ThEDtbl,F141:Q141) -> 232.99 | S141: 2.6 | T141: =[2]!e5aEDflgI2S(F141:Q141) -> 0230007000000 | U141: 3097.01 | AC141: =[1]!srRng2E($C$12,U141) -> 80.42203125 | AD141: =[1]!srEnewGas($C$13,AC141,$C$57,$C$61*100,$C$60) -> 78.90538451 | AE141: 3156.215381 | AF141: =[1]!srE2LETt($C$11,AD141,0) -> 2.335762084 | AH141: =[1]!srEnew($C$19,$AD141,$C$38) -> 72.15814674 | AI141: =[1]!srEnew($C$20,AH141,$C$39) -> 69.10936625 | AJ141: =[1]!srEnew($C$21,AI141,$C$40) -> 69.10936625 | AK141: =[1]!srEnew($C$23,AJ141,$C$41) -> 67.57381872 | AL141: 2702.952749 | AM141: =[1]!srE2LETt($C$23,AK141,0) -> 2.624318795 | AN141: =[1]!srE2Rng($C$23,AK141) -> 2604.724398 | AO141: =[1]!srEnew($C$23,AK141,$C$42) -> 67.49569372 | AP141: 2699.827749 | AQ141: =[1]!srE2LETt($C$23,AO141,0) -> 2.626732399 | AR141: =[1]!srE2Rng($C$23,AO141) -> 2599.724398 | AS141: =[1]!srEnew($C$23,AO141,$C$43) -> 67.18319372 | AT141: 2687.327749 | AU141: =[1]!srE2LETt($C$23,AS141,0) -> 2.636386814 | AV141: =[1]!srE2Rng($C$23,AS141) -> 2579.724398
F142: 1 | G142: 0 | H142: 3 | I142: 0 | J142: 5 | K142: 6 | L142: 0 | M142: 0 | N142: 0 | O142: 0 | P142: 0 | Q142: 0 | R142: =[2]!e5aEDthkI(ThEDtbl,F142:Q142) -> 235.04 | S142: 2.05 | T142: =[2]!e5aEDflgI2S(F142:Q142) -> 1030560000000 | U142: 3094.96 | AC142: =[1]!srRng2E($C$12,U142) -> 80.39 | AD142: =[1]!srEnewGas($C$13,AC142,$C$57,$C$61*100,$C$60) -> 78.87335326 | AE142: 3154.934131 | AF142: =[1]!srE2LETt($C$11,AD142,0) -> 2.336485035 | AH142: =[1]!srEnew($C$19,$AD142,$C$38) -> 72.12320356 | AI142: =[1]!srEnew($C$20,AH142,$C$39) -> 69.07442307 | AJ142: =[1]!srEnew($C$21,AI142,$C$40) -> 69.07442307 | AK142: =[1]!srEnew($C$23,AJ142,$C$41) -> 67.5362548 | AL142: 2701.450192 | AM142: =[1]!srE2LETt($C$23,AK142,0) -> 2.625479299 | AN142: =[1]!srE2Rng($C$23,AK142) -> 2602.320307 | AO142: =[1]!srEnew($C$23,AK142,$C$42) -> 67.4581298 | AP142: 2698.325192 | AQ142: =[1]!srE2LETt($C$23,AO142,0) -> 2.627892903 | AR142: =[1]!srE2Rng($C$23,AO142) -> 2597.320307 | AS142: =[1]!srEnew($C$23,AO142,$C$43) -> 67.1456298 | AT142: 2685.825192 | AU142: =[1]!srE2LETt($C$23,AS142,0) -> 2.637547318 | AV142: =[1]!srE2Rng($C$23,AS142) -> 2577.320307
F143: 1 | G143: 0 | H143: 3 | I143: 0 | J143: 0 | K143: 0 | L143: 7 | M143: 0 | N143: 0 | O143: A | P143: 0 | Q143: 0 | R143: =[2]!e5aEDthkI(ThEDtbl,F143:Q143) -> 235.87 | S143: 0.83 | T143: =[2]!e5aEDflgI2S(F143:Q143) -> 103000700A000 | U143: 3094.13 | AC143: =[1]!srRng2E($C$12,U143) -> 80.37703125 | AD143: =[1]!srEnewGas($C$13,AC143,$C$57,$C$61*100,$C$60) -> 78.86038451 | AE143: 3154.415381 | AF143: =[1]!srE2LETt($C$11,AD143,0) -> 2.336777742 | AH143: =[1]!srEnew($C$19,$AD143,$C$38) -> 72.10905583 | AI143: =[1]!srEnew($C$20,AH143,$C$39) -> 69.06027534 | AJ143: =[1]!srEnew($C$21,AI143,$C$40) -> 69.06027534 | AK143: =[1]!srEnew($C$23,AJ143,$C$41) -> 67.521046 | AL143: 2700.84184 | AM143: =[1]!srE2LETt($C$23,AK143,0) -> 2.625949162 | AN143: =[1]!srE2Rng($C$23,AK143) -> 2601.346944 | AO143: =[1]!srEnew($C$23,AK143,$C$42) -> 67.442921 | AP143: 2697.71684 | AQ143: =[1]!srE2LETt($C$23,AO143,0) -> 2.628362766 | AR143: =[1]!srE2Rng($C$23,AO143) -> 2596.346944 | AS143: =[1]!srEnew($C$23,AO143,$C$43) -> 67.130421 | AT143: 2685.21684 | AU143: =[1]!srE2LETt($C$23,AS143,0) -> 2.638017181 | AV143: =[1]!srE2Rng($C$23,AS143) -> 2576.346944
F144: 0 | G144: 2 | H144: 3 | I144: 0 | J144: 5 | K144: 6 | L144: 0 | M144: 0 | N144: 0 | O144: 0 | P144: 0 | Q144: 0 | R144: =[2]!e5aEDthkI(ThEDtbl,F144:Q144) -> 237.64 | S144: 1.77 | T144: =[2]!e5aEDflgI2S(F144:Q144) -> 0230560000000 | U144: 3092.36 | AC144: =[1]!srRng2E($C$12,U144) -> 80.349375 | AD144: =[1]!srEnewGas($C$13,AC144,$C$57,$C$61*100,$C$60) -> 78.83272826 | AE144: 3153.309131 | AF144: =[1]!srE2LETt($C$11,AD144,0) -> 2.337401949 | AH144: =[1]!srEnew($C$19,$AD144,$C$38) -> 72.07888538 | AI144: =[1]!srEnew($C$20,AH144,$C$39) -> 69.03010489 | AJ144: =[1]!srEnew($C$21,AI144,$C$40) -> 69.03010489 | AK144: =[1]!srEnew($C$23,AJ144,$C$41) -> 67.48861276 | AL144: 2699.54451 | AM144: =[1]!srE2LETt($C$23,AK144,0) -> 2.626951159 | AN144: =[1]!srE2Rng($C$23,AK144) -> 2599.271216 | AO144: =[1]!srEnew($C$23,AK144,$C$42) -> 67.41048776 | AP144: 2696.41951 | AQ144: =[1]!srE2LETt($C$23,AO144,0) -> 2.629364763 | AR144: =[1]!srE2Rng($C$23,AO144) -> 2594.271216 | AS144: =[1]!srEnew($C$23,AO144,$C$43) -> 67.09798776 | AT144: 2683.91951 | AU144: =[1]!srE2LETt($C$23,AS144,0) -> 2.639019178 | AV144: =[1]!srE2Rng($C$23,AS144) -> 2574.271216
F145: 0 | G145: 2 | H145: 3 | I145: 0 | J145: 0 | K145: 0 | L145: 7 | M145: 0 | N145: 0 | O145: A | P145: 0 | Q145: 0 | R145: =[2]!e5aEDthkI(ThEDtbl,F145:Q145) -> 238.47 | S145: 0.83 | T145: =[2]!e5aEDflgI2S(F145:Q145) -> 023000700A000 | U145: 3091.53 | AC145: =[1]!srRng2E($C$12,U145) -> 80.33640625 | AD145: =[1]!srEnewGas($C$13,AC145,$C$57,$C$61*100,$C$60) -> 78.81975951 | AE145: 3152.790381 | AF145: =[1]!srE2LETt($C$11,AD145,0) -> 2.337694656 | AH145: =[1]!srEnew($C$19,$AD145,$C$38) -> 72.06473765 | AI145: =[1]!srEnew($C$20,AH145,$C$39) -> 69.01595716 | AJ145: =[1]!srEnew($C$21,AI145,$C$40) -> 69.01595716 | AK145: =[1]!srEnew($C$23,AJ145,$C$41) -> 67.47340395 | AL145: 2698.936158 | AM145: =[1]!srE2LETt($C$23,AK145,0) -> 2.627421022 | AN145: =[1]!srE2Rng($C$23,AK145) -> 2598.297853 | AO145: =[1]!srEnew($C$23,AK145,$C$42) -> 67.39527895 | AP145: 2695.811158 | AQ145: =[1]!srE2LETt($C$23,AO145,0) -> 2.629834626 | AR145: =[1]!srE2Rng($C$23,AO145) -> 2593.297853 | AS145: =[1]!srEnew($C$23,AO145,$C$43) -> 67.08277895 | AT145: 2683.311158 | AU145: =[1]!srE2LETt($C$23,AS145,0) -> 2.639489041 | AV145: =[1]!srE2Rng($C$23,AS145) -> 2573.297853
F146: 1 | G146: 0 | H146: 3 | I146: 0 | J146: 5 | K146: 6 | L146: 0 | M146: 0 | N146: 0 | O146: A | P146: 0 | Q146: 0 | R146: =[2]!e5aEDthkI(ThEDtbl,F146:Q146) -> 240.52 | S146: 2.05 | T146: =[2]!e5aEDflgI2S(F146:Q146) -> 103056000A000 | U146: 3089.48 | AC146: =[1]!srRng2E($C$12,U146) -> 80.304375 | AD146: =[1]!srEnewGas($C$13,AC146,$C$57,$C$61*100,$C$60) -> 78.78772826 | AE146: 3151.509131 | AF146: =[1]!srE2LETt($C$11,AD146,0) -> 2.338417606 | AH146: =[1]!srEnew($C$19,$AD146,$C$38) -> 72.02979447 | AI146: =[1]!srEnew($C$20,AH146,$C$39) -> 68.98101398 | AJ146: =[1]!srEnew($C$21,AI146,$C$40) -> 68.98101398 | AK146: =[1]!srEnew($C$23,AJ146,$C$41) -> 67.43584003 | AL146: 2697.433601 | AM146: =[1]!srE2LETt($C$23,AK146,0) -> 2.628581526 | AN146: =[1]!srE2Rng($C$23,AK146) -> 2595.893762 | AO146: =[1]!srEnew($C$23,AK146,$C$42) -> 67.35771503 | AP146: 2694.308601 | AQ146: =[1]!srE2LETt($C$23,AO146,0) -> 2.63099513 | AR146: =[1]!srE2Rng($C$23,AO146) -> 2590.893762 | AS146: =[1]!srEnew($C$23,AO146,$C$43) -> 67.04521503 | AT146: 2681.808601 | AU146: =[1]!srE2LETt($C$23,AS146,0) -> 2.640649545 | AV146: =[1]!srE2Rng($C$23,AS146) -> 2570.893762
F147: 0 | G147: 2 | H147: 3 | I147: 0 | J147: 5 | K147: 6 | L147: 0 | M147: 0 | N147: 0 | O147: A | P147: 0 | Q147: 0 | R147: =[2]!e5aEDthkI(ThEDtbl,F147:Q147) -> 243.12 | S147: 2.6 | T147: =[2]!e5aEDflgI2S(F147:Q147) -> 023056000A000 | U147: 3086.88 | AC147: =[1]!srRng2E($C$12,U147) -> 80.26375 | AD147: =[1]!srEnewGas($C$13,AC147,$C$57,$C$61*100,$C$60) -> 78.74710326 | AE147: 3149.884131 | AF147: =[1]!srE2LETt($C$11,AD147,0) -> 2.33933452 | AH147: =[1]!srEnew($C$19,$AD147,$C$38) -> 71.98547629 | AI147: =[1]!srEnew($C$20,AH147,$C$39) -> 68.9366958 | AJ147: =[1]!srEnew($C$21,AI147,$C$40) -> 68.9366958 | AK147: =[1]!srEnew($C$23,AJ147,$C$41) -> 67.38819798 | AL147: 2695.527919 | AM147: =[1]!srE2LETt($C$23,AK147,0) -> 2.630053386 | AN147: =[1]!srE2Rng($C$23,AK147) -> 2592.844671 | AO147: =[1]!srEnew($C$23,AK147,$C$42) -> 67.31007298 | AP147: 2692.402919 | AQ147: =[1]!srE2LETt($C$23,AO147,0) -> 2.63246699 | AR147: =[1]!srE2Rng($C$23,AO147) -> 2587.844671 | AS147: =[1]!srEnew($C$23,AO147,$C$43) -> 66.99757298 | AT147: 2679.902919 | AU147: =[1]!srE2LETt($C$23,AS147,0) -> 2.642121405 | AV147: =[1]!srE2Rng($C$23,AS147) -> 2567.844671
F148: 1 | G148: 2 | H148: 3 | I148: 0 | J148: 0 | K148: 0 | L148: 7 | M148: 0 | N148: 0 | O148: 0 | P148: 0 | Q148: 0 | R148: =[2]!e5aEDthkI(ThEDtbl,F148:Q148) -> 243.19 | S148: 0.07 | T148: =[2]!e5aEDflgI2S(F148:Q148) -> 1230007000000 | U148: 3086.81 | AC148: =[1]!srRng2E($C$12,U148) -> 80.26265625 | AD148: =[1]!srEnewGas($C$13,AC148,$C$57,$C$61*100,$C$60) -> 78.74600951 | AE148: 3149.840381 | AF148: =[1]!srE2LETt($C$11,AD148,0) -> 2.339359206 | AH148: =[1]!srEnew($C$19,$AD148,$C$38) -> 71.98428311 | AI148: =[1]!srEnew($C$20,AH148,$C$39) -> 68.93550262 | AJ148: =[1]!srEnew($C$21,AI148,$C$40) -> 68.93550262 | AK148: =[1]!srEnew($C$23,AJ148,$C$41) -> 67.38691531 | AL148: 2695.476613 | AM148: =[1]!srE2LETt($C$23,AK148,0) -> 2.630093013 | AN148: =[1]!srE2Rng($C$23,AK148) -> 2592.76258 | AO148: =[1]!srEnew($C$23,AK148,$C$42) -> 67.30879031 | AP148: 2692.351613 | AQ148: =[1]!srE2LETt($C$23,AO148,0) -> 2.632506617 | AR148: =[1]!srE2Rng($C$23,AO148) -> 2587.76258 | AS148: =[1]!srEnew($C$23,AO148,$C$43) -> 66.99629031 | AT148: 2679.851613 | AU148: =[1]!srE2LETt($C$23,AS148,0) -> 2.642161032 | AV148: =[1]!srE2Rng($C$23,AS148) -> 2567.76258
F149: 0 | G149: 0 | H149: 0 | I149: 4 | J149: 0 | K149: 0 | L149: 7 | M149: 0 | N149: 0 | O149: 0 | P149: 0 | Q149: 0 | R149: =[2]!e5aEDthkI(ThEDtbl,F149:Q149) -> 244.98 | S149: 1.79 | T149: =[2]!e5aEDflgI2S(F149:Q149) -> 0004007000000 | U149: 3085.02 | AC149: =[1]!srRng2E($C$12,U149) -> 80.2346875 | AD149: =[1]!srEnewGas($C$13,AC149,$C$57,$C$61*100,$C$60) -> 78.71804076 | AE149: 3148.721631 | AF149: =[1]!srE2LETt($C$11,AD149,0) -> 2.339990466 | AH149: =[1]!srEnew($C$19,$AD149,$C$38) -> 71.95377174 | AI149: =[1]!srEnew($C$20,AH149,$C$39) -> 68.90499125 | AJ149: =[1]!srEnew($C$21,AI149,$C$40) -> 68.90499125 | AK149: =[1]!srEnew($C$23,AJ149,$C$41) -> 67.3541156 | AL149: 2694.164624 | AM149: =[1]!srE2LETt($C$23,AK149,0) -> 2.631106331 | AN149: =[1]!srE2Rng($C$23,AK149) -> 2590.663398 | AO149: =[1]!srEnew($C$23,AK149,$C$42) -> 67.2759906 | AP149: 2691.039624 | AQ149: =[1]!srE2LETt($C$23,AO149,0) -> 2.633519935 | AR149: =[1]!srE2Rng($C$23,AO149) -> 2585.663398 | AS149: =[1]!srEnew($C$23,AO149,$C$43) -> 66.9634906 | AT149: 2678.539624 | AU149: =[1]!srE2LETt($C$23,AS149,0) -> 2.64317435 | AV149: =[1]!srE2Rng($C$23,AS149) -> 2565.663398
F150: 1 | G150: 2 | H150: 3 | I150: 0 | J150: 5 | K150: 6 | L150: 0 | M150: 0 | N150: 0 | O150: 0 | P150: 0 | Q150: 0 | R150: =[2]!e5aEDthkI(ThEDtbl,F150:Q150) -> 247.84 | S150: 2.86 | T150: =[2]!e5aEDflgI2S(F150:Q150) -> 1230560000000 | U150: 3082.16 | AC150: =[1]!srRng2E($C$12,U150) -> 80.19 | AD150: =[1]!srEnewGas($C$13,AC150,$C$57,$C$61*100,$C$60) -> 78.67335326 | AE150: 3146.934131 | AF150: =[1]!srE2LETt($C$11,AD150,0) -> 2.34099907 | AH150: =[1]!srEnew($C$19,$AD150,$C$38) -> 71.90502174 | AI150: =[1]!srEnew($C$20,AH150,$C$39) -> 68.85624125 | AJ150: =[1]!srEnew($C$21,AI150,$C$40) -> 68.85624125 | AK150: =[1]!srEnew($C$23,AJ150,$C$41) -> 67.30170935 | AL150: 2692.068374 | AM150: =[1]!srE2LETt($C$23,AK150,0) -> 2.632725377 | AN150: =[1]!srE2Rng($C$23,AK150) -> 2587.309398 | AO150: =[1]!srEnew($C$23,AK150,$C$42) -> 67.22358435 | AP150: 2688.943374 | AQ150: =[1]!srE2LETt($C$23,AO150,0) -> 2.635138981 | AR150: =[1]!srE2Rng($C$23,AO150) -> 2582.309398 | AS150: =[1]!srEnew($C$23,AO150,$C$43) -> 66.91108435 | AT150: 2676.443374 | AU150: =[1]!srE2LETt($C$23,AS150,0) -> 2.644793396 | AV150: =[1]!srE2Rng($C$23,AS150) -> 2562.309398
F151: 1 | G151: 2 | H151: 3 | I151: 0 | J151: 0 | K151: 0 | L151: 7 | M151: 0 | N151: 0 | O151: A | P151: 0 | Q151: 0 | R151: =[2]!e5aEDthkI(ThEDtbl,F151:Q151) -> 248.67 | S151: 0.83 | T151: =[2]!e5aEDflgI2S(F151:Q151) -> 123000700A000 | U151: =$C$65-$R151 -> 3081.33 | AC151: =[1]!srRng2E($C$12,U151) -> 80.17703125 | AD151: =[1]!srEnewGas($C$13,AC151,$C$57,$C$61*100,$C$60) -> 78.66038451 | AE151: =AD151*$C$7 -> 3146.415381 | AF151: =[1]!srE2LETt($C$11,AD151,0) -> 2.341291777 | AH151: =[1]!srEnew($C$19,$AD151,$C$38) -> 71.89087401 | AI151: =[1]!srEnew($C$20,AH151,$C$39) -> 68.84209353 | AJ151: =[1]!srEnew($C$21,AI151,$C$40) -> 68.84209353 | AK151: =[1]!srEnew($C$23,AJ151,$C$41) -> 67.28650054 | AL151: =AK151*$C$7 -> 2691.460022 | AM151: =[1]!srE2LETt($C$23,AK151,0) -> 2.63319524 | AN151: =[1]!srE2Rng($C$23,AK151) -> 2586.336035 | AO151: =[1]!srEnew($C$23,AK151,$C$42) -> 67.20837554 | AP151: 2688.335022 | AQ151: =[1]!srE2LETt($C$23,AO151,0) -> 2.635608843 | AR151: =[1]!srE2Rng($C$23,AO151) -> 2581.336035 | AS151: =[1]!srEnew($C$23,AO151,$C$43) -> 66.89587554 | AT151: 2675.835022 | AU151: =[1]!srE2LETt($C$23,AS151,0) -> 2.645263258 | AV151: =[1]!srE2Rng($C$23,AS151) -> 2561.336035
F152: 0 | G152: 0 | H152: 0 | I152: 4 | J152: 5 | K152: 6 | L152: 0 | M152: 0 | N152: 0 | O152: 0 | P152: 0 | Q152: 0 | R152: =[2]!e5aEDthkI(ThEDtbl,F152:Q152) -> 249.63 | S152: 0.96 | T152: =[2]!e5aEDflgI2S(F152:Q152) -> 0004560000000 | U152: 3080.37 | AC152: =[1]!srRng2E($C$12,U152) -> 80.16203125 | AD152: =[1]!srEnewGas($C$13,AC152,$C$57,$C$61*100,$C$60) -> 78.64538451 | AE152: 3145.815381 | AF152: =[1]!srE2LETt($C$11,AD152,0) -> 2.34163033 | AH152: =[1]!srEnew($C$19,$AD152,$C$38) -> 71.87451038 | AI152: =[1]!srEnew($C$20,AH152,$C$39) -> 68.82572989 | AJ152: =[1]!srEnew($C$21,AI152,$C$40) -> 68.82572989 | AK152: =[1]!srEnew($C$23,AJ152,$C$41) -> 67.26890963 | AL152: 2690.756385 | AM152: =[1]!srE2LETt($C$23,AK152,0) -> 2.633738695 | AN152: =[1]!srE2Rng($C$23,AK152) -> 2585.210216 | AO152: =[1]!srEnew($C$23,AK152,$C$42) -> 67.19078463 | AP152: 2687.631385 | AQ152: =[1]!srE2LETt($C$23,AO152,0) -> 2.636152299 | AR152: =[1]!srE2Rng($C$23,AO152) -> 2580.210216 | AS152: =[1]!srEnew($C$23,AO152,$C$43) -> 66.87828463 | AT152: 2675.131385 | AU152: =[1]!srE2LETt($C$23,AS152,0) -> 2.645806714 | AV152: =[1]!srE2Rng($C$23,AS152) -> 2560.210216
F153: 0 | G153: 0 | H153: 0 | I153: 4 | J153: 0 | K153: 0 | L153: 7 | M153: 0 | N153: 0 | O153: A | P153: 0 | Q153: 0 | R153: =[2]!e5aEDthkI(ThEDtbl,F153:Q153) -> 250.46 | S153: 0.83 | T153: =[2]!e5aEDflgI2S(F153:Q153) -> 000400700A000 | U153: 3079.54 | AC153: =[1]!srRng2E($C$12,U153) -> 80.1490625 | AD153: =[1]!srEnewGas($C$13,AC153,$C$57,$C$61*100,$C$60) -> 78.63241576 | AE153: 3145.296631 | AF153: =[1]!srE2LETt($C$11,AD153,0) -> 2.341923037 | AH153: =[1]!srEnew($C$19,$AD153,$C$38) -> 71.86036265 | AI153: =[1]!srEnew($C$20,AH153,$C$39) -> 68.81158216 | AJ153: =[1]!srEnew($C$21,AI153,$C$40) -> 68.81158216 | AK153: =[1]!srEnew($C$23,AJ153,$C$41) -> 67.25370083 | AL153: 2690.148033 | AM153: =[1]!srE2LETt($C$23,AK153,0) -> 2.634208558 | AN153: =[1]!srE2Rng($C$23,AK153) -> 2584.236853 | AO153: =[1]!srEnew($C$23,AK153,$C$42) -> 67.17557583 | AP153: 2687.023033 | AQ153: =[1]!srE2LETt($C$23,AO153,0) -> 2.636622162 | AR153: =[1]!srE2Rng($C$23,AO153) -> 2579.236853 | AS153: =[1]!srEnew($C$23,AO153,$C$43) -> 66.86307583 | AT153: 2674.523033 | AU153: =[1]!srE2LETt($C$23,AS153,0) -> 2.646276577 | AV153: =[1]!srE2Rng($C$23,AS153) -> 2559.236853
F154: 1 | G154: 2 | H154: 3 | I154: 0 | J154: 5 | K154: 6 | L154: 0 | M154: 0 | N154: 0 | O154: A | P154: 0 | Q154: 0 | R154: =[2]!e5aEDthkI(ThEDtbl,F154:Q154) -> 253.32 | S154: 2.86 | T154: =[2]!e5aEDflgI2S(F154:Q154) -> 123056000A000 | U154: 3076.68 | AC154: =[1]!srRng2E($C$12,U154) -> 80.104375 | AD154: =[1]!srEnewGas($C$13,AC154,$C$57,$C$61*100,$C$60) -> 78.58772826 | AE154: 3143.509131 | AF154: =[1]!srE2LETt($C$11,AD154,0) -> 2.342931642 | AH154: =[1]!srEnew($C$19,$AD154,$C$38) -> 71.81161265 | AI154: =[1]!srEnew($C$20,AH154,$C$39) -> 68.76283216 | AJ154: =[1]!srEnew($C$21,AI154,$C$40) -> 68.76283216 | AK154: =[1]!srEnew($C$23,AJ154,$C$41) -> 67.20129458 | AL154: 2688.051783 | AM154: =[1]!srE2LETt($C$23,AK154,0) -> 2.635827604 | AN154: =[1]!srE2Rng($C$23,AK154) -> 2580.882853 | AO154: =[1]!srEnew($C$23,AK154,$C$42) -> 67.12316958 | AP154: =AO154*$C$7 -> 2684.926783 | AQ154: =[1]!srE2LETt($C$23,AO154,0) -> 2.638241207 | AR154: =[1]!srE2Rng($C$23,AO154) -> 2575.882853 | AS154: =[1]!srEnew($C$23,AO154,$C$43) -> 66.81066958 | AT154: =AS154*$C$7 -> 2672.426783 | AU154: =[1]!srE2LETt($C$23,AS154,0) -> 2.647895622 | AV154: =[1]!srE2Rng($C$23,AS154) -> 2555.882853
F155: 0 | G155: 0 | H155: 0 | I155: 4 | J155: 5 | K155: 6 | L155: 0 | M155: 0 | N155: 0 | O155: A | P155: 0 | Q155: 0 | R155: =[2]!e5aEDthkI(ThEDtbl,F155:Q155) -> 255.11 | S155: =R155-R154 -> 1.79 | T155: =[2]!e5aEDflgI2S(F155:Q155) -> 000456000A000 | U155: 3074.89 | AC155: =[1]!srRng2E($C$12,U155) -> 80.07640625 | AD155: =[1]!srEnewGas($C$13,AC155,$C$57,$C$61*100,$C$60) -> 78.55975951 | AE155: 3142.390381 | AF155: =[1]!srE2LETt($C$11,AD155,0) -> 2.343562901 | AH155: =[1]!srEnew($C$19,$AD155,$C$38) -> 71.78110129 | AI155: =[1]!srEnew($C$20,AH155,$C$39) -> 68.73092507 | AJ155: =[1]!srEnew($C$21,AI155,$C$40) -> 68.73092507 | AK155: =[1]!srEnew($C$23,AJ155,$C$41) -> 67.16842507 | AL155: 2686.737003 | AM155: =[1]!srE2LETt($C$23,AK155,0) -> 2.636843078 | AN155: =[1]!srE2Rng($C$23,AK155) -> 2578.779205 | AO155: =[1]!srEnew($C$23,AK155,$C$42) -> 67.09030007 | AP155: 2683.612003 | AQ155: =[1]!srE2LETt($C$23,AO155,0) -> 2.639256682 | AR155: =[1]!srE2Rng($C$23,AO155) -> 2573.779205 | AS155: =[1]!srEnew($C$23,AO155,$C$43) -> 66.77780007 | AT155: 2671.112003 | AU155: =[1]!srE2LETt($C$23,AS155,0) -> 2.648911097 | AV155: =[1]!srE2Rng($C$23,AS155) -> 2553.779205
F156: 1 | G156: 0 | H156: 0 | I156: 4 | J156: 0 | K156: 0 | L156: 7 | M156: 0 | N156: 0 | O156: 0 | P156: 0 | Q156: 0 | R156: =[2]!e5aEDthkI(ThEDtbl,F156:Q156) -> 255.18 | S156: 0.07 | T156: =[2]!e5aEDflgI2S(F156:Q156) -> 1004007000000 | U156: 3074.82 | AC156: =[1]!srRng2E($C$12,U156) -> 80.0753125 | AD156: =[1]!srEnewGas($C$13,AC156,$C$57,$C$61*100,$C$60) -> 78.55866576 | AE156: 3142.346631 | AF156: =[1]!srE2LETt($C$11,AD156,0) -> 2.343587587 | AH156: =[1]!srEnew($C$19,$AD156,$C$38) -> 71.77990811 | AI156: =[1]!srEnew($C$20,AH156,$C$39) -> 68.72963769 | AJ156: =[1]!srEnew($C$21,AI156,$C$40) -> 68.72963769 | AK156: =[1]!srEnew($C$23,AJ156,$C$41) -> 67.16713769 | AL156: 2686.685508 | AM156: =[1]!srE2LETt($C$23,AK156,0) -> 2.636882851 | AN156: =[1]!srE2Rng($C$23,AK156) -> 2578.696812 | AO156: =[1]!srEnew($C$23,AK156,$C$42) -> 67.08901269 | AP156: 2683.560508 | AQ156: =[1]!srE2LETt($C$23,AO156,0) -> 2.639296454 | AR156: =[1]!srE2Rng($C$23,AO156) -> 2573.696812 | AS156: =[1]!srEnew($C$23,AO156,$C$43) -> 66.77651269 | AT156: 2671.060508 | AU156: =[1]!srE2LETt($C$23,AS156,0) -> 2.648950869 | AV156: =[1]!srE2Rng($C$23,AS156) -> 2553.696812
F157: 0 | G157: 2 | H157: 0 | I157: 4 | J157: 0 | K157: 0 | L157: 7 | M157: 0 | N157: 0 | O157: 0 | P157: 0 | Q157: 0 | R157: =[2]!e5aEDthkI(ThEDtbl,F157:Q157) -> 257.78 | S157: 2.6 | T157: =[2]!e5aEDflgI2S(F157:Q157) -> 0204007000000 | U157: 3072.22 | AC157: =[1]!srRng2E($C$12,U157) -> 80.0346875 | AD157: =[1]!srEnewGas($C$13,AC157,$C$57,$C$61*100,$C$60) -> 78.51804076 | AE157: 3140.721631 | AF157: =[1]!srE2LETt($C$11,AD157,0) -> 2.344504501 | AH157: =[1]!srEnew($C$19,$AD157,$C$38) -> 71.73558992 | AI157: =[1]!srEnew($C$20,AH157,$C$39) -> 68.68182071 | AJ157: =[1]!srEnew($C$21,AI157,$C$40) -> 68.68182071 | AK157: =[1]!srEnew($C$23,AJ157,$C$41) -> 67.11932071 | AL157: 2684.772828 | AM157: =[1]!srE2LETt($C$23,AK157,0) -> 2.638360115 | AN157: =[1]!srE2Rng($C$23,AK157) -> 2575.636525 | AO157: =[1]!srEnew($C$23,AK157,$C$42) -> 67.04119571 | AP157: 2681.647828 | AQ157: =[1]!srE2LETt($C$23,AO157,0) -> 2.640773719 | AR157: =[1]!srE2Rng($C$23,AO157) -> 2570.636525 | AS157: =[1]!srEnew($C$23,AO157,$C$43) -> 66.72869571 | AT157: 2669.147828 | AU157: =[1]!srE2LETt($C$23,AS157,0) -> 2.650428134 | AV157: =[1]!srE2Rng($C$23,AS157) -> 2550.636525
F158: 1 | G158: 0 | H158: 0 | I158: 4 | J158: 5 | K158: 6 | L158: 0 | M158: 0 | N158: 0 | O158: 0 | P158: 0 | Q158: 0 | R158: =[2]!e5aEDthkI(ThEDtbl,F158:Q158) -> 259.83 | S158: 2.05 | T158: =[2]!e5aEDflgI2S(F158:Q158) -> 1004560000000 | U158: 3070.17 | AC158: =[1]!srRng2E($C$12,U158) -> 80.00265625 | AD158: =[1]!srEnewGas($C$13,AC158,$C$57,$C$61*100,$C$60) -> 78.48600951 | AE158: 3139.440381 | AF158: =[1]!srE2LETt($C$11,AD158,0) -> 2.345227452 | AH158: =[1]!srEnew($C$19,$AD158,$C$38) -> 71.70064674 | AI158: =[1]!srEnew($C$20,AH158,$C$39) -> 68.64411885 | AJ158: =[1]!srEnew($C$21,AI158,$C$40) -> 68.64411885 | AK158: =[1]!srEnew($C$23,AJ158,$C$41) -> 67.08161885 | AL158: 2683.264754 | AM158: =[1]!srE2LETt($C$23,AK158,0) -> 2.639524881 | AN158: =[1]!srE2Rng($C$23,AK158) -> 2573.223607 | AO158: =[1]!srEnew($C$23,AK158,$C$42) -> 67.00349385 | AP158: 2680.139754 | AQ158: =[1]!srE2LETt($C$23,AO158,0) -> 2.641938484 | AR158: =[1]!srE2Rng($C$23,AO158) -> 2568.223607 | AS158: =[1]!srEnew($C$23,AO158,$C$43) -> 66.69099385 | AT158: 2667.639754 | AU158: =[1]!srE2LETt($C$23,AS158,0) -> 2.651592899 | AV158: =[1]!srE2Rng($C$23,AS158) -> 2548.223607
F159: 1 | G159: 0 | H159: 0 | I159: 4 | J159: 0 | K159: 0 | L159: 7 | M159: 0 | N159: 0 | O159: A | P159: 0 | Q159: 0 | R159: =[2]!e5aEDthkI(ThEDtbl,F159:Q159) -> 260.66 | S159: 0.83 | T159: =[2]!e5aEDflgI2S(F159:Q159) -> 100400700A000 | U159: 3069.34 | AC159: =[1]!srRng2E($C$12,U159) -> 79.9896875 | AD159: =[1]!srEnewGas($C$13,AC159,$C$57,$C$61*100,$C$60) -> 78.47304076 | AE159: 3138.921631 | AF159: =[1]!srE2LETt($C$11,AD159,0) -> 2.345520159 | AH159: =[1]!srEnew($C$19,$AD159,$C$38) -> 71.68649901 | AI159: =[1]!srEnew($C$20,AH159,$C$39) -> 68.6288542 | AJ159: =[1]!srEnew($C$21,AI159,$C$40) -> 68.6288542 | AK159: =[1]!srEnew($C$23,AJ159,$C$41) -> 67.0663542 | AL159: 2682.654168 | AM159: =[1]!srE2LETt($C$23,AK159,0) -> 2.639996469 | AN159: =[1]!srE2Rng($C$23,AK159) -> 2572.246669 | AO159: =[1]!srEnew($C$23,AK159,$C$42) -> 66.9882292 | AP159: 2679.529168 | AQ159: =[1]!srE2LETt($C$23,AO159,0) -> 2.642410073 | AR159: =[1]!srE2Rng($C$23,AO159) -> 2567.246669 | AS159: =[1]!srEnew($C$23,AO159,$C$43) -> 66.6757292 | AT159: 2667.029168 | AU159: =[1]!srE2LETt($C$23,AS159,0) -> 2.652064488 | AV159: =[1]!srE2Rng($C$23,AS159) -> 2547.246669
F160: 0 | G160: 2 | H160: 0 | I160: 4 | J160: 5 | K160: 6 | L160: 0 | M160: 0 | N160: 0 | O160: 0 | P160: 0 | Q160: 0 | R160: =[2]!e5aEDthkI(ThEDtbl,F160:Q160) -> 262.43 | S160: 1.77 | T160: =[2]!e5aEDflgI2S(F160:Q160) -> 0204560000000 | U160: 3067.57 | AC160: =[1]!srRng2E($C$12,U160) -> 79.96203125 | AD160: =[1]!srEnewGas($C$13,AC160,$C$57,$C$61*100,$C$60) -> 78.44538451 | AE160: 3137.815381 | AF160: =[1]!srE2LETt($C$11,AD160,0) -> 2.346144365 | AH160: =[1]!srEnew($C$19,$AD160,$C$38) -> 71.65632856 | AI160: =[1]!srEnew($C$20,AH160,$C$39) -> 68.59630187 | AJ160: =[1]!srEnew($C$21,AI160,$C$40) -> 68.59630187 | AK160: =[1]!srEnew($C$23,AJ160,$C$41) -> 67.03380187 | AL160: 2681.352075 | AM160: =[1]!srE2LETt($C$23,AK160,0) -> 2.641002145 | AN160: =[1]!srE2Rng($C$23,AK160) -> 2570.16332 | AO160: =[1]!srEnew($C$23,AK160,$C$42) -> 66.95567687 | AP160: 2678.227075 | AQ160: =[1]!srE2LETt($C$23,AO160,0) -> 2.643415749 | AR160: =[1]!srE2Rng($C$23,AO160) -> 2565.16332 | AS160: =[1]!srEnew($C$23,AO160,$C$43) -> 66.64317687 | AT160: 2665.727075 | AU160: =[1]!srE2LETt($C$23,AS160,0) -> 2.653070164 | AV160: =[1]!srE2Rng($C$23,AS160) -> 2545.16332
F161: 0 | G161: 2 | H161: 0 | I161: 4 | J161: 0 | K161: 0 | L161: 7 | M161: 0 | N161: 0 | O161: A | P161: 0 | Q161: 0 | R161: =[2]!e5aEDthkI(ThEDtbl,F161:Q161) -> 263.26 | S161: 0.83 | T161: =[2]!e5aEDflgI2S(F161:Q161) -> 020400700A000 | U161: 3066.74 | AC161: =[1]!srRng2E($C$12,U161) -> 79.9490625 | AD161: =[1]!srEnewGas($C$13,AC161,$C$57,$C$61*100,$C$60) -> 78.43241576 | AE161: 3137.296631 | AF161: =[1]!srE2LETt($C$11,AD161,0) -> 2.346437072 | AH161: =[1]!srEnew($C$19,$AD161,$C$38) -> 71.64218083 | AI161: =[1]!srEnew($C$20,AH161,$C$39) -> 68.58103721 | AJ161: =[1]!srEnew($C$21,AI161,$C$40) -> 68.58103721 | AK161: =[1]!srEnew($C$23,AJ161,$C$41) -> 67.01853721 | AL161: 2680.741489 | AM161: =[1]!srE2LETt($C$23,AK161,0) -> 2.641473733 | AN161: =[1]!srE2Rng($C$23,AK161) -> 2569.186382 | AO161: =[1]!srEnew($C$23,AK161,$C$42) -> 66.94041221 | AP161: 2677.616489 | AQ161: =[1]!srE2LETt($C$23,AO161,0) -> 2.643887337 | AR161: =[1]!srE2Rng($C$23,AO161) -> 2564.186382 | AS161: =[1]!srEnew($C$23,AO161,$C$43) -> 66.62791221 | AT161: 2665.116489 | AU161: =[1]!srE2LETt($C$23,AS161,0) -> 2.653541752 | AV161: =[1]!srE2Rng($C$23,AS161) -> 2544.186382
F162: 1 | G162: 0 | H162: 0 | I162: 4 | J162: 5 | K162: 6 | L162: 0 | M162: 0 | N162: 0 | O162: A | P162: 0 | Q162: 0 | R162: =[2]!e5aEDthkI(ThEDtbl,F162:Q162) -> 265.31 | S162: 2.05 | T162: =[2]!e5aEDflgI2S(F162:Q162) -> 100456000A000 | U162: 3064.69 | AC162: =[1]!srRng2E($C$12,U162) -> 79.91703125 | AD162: =[1]!srEnewGas($C$13,AC162,$C$57,$C$61*100,$C$60) -> 78.40038451 | AE162: 3136.015381 | AF162: =[1]!srE2LETt($C$11,AD162,0) -> 2.347160023 | AH162: =[1]!srEnew($C$19,$AD162,$C$38) -> 71.60723765 | AI162: =[1]!srEnew($C$20,AH162,$C$39) -> 68.54333536 | AJ162: =[1]!srEnew($C$21,AI162,$C$40) -> 68.54333536 | AK162: =[1]!srEnew($C$23,AJ162,$C$41) -> 66.98083536 | AL162: 2679.233414 | AM162: =[1]!srE2LETt($C$23,AK162,0) -> 2.642638499 | AN162: =[1]!srE2Rng($C$23,AK162) -> 2566.773463 | AO162: =[1]!srEnew($C$23,AK162,$C$42) -> 66.90271036 | AP162: 2676.108414 | AQ162: =[1]!srE2LETt($C$23,AO162,0) -> 2.645052103 | AR162: =[1]!srE2Rng($C$23,AO162) -> 2561.773463 | AS162: =[1]!srEnew($C$23,AO162,$C$43) -> 66.59021036 | AT162: 2663.608414 | AU162: =[1]!srE2LETt($C$23,AS162,0) -> 2.654706518 | AV162: =[1]!srE2Rng($C$23,AS162) -> 2541.773463
F163: 0 | G163: 2 | H163: 0 | I163: 4 | J163: 5 | K163: 6 | L163: 0 | M163: 0 | N163: 0 | O163: A | P163: 0 | Q163: 0 | R163: =[2]!e5aEDthkI(ThEDtbl,F163:Q163) -> 267.91 | S163: 2.6 | T163: =[2]!e5aEDflgI2S(F163:Q163) -> 020456000A000 | U163: 3062.09 | AC163: =[1]!srRng2E($C$12,U163) -> 79.87640625 | AD163: =[1]!srEnewGas($C$13,AC163,$C$57,$C$61*100,$C$60) -> 78.35975951 | AE163: 3134.390381 | AF163: =[1]!srE2LETt($C$11,AD163,0) -> 2.348076936 | AH163: =[1]!srEnew($C$19,$AD163,$C$38) -> 71.56291947 | AI163: =[1]!srEnew($C$20,AH163,$C$39) -> 68.49551837 | AJ163: =[1]!srEnew($C$21,AI163,$C$40) -> 68.49551837 | AK163: =[1]!srEnew($C$23,AJ163,$C$41) -> 66.93301837 | AL163: 2677.320735 | AM163: =[1]!srE2LETt($C$23,AK163,0) -> 2.644115763 | AN163: =[1]!srE2Rng($C$23,AK163) -> 2563.713176 | AO163: =[1]!srEnew($C$23,AK163,$C$42) -> 66.85489337 | AP163: 2674.195735 | AQ163: =[1]!srE2LETt($C$23,AO163,0) -> 2.646529367 | AR163: =[1]!srE2Rng($C$23,AO163) -> 2558.713176 | AS163: =[1]!srEnew($C$23,AO163,$C$43) -> 66.54239337 | AT163: 2661.695735 | AU163: =[1]!srE2LETt($C$23,AS163,0) -> 2.656183782 | AV163: =[1]!srE2Rng($C$23,AS163) -> 2538.713176
F164: 1 | G164: 2 | H164: 0 | I164: 4 | J164: 0 | K164: 0 | L164: 7 | M164: 0 | N164: 0 | O164: 0 | P164: 0 | Q164: 0 | R164: =[2]!e5aEDthkI(ThEDtbl,F164:Q164) -> 267.98 | S164: 0.07 | T164: =[2]!e5aEDflgI2S(F164:Q164) -> 1204007000000 | U164: 3062.02 | AC164: =[1]!srRng2E($C$12,U164) -> 79.8753125 | AD164: =[1]!srEnewGas($C$13,AC164,$C$57,$C$61*100,$C$60) -> 78.35866576 | AE164: 3134.346631 | AF164: =[1]!srE2LETt($C$11,AD164,0) -> 2.348101623 | AH164: =[1]!srEnew($C$19,$AD164,$C$38) -> 71.56172629 | AI164: =[1]!srEnew($C$20,AH164,$C$39) -> 68.49423099 | AJ164: =[1]!srEnew($C$21,AI164,$C$40) -> 68.49423099 | AK164: =[1]!srEnew($C$23,AJ164,$C$41) -> 66.93173099 | AL164: 2677.26924 | AM164: =[1]!srE2LETt($C$23,AK164,0) -> 2.644155535 | AN164: =[1]!srE2Rng($C$23,AK164) -> 2563.630784 | AO164: =[1]!srEnew($C$23,AK164,$C$42) -> 66.85360599 | AP164: 2674.14424 | AQ164: =[1]!srE2LETt($C$23,AO164,0) -> 2.646569139 | AR164: =[1]!srE2Rng($C$23,AO164) -> 2558.630784 | AS164: =[1]!srEnew($C$23,AO164,$C$43) -> 66.54110599 | AT164: 2661.64424 | AU164: =[1]!srE2LETt($C$23,AS164,0) -> 2.656223554 | AV164: =[1]!srE2Rng($C$23,AS164) -> 2538.630784
F165: 0 | G165: 0 | H165: 3 | I165: 4 | J165: 0 | K165: 0 | L165: 7 | M165: 0 | N165: 0 | O165: 0 | P165: 0 | Q165: 0 | R165: =[2]!e5aEDthkI(ThEDtbl,F165:Q165) -> 268.78 | S165: 0.8 | T165: =[2]!e5aEDflgI2S(F165:Q165) -> 0034007000000 | U165: 3061.22 | AC165: =[1]!srRng2E($C$12,U165) -> 79.8628125 | AD165: =[1]!srEnewGas($C$13,AC165,$C$57,$C$61*100,$C$60) -> 78.34616576 | AE165: 3133.846631 | AF165: =[1]!srE2LETt($C$11,AD165,0) -> 2.34838375 | AH165: =[1]!srEnew($C$19,$AD165,$C$38) -> 71.54808992 | AI165: =[1]!srEnew($C$20,AH165,$C$39) -> 68.47951808 | AJ165: =[1]!srEnew($C$21,AI165,$C$40) -> 68.47951808 | AK165: =[1]!srEnew($C$23,AJ165,$C$41) -> 66.91701808 | AL165: 2676.680723 | AM165: =[1]!srE2LETt($C$23,AK165,0) -> 2.644610078 | AN165: =[1]!srE2Rng($C$23,AK165) -> 2562.689157 | AO165: =[1]!srEnew($C$23,AK165,$C$42) -> 66.83889308 | AP165: 2673.555723 | AQ165: =[1]!srE2LETt($C$23,AO165,0) -> 2.647023682 | AR165: =[1]!srE2Rng($C$23,AO165) -> 2557.689157 | AS165: =[1]!srEnew($C$23,AO165,$C$43) -> 66.52639308 | AT165: 2661.055723 | AU165: =[1]!srE2LETt($C$23,AS165,0) -> 2.656678097 | AV165: =[1]!srE2Rng($C$23,AS165) -> 2537.689157
F166: 1 | G166: 2 | H166: 0 | I166: 4 | J166: 5 | K166: 6 | L166: 0 | M166: 0 | N166: 0 | O166: 0 | P166: 0 | Q166: 0 | R166: =[2]!e5aEDthkI(ThEDtbl,F166:Q166) -> 272.63 | S166: 3.85 | T166: =[2]!e5aEDflgI2S(F166:Q166) -> 1204560000000 | U166: 3057.37 | AC166: =[1]!srRng2E($C$12,U166) -> 79.80265625 | AD166: =[1]!srEnewGas($C$13,AC166,$C$57,$C$61*100,$C$60) -> 78.28600951 | AE166: 3131.440381 | AF166: =[1]!srE2LETt($C$11,AD166,0) -> 2.349741487 | AH166: =[1]!srEnew($C$19,$AD166,$C$38) -> 71.48246492 | AI166: =[1]!srEnew($C$20,AH166,$C$39) -> 68.40871215 | AJ166: =[1]!srEnew($C$21,AI166,$C$40) -> 68.40871215 | AK166: =[1]!srEnew($C$23,AJ166,$C$41) -> 66.84621215 | AL166: 2673.848486 | AM166: =[1]!srE2LETt($C$23,AK166,0) -> 2.646797565 | AN166: =[1]!srE2Rng($C$23,AK166) -> 2558.157578 | AO166: =[1]!srEnew($C$23,AK166,$C$42) -> 66.76808715 | AP166: 2670.723486 | AQ166: =[1]!srE2LETt($C$23,AO166,0) -> 2.649211169 | AR166: =[1]!srE2Rng($C$23,AO166) -> 2553.157578 | AS166: =[1]!srEnew($C$23,AO166,$C$43) -> 66.45558715 | AT166: 2658.223486 | AU166: =[1]!srE2LETt($C$23,AS166,0) -> 2.658865584 | AV166: =[1]!srE2Rng($C$23,AS166) -> 2533.157578
F167: 0 | G167: 0 | H167: 3 | I167: 4 | J167: 5 | K167: 6 | L167: 0 | M167: 0 | N167: 0 | O167: 0 | P167: 0 | Q167: 0 | R167: =[2]!e5aEDthkI(ThEDtbl,F167:Q167) -> 273.43 | S167: 0.8 | T167: =[2]!e5aEDflgI2S(F167:Q167) -> 0034560000000 | U167: 3056.57 | AC167: =[1]!srRng2E($C$12,U167) -> 79.79015625 | AD167: =[1]!srEnewGas($C$13,AC167,$C$57,$C$61*100,$C$60) -> 78.27350951 | AE167: 3130.940381 | AF167: =[1]!srE2LETt($C$11,AD167,0) -> 2.350023614 | AH167: =[1]!srEnew($C$19,$AD167,$C$38) -> 71.46882856 | AI167: =[1]!srEnew($C$20,AH167,$C$39) -> 68.39399924 | AJ167: =[1]!srEnew($C$21,AI167,$C$40) -> 68.39399924 | AK167: =[1]!srEnew($C$23,AJ167,$C$41) -> 66.83149924 | AL167: 2673.259969 | AM167: =[1]!srE2LETt($C$23,AK167,0) -> 2.647252108 | AN167: =[1]!srE2Rng($C$23,AK167) -> 2557.215951 | AO167: =[1]!srEnew($C$23,AK167,$C$42) -> 66.75337424 | AP167: 2670.134969 | AQ167: =[1]!srE2LETt($C$23,AO167,0) -> 2.649665712 | AR167: =[1]!srE2Rng($C$23,AO167) -> 2552.215951 | AS167: =[1]!srEnew($C$23,AO167,$C$43) -> 66.44087424 | AT167: 2657.634969 | AU167: =[1]!srE2LETt($C$23,AS167,0) -> 2.659320127 | AV167: =[1]!srE2Rng($C$23,AS167) -> 2532.215951
F168: 1 | G168: 2 | H168: 0 | I168: 4 | J168: 0 | K168: 0 | L168: 7 | M168: 0 | N168: 0 | O168: A | P168: 0 | Q168: 0 | R168: =[2]!e5aEDthkI(ThEDtbl,F168:Q168) -> 273.46 | S168: 0.03 | T168: =[2]!e5aEDflgI2S(F168:Q168) -> 120400700A000 | U168: 3056.54 | AC168: =[1]!srRng2E($C$12,U168) -> 79.7896875 | AD168: =[1]!srEnewGas($C$13,AC168,$C$57,$C$61*100,$C$60) -> 78.27304076 | AE168: 3130.921631 | AF168: =[1]!srE2LETt($C$11,AD168,0) -> 2.350034194 | AH168: =[1]!srEnew($C$19,$AD168,$C$38) -> 71.4683172 | AI168: =[1]!srEnew($C$20,AH168,$C$39) -> 68.3934475 | AJ168: =[1]!srEnew($C$21,AI168,$C$40) -> 68.3934475 | AK168: =[1]!srEnew($C$23,AJ168,$C$41) -> 66.8309475 | AL168: 2673.2379 | AM168: =[1]!srE2LETt($C$23,AK168,0) -> 2.647269154 | AN168: =[1]!srE2Rng($C$23,AK168) -> 2557.18064 | AO168: =[1]!srEnew($C$23,AK168,$C$42) -> 66.7528225 | AP168: 2670.1129 | AQ168: =[1]!srE2LETt($C$23,AO168,0) -> 2.649682757 | AR168: =[1]!srE2Rng($C$23,AO168) -> 2552.18064 | AS168: =[1]!srEnew($C$23,AO168,$C$43) -> 66.4403225 | AT168: 2657.6129 | AU168: =[1]!srE2LETt($C$23,AS168,0) -> 2.659337172 | AV168: =[1]!srE2Rng($C$23,AS168) -> 2532.18064
F169: 0 | G169: 0 | H169: 3 | I169: 4 | J169: 0 | K169: 0 | L169: 7 | M169: 0 | N169: 0 | O169: A | P169: 0 | Q169: 0 | R169: =[2]!e5aEDthkI(ThEDtbl,F169:Q169) -> 274.26 | S169: 0.8 | T169: =[2]!e5aEDflgI2S(F169:Q169) -> 003400700A000 | U169: 3055.74 | AC169: =[1]!srRng2E($C$12,U169) -> 79.7771875 | AD169: =[1]!srEnewGas($C$13,AC169,$C$57,$C$61*100,$C$60) -> 78.26054076 | AE169: 3130.421631 | AF169: =[1]!srE2LETt($C$11,AD169,0) -> 2.350316321 | AH169: =[1]!srEnew($C$19,$AD169,$C$38) -> 71.45468083 | AI169: =[1]!srEnew($C$20,AH169,$C$39) -> 68.37873458 | AJ169: =[1]!srEnew($C$21,AI169,$C$40) -> 68.37873458 | AK169: =[1]!srEnew($C$23,AJ169,$C$41) -> 66.81623458 | AL169: 2672.649383 | AM169: =[1]!srE2LETt($C$23,AK169,0) -> 2.647723696 | AN169: =[1]!srE2Rng($C$23,AK169) -> 2556.239013 | AO169: =[1]!srEnew($C$23,AK169,$C$42) -> 66.73810958 | AP169: 2669.524383 | AQ169: =[1]!srE2LETt($C$23,AO169,0) -> 2.6501373 | AR169: =[1]!srE2Rng($C$23,AO169) -> 2551.239013 | AS169: =[1]!srEnew($C$23,AO169,$C$43) -> 66.42560958 | AT169: 2657.024383 | AU169: =[1]!srE2LETt($C$23,AS169,0) -> 2.659791715 | AV169: =[1]!srE2Rng($C$23,AS169) -> 2531.239013
F170: 1 | G170: 2 | H170: 0 | I170: 4 | J170: 5 | K170: 6 | L170: 0 | M170: 0 | N170: 0 | O170: A | P170: 0 | Q170: 0 | R170: =[2]!e5aEDthkI(ThEDtbl,F170:Q170) -> 278.11 | S170: 3.85 | T170: =[2]!e5aEDflgI2S(F170:Q170) -> 120456000A000 | U170: 3051.89 | AC170: =[1]!srRng2E($C$12,U170) -> 79.71703125 | AD170: =[1]!srEnewGas($C$13,AC170,$C$57,$C$61*100,$C$60) -> 78.20038451 | AE170: 3128.015381 | AF170: =[1]!srE2LETt($C$11,AD170,0) -> 2.351674058 | AH170: =[1]!srEnew($C$19,$AD170,$C$38) -> 71.38905583 | AI170: =[1]!srEnew($C$20,AH170,$C$39) -> 68.30792866 | AJ170: =[1]!srEnew($C$21,AI170,$C$40) -> 68.30792866 | AK170: =[1]!srEnew($C$23,AJ170,$C$41) -> 66.74542866 | AL170: 2669.817146 | AM170: =[1]!srE2LETt($C$23,AK170,0) -> 2.649911184 | AN170: =[1]!srE2Rng($C$23,AK170) -> 2551.707434 | AO170: =[1]!srEnew($C$23,AK170,$C$42) -> 66.66730366 | AP170: 2666.692146 | AQ170: =[1]!srE2LETt($C$23,AO170,0) -> 2.652324787 | AR170: =[1]!srE2Rng($C$23,AO170) -> 2546.707434 | AS170: =[1]!srEnew($C$23,AO170,$C$43) -> 66.35480366 | AT170: 2654.192146 | AU170: =[1]!srE2LETt($C$23,AS170,0) -> 2.661979202 | AV170: =[1]!srE2Rng($C$23,AS170) -> 2526.707434
F171: 0 | G171: 0 | H171: 3 | I171: 4 | J171: 5 | K171: 6 | L171: 0 | M171: 0 | N171: 0 | O171: A | P171: 0 | Q171: 0 | R171: =[2]!e5aEDthkI(ThEDtbl,F171:Q171) -> 278.91 | S171: 0.8 | T171: =[2]!e5aEDflgI2S(F171:Q171) -> 003456000A000 | U171: 3051.09 | AC171: =[1]!srRng2E($C$12,U171) -> 79.70453125 | AD171: =[1]!srEnewGas($C$13,AC171,$C$57,$C$61*100,$C$60) -> 78.18788451 | AE171: 3127.515381 | AF171: =[1]!srE2LETt($C$11,AD171,0) -> 2.351956185 | AH171: =[1]!srEnew($C$19,$AD171,$C$38) -> 71.37541947 | AI171: =[1]!srEnew($C$20,AH171,$C$39) -> 68.29321574 | AJ171: =[1]!srEnew($C$21,AI171,$C$40) -> 68.29321574 | AK171: =[1]!srEnew($C$23,AJ171,$C$41) -> 66.73071574 | AL171: 2669.22863 | AM171: =[1]!srE2LETt($C$23,AK171,0) -> 2.650365726 | AN171: =[1]!srE2Rng($C$23,AK171) -> 2550.765808 | AO171: =[1]!srEnew($C$23,AK171,$C$42) -> 66.65259074 | AP171: 2666.10363 | AQ171: =[1]!srE2LETt($C$23,AO171,0) -> 2.65277933 | AR171: =[1]!srE2Rng($C$23,AO171) -> 2545.765808 | AS171: =[1]!srEnew($C$23,AO171,$C$43) -> 66.34009074 | AT171: 2653.60363 | AU171: =[1]!srE2LETt($C$23,AS171,0) -> 2.662433745 | AV171: =[1]!srE2Rng($C$23,AS171) -> 2525.765808
F172: 1 | G172: 0 | H172: 3 | I172: 4 | J172: 0 | K172: 0 | L172: 7 | M172: 0 | N172: 0 | O172: 0 | P172: 0 | Q172: 0 | R172: =[2]!e5aEDthkI(ThEDtbl,F172:Q172) -> 278.98 | S172: 0.07 | T172: =[2]!e5aEDflgI2S(F172:Q172) -> 1034007000000 | U172: 3051.02 | AC172: =[1]!srRng2E($C$12,U172) -> 79.7034375 | AD172: =[1]!srEnewGas($C$13,AC172,$C$57,$C$61*100,$C$60) -> 78.18679076 | AE172: 3127.471631 | AF172: =[1]!srE2LETt($C$11,AD172,0) -> 2.351980872 | AH172: =[1]!srEnew($C$19,$AD172,$C$38) -> 71.37422629 | AI172: =[1]!srEnew($C$20,AH172,$C$39) -> 68.29192836 | AJ172: =[1]!srEnew($C$21,AI172,$C$40) -> 68.29192836 | AK172: =[1]!srEnew($C$23,AJ172,$C$41) -> 66.72942836 | AL172: 2669.177135 | AM172: =[1]!srE2LETt($C$23,AK172,0) -> 2.650405499 | AN172: =[1]!srE2Rng($C$23,AK172) -> 2550.683415 | AO172: =[1]!srEnew($C$23,AK172,$C$42) -> 66.65130336 | AP172: 2666.052135 | AQ172: =[1]!srE2LETt($C$23,AO172,0) -> 2.652819103 | AR172: =[1]!srE2Rng($C$23,AO172) -> 2545.683415 | AS172: =[1]!srEnew($C$23,AO172,$C$43) -> 66.33880336 | AT172: 2653.552135 | AU172: =[1]!srE2LETt($C$23,AS172,0) -> 2.662473518 | AV172: =[1]!srE2Rng($C$23,AS172) -> 2525.683415
F173: 0 | G173: 2 | H173: 3 | I173: 4 | J173: 0 | K173: 0 | L173: 7 | M173: 0 | N173: 0 | O173: 0 | P173: 0 | Q173: 0 | R173: =[2]!e5aEDthkI(ThEDtbl,F173:Q173) -> 281.58 | S173: 2.6 | T173: =[2]!e5aEDflgI2S(F173:Q173) -> 0234007000000 | U173: 3048.42 | AC173: =[1]!srRng2E($C$12,U173) -> 79.6628125 | AD173: =[1]!srEnewGas($C$13,AC173,$C$57,$C$61*100,$C$60) -> 78.14616576 | AE173: 3125.846631 | AF173: =[1]!srE2LETt($C$11,AD173,0) -> 2.352897785 | AH173: =[1]!srEnew($C$19,$AD173,$C$38) -> 71.32990811 | AI173: =[1]!srEnew($C$20,AH173,$C$39) -> 68.24411138 | AJ173: =[1]!srEnew($C$21,AI173,$C$40) -> 68.24411138 | AK173: =[1]!srEnew($C$23,AJ173,$C$41) -> 66.68161138 | AL173: 2667.264455 | AM173: =[1]!srE2LETt($C$23,AK173,0) -> 2.651882763 | AN173: =[1]!srE2Rng($C$23,AK173) -> 2547.623128 | AO173: =[1]!srEnew($C$23,AK173,$C$42) -> 66.60348638 | AP173: 2664.139455 | AQ173: =[1]!srE2LETt($C$23,AO173,0) -> 2.654296367 | AR173: =[1]!srE2Rng($C$23,AO173) -> 2542.623128 | AS173: =[1]!srEnew($C$23,AO173,$C$43) -> 66.29098638 | AT173: 2651.639455 | AU173: =[1]!srE2LETt($C$23,AS173,0) -> 2.663950782 | AV173: =[1]!srE2Rng($C$23,AS173) -> 2522.623128
F174: 1 | G174: 0 | H174: 3 | I174: 4 | J174: 5 | K174: 6 | L174: 0 | M174: 0 | N174: 0 | O174: 0 | P174: 0 | Q174: 0 | R174: =[2]!e5aEDthkI(ThEDtbl,F174:Q174) -> 283.63 | S174: 2.05 | T174: =[2]!e5aEDflgI2S(F174:Q174) -> 1034560000000 | U174: 3046.37 | AC174: =[1]!srRng2E($C$12,U174) -> 79.63078125 | AD174: =[1]!srEnewGas($C$13,AC174,$C$57,$C$61*100,$C$60) -> 78.11413451 | AE174: 3124.565381 | AF174: =[1]!srE2LETt($C$11,AD174,0) -> 2.353620736 | AH174: =[1]!srEnew($C$19,$AD174,$C$38) -> 71.29496492 | AI174: =[1]!srEnew($C$20,AH174,$C$39) -> 68.20640952 | AJ174: =[1]!srEnew($C$21,AI174,$C$40) -> 68.20640952 | AK174: =[1]!srEnew($C$23,AJ174,$C$41) -> 66.64390952 | AL174: 2665.756381 | AM174: =[1]!srE2LETt($C$23,AK174,0) -> 2.653047529 | AN174: =[1]!srE2Rng($C$23,AK174) -> 2545.210209 | AO174: =[1]!srEnew($C$23,AK174,$C$42) -> 66.56578452 | AP174: 2662.631381 | AQ174: =[1]!srE2LETt($C$23,AO174,0) -> 2.655461133 | AR174: =[1]!srE2Rng($C$23,AO174) -> 2540.210209 | AS174: =[1]!srEnew($C$23,AO174,$C$43) -> 66.25328452 | AT174: 2650.131381 | AU174: =[1]!srE2LETt($C$23,AS174,0) -> 2.665115548 | AV174: =[1]!srE2Rng($C$23,AS174) -> 2520.210209
F175: 1 | G175: 0 | H175: 3 | I175: 4 | J175: 0 | K175: 0 | L175: 7 | M175: 0 | N175: 0 | O175: A | P175: 0 | Q175: 0 | R175: =[2]!e5aEDthkI(ThEDtbl,F175:Q175) -> 284.46 | S175: 0.83 | T175: =[2]!e5aEDflgI2S(F175:Q175) -> 103400700A000 | U175: 3045.54 | AC175: =[1]!srRng2E($C$12,U175) -> 79.6178125 | AD175: =[1]!srEnewGas($C$13,AC175,$C$57,$C$61*100,$C$60) -> 78.10116576 | AE175: 3124.046631 | AF175: =[1]!srE2LETt($C$11,AD175,0) -> 2.353913443 | AH175: =[1]!srEnew($C$19,$AD175,$C$38) -> 71.2808172 | AI175: =[1]!srEnew($C$20,AH175,$C$39) -> 68.19114487 | AJ175: =[1]!srEnew($C$21,AI175,$C$40) -> 68.19114487 | AK175: =[1]!srEnew($C$23,AJ175,$C$41) -> 66.62864487 | AL175: 2665.145795 | AM175: =[1]!srE2LETt($C$23,AK175,0) -> 2.653519117 | AN175: =[1]!srE2Rng($C$23,AK175) -> 2544.233272 | AO175: =[1]!srEnew($C$23,AK175,$C$42) -> 66.55051987 | AP175: 2662.020795 | AQ175: =[1]!srE2LETt($C$23,AO175,0) -> 2.655932721 | AR175: =[1]!srE2Rng($C$23,AO175) -> 2539.233272 | AS175: =[1]!srEnew($C$23,AO175,$C$43) -> 66.23801987 | AT175: 2649.520795 | AU175: =[1]!srE2LETt($C$23,AS175,0) -> 2.665587136 | AV175: =[1]!srE2Rng($C$23,AS175) -> 2519.233272
F176: 0 | G176: 2 | H176: 3 | I176: 4 | J176: 5 | K176: 6 | L176: 0 | M176: 0 | N176: 0 | O176: 0 | P176: 0 | Q176: 0 | R176: =[2]!e5aEDthkI(ThEDtbl,F176:Q176) -> 286.23 | S176: 1.77 | T176: =[2]!e5aEDflgI2S(F176:Q176) -> 0234560000000 | U176: 3043.77 | AC176: =[1]!srRng2E($C$12,U176) -> 79.59015625 | AD176: =[1]!srEnewGas($C$13,AC176,$C$57,$C$61*100,$C$60) -> 78.07350951 | AE176: 3122.940381 | AF176: =[1]!srE2LETt($C$11,AD176,0) -> 2.354537649 | AH176: =[1]!srEnew($C$19,$AD176,$C$38) -> 71.25064674 | AI176: =[1]!srEnew($C$20,AH176,$C$39) -> 68.15859254 | AJ176: =[1]!srEnew($C$21,AI176,$C$40) -> 68.15859254 | AK176: =[1]!srEnew($C$23,AJ176,$C$41) -> 66.59609254 | AL176: 2663.843701 | AM176: =[1]!srE2LETt($C$23,AK176,0) -> 2.654524793 | AN176: =[1]!srE2Rng($C$23,AK176) -> 2542.149922 | AO176: =[1]!srEnew($C$23,AK176,$C$42) -> 66.51796754 | AP176: 2660.718701 | AQ176: =[1]!srE2LETt($C$23,AO176,0) -> 2.656938397 | AR176: =[1]!srE2Rng($C$23,AO176) -> 2537.149922 | AS176: =[1]!srEnew($C$23,AO176,$C$43) -> 66.20546754 | AT176: 2648.218701 | AU176: =[1]!srE2LETt($C$23,AS176,0) -> 2.666592812 | AV176: =[1]!srE2Rng($C$23,AS176) -> 2517.149922
F177: 0 | G177: 2 | H177: 3 | I177: 4 | J177: 0 | K177: 0 | L177: 7 | M177: 0 | N177: 0 | O177: A | P177: 0 | Q177: 0 | R177: =[2]!e5aEDthkI(ThEDtbl,F177:Q177) -> 287.06 | S177: 0.83 | T177: =[2]!e5aEDflgI2S(F177:Q177) -> 023400700A000 | U177: 3042.94 | AC177: =[1]!srRng2E($C$12,U177) -> 79.5771875 | AD177: =[1]!srEnewGas($C$13,AC177,$C$57,$C$61*100,$C$60) -> 78.06054076 | AE177: 3122.421631 | AF177: =[1]!srE2LETt($C$11,AD177,0) -> 2.354830356 | AH177: =[1]!srEnew($C$19,$AD177,$C$38) -> 71.23649901 | AI177: =[1]!srEnew($C$20,AH177,$C$39) -> 68.14332788 | AJ177: =[1]!srEnew($C$21,AI177,$C$40) -> 68.14332788 | AK177: =[1]!srEnew($C$23,AJ177,$C$41) -> 66.58082788 | AL177: 2663.233115 | AM177: =[1]!srE2LETt($C$23,AK177,0) -> 2.654996381 | AN177: =[1]!srE2Rng($C$23,AK177) -> 2541.172985 | AO177: =[1]!srEnew($C$23,AK177,$C$42) -> 66.50270288 | AP177: 2660.108115 | AQ177: =[1]!srE2LETt($C$23,AO177,0) -> 2.657409985 | AR177: =[1]!srE2Rng($C$23,AO177) -> 2536.172985 | AS177: =[1]!srEnew($C$23,AO177,$C$43) -> 66.19020288 | AT177: 2647.608115 | AU177: =[1]!srE2LETt($C$23,AS177,0) -> 2.6670644 | AV177: =[1]!srE2Rng($C$23,AS177) -> 2516.172985
F178: 1 | G178: 0 | H178: 3 | I178: 4 | J178: 5 | K178: 6 | L178: 0 | M178: 0 | N178: 0 | O178: A | P178: 0 | Q178: 0 | R178: =[2]!e5aEDthkI(ThEDtbl,F178:Q178) -> 289.11 | S178: 2.05 | T178: =[2]!e5aEDflgI2S(F178:Q178) -> 103456000A000 | U178: 3040.89 | AC178: =[1]!srRng2E($C$12,U178) -> 79.54515625 | AD178: =[1]!srEnewGas($C$13,AC178,$C$57,$C$61*100,$C$60) -> 78.02850951 | AE178: 3121.140381 | AF178: =[1]!srE2LETt($C$11,AD178,0) -> 2.355553307 | AH178: =[1]!srEnew($C$19,$AD178,$C$38) -> 71.20155583 | AI178: =[1]!srEnew($C$20,AH178,$C$39) -> 68.10562603 | AJ178: =[1]!srEnew($C$21,AI178,$C$40) -> 68.10562603 | AK178: =[1]!srEnew($C$23,AJ178,$C$41) -> 66.54312603 | AL178: 2661.725041 | AM178: =[1]!srE2LETt($C$23,AK178,0) -> 2.656161147 | AN178: =[1]!srE2Rng($C$23,AK178) -> 2538.760066 | AO178: =[1]!srEnew($C$23,AK178,$C$42) -> 66.46500103 | AP178: 2658.600041 | AQ178: =[1]!srE2LETt($C$23,AO178,0) -> 2.658574751 | AR178: =[1]!srE2Rng($C$23,AO178) -> 2533.760066 | AS178: =[1]!srEnew($C$23,AO178,$C$43) -> 66.15250103 | AT178: 2646.100041 | AU178: =[1]!srE2LETt($C$23,AS178,0) -> 2.668229166 | AV178: =[1]!srE2Rng($C$23,AS178) -> 2513.760066
F179: 0 | G179: 2 | H179: 3 | I179: 4 | J179: 5 | K179: 6 | L179: 0 | M179: 0 | N179: 0 | O179: A | P179: 0 | Q179: 0 | R179: =[2]!e5aEDthkI(ThEDtbl,F179:Q179) -> 291.71 | S179: 2.6 | T179: =[2]!e5aEDflgI2S(F179:Q179) -> 023456000A000 | U179: 3038.29 | AC179: =[1]!srRng2E($C$12,U179) -> 79.50453125 | AD179: =[1]!srEnewGas($C$13,AC179,$C$57,$C$61*100,$C$60) -> 77.98788451 | AE179: 3119.515381 | AF179: =[1]!srE2LETt($C$11,AD179,0) -> 2.356470221 | AH179: =[1]!srEnew($C$19,$AD179,$C$38) -> 71.15723765 | AI179: =[1]!srEnew($C$20,AH179,$C$39) -> 68.05780904 | AJ179: =[1]!srEnew($C$21,AI179,$C$40) -> 68.05780904 | AK179: =[1]!srEnew($C$23,AJ179,$C$41) -> 66.49530904 | AL179: 2659.812362 | AM179: =[1]!srE2LETt($C$23,AK179,0) -> 2.657638411 | AN179: =[1]!srE2Rng($C$23,AK179) -> 2535.699779 | AO179: =[1]!srEnew($C$23,AK179,$C$42) -> 66.41718404 | AP179: 2656.687362 | AQ179: =[1]!srE2LETt($C$23,AO179,0) -> 2.660052015 | AR179: =[1]!srE2Rng($C$23,AO179) -> 2530.699779 | AS179: =[1]!srEnew($C$23,AO179,$C$43) -> 66.10468404 | AT179: 2644.187362 | AU179: =[1]!srE2LETt($C$23,AS179,0) -> 2.66970643 | AV179: =[1]!srE2Rng($C$23,AS179) -> 2510.699779
F180: 1 | G180: 2 | H180: 3 | I180: 4 | J180: 0 | K180: 0 | L180: 7 | M180: 0 | N180: 0 | O180: 0 | P180: 0 | Q180: 0 | R180: =[2]!e5aEDthkI(ThEDtbl,F180:Q180) -> 291.78 | S180: 0.07 | T180: =[2]!e5aEDflgI2S(F180:Q180) -> 1234007000000 | U180: 3038.22 | AC180: =[1]!srRng2E($C$12,U180) -> 79.5034375 | AD180: =[1]!srEnewGas($C$13,AC180,$C$57,$C$61*100,$C$60) -> 77.98679076 | AE180: 3119.471631 | AF180: =[1]!srE2LETt($C$11,AD180,0) -> 2.356494907 | AH180: =[1]!srEnew($C$19,$AD180,$C$38) -> 71.15604447 | AI180: =[1]!srEnew($C$20,AH180,$C$39) -> 68.05652166 | AJ180: =[1]!srEnew($C$21,AI180,$C$40) -> 68.05652166 | AK180: =[1]!srEnew($C$23,AJ180,$C$41) -> 66.49402166 | AL180: 2659.760867 | AM180: =[1]!srE2LETt($C$23,AK180,0) -> 2.657678183 | AN180: =[1]!srE2Rng($C$23,AK180) -> 2535.617386 | AO180: =[1]!srEnew($C$23,AK180,$C$42) -> 66.41589666 | AP180: 2656.635867 | AQ180: =[1]!srE2LETt($C$23,AO180,0) -> 2.660091787 | AR180: =[1]!srE2Rng($C$23,AO180) -> 2530.617386 | AS180: =[1]!srEnew($C$23,AO180,$C$43) -> 66.10339666 | AT180: 2644.135867 | AU180: =[1]!srE2LETt($C$23,AS180,0) -> 2.669746202 | AV180: =[1]!srE2Rng($C$23,AS180) -> 2510.617386
F181: 1 | G181: 2 | H181: 3 | I181: 4 | J181: 5 | K181: 6 | L181: 0 | M181: 0 | N181: 0 | O181: 0 | P181: 0 | Q181: 0 | R181: =[2]!e5aEDthkI(ThEDtbl,F181:Q181) -> 296.43 | S181: 4.65 | T181: =[2]!e5aEDflgI2S(F181:Q181) -> 1234560000000 | U181: 3033.57 | AC181: =[1]!srRng2E($C$12,U181) -> 79.43078125 | AD181: =[1]!srEnewGas($C$13,AC181,$C$57,$C$61*100,$C$60) -> 77.91413451 | AE181: 3116.565381 | AF181: =[1]!srE2LETt($C$11,AD181,0) -> 2.358134771 | AH181: =[1]!srEnew($C$19,$AD181,$C$38) -> 71.07678311 | AI181: =[1]!srEnew($C$20,AH181,$C$39) -> 67.97100282 | AJ181: =[1]!srEnew($C$21,AI181,$C$40) -> 67.97100282 | AK181: =[1]!srEnew($C$23,AJ181,$C$41) -> 66.40850282 | AL181: 2656.340113 | AM181: =[1]!srE2LETt($C$23,AK181,0) -> 2.660320213 | AN181: =[1]!srE2Rng($C$23,AK181) -> 2530.144181 | AO181: =[1]!srEnew($C$23,AK181,$C$42) -> 66.33037782 | AP181: 2653.215113 | AQ181: =[1]!srE2LETt($C$23,AO181,0) -> 2.662733817 | AR181: =[1]!srE2Rng($C$23,AO181) -> 2525.144181 | AS181: =[1]!srEnew($C$23,AO181,$C$43) -> 66.01787782 | AT181: 2640.715113 | AU181: =[1]!srE2LETt($C$23,AS181,0) -> 2.672388232 | AV181: =[1]!srE2Rng($C$23,AS181) -> 2505.144181
F182: 0 | G182: 0 | H182: 0 | I182: 0 | J182: 5 | K182: 0 | L182: 7 | M182: 0 | N182: 0 | O182: 0 | P182: 0 | Q182: 0 | R182: =[2]!e5aEDthkI(ThEDtbl,F182:Q182) -> 296.63 | S182: 0.2 | T182: =[2]!e5aEDflgI2S(F182:Q182) -> 0000507000000 | U182: 3033.37 | AC182: =[1]!srRng2E($C$12,U182) -> 79.42765625 | AD182: =[1]!srEnewGas($C$13,AC182,$C$57,$C$61*100,$C$60) -> 77.91100951 | AE182: 3116.440381 | AF182: =[1]!srE2LETt($C$11,AD182,0) -> 2.358205303 | AH182: =[1]!srEnew($C$19,$AD182,$C$38) -> 71.07337401 | AI182: =[1]!srEnew($C$20,AH182,$C$39) -> 67.96732459 | AJ182: =[1]!srEnew($C$21,AI182,$C$40) -> 67.96732459 | AK182: =[1]!srEnew($C$23,AJ182,$C$41) -> 66.40482459 | AL182: 2656.192984 | AM182: =[1]!srE2LETt($C$23,AK182,0) -> 2.660433849 | AN182: =[1]!srE2Rng($C$23,AK182) -> 2529.908774 | AO182: =[1]!srEnew($C$23,AK182,$C$42) -> 66.32669959 | AP182: 2653.067984 | AQ182: =[1]!srE2LETt($C$23,AO182,0) -> 2.662847453 | AR182: =[1]!srE2Rng($C$23,AO182) -> 2524.908774 | AS182: =[1]!srEnew($C$23,AO182,$C$43) -> 66.01419959 | AT182: 2640.567984 | AU182: =[1]!srE2LETt($C$23,AS182,0) -> 2.672501868 | AV182: =[1]!srE2Rng($C$23,AS182) -> 2504.908774
F183: 0 | G183: 0 | H183: 0 | I183: 0 | J183: 0 | K183: 6 | L183: 7 | M183: 0 | N183: 0 | O183: 0 | P183: 0 | Q183: 0 | R183: =[2]!e5aEDthkI(ThEDtbl,F183:Q183) -> 297.19 | S183: 0.56 | T183: =[2]!e5aEDflgI2S(F183:Q183) -> 0000067000000 | U183: 3032.81 | AC183: =[1]!srRng2E($C$12,U183) -> 79.41890625 | AD183: =[1]!srEnewGas($C$13,AC183,$C$57,$C$61*100,$C$60) -> 77.90225951 | AE183: 3116.090381 | AF183: =[1]!srE2LETt($C$11,AD183,0) -> 2.358402792 | AH183: =[1]!srEnew($C$19,$AD183,$C$38) -> 71.06382856 | AI183: =[1]!srEnew($C$20,AH183,$C$39) -> 67.95702555 | AJ183: =[1]!srEnew($C$21,AI183,$C$40) -> 67.95702555 | AK183: =[1]!srEnew($C$23,AJ183,$C$41) -> 66.39452555 | AL183: 2655.781022 | AM183: =[1]!srE2LETt($C$23,AK183,0) -> 2.660752029 | AN183: =[1]!srE2Rng($C$23,AK183) -> 2529.249635 | AO183: =[1]!srEnew($C$23,AK183,$C$42) -> 66.31640055 | AP183: 2652.656022 | AQ183: =[1]!srE2LETt($C$23,AO183,0) -> 2.663165633 | AR183: =[1]!srE2Rng($C$23,AO183) -> 2524.249635 | AS183: =[1]!srEnew($C$23,AO183,$C$43) -> 66.00390055 | AT183: 2640.156022 | AU183: =[1]!srE2LETt($C$23,AS183,0) -> 2.672820048 | AV183: =[1]!srE2Rng($C$23,AS183) -> 2504.249635
F184: 1 | G184: 2 | H184: 3 | I184: 4 | J184: 0 | K184: 0 | L184: 7 | M184: 0 | N184: 0 | O184: A | P184: 0 | Q184: 0 | R184: =[2]!e5aEDthkI(ThEDtbl,F184:Q184) -> 297.26 | S184: 0.07 | T184: =[2]!e5aEDflgI2S(F184:Q184) -> 123400700A000 | U184: 3032.74 | AC184: =[1]!srRng2E($C$12,U184) -> 79.4178125 | AD184: =[1]!srEnewGas($C$13,AC184,$C$57,$C$61*100,$C$60) -> 77.90116576 | AE184: 3116.046631 | AF184: =[1]!srE2LETt($C$11,AD184,0) -> 2.358427478 | AH184: =[1]!srEnew($C$19,$AD184,$C$38) -> 71.06263538 | AI184: =[1]!srEnew($C$20,AH184,$C$39) -> 67.95573817 | AJ184: =[1]!srEnew($C$21,AI184,$C$40) -> 67.95573817 | AK184: =[1]!srEnew($C$23,AJ184,$C$41) -> 66.39323817 | AL184: 2655.729527 | AM184: =[1]!srE2LETt($C$23,AK184,0) -> 2.660791802 | AN184: =[1]!srE2Rng($C$23,AK184) -> 2529.167243 | AO184: =[1]!srEnew($C$23,AK184,$C$42) -> 66.31511317 | AP184: 2652.604527 | AQ184: =[1]!srE2LETt($C$23,AO184,0) -> 2.663205405 | AR184: =[1]!srE2Rng($C$23,AO184) -> 2524.167243 | AS184: =[1]!srEnew($C$23,AO184,$C$43) -> 66.00261317 | AT184: 2640.104527 | AU184: =[1]!srE2LETt($C$23,AS184,0) -> 2.67285982 | AV184: =[1]!srE2Rng($C$23,AS184) -> 2504.167243
F185: 1 | G185: 2 | H185: 3 | I185: 4 | J185: 5 | K185: 6 | L185: 0 | M185: 0 | N185: 0 | O185: A | P185: 0 | Q185: 0 | R185: =[2]!e5aEDthkI(ThEDtbl,F185:Q185) -> 301.91 | S185: 4.65 | T185: =[2]!e5aEDflgI2S(F185:Q185) -> 123456000A000 | U185: 3028.09 | AC185: =[1]!srRng2E($C$12,U185) -> 79.34515625 | AD185: =[1]!srEnewGas($C$13,AC185,$C$57,$C$61*100,$C$60) -> 77.82850951 | AE185: 3113.140381 | AF185: =[1]!srE2LETt($C$11,AD185,0) -> 2.360067342 | AH185: =[1]!srEnew($C$19,$AD185,$C$38) -> 70.98337401 | AI185: =[1]!srEnew($C$20,AH185,$C$39) -> 67.87021933 | AJ185: =[1]!srEnew($C$21,AI185,$C$40) -> 67.87021933 | AK185: =[1]!srEnew($C$23,AJ185,$C$41) -> 66.30771933 | AL185: 2652.308773 | AM185: =[1]!srE2LETt($C$23,AK185,0) -> 2.663433832 | AN185: =[1]!srE2Rng($C$23,AK185) -> 2523.694037 | AO185: =[1]!srEnew($C$23,AK185,$C$42) -> 66.22959433 | AP185: 2649.183773 | AQ185: =[1]!srE2LETt($C$23,AO185,0) -> 2.665847435 | AR185: =[1]!srE2Rng($C$23,AO185) -> 2518.694037 | AS185: =[1]!srEnew($C$23,AO185,$C$43) -> 65.91709433 | AT185: 2636.683773 | AU185: =[1]!srE2LETt($C$23,AS185,0) -> 2.67550185 | AV185: =[1]!srE2Rng($C$23,AS185) -> 2498.694037
F186: 0 | G186: 0 | H186: 0 | I186: 0 | J186: 5 | K186: 0 | L186: 7 | M186: 0 | N186: 0 | O186: A | P186: 0 | Q186: 0 | R186: =[2]!e5aEDthkI(ThEDtbl,F186:Q186) -> 302.11 | S186: 0.2 | T186: =[2]!e5aEDflgI2S(F186:Q186) -> 000050700A000 | U186: 3027.89 | AC186: =[1]!srRng2E($C$12,U186) -> 79.34203125 | AD186: =[1]!srEnewGas($C$13,AC186,$C$57,$C$61*100,$C$60) -> 77.82538451 | AE186: 3113.015381 | AF186: =[1]!srE2LETt($C$11,AD186,0) -> 2.360137874 | AH186: =[1]!srEnew($C$19,$AD186,$C$38) -> 70.97996492 | AI186: =[1]!srEnew($C$20,AH186,$C$39) -> 67.8665411 | AJ186: =[1]!srEnew($C$21,AI186,$C$40) -> 67.8665411 | AK186: =[1]!srEnew($C$23,AJ186,$C$41) -> 66.3040411 | AL186: 2652.161644 | AM186: =[1]!srE2LETt($C$23,AK186,0) -> 2.663547467 | AN186: =[1]!srE2Rng($C$23,AK186) -> 2523.458631 | AO186: =[1]!srEnew($C$23,AK186,$C$42) -> 66.2259161 | AP186: 2649.036644 | AQ186: =[1]!srE2LETt($C$23,AO186,0) -> 2.665961071 | AR186: =[1]!srE2Rng($C$23,AO186) -> 2518.458631 | AS186: =[1]!srEnew($C$23,AO186,$C$43) -> 65.9134161 | AT186: 2636.536644 | AU186: =[1]!srE2LETt($C$23,AS186,0) -> 2.675615486 | AV186: =[1]!srE2Rng($C$23,AS186) -> 2498.458631
F187: 0 | G187: 0 | H187: 0 | I187: 0 | J187: 0 | K187: 6 | L187: 7 | M187: 0 | N187: 0 | O187: A | P187: 0 | Q187: 0 | R187: =[2]!e5aEDthkI(ThEDtbl,F187:Q187) -> 302.67 | S187: 0.56 | T187: =[2]!e5aEDflgI2S(F187:Q187) -> 000006700A000 | U187: 3027.33 | AC187: =[1]!srRng2E($C$12,U187) -> 79.33328125 | AD187: =[1]!srEnewGas($C$13,AC187,$C$57,$C$61*100,$C$60) -> 77.81663451 | AE187: 3112.665381 | AF187: =[1]!srE2LETt($C$11,AD187,0) -> 2.360335363 | AH187: =[1]!srEnew($C$19,$AD187,$C$38) -> 70.97041947 | AI187: =[1]!srEnew($C$20,AH187,$C$39) -> 67.85624206 | AJ187: =[1]!srEnew($C$21,AI187,$C$40) -> 67.85624206 | AK187: =[1]!srEnew($C$23,AJ187,$C$41) -> 66.29374206 | AL187: 2651.749682 | AM187: =[1]!srE2LETt($C$23,AK187,0) -> 2.663865647 | AN187: =[1]!srE2Rng($C$23,AK187) -> 2522.799492 | AO187: =[1]!srEnew($C$23,AK187,$C$42) -> 66.21561706 | AP187: 2648.624682 | AQ187: =[1]!srE2LETt($C$23,AO187,0) -> 2.666279251 | AR187: =[1]!srE2Rng($C$23,AO187) -> 2517.799492 | AS187: =[1]!srEnew($C$23,AO187,$C$43) -> 65.90311706 | AT187: 2636.124682 | AU187: =[1]!srE2LETt($C$23,AS187,0) -> 2.675933666 | AV187: =[1]!srE2Rng($C$23,AS187) -> 2497.799492
F188: 1 | G188: 0 | H188: 0 | I188: 0 | J188: 5 | K188: 0 | L188: 7 | M188: 0 | N188: 0 | O188: 0 | P188: 0 | Q188: 0 | R188: =[2]!e5aEDthkI(ThEDtbl,F188:Q188) -> 306.83 | S188: 4.16 | T188: =[2]!e5aEDflgI2S(F188:Q188) -> 1000507000000 | U188: 3023.17 | AC188: =[1]!srRng2E($C$12,U188) -> 79.26828125 | AD188: =[1]!srEnewGas($C$13,AC188,$C$57,$C$61*100,$C$60) -> 77.75163451 | AE188: 3110.065381 | AF188: =[1]!srE2LETt($C$11,AD188,0) -> 2.361802425 | AH188: =[1]!srEnew($C$19,$AD188,$C$38) -> 70.89951038 | AI188: =[1]!srEnew($C$20,AH188,$C$39) -> 67.77973488 | AJ188: =[1]!srEnew($C$21,AI188,$C$40) -> 67.77973488 | AK188: =[1]!srEnew($C$23,AJ188,$C$41) -> 66.21723488 | AL188: 2648.689395 | AM188: =[1]!srE2LETt($C$23,AK188,0) -> 2.66622927 | AN188: =[1]!srE2Rng($C$23,AK188) -> 2517.903032 | AO188: =[1]!srEnew($C$23,AK188,$C$42) -> 66.13910988 | AP188: 2645.564395 | AQ188: =[1]!srE2LETt($C$23,AO188,0) -> 2.668642874 | AR188: =[1]!srE2Rng($C$23,AO188) -> 2512.903032 | AS188: =[1]!srEnew($C$23,AO188,$C$43) -> 65.82660988 | AT188: 2633.064395 | AU188: =[1]!srE2LETt($C$23,AS188,0) -> 2.678297289 | AV188: =[1]!srE2Rng($C$23,AS188) -> 2492.903032
F189: 1 | G189: 0 | H189: 0 | I189: 0 | J189: 0 | K189: 6 | L189: 7 | M189: 0 | N189: 0 | O189: 0 | P189: 0 | Q189: 0 | R189: =[2]!e5aEDthkI(ThEDtbl,F189:Q189) -> 307.39 | S189: 0.56 | T189: =[2]!e5aEDflgI2S(F189:Q189) -> 1000067000000 | U189: 3022.61 | AC189: =[1]!srRng2E($C$12,U189) -> 79.25953125 | AD189: =[1]!srEnewGas($C$13,AC189,$C$57,$C$61*100,$C$60) -> 77.74288451 | AE189: 3109.715381 | AF189: =[1]!srE2LETt($C$11,AD189,0) -> 2.361999914 | AH189: =[1]!srEnew($C$19,$AD189,$C$38) -> 70.88996492 | AI189: =[1]!srEnew($C$20,AH189,$C$39) -> 67.76943584 | AJ189: =[1]!srEnew($C$21,AI189,$C$40) -> 67.76943584 | AK189: =[1]!srEnew($C$23,AJ189,$C$41) -> 66.20693584 | AL189: 2648.277434 | AM189: =[1]!srE2LETt($C$23,AK189,0) -> 2.66654745 | AN189: =[1]!srE2Rng($C$23,AK189) -> 2517.243894 | AO189: =[1]!srEnew($C$23,AK189,$C$42) -> 66.12881084 | AP189: 2645.152434 | AQ189: =[1]!srE2LETt($C$23,AO189,0) -> 2.668961053 | AR189: =[1]!srE2Rng($C$23,AO189) -> 2512.243894 | AS189: =[1]!srEnew($C$23,AO189,$C$43) -> 65.81631084 | AT189: 2632.652434 | AU189: =[1]!srE2LETt($C$23,AS189,0) -> 2.678615468 | AV189: =[1]!srE2Rng($C$23,AS189) -> 2492.243894
F190: 0 | G190: 2 | H190: 0 | I190: 0 | J190: 5 | K190: 0 | L190: 7 | M190: 0 | N190: 0 | O190: 0 | P190: 0 | Q190: 0 | R190: =[2]!e5aEDthkI(ThEDtbl,F190:Q190) -> 309.43 | S190: 2.04 | T190: =[2]!e5aEDflgI2S(F190:Q190) -> 0200507000000 | U190: 3020.57 | AC190: =[1]!srRng2E($C$12,U190) -> 79.22765625 | AD190: =[1]!srEnewGas($C$13,AC190,$C$57,$C$61*100,$C$60) -> 77.71100951 | AE190: 3108.440381 | AF190: =[1]!srE2LETt($C$11,AD190,0) -> 2.362719338 | AH190: =[1]!srEnew($C$19,$AD190,$C$38) -> 70.8551922 | AI190: =[1]!srEnew($C$20,AH190,$C$39) -> 67.7319179 | AJ190: =[1]!srEnew($C$21,AI190,$C$40) -> 67.7319179 | AK190: =[1]!srEnew($C$23,AJ190,$C$41) -> 66.1694179 | AL190: 2646.776716 | AM190: =[1]!srE2LETt($C$23,AK190,0) -> 2.667706534 | AN190: =[1]!srE2Rng($C$23,AK190) -> 2514.842745 | AO190: =[1]!srEnew($C$23,AK190,$C$42) -> 66.0912929 | AP190: 2643.651716 | AQ190: =[1]!srE2LETt($C$23,AO190,0) -> 2.670120138 | AR190: =[1]!srE2Rng($C$23,AO190) -> 2509.842745 | AS190: =[1]!srEnew($C$23,AO190,$C$43) -> 65.7787929 | AT190: 2631.151716 | AU190: =[1]!srE2LETt($C$23,AS190,0) -> 2.679774553 | AV190: =[1]!srE2Rng($C$23,AS190) -> 2489.842745
F191: 0 | G191: 2 | H191: 0 | I191: 0 | J191: 0 | K191: 6 | L191: 7 | M191: 0 | N191: 0 | O191: 0 | P191: 0 | Q191: 0 | R191: =[2]!e5aEDthkI(ThEDtbl,F191:Q191) -> 309.99 | S191: 0.56 | T191: =[2]!e5aEDflgI2S(F191:Q191) -> 0200067000000 | U191: 3020.01 | AC191: =[1]!srRng2E($C$12,U191) -> 79.21890625 | AD191: =[1]!srEnewGas($C$13,AC191,$C$57,$C$61*100,$C$60) -> 77.70225951 | AE191: 3108.090381 | AF191: =[1]!srE2LETt($C$11,AD191,0) -> 2.362916827 | AH191: =[1]!srEnew($C$19,$AD191,$C$38) -> 70.84564674 | AI191: =[1]!srEnew($C$20,AH191,$C$39) -> 67.72161885 | AJ191: =[1]!srEnew($C$21,AI191,$C$40) -> 67.72161885 | AK191: =[1]!srEnew($C$23,AJ191,$C$41) -> 66.15911885 | AL191: 2646.364754 | AM191: =[1]!srE2LETt($C$23,AK191,0) -> 2.668024714 | AN191: =[1]!srE2Rng($C$23,AK191) -> 2514.183607 | AO191: =[1]!srEnew($C$23,AK191,$C$42) -> 66.08099385 | AP191: 2643.239754 | AQ191: =[1]!srE2LETt($C$23,AO191,0) -> 2.670438318 | AR191: =[1]!srE2Rng($C$23,AO191) -> 2509.183607 | AS191: =[1]!srEnew($C$23,AO191,$C$43) -> 65.76849385 | AT191: 2630.739754 | AU191: =[1]!srE2LETt($C$23,AS191,0) -> 2.680092733 | AV191: =[1]!srE2Rng($C$23,AS191) -> 2489.183607
F192: 1 | G192: 0 | H192: 0 | I192: 0 | J192: 5 | K192: 0 | L192: 7 | M192: 0 | N192: 0 | O192: A | P192: 0 | Q192: 0 | R192: =[2]!e5aEDthkI(ThEDtbl,F192:Q192) -> 312.31 | S192: 2.32 | T192: =[2]!e5aEDflgI2S(F192:Q192) -> 100050700A000 | U192: 3017.69 | AC192: =[1]!srRng2E($C$12,U192) -> 79.18265625 | AD192: =[1]!srEnewGas($C$13,AC192,$C$57,$C$61*100,$C$60) -> 77.66600951 | AE192: 3106.640381 | AF192: =[1]!srE2LETt($C$11,AD192,0) -> 2.363734996 | AH192: =[1]!srEnew($C$19,$AD192,$C$38) -> 70.80610129 | AI192: =[1]!srEnew($C$20,AH192,$C$39) -> 67.67895139 | AJ192: =[1]!srEnew($C$21,AI192,$C$40) -> 67.67895139 | AK192: =[1]!srEnew($C$23,AJ192,$C$41) -> 66.11645139 | AL192: 2644.658056 | AM192: =[1]!srE2LETt($C$23,AK192,0) -> 2.669342888 | AN192: =[1]!srE2Rng($C$23,AK192) -> 2511.452889 | AO192: =[1]!srEnew($C$23,AK192,$C$42) -> 66.03832639 | AP192: 2641.533056 | AQ192: =[1]!srE2LETt($C$23,AO192,0) -> 2.671756492 | AR192: =[1]!srE2Rng($C$23,AO192) -> 2506.452889 | AS192: =[1]!srEnew($C$23,AO192,$C$43) -> 65.72582639 | AT192: 2629.033056 | AU192: =[1]!srE2LETt($C$23,AS192,0) -> 2.681410907 | AV192: =[1]!srE2Rng($C$23,AS192) -> 2486.452889
F193: 1 | G193: 0 | H193: 0 | I193: 0 | J193: 0 | K193: 6 | L193: 7 | M193: 0 | N193: 0 | O193: A | P193: 0 | Q193: 0 | R193: =[2]!e5aEDthkI(ThEDtbl,F193:Q193) -> 312.87 | S193: 0.56 | T193: =[2]!e5aEDflgI2S(F193:Q193) -> 100006700A000 | U193: 3017.13 | AC193: =[1]!srRng2E($C$12,U193) -> 79.17390625 | AD193: =[1]!srEnewGas($C$13,AC193,$C$57,$C$61*100,$C$60) -> 77.65725951 | AE193: 3106.290381 | AF193: =[1]!srE2LETt($C$11,AD193,0) -> 2.363932485 | AH193: =[1]!srEnew($C$19,$AD193,$C$38) -> 70.79655583 | AI193: =[1]!srEnew($C$20,AH193,$C$39) -> 67.66865235 | AJ193: =[1]!srEnew($C$21,AI193,$C$40) -> 67.66865235 | AK193: =[1]!srEnew($C$23,AJ193,$C$41) -> 66.10615235 | AL193: 2644.246094 | AM193: =[1]!srE2LETt($C$23,AK193,0) -> 2.669661068 | AN193: =[1]!srE2Rng($C$23,AK193) -> 2510.79375 | AO193: =[1]!srEnew($C$23,AK193,$C$42) -> 66.02802735 | AP193: 2641.121094 | AQ193: =[1]!srE2LETt($C$23,AO193,0) -> 2.672074672 | AR193: =[1]!srE2Rng($C$23,AO193) -> 2505.79375 | AS193: =[1]!srEnew($C$23,AO193,$C$43) -> 65.71552735 | AT193: 2628.621094 | AU193: =[1]!srE2LETt($C$23,AS193,0) -> 2.681729087 | AV193: =[1]!srE2Rng($C$23,AS193) -> 2485.79375
F194: 0 | G194: 2 | H194: 0 | I194: 0 | J194: 5 | K194: 0 | L194: 7 | M194: 0 | N194: 0 | O194: A | P194: 0 | Q194: 0 | R194: =[2]!e5aEDthkI(ThEDtbl,F194:Q194) -> 314.91 | S194: 2.04 | T194: =[2]!e5aEDflgI2S(F194:Q194) -> 020050700A000 | U194: 3015.09 | AC194: =[1]!srRng2E($C$12,U194) -> 79.14203125 | AD194: =[1]!srEnewGas($C$13,AC194,$C$57,$C$61*100,$C$60) -> 77.62538451 | AE194: 3105.015381 | AF194: =[1]!srE2LETt($C$11,AD194,0) -> 2.364651909 | AH194: =[1]!srEnew($C$19,$AD194,$C$38) -> 70.76178311 | AI194: =[1]!srEnew($C$20,AH194,$C$39) -> 67.6311344 | AJ194: =[1]!srEnew($C$21,AI194,$C$40) -> 67.6311344 | AK194: =[1]!srEnew($C$23,AJ194,$C$41) -> 66.0686344 | AL194: 2642.745376 | AM194: =[1]!srE2LETt($C$23,AK194,0) -> 2.670820152 | AN194: =[1]!srE2Rng($C$23,AK194) -> 2508.392602 | AO194: =[1]!srEnew($C$23,AK194,$C$42) -> 65.9905094 | AP194: 2639.620376 | AQ194: =[1]!srE2LETt($C$23,AO194,0) -> 2.673233756 | AR194: =[1]!srE2Rng($C$23,AO194) -> 2503.392602 | AS194: =[1]!srEnew($C$23,AO194,$C$43) -> 65.6780094 | AT194: 2627.120376 | AU194: =[1]!srE2LETt($C$23,AS194,0) -> 2.682888171 | AV194: =[1]!srE2Rng($C$23,AS194) -> 2483.392602
F195: 0 | G195: 2 | H195: 0 | I195: 0 | J195: 0 | K195: 6 | L195: 7 | M195: 0 | N195: 0 | O195: A | P195: 0 | Q195: 0 | R195: =[2]!e5aEDthkI(ThEDtbl,F195:Q195) -> 315.47 | S195: 0.56 | T195: =[2]!e5aEDflgI2S(F195:Q195) -> 020006700A000 | U195: 3014.53 | AC195: =[1]!srRng2E($C$12,U195) -> 79.13328125 | AD195: =[1]!srEnewGas($C$13,AC195,$C$57,$C$61*100,$C$60) -> 77.61663451 | AE195: 3104.665381 | AF195: =[1]!srE2LETt($C$11,AD195,0) -> 2.364849399 | AH195: =[1]!srEnew($C$19,$AD195,$C$38) -> 70.75223765 | AI195: =[1]!srEnew($C$20,AH195,$C$39) -> 67.62083536 | AJ195: =[1]!srEnew($C$21,AI195,$C$40) -> 67.62083536 | AK195: =[1]!srEnew($C$23,AJ195,$C$41) -> 66.05833536 | AL195: 2642.333414 | AM195: =[1]!srE2LETt($C$23,AK195,0) -> 2.671138332 | AN195: =[1]!srE2Rng($C$23,AK195) -> 2507.733463 | AO195: =[1]!srEnew($C$23,AK195,$C$42) -> 65.98021036 | AP195: 2639.208414 | AQ195: =[1]!srE2LETt($C$23,AO195,0) -> 2.673551936 | AR195: =[1]!srE2Rng($C$23,AO195) -> 2502.733463 | AS195: =[1]!srEnew($C$23,AO195,$C$43) -> 65.66771036 | AT195: 2626.708414 | AU195: =[1]!srE2LETt($C$23,AS195,0) -> 2.683206351 | AV195: =[1]!srE2Rng($C$23,AS195) -> 2482.733463
F196: 1 | G196: 2 | H196: 0 | I196: 0 | J196: 5 | K196: 0 | L196: 7 | M196: 0 | N196: 0 | O196: 0 | P196: 0 | Q196: 0 | R196: =[2]!e5aEDthkI(ThEDtbl,F196:Q196) -> 319.63 | S196: 4.16 | T196: =[2]!e5aEDflgI2S(F196:Q196) -> 1200507000000 | U196: 3010.37 | AC196: =[1]!srRng2E($C$12,U196) -> 79.06828125 | AD196: =[1]!srEnewGas($C$13,AC196,$C$57,$C$61*100,$C$60) -> 77.55163451 | AE196: 3102.065381 | AF196: =[1]!srE2LETt($C$11,AD196,0) -> 2.36631646 | AH196: =[1]!srEnew($C$19,$AD196,$C$38) -> 70.68132856 | AI196: =[1]!srEnew($C$20,AH196,$C$39) -> 67.54432818 | AJ196: =[1]!srEnew($C$21,AI196,$C$40) -> 67.54432818 | AK196: =[1]!srEnew($C$23,AJ196,$C$41) -> 65.98182818 | AL196: 2639.273127 | AM196: =[1]!srE2LETt($C$23,AK196,0) -> 2.673501954 | AN196: =[1]!srE2Rng($C$23,AK196) -> 2502.837004 | AO196: =[1]!srEnew($C$23,AK196,$C$42) -> 65.90370318 | AP196: 2636.148127 | AQ196: =[1]!srE2LETt($C$23,AO196,0) -> 2.675915558 | AR196: =[1]!srE2Rng($C$23,AO196) -> 2497.837004 | AS196: =[1]!srEnew($C$23,AO196,$C$43) -> 65.59120318 | AT196: 2623.648127 | AU196: =[1]!srE2LETt($C$23,AS196,0) -> 2.685569973 | AV196: =[1]!srE2Rng($C$23,AS196) -> 2477.837004
F197: 1 | G197: 2 | H197: 0 | I197: 0 | J197: 0 | K197: 6 | L197: 7 | M197: 0 | N197: 0 | O197: 0 | P197: 0 | Q197: 0 | R197: =[2]!e5aEDthkI(ThEDtbl,F197:Q197) -> 320.19 | S197: 0.56 | T197: =[2]!e5aEDflgI2S(F197:Q197) -> 1200067000000 | U197: 3009.81 | AC197: =[1]!srRng2E($C$12,U197) -> 79.05953125 | AD197: =[1]!srEnewGas($C$13,AC197,$C$57,$C$61*100,$C$60) -> 77.54288451 | AE197: 3101.715381 | AF197: =[1]!srE2LETt($C$11,AD197,0) -> 2.366513949 | AH197: =[1]!srEnew($C$19,$AD197,$C$38) -> 70.67178311 | AI197: =[1]!srEnew($C$20,AH197,$C$39) -> 67.53402914 | AJ197: =[1]!srEnew($C$21,AI197,$C$40) -> 67.53402914 | AK197: =[1]!srEnew($C$23,AJ197,$C$41) -> 65.97152914 | AL197: 2638.861166 | AM197: =[1]!srE2LETt($C$23,AK197,0) -> 2.673820134 | AN197: =[1]!srE2Rng($C$23,AK197) -> 2502.177865 | AO197: =[1]!srEnew($C$23,AK197,$C$42) -> 65.89340414 | AP197: 2635.736166 | AQ197: =[1]!srE2LETt($C$23,AO197,0) -> 2.676233738 | AR197: =[1]!srE2Rng($C$23,AO197) -> 2497.177865 | AS197: =[1]!srEnew($C$23,AO197,$C$43) -> 65.58090414 | AT197: 2623.236166 | AU197: =[1]!srE2LETt($C$23,AS197,0) -> 2.685888153 | AV197: =[1]!srE2Rng($C$23,AS197) -> 2477.177865
F198: 0 | G198: 0 | H198: 3 | I198: 0 | J198: 5 | K198: 0 | L198: 7 | M198: 0 | N198: 0 | O198: 0 | P198: 0 | Q198: 0 | R198: =[2]!e5aEDthkI(ThEDtbl,F198:Q198) -> 320.43 | S198: 0.24 | T198: =[2]!e5aEDflgI2S(F198:Q198) -> 0030507000000 | U198: 3009.57 | AC198: =[1]!srRng2E($C$12,U198) -> 79.05578125 | AD198: =[1]!srEnewGas($C$13,AC198,$C$57,$C$61*100,$C$60) -> 77.53913451 | AE198: 3101.565381 | AF198: =[1]!srE2LETt($C$11,AD198,0) -> 2.366598587 | AH198: =[1]!srEnew($C$19,$AD198,$C$38) -> 70.6676922 | AI198: =[1]!srEnew($C$20,AH198,$C$39) -> 67.52961526 | AJ198: =[1]!srEnew($C$21,AI198,$C$40) -> 67.52961526 | AK198: =[1]!srEnew($C$23,AJ198,$C$41) -> 65.96711526 | AL198: 2638.684611 | AM198: =[1]!srE2LETt($C$23,AK198,0) -> 2.673956497 | AN198: =[1]!srE2Rng($C$23,AK198) -> 2501.895377 | AO198: =[1]!srEnew($C$23,AK198,$C$42) -> 65.88899026 | AP198: 2635.559611 | AQ198: =[1]!srE2LETt($C$23,AO198,0) -> 2.676370101 | AR198: =[1]!srE2Rng($C$23,AO198) -> 2496.895377 | AS198: =[1]!srEnew($C$23,AO198,$C$43) -> 65.57649026 | AT198: 2623.059611 | AU198: =[1]!srE2LETt($C$23,AS198,0) -> 2.686024516 | AV198: =[1]!srE2Rng($C$23,AS198) -> 2476.895377
F199: 0 | G199: 0 | H199: 3 | I199: 0 | J199: 0 | K199: 6 | L199: 7 | M199: 0 | N199: 0 | O199: 0 | P199: 0 | Q199: 0 | R199: =[2]!e5aEDthkI(ThEDtbl,F199:Q199) -> 320.99 | S199: 0.56 | T199: =[2]!e5aEDflgI2S(F199:Q199) -> 0030067000000 | U199: 3009.01 | AC199: =[1]!srRng2E($C$12,U199) -> 79.04703125 | AD199: =[1]!srEnewGas($C$13,AC199,$C$57,$C$61*100,$C$60) -> 77.53038451 | AE199: 3101.215381 | AF199: =[1]!srE2LETt($C$11,AD199,0) -> 2.366796076 | AH199: =[1]!srEnew($C$19,$AD199,$C$38) -> 70.65814674 | AI199: =[1]!srEnew($C$20,AH199,$C$39) -> 67.51931622 | AJ199: =[1]!srEnew($C$21,AI199,$C$40) -> 67.51931622 | AK199: =[1]!srEnew($C$23,AJ199,$C$41) -> 65.95681622 | AL199: 2638.272649 | AM199: =[1]!srE2LETt($C$23,AK199,0) -> 2.674274677 | AN199: =[1]!srE2Rng($C$23,AK199) -> 2501.236238 | AO199: =[1]!srEnew($C$23,AK199,$C$42) -> 65.87869122 | AP199: 2635.147649 | AQ199: =[1]!srE2LETt($C$23,AO199,0) -> 2.676688281 | AR199: =[1]!srE2Rng($C$23,AO199) -> 2496.236238 | AS199: =[1]!srEnew($C$23,AO199,$C$43) -> 65.56619122 | AT199: 2622.647649 | AU199: =[1]!srE2LETt($C$23,AS199,0) -> 2.686342696 | AV199: =[1]!srE2Rng($C$23,AS199) -> 2476.236238
F200: 1 | G200: 2 | H200: 0 | I200: 0 | J200: 5 | K200: 0 | L200: 7 | M200: 0 | N200: 0 | O200: A | P200: 0 | Q200: 0 | R200: =[2]!e5aEDthkI(ThEDtbl,F200:Q200) -> 325.11 | S200: 4.12 | T200: =[2]!e5aEDflgI2S(F200:Q200) -> 120050700A000 | U200: 3004.89 | AC200: =[1]!srRng2E($C$12,U200) -> 78.98265625 | AD200: =[1]!srEnewGas($C$13,AC200,$C$57,$C$61*100,$C$60) -> 77.46600951 | AE200: 3098.640381 | AF200: =[1]!srE2LETt($C$11,AD200,0) -> 2.368249031 | AH200: =[1]!srEnew($C$19,$AD200,$C$38) -> 70.58791947 | AI200: =[1]!srEnew($C$20,AH200,$C$39) -> 67.44354469 | AJ200: =[1]!srEnew($C$21,AI200,$C$40) -> 67.44354469 | AK200: =[1]!srEnew($C$23,AJ200,$C$41) -> 65.88104469 | AL200: 2635.241788 | AM200: =[1]!srE2LETt($C$23,AK200,0) -> 2.676615573 | AN200: =[1]!srE2Rng($C$23,AK200) -> 2496.38686 | AO200: =[1]!srEnew($C$23,AK200,$C$42) -> 65.80291969 | AP200: 2632.116788 | AQ200: =[1]!srE2LETt($C$23,AO200,0) -> 2.679029176 | AR200: =[1]!srE2Rng($C$23,AO200) -> 2491.38686 | AS200: =[1]!srEnew($C$23,AO200,$C$43) -> 65.49041969 | AT200: 2619.616788 | AU200: =[1]!srE2LETt($C$23,AS200,0) -> 2.688683591 | AV200: =[1]!srE2Rng($C$23,AS200) -> 2471.38686
... 1872 more rows

Sheet 2_ED調整報告用
B2: =WBtitle -> 2020.01/01 Ar(X01) | S2: 非表示: T~Y | AA2: AB~AD | AI2: AJ | AK2: AL | AM2: AN
C3: ビーム調整・結果報告
B5: 《本シートの参照パラメータ》 | G5: Al-Edeg の組合せ候補 | Y5: 照射位置(モールド表面) | AB5: 不感物通過後のE | AE5: 感応層１入口で | AI5: 感応層２入口で | AL5: =感応層１出口 | AM5: 感応層２出口で
B6: WS_head | C6: =BeamWS -> srim40Ar_ | R6: ED | U6: ExR-ED | X6: EAir2 | AA6: 照射 | AB6: Mld1 | AC6: Mld2 | AD6: Mld3 | AE6: Device | AG6: LETin | AH6: 残Rng in | AI6: Device | AK6: LETin | AL6: 残Rng in | AM6: Device | AO6: LETin | AP6: 残Rng in
B7: BeamA | C7: =[1]!srInfoIonA($C$10) -> 40 | D7: =[1]!srElmNm([1]!srInfoIonZ($C$10)) -> Ar | G7: Al-Edeg 組合せ (Ptn文字) | R7: Th0 | S7: ⊿Th | U7: Th1 | V7: EAir1 | X7: E00 | AA7: 角度 | AB7: =B15 -> Epoxy | AC7: =B16 -> SiO2 | AD7: =B17 -> Kapton | AE7: =$B$19 -> Si | AG7: =AE7 -> Si | AH7: =AE7 -> Si | AI7: =$B$19 -> Si | AK7: =AI7 -> Si | AL7: =AI7 -> Si | AM7: =$B$19 -> Si | AO7: =AM7 -> Si | AP7: =AM7 -> Si
B8: ビームライン常設 | F8: 1 | G8: 2 | H8: 3 | I8: 4 | J8: 5 | K8: 6 | L8: 7 | M8: 8 | N8: 9 | O8: A | P8: B | Q8: C | R8: μm | S8: μm | T8: EDstr | U8: μm | V8: MeV/u | X8: MeV/u | Y8: MeV | AA8: θ | AB8: MeV/u | AC8: MeV/u | AD8: MeV/u | AE8: MeV/u | AF8: MeV | AH8: µm | AI8: MeV/u | AJ8: MeV | AL8: µm | AM8: MeV/u | AN8: MeV | AP8: µm
B9: Mat | C9: SRIM Fit W.S.name | AG9: 希望LET～3
A10: 1 | B10: Si | C10: =$C$6&B10 -> srim40Ar_Si | AA10: 0 | AB10: =$C$22/COS(RADIANS(AA10)) -> 500 | AC10: =$C$23/COS(RADIANS(AA10)) -> 200 | AD10: =$C$24/COS(RADIANS(AA10)) -> 0 | AE10: =$C$26/COS(RADIANS($AA10)) -> 100 | AF10: µm | AI10: =$C$28/COS(RADIANS($AA10)) -> 5 | AJ10: µm | AM10: =$C$30/COS(RADIANS($AA10)) -> 20 | AN10: µm
A11: 2 | B11: Al | C11: srim40Ar_Al | F11: 0 | G11: 2 | H11: 3 | I11: 0 | J11: 5 | K11: 0 | L11: 7 | M11: 8 | N11: 0 | O11: 0 | P11: 0 | Q11: 0 | R11: =[2]!e5aEDthkI(ThEDtbl,F11:Q11) -> 819.18 | S11: =R11-R12 -> -0.56 | T11: =[2]!e5aEDflgI2S(F11:Q11) -> 0230507800000 | U11: =$C$33-$R11 -> 2510.82 | V11: =[1]!srRng2E($C$11,U11) -> 71.06611842 | X11: =[1]!srEnewGas($C$12,V11,$C$36,$C$38*100,$C$37) -> 69.4483619 | Y11: =X11*$C$7 -> 2777.934476 | AA11: =AA10 -> 0 | AB11: =[1]!srEnew($C$15,X11,AB10) -> 61.82836641 | AC11: =[1]!srEnew($C$16,AB11,AC10) -> 58.35614419 | AD11: =[1]!srEnew($C$17,AC11,AD10) -> 58.35614419 | AE11: =[1]!srEnew($C$19,AD11,AE10) -> 56.71140735 | AF11: =AE11*$C$7 -> 2268.456294 | AG11: =[1]!srE2LETt($C$19,AE11,0) -> 2.99604166 | AH11: =[1]!srE2Rng($C$19,AE11) -> 1928.053567 | AI11: =[1]!srEnew($C$19,AE11,AI10) -> 56.62917051 | AJ11: =AI11*$C$7 -> 2265.16682 | AK11: =[1]!srE2LETt($C$19,AI11,0) -> 2.999095699 | AL11: =[1]!srE2Rng($C$19,AI11) -> 1923.053567 | AM11: =[1]!srEnew($C$19,AI11,AM10) -> 56.30022314 | AN11: =AM11*$C$7 -> 2252.008926 | AO11: =[1]!srE2LETt($C$19,AM11,0) -> 3.011311857 | AP11: =[1]!srE2Rng($C$19,AM11) -> 1903.053567
A12: 3 | B12: Air | C12: srim40Ar_Air | F12: 0 | G12: 2 | H12: 3 | I12: 0 | J12: 0 | K12: 6 | L12: 7 | M12: 8 | N12: 0 | O12: 0 | P12: 0 | Q12: 0 | R12: =[2]!e5aEDthkI(ThEDtbl,F12:Q12) -> 819.74 | T12: =[2]!e5aEDflgI2S(F12:Q12) -> 0230067800000 | U12: =$C$33-$R12 -> 2510.26 | V12: =[1]!srRng2E($C$11,U12) -> 71.05690789 | X12: =[1]!srEnewGas($C$12,V12,$C$36,$C$38*100,$C$37) -> 69.43915138 | Y12: =X12*$C$7 -> 2777.566055 | AA12: =AA11 -> 0 | AB12: =[1]!srEnew($C$15,X12,AB10) -> 61.81770159 | AC12: =[1]!srEnew($C$16,AB12,AC10) -> 58.34547937 | AD12: =[1]!srEnew($C$17,AC12,AD10) -> 58.34547937 | AE12: =[1]!srEnew($C$19,AD12,AE10) -> 56.70074253 | AF12: =AE12*$C$7 -> 2268.029701 | AG12: =[1]!srE2LETt($C$19,AE12,0) -> 2.996437721 | AH12: =[1]!srE2Rng($C$19,AE12) -> 1927.405146 | AI12: =[1]!srEnew($C$19,AE12,AI10) -> 56.61850569 | AJ12: =AI12*$C$7 -> 2264.740227 | AK12: =[1]!srE2LETt($C$19,AI12,0) -> 2.99949176 | AL12: =[1]!srE2Rng($C$19,AI12) -> 1922.405146 | AM12: =[1]!srEnew($C$19,AI12,AM10) -> 56.28955832 | AN12: =AM12*$C$7 -> 2251.582333 | AO12: =[1]!srE2LETt($C$19,AM12,0) -> 3.011707918 | AP12: =[1]!srE2Rng($C$19,AM12) -> 1902.405146
F13: 1 | G13: 0 | H13: 3 | I13: 0 | J13: 5 | K13: 0 | L13: 7 | M13: 8 | N13: 0 | O13: A | P13: 0 | Q13: 0 | R13: =[2]!e5aEDthkI(ThEDtbl,F13:Q13) -> 822.06 | S13: =R13-R12 -> 2.32 | T13: =[2]!e5aEDflgI2S(F13:Q13) -> 103050780A000 | U13: =$C$33-$R13 -> 2507.94 | V13: =[1]!srRng2E($C$11,U13) -> 71.01875 | X13: =[1]!srEnewGas($C$12,V13,$C$36,$C$38*100,$C$37) -> 69.40099348 | Y13: 2776.039739 | AA13: 0 | AB13: =[1]!srEnew($C$15,X13,AB10) -> 61.77351877 | AC13: =[1]!srEnew($C$16,AB13,AC10) -> 58.30129655 | AD13: =[1]!srEnew($C$17,AC13,AD10) -> 58.30129655 | AE13: =[1]!srEnew($C$19,AD13,AE10) -> 56.6565597 | AF13: 2266.262388 | AG13: =[1]!srE2LETt($C$19,AE13,0) -> 2.998078544 | AH13: =[1]!srE2Rng($C$19,AE13) -> 1924.71883 | AI13: =[1]!srEnew($C$19,AE13,AI10) -> 56.57432286 | AJ13: 2262.972914 | AK13: =[1]!srE2LETt($C$19,AI13,0) -> 3.001132583 | AL13: =[1]!srE2Rng($C$19,AI13) -> 1919.71883 | AM13: =[1]!srEnew($C$19,AI13,AM10) -> 56.24483143 | AN13: 2249.793257 | AO13: =[1]!srE2LETt($C$19,AM13,0) -> 3.013411142 | AP13: =[1]!srE2Rng($C$19,AM13) -> 1899.71883
B14: 照射物表面・モールド材質
A15: Mld1 | B15: Epoxy | C15: =$C$6&B15 -> srim40Ar_Epoxy | AA15: 45 | AB15: =$C$22/COS(RADIANS(AA15)) -> 707.1067812 | AC15: =$C$23/COS(RADIANS(AA15)) -> 282.8427125 | AD15: =$C$24/COS(RADIANS(AA15)) -> 0 | AE15: =$C$26/COS(RADIANS($AA15)) -> 141.4213562 | AF15: µm | AI15: =$C$28/COS(RADIANS($AA15)) -> 7.071067812 | AJ15: µm | AM15: =$C$30/COS(RADIANS($AA15)) -> 28.28427125 | AN15: µm
A16: Mld2 | B16: SiO2 | C16: srim40Ar_SiO2 | F16: 0 | G16: 0 | H16: 0 | I16: 4 | J16: 0 | K16: 0 | L16: 0 | M16: 8 | N16: 0 | O16: 0 | P16: 0 | Q16: 0 | R16: =[2]!e5aEDthkI(ThEDtbl,F16:Q16) -> 534.54 | S16: =R16-R17 -> -3.69 | T16: =[2]!e5aEDflgI2S(F16:Q16) -> 0004000800000 | U16: =$C$33-$R16 -> 2795.46 | V16: =[1]!srRng2E($C$11,U16) -> 75.7103125 | X16: =[1]!srEnewGas($C$12,V16,$C$36,$C$38*100,$C$37) -> 74.13991015 | Y16: =X16*$C$7 -> 2965.596406 | AA16: =AA15 -> 45 | AB16: =[1]!srEnew($C$15,X16,AB15) -> 63.75522703 | AC16: =[1]!srEnew($C$16,AB16,AC15) -> 58.91449811 | AD16: =[1]!srEnew($C$17,AC16,AD15) -> 58.91449811 | AE16: =[1]!srEnew($C$19,AD16,AE15) -> 56.58848896 | AF16: =AE16*$C$7 -> 2263.539558 | AG16: =[1]!srE2LETt($C$19,AE16,0) -> 3.000606495 | AH16: =[1]!srE2Rng($C$19,AE16) -> 1920.580129 | AI16: =[1]!srEnew($C$19,AE16,AI15) -> 56.4721885 | AJ16: =AI16*$C$7 -> 2258.88754 | AK16: =[1]!srE2LETt($C$19,AI16,0) -> 3.004925559 | AL16: =[1]!srE2Rng($C$19,AI16) -> 1913.509061 | AM16: =[1]!srEnew($C$19,AI16,AM15) -> 55.97839687 | AN16: =AM16*$C$7 -> 2239.135875 | AO16: =[1]!srE2LETt($C$19,AM16,0) -> 3.025480926 | AP16: =[1]!srE2Rng($C$19,AM16) -> 1885.22479
A17: Mld3 | B17: Kapton | C17: srim40Ar_Kapton | F17: 1 | G17: 2 | H17: 3 | I17: 0 | J17: 0 | K17: 0 | L17: 0 | M17: 8 | N17: 0 | O17: A | P17: 0 | Q17: 0 | R17: =[2]!e5aEDthkI(ThEDtbl,F17:Q17) -> 538.23 | T17: =[2]!e5aEDflgI2S(F17:Q17) -> 123000080A000 | U17: =$C$33-$R17 -> 2791.77 | V17: =[1]!srRng2E($C$11,U17) -> 75.65265625 | X17: =[1]!srEnewGas($C$12,V17,$C$36,$C$38*100,$C$37) -> 74.07841015 | Y17: =X17*$C$7 -> 2963.136406 | AA17: =AA16 -> 45 | AB17: =[1]!srEnew($C$15,X17,AB15) -> 63.68922703 | AC17: =[1]!srEnew($C$16,AB17,AC15) -> 58.84483144 | AD17: =[1]!srEnew($C$17,AC17,AD15) -> 58.84483144 | AE17: =[1]!srEnew($C$19,AD17,AE15) -> 56.51882229 | AF17: =AE17*$C$7 -> 2260.752892 | AG17: =[1]!srE2LETt($C$19,AE17,0) -> 3.003193714 | AH17: =[1]!srE2Rng($C$19,AE17) -> 1916.344395 | AI17: =[1]!srEnew($C$19,AE17,AI15) -> 56.40252183 | AJ17: =AI17*$C$7 -> 2256.100873 | AK17: =[1]!srE2LETt($C$19,AI17,0) -> 3.007512778 | AL17: =[1]!srE2Rng($C$19,AI17) -> 1909.273328 | AM17: =[1]!srEnew($C$19,AI17,AM15) -> 55.90053412 | AN17: =AM17*$C$7 -> 2236.021365 | AO17: =[1]!srE2LETt($C$19,AM17,0) -> 3.029008196 | AP17: =[1]!srE2Rng($C$19,AM17) -> 1880.989056
B18: 照射物・材質 | F18: 0 | G18: 0 | H18: 0 | I18: 4 | J18: 0 | K18: 0 | L18: 0 | M18: 8 | N18: 0 | O18: A | P18: 0 | Q18: 0 | R18: =[2]!e5aEDthkI(ThEDtbl,F18:Q18) -> 540.02 | S18: =R18-R17 -> 1.79 | T18: =[2]!e5aEDflgI2S(F18:Q18) -> 000400080A000 | U18: =$C$33-$R18 -> 2789.98 | V18: =[1]!srRng2E($C$11,U18) -> 75.6246875 | X18: =[1]!srEnewGas($C$12,V18,$C$36,$C$38*100,$C$37) -> 74.04857681 | Y18: 2961.943073 | AA18: 45 | AB18: =[1]!srEnew($C$15,X18,AB15) -> 63.65721077 | AC18: =[1]!srEnew($C$16,AB18,AC15) -> 58.8110365 | AD18: =[1]!srEnew($C$17,AC18,AD15) -> 58.8110365 | AE18: =[1]!srEnew($C$19,AD18,AE15) -> 56.48502735 | AF18: 2259.401094 | AG18: =[1]!srE2LETt($C$19,AE18,0) -> 3.004448761 | AH18: =[1]!srE2Rng($C$19,AE18) -> 1914.289663 | AI18: =[1]!srEnew($C$19,AE18,AI15) -> 56.36872689 | AJ18: 2254.749076 | AK18: =[1]!srE2LETt($C$19,AI18,0) -> 3.008767825 | AL18: =[1]!srE2Rng($C$19,AI18) -> 1907.218595 | AM18: =[1]!srEnew($C$19,AI18,AM15) -> 55.86276331 | AN18: 2234.510532 | AO18: =[1]!srE2LETt($C$19,AM18,0) -> 3.030719256 | AP18: =[1]!srE2Rng($C$19,AM18) -> 1878.934324
A19: Dev | B19: Si | C19: =$C$6&B19 -> srim40Ar_Si
AA20: 60 | AB20: =$C$22/COS(RADIANS(AA20)) -> 1000 | AC20: =$C$23/COS(RADIANS(AA20)) -> 400 | AD20: =$C$24/COS(RADIANS(AA20)) -> 0 | AE20: =$C$26/COS(RADIANS($AA20)) -> 200 | AF20: µm | AI20: =$C$28/COS(RADIANS($AA20)) -> 10 | AJ20: µm | AM20: =$C$30/COS(RADIANS($AA20)) -> 40 | AN20: µm
B21: 照射物表層のモールド材 | F21: 0 | G21: 0 | H21: 3 | I21: 0 | J21: 0 | K21: 6 | L21: 0 | M21: 0 | N21: 0 | O21: A | P21: 0 | Q21: 0 | R21: =[2]!e5aEDthkI(ThEDtbl,F21:Q21) -> 130.08 | S21: =R21-R22 -> -4.16 | T21: =[2]!e5aEDflgI2S(F21:Q21) -> 003006000A000 | U21: =$C$33-$R21 -> 3199.92 | V21: =[1]!srRng2E($C$11,U21) -> 81.9755814 | X21: =[1]!srEnewGas($C$12,V21,$C$36,$C$38*100,$C$37) -> 80.5042835 | Y21: =X21*$C$7 -> 3220.17134 | AA21: =AA20 -> 60 | AB21: =[1]!srEnew($C$15,X21,AB20) -> 66.65745385 | AC21: =[1]!srEnew($C$16,AB21,AC20) -> 59.94397906 | AD21: =[1]!srEnew($C$17,AC21,AD20) -> 59.94397906 | AE21: =[1]!srEnew($C$19,AD21,AE20) -> 56.65450538 | AF21: =AE21*$C$7 -> 2266.180215 | AG21: =[1]!srE2LETt($C$19,AE21,0) -> 2.998154835 | AH21: =[1]!srE2Rng($C$19,AE21) -> 1924.593927 | AI21: =[1]!srEnew($C$19,AE21,AI20) -> 56.49003169 | AJ21: =AI21*$C$7 -> 2259.601268 | AK21: =[1]!srE2LETt($C$19,AI21,0) -> 3.004262914 | AL21: =[1]!srE2Rng($C$19,AI21) -> 1914.593927 | AM21: =[1]!srEnew($C$19,AI21,AM20) -> 55.7829766 | AN21: =AM21*$C$7 -> 2231.319064 | AO21: =[1]!srE2LETt($C$19,AM21,0) -> 3.034333683 | AP21: =[1]!srE2Rng($C$19,AM21) -> 1874.593927
A22: Mld1 | B22: =B15 -> Epoxy | C22: 500 | D22: µm 不感1 | F22: 1 | G22: 0 | H22: 3 | I22: 0 | J22: 5 | K22: 0 | L22: 0 | M22: 0 | N22: 0 | O22: 0 | P22: 0 | Q22: 0 | R22: =[2]!e5aEDthkI(ThEDtbl,F22:Q22) -> 134.24 | T22: =[2]!e5aEDflgI2S(F22:Q22) -> 1030500000000 | U22: =$C$33-$R22 -> 3195.76 | V22: =[1]!srRng2E($C$11,U22) -> 81.91511628 | X22: =[1]!srEnewGas($C$12,V22,$C$36,$C$38*100,$C$37) -> 80.44003931 | Y22: =X22*$C$7 -> 3217.601572 | AA22: =AA21 -> 60 | AB22: =[1]!srEnew($C$15,X22,AB20) -> 66.58224114 | AC22: =[1]!srEnew($C$16,AB22,AC20) -> 59.86458787 | AD22: =[1]!srEnew($C$17,AC22,AD20) -> 59.86458787 | AE22: =[1]!srEnew($C$19,AD22,AE20) -> 56.57511419 | AF22: =AE22*$C$7 -> 2263.004568 | AG22: =[1]!srE2LETt($C$19,AE22,0) -> 3.001103195 | AH22: =[1]!srE2Rng($C$19,AE22) -> 1919.766943 | AI22: =[1]!srEnew($C$19,AE22,AI20) -> 56.4106405 | AJ22: =AI22*$C$7 -> 2256.42562 | AK22: =[1]!srE2LETt($C$19,AI22,0) -> 3.007211274 | AL22: =[1]!srE2Rng($C$19,AI22) -> 1909.766943 | AM22: =[1]!srEnew($C$19,AI22,AM20) -> 55.69424527 | AN22: =AM22*$C$7 -> 2227.769811 | AO22: =[1]!srE2LETt($C$19,AM22,0) -> 3.038353312 | AP22: =[1]!srE2Rng($C$19,AM22) -> 1869.766943
A23: Mld2 | B23: =B16 -> SiO2 | C23: 200 | D23: µm 不感2 | F23: 1 | G23: 0 | H23: 3 | I23: 0 | J23: 0 | K23: 6 | L23: 0 | M23: 0 | N23: 0 | O23: 0 | P23: 0 | Q23: 0 | R23: =[2]!e5aEDthkI(ThEDtbl,F23:Q23) -> 134.8 | S23: =R23-R22 -> 0.56 | T23: =[2]!e5aEDflgI2S(F23:Q23) -> 1030060000000 | U23: =$C$33-$R23 -> 3195.2 | V23: =[1]!srRng2E($C$11,U23) -> 81.90697674 | X23: =[1]!srEnewGas($C$12,V23,$C$36,$C$38*100,$C$37) -> 80.43139105 | Y23: 3217.255642 | AA23: 60 | AB23: =[1]!srEnew($C$15,X23,AB20) -> 66.57211636 | AC23: =[1]!srEnew($C$16,AB23,AC20) -> 59.8539006 | AD23: =[1]!srEnew($C$17,AC23,AD20) -> 59.8539006 | AE23: =[1]!srEnew($C$19,AD23,AE20) -> 56.56442691 | AF23: 2262.577077 | AG23: =[1]!srE2LETt($C$19,AE23,0) -> 3.00150009 | AH23: =[1]!srE2Rng($C$19,AE23) -> 1919.117156 | AI23: =[1]!srEnew($C$19,AE23,AI20) -> 56.39995323 | AJ23: 2255.998129 | AK23: =[1]!srE2LETt($C$19,AI23,0) -> 3.007608169 | AL23: =[1]!srE2Rng($C$19,AI23) -> 1909.117156 | AM23: =[1]!srEnew($C$19,AI23,AM20) -> 55.68230067 | AN23: 2227.292027 | AO23: =[1]!srE2LETt($C$19,AM23,0) -> 3.038894416 | AP23: =[1]!srE2Rng($C$19,AM23) -> 1869.117156
A24: Mld3 | B24: =B17 -> Kapton | C24: 0 | D24: µm 不感3 | AG24: 希望LET～13
B25: 照射物表面～感応層まで | AA25: 0 | AB25: =$C$22/COS(RADIANS(AA25)) -> 500 | AC25: =$C$23/COS(RADIANS(AA25)) -> 200 | AD25: =$C$24/COS(RADIANS(AA25)) -> 0 | AE25: =$C$26/COS(RADIANS($AA25)) -> 100 | AF25: µm | AI25: =$C$28/COS(RADIANS($AA25)) -> 5 | AJ25: µm | AM25: =$C$30/COS(RADIANS($AA25)) -> 20 | AN25: µm
A26: Dev1 | B26: =B19 -> Si | C26: 100 | D26: µm 不感4 | F26: 0 | G26: 2 | H26: 0 | I26: 4 | J26: 5 | K26: 6 | L26: 7 | M26: 0 | N26: 0 | O26: 0 | P26: 0 | Q26: C | R26: =[2]!e5aEDthkI(ThEDtbl,F26:Q26) -> 2458.82 | S26: =R26-R27 -> -2.88 | T26: =[2]!e5aEDflgI2S(F26:Q26) -> 02045670000C0 | U26: =$C$33-$R26 -> 871.18 | V26: =[1]!srRng2E($C$11,U26) -> 37.89657692 | X26: =[1]!srEnewGas($C$12,V26,$C$36,$C$38*100,$C$37) -> 35.2223481 | Y26: =X26*$C$7 -> 1408.893924 | AA26: =AA25 -> 0 | AB26: =[1]!srEnew($C$15,X26,AB25) -> 20.82031849 | AC26: =[1]!srEnew($C$16,AB26,AC25) -> 11.90871097 | AD26: =[1]!srEnew($C$17,AC26,AD25) -> 11.90871097 | AE26: =[1]!srEnew($C$19,AD26,AE25) -> 5.871568142 | AF26: =AE26*$C$7 -> 234.8627257 | AG26: =[1]!srE2LETt($C$19,AE26,0) -> 12.82819834 | AH26: =[1]!srE2Rng($C$19,AE26) -> 66.23965618 | AI26: =[1]!srEnew($C$19,AE26,AI25) -> 5.495153621 | AJ26: =AI26*$C$7 -> 219.8061449 | AK26: =[1]!srE2LETt($C$19,AI26,0) -> 13.21064695 | AL26: =[1]!srE2Rng($C$19,AI26) -> 61.23965618 | AM26: =[1]!srEnew($C$19,AI26,AM25) -> 3.858244382 | AN26: =AM26*$C$7 -> 154.3297753 | AO26: =[1]!srE2LETt($C$19,AM26,0) -> 15.17554023 | AP26: =[1]!srE2Rng($C$19,AM26) -> 41.23965618
B27: 感応層1厚さ | F27: 1 | G27: 0 | H27: 0 | I27: 4 | J27: 5 | K27: 6 | L27: 7 | M27: 0 | N27: 0 | O27: A | P27: 0 | Q27: C | R27: =[2]!e5aEDthkI(ThEDtbl,F27:Q27) -> 2461.7 | T27: =[2]!e5aEDflgI2S(F27:Q27) -> 100456700A0C0 | U27: =$C$33-$R27 -> 868.3 | V27: =[1]!srRng2E($C$11,U27) -> 37.82143603 | X27: =[1]!srEnewGas($C$12,V27,$C$36,$C$38*100,$C$37) -> 35.14303272 | Y27: =X27*$C$7 -> 1405.721309 | AA27: =AA26 -> 0 | AB27: =[1]!srEnew($C$15,X27,AB25) -> 20.7040351 | AC27: =[1]!srEnew($C$16,AB27,AC25) -> 11.73446606 | AD27: =[1]!srEnew($C$17,AC27,AD25) -> 11.73446606 | AE27: =[1]!srEnew($C$19,AD27,AE25) -> 5.618783564 | AF27: =AE27*$C$7 -> 224.7513426 | AG27: =[1]!srE2LETt($C$19,AE27,0) -> 13.07594135 | AH27: =[1]!srE2Rng($C$19,AE27) -> 62.83003177 | AI27: =[1]!srEnew($C$19,AE27,AI25) -> 5.230101972 | AJ27: =AI27*$C$7 -> 209.2040789 | AK27: =[1]!srE2LETt($C$19,AI27,0) -> 13.49944384 | AL27: =[1]!srE2Rng($C$19,AI27) -> 57.83003177 | AM27: =[1]!srEnew($C$19,AI27,AM25) -> 3.553959692 | AN27: =AM27*$C$7 -> 142.1583877 | AO27: =[1]!srE2LETt($C$19,AM27,0) -> 15.5981516 | AP27: =[1]!srE2Rng($C$19,AM27) -> 37.83003177
A28: Dev2 | B28: =B19 -> Si | C28: 5 | D28: µm 感応1 | F28: 0 | G28: 2 | H28: 0 | I28: 4 | J28: 5 | K28: 6 | L28: 7 | M28: 0 | N28: 0 | O28: A | P28: 0 | Q28: C | R28: =[2]!e5aEDthkI(ThEDtbl,F28:Q28) -> 2464.3 | S28: =R28-R27 -> 2.6 | T28: =[2]!e5aEDflgI2S(F28:Q28) -> 020456700A0C0 | U28: =$C$33-$R28 -> 865.7 | V28: =[1]!srRng2E($C$11,U28) -> 37.7536005 | X28: =[1]!srEnewGas($C$12,V28,$C$36,$C$38*100,$C$37) -> 35.07142855 | Y28: 1402.857142 | AA28: 0 | AB28: =[1]!srEnew($C$15,X28,AB25) -> 20.59905705 | AC28: =[1]!srEnew($C$16,AB28,AC25) -> 11.57716162 | AD28: =[1]!srEnew($C$17,AC28,AD25) -> 11.57716162 | AE28: =[1]!srEnew($C$19,AD28,AE25) -> 5.379500826 | AF28: 215.180033 | AG28: =[1]!srE2LETt($C$19,AE28,0) -> 13.33666076 | AH28: =[1]!srE2Rng($C$19,AE28) -> 59.75189862 | AI28: =[1]!srEnew($C$19,AE28,AI25) -> 4.990382624 | AJ28: 199.615305 | AK28: =[1]!srE2LETt($C$19,AI28,0) -> 13.76152735 | AL28: =[1]!srE2Rng($C$19,AI28) -> 54.75189862 | AM28: =[1]!srEnew($C$19,AI28,AM25) -> 3.271392862 | AN28: 130.8557145 | AO28: =[1]!srE2LETt($C$19,AM28,0) -> 16.01304984 | AP28: =[1]!srE2Rng($C$19,AM28) -> 34.75189862
B29: 感応層2厚さ
A30: Dev3 | B30: =B19 -> Si | C30: 20 | D30: µm 感応2 | AA30: 45 | AB30: =$C$22/COS(RADIANS(AA30)) -> 707.1067812 | AC30: =$C$23/COS(RADIANS(AA30)) -> 282.8427125 | AD30: =$C$24/COS(RADIANS(AA30)) -> 0 | AE30: =$C$26/COS(RADIANS($AA30)) -> 141.4213562 | AF30: µm | AI30: =$C$28/COS(RADIANS($AA30)) -> 7.071067812 | AJ30: µm | AM30: =$C$30/COS(RADIANS($AA30)) -> 28.28427125 | AN30: µm
F31: 0 | G31: 2 | H31: 0 | I31: 4 | J31: 5 | K31: 0 | L31: 0 | M31: 0 | N31: 0 | O31: A | P31: 0 | Q31: C | R31: =[2]!e5aEDthkI(ThEDtbl,F31:Q31) -> 2167.11 | S31: =R31-R32 -> -0.56 | T31: =[2]!e5aEDflgI2S(F31:Q31) -> 020450000A0C0 | U31: =$C$33-$R31 -> 1162.89 | V31: =[1]!srRng2E($C$11,U31) -> 45.06568182 | X31: =[1]!srEnewGas($C$12,V31,$C$36,$C$38*100,$C$37) -> 42.75772878 | Y31: =X31*$C$7 -> 1710.309151 | AA31: =AA30 -> 45 | AB31: =[1]!srEnew($C$15,X31,AB30) -> 25.04158256 | AC31: =[1]!srEnew($C$16,AB31,AC30) -> 13.87783297 | AD31: =[1]!srEnew($C$17,AC31,AD30) -> 13.87783297 | AE31: =[1]!srEnew($C$19,AD31,AE30) -> 5.795770326 | AF31: =AE31*$C$7 -> 231.830813 | AG31: =[1]!srE2LETt($C$19,AE31,0) -> 12.90227512 | AH31: =[1]!srE2Rng($C$19,AE31) -> 65.21608248 | AI31: =[1]!srEnew($C$19,AE31,AI30) -> 5.254587583 | AJ31: =AI31*$C$7 -> 210.1835033 | AK31: =[1]!srE2LETt($C$19,AI31,0) -> 13.47276463 | AL31: =[1]!srE2Rng($C$19,AI31) -> 58.14501467 | AM31: =[1]!srEnew($C$19,AI31,AM30) -> 2.807021566 | AN31: =AM31*$C$7 -> 112.2808626 | AO31: =[1]!srE2LETt($C$19,AM31,0) -> 16.72785353 | AP31: =[1]!srE2Rng($C$19,AM31) -> 29.86074342
B32: 測定値 | C32: ref)params | F32: 0 | G32: 2 | H32: 0 | I32: 4 | J32: 0 | K32: 6 | L32: 0 | M32: 0 | N32: 0 | O32: A | P32: 0 | Q32: C | R32: =[2]!e5aEDthkI(ThEDtbl,F32:Q32) -> 2167.67 | T32: =[2]!e5aEDflgI2S(F32:Q32) -> 020406000A0C0 | U32: =$C$33-$R32 -> 1162.33 | V32: =[1]!srRng2E($C$11,U32) -> 45.05295455 | X32: =[1]!srEnewGas($C$12,V32,$C$36,$C$38*100,$C$37) -> 42.74439545 | Y32: =X32*$C$7 -> 1709.775818 | AA32: =AA31 -> 45 | AB32: =[1]!srEnew($C$15,X32,AB30) -> 25.02235642 | AC32: =[1]!srEnew($C$16,AB32,AC30) -> 13.84826469 | AD32: =[1]!srEnew($C$17,AC32,AD30) -> 13.84826469 | AE32: =[1]!srEnew($C$19,AD32,AE30) -> 5.747511667 | AF32: =AE32*$C$7 -> 229.9004667 | AG32: =[1]!srE2LETt($C$19,AE32,0) -> 12.94943803 | AH32: =[1]!srE2Rng($C$19,AE32) -> 64.56439755 | AI32: =[1]!srEnew($C$19,AE32,AI30) -> 5.203927996 | AJ32: =AI32*$C$7 -> 208.1571198 | AK32: =[1]!srE2LETt($C$19,AI32,0) -> 13.52796267 | AL32: =[1]!srE2Rng($C$19,AI32) -> 57.49332974 | AM32: =[1]!srEnew($C$19,AI32,AM30) -> 2.743978112 | AN32: =AM32*$C$7 -> 109.7591245 | AO32: =[1]!srE2LETt($C$19,AM32,0) -> 16.82651931 | AP32: =[1]!srE2Rng($C$19,AM32) -> 29.20905849
B33: ExpR | C33: =ExpR -> 3330 | D33: μm | F33: 1 | G33: 2 | H33: 0 | I33: 4 | J33: 5 | K33: 0 | L33: 0 | M33: 0 | N33: 0 | O33: 0 | P33: 0 | Q33: C | R33: =[2]!e5aEDthkI(ThEDtbl,F33:Q33) -> 2171.83 | S33: =R33-R32 -> 4.16 | T33: =[2]!e5aEDflgI2S(F33:Q33) -> 12045000000C0 | U33: =$C$33-$R33 -> 1158.17 | V33: =[1]!srRng2E($C$11,U33) -> 44.95840909 | X33: =[1]!srEnewGas($C$12,V33,$C$36,$C$38*100,$C$37) -> 42.64732835 | Y33: 1705.893134 | AA33: 45 | AB33: =[1]!srEnew($C$15,X33,AB30) -> 24.8737416 | AC33: =[1]!srEnew($C$16,AB33,AC30) -> 13.62532877 | AD33: =[1]!srEnew($C$17,AC33,AD30) -> 13.62532877 | AE33: =[1]!srEnew($C$19,AD33,AE30) -> 5.383588689 | AF33: 215.3435476 | AG33: =[1]!srE2LETt($C$19,AE33,0) -> 13.33220667 | AH33: =[1]!srE2Rng($C$19,AE33) -> 59.8044849 | AI33: =[1]!srEnew($C$19,AE33,AI30) -> 4.826011164 | AJ33: 193.0404465 | AK33: =[1]!srE2LETt($C$19,AI33,0) -> 13.95580785 | AL33: =[1]!srE2Rng($C$19,AI33) -> 52.73341709 | AM33: =[1]!srEnew($C$19,AI33,AM30) -> 2.26813217 | AN33: 90.7252868 | AO33: =[1]!srE2LETt($C$19,AM33,0) -> 17.67392728 | AP33: =[1]!srE2Rng($C$19,AM33) -> 24.44914584
B34: 空気層 | C34: ref)params
B35: Air1 | C35: =ThAir1 -> 145 | D35: mm | AA35: 60 | AB35: =$C$22/COS(RADIANS(AA35)) -> 1000 | AC35: =$C$23/COS(RADIANS(AA35)) -> 400 | AD35: =$C$24/COS(RADIANS(AA35)) -> 0 | AE35: =$C$26/COS(RADIANS($AA35)) -> 200 | AF35: µm | AI35: =$C$28/COS(RADIANS($AA35)) -> 10 | AJ35: µm | AM35: =$C$30/COS(RADIANS($AA35)) -> 40 | AN35: µm
B36: Air2 | C36: =ThAir2 -> 200 | D36: mm | F36: 1 | G36: 2 | H36: 3 | I36: 4 | J36: 0 | K36: 0 | L36: 7 | M36: 8 | N36: 0 | O36: A | P36: B | Q36: 0 | R36: =[2]!e5aEDthkI(ThEDtbl,F36:Q36) -> 1758.6 | S36: =R36-R37 -> -4.65 | T36: =[2]!e5aEDflgI2S(F36:Q36) -> 123400780AB00 | U36: =$C$33-$R36 -> 1571.4 | V36: =[1]!srRng2E($C$11,U36) -> 53.9875 | X36: =[1]!srEnewGas($C$12,V36,$C$36,$C$38*100,$C$37) -> 51.93102985 | Y36: =X36*$C$7 -> 2077.241194 | AA36: =AA35 -> 60 | AB36: =[1]!srEnew($C$15,X36,AB35) -> 30.33194014 | AC36: =[1]!srEnew($C$16,AB36,AC35) -> 16.47665985 | AD36: =[1]!srEnew($C$17,AC36,AD35) -> 16.47665985 | AE36: =[1]!srEnew($C$19,AD36,AE35) -> 5.854460385 | AF36: =AE36*$C$7 -> 234.1784154 | AG36: =[1]!srE2LETt($C$19,AE36,0) -> 12.84491765 | AH36: =[1]!srE2Rng($C$19,AE36) -> 66.00863304 | AI36: =[1]!srEnew($C$19,AE36,AI35) -> 5.08851314 | AJ36: =AI36*$C$7 -> 203.5405256 | AK36: =[1]!srE2LETt($C$19,AI36,0) -> 13.65371722 | AL36: =[1]!srE2Rng($C$19,AI36) -> 56.00863304 | AM36: =[1]!srEnew($C$19,AI36,AM35) -> 1.375930284 | AN36: =AM36*$C$7 -> 55.03721137 | AO36: =[1]!srE2LETt($C$19,AM36,0) -> 18.62033817 | AP36: =[1]!srE2Rng($C$19,AM36) -> 16.00863304
B37: 気温 | C37: =AirT -> 27 | D37: ℃ | F37: 1 | G37: 2 | H37: 3 | I37: 4 | J37: 5 | K37: 6 | L37: 0 | M37: 8 | N37: 0 | O37: A | P37: B | Q37: 0 | R37: =[2]!e5aEDthkI(ThEDtbl,F37:Q37) -> 1763.25 | T37: =[2]!e5aEDflgI2S(F37:Q37) -> 123456080AB00 | U37: =$C$33-$R37 -> 1566.75 | V37: =[1]!srRng2E($C$11,U37) -> 53.890625 | X37: =[1]!srEnewGas($C$12,V37,$C$36,$C$38*100,$C$37) -> 51.83415485 | Y37: =X37*$C$7 -> 2073.366194 | AA37: =AA36 -> 60 | AB37: =[1]!srEnew($C$15,X37,AB35) -> 30.18750457 | AC37: =[1]!srEnew($C$16,AB37,AC35) -> 16.25450563 | AD37: =[1]!srEnew($C$17,AC37,AD35) -> 16.25450563 | AE37: =[1]!srEnew($C$19,AD37,AE35) -> 5.443120159 | AF37: =AE37*$C$7 -> 217.7248064 | AG37: =[1]!srE2LETt($C$19,AE37,0) -> 13.26734195 | AH37: =[1]!srE2Rng($C$19,AE37) -> 60.57029773 | AI37: =[1]!srEnew($C$19,AE37,AI35) -> 4.649861379 | AJ37: =AI37*$C$7 -> 185.9944551 | AK37: =[1]!srE2LETt($C$19,AI37,0) -> 14.16400985 | AL37: =[1]!srE2Rng($C$19,AI37) -> 50.57029773 | AM37: =[1]!srEnew($C$19,AI37,AM35) -> 0.7881671323 | AN37: =AM37*$C$7 -> 31.52668529 | AO37: =[1]!srE2LETt($C$19,AM37,0) -> 18.27721431 | AP37: =[1]!srE2Rng($C$19,AM37) -> 10.57029773
B38: 気圧 | C38: =AirP -> 1007 | D38: hPa | F38: 0 | G38: 0 | H38: 0 | I38: 0 | J38: 5 | K38: 0 | L38: 7 | M38: 8 | N38: 0 | O38: A | P38: B | Q38: 0 | R38: =[2]!e5aEDthkI(ThEDtbl,F38:Q38) -> 1763.45 | S38: =R38-R37 -> 0.2 | T38: =[2]!e5aEDflgI2S(F38:Q38) -> 000050780AB00 | U38: =$C$33-$R38 -> 1566.55 | V38: =[1]!srRng2E($C$11,U38) -> 53.88645833 | X38: =[1]!srEnewGas($C$12,V38,$C$36,$C$38*100,$C$37) -> 51.82998818 | Y38: 2073.199527 | AA38: 60 | AB38: =[1]!srEnew($C$15,X38,AB35) -> 30.18129228 | AC38: =[1]!srEnew($C$16,AB38,AC35) -> 16.24466542 | AD38: =[1]!srEnew($C$17,AC38,AD35) -> 16.24466542 | AE38: =[1]!srEnew($C$19,AD38,AE35) -> 5.424895348 | AF38: 216.9958139 | AG38: =[1]!srE2LETt($C$19,AE38,0) -> 13.28719947 | AH38: =[1]!srE2Rng($C$19,AE38) -> 60.33585375 | AI38: =[1]!srEnew($C$19,AE38,AI35) -> 4.63076985 | AJ38: 185.230794 | AK38: =[1]!srE2LETt($C$19,AI38,0) -> 14.18657527 | AL38: =[1]!srE2Rng($C$19,AI38) -> 50.33585375 | AM38: =[1]!srEnew($C$19,AI38,AM35) -> 0.7633319653 | AN38: 30.53327861 | AO38: =[1]!srE2LETt($C$19,AM38,0) -> 18.2149595 | AP38: =[1]!srE2Rng($C$19,AM38) -> 10.33585375
C39: ref)params | AG39: 希望LET～17
B40: Edeg | C40: AL厚さ | AA40: 0 | AB40: =$C$22/COS(RADIANS(AA40)) -> 500 | AC40: =$C$23/COS(RADIANS(AA40)) -> 200 | AD40: =$C$24/COS(RADIANS(AA40)) -> 0 | AE40: =$C$26/COS(RADIANS($AA40)) -> 100 | AF40: µm | AI40: =$C$28/COS(RADIANS($AA40)) -> 5 | AJ40: µm | AM40: =$C$30/COS(RADIANS($AA40)) -> 20 | AN40: µm
B41: Deg# | C41: μm | F41: 0 | G41: 2 | H41: 3 | I41: 4 | J41: 5 | K41: 6 | L41: 7 | M41: 0 | N41: 0 | O41: A | P41: 0 | Q41: C | R41: =[2]!e5aEDthkI(ThEDtbl,F41:Q41) -> 2488.1 | S41: =R41-R42 -> -3.33 | T41: =[2]!e5aEDflgI2S(F41:Q41) -> 023456700A0C0 | U41: =$C$33-$R41 -> 841.9 | V41: =[1]!srRng2E($C$11,U41) -> 37.11450005 | X41: =[1]!srEnewGas($C$12,V41,$C$36,$C$38*100,$C$37) -> 34.38401797 | Y41: =X41*$C$7 -> 1375.360719 | AA41: =AA40 -> 0 | AB41: =[1]!srEnew($C$15,X41,AB40) -> 19.6035079 | AC41: =[1]!srEnew($C$16,AB41,AC40) -> 10.06026463 | AD41: =[1]!srEnew($C$17,AC41,AD40) -> 10.06026463 | AE41: =[1]!srEnew($C$19,AD41,AE40) -> 2.972305385 | AF41: =AE41*$C$7 -> 118.8922154 | AG41: =[1]!srE2LETt($C$19,AE41,0) -> 16.46919096 | AH41: =[1]!srE2Rng($C$19,AE41) -> 31.57308379 | AI41: =[1]!srEnew($C$19,AE41,AI40) -> 2.483105647 | AJ41: =AI41*$C$7 -> 99.32422588 | AK41: =[1]!srE2LETt($C$19,AI41,0) -> 17.24245832 | AL41: =[1]!srE2Rng($C$19,AI41) -> 26.57308379 | AM41: =[1]!srEnew($C$19,AI41,AM40) -> 0.3863966475 | AN41: =AM41*$C$7 -> 15.4558659 | AO41: =[1]!srE2LETt($C$19,AM41,0) -> 15.76038954 | AP41: =[1]!srE2Rng($C$19,AM41) -> 6.573083793
B42: 1 | C42: =ThEDtbl -> 10.2 | F42: 0 | G42: 0 | H42: 0 | I42: 0 | J42: 0 | K42: 0 | L42: 0 | M42: 8 | N42: 0 | O42: A | P42: 0 | Q42: C | R42: =[2]!e5aEDthkI(ThEDtbl,F42:Q42) -> 2491.43 | T42: =[2]!e5aEDflgI2S(F42:Q42) -> 000000080A0C0 | U42: =$C$33-$R42 -> 838.57 | V42: =[1]!srRng2E($C$11,U42) -> 37.02332713 | X42: =[1]!srEnewGas($C$12,V42,$C$36,$C$38*100,$C$37) -> 34.28748192 | Y42: =X42*$C$7 -> 1371.499277 | AA42: =AA41 -> 0 | AB42: =[1]!srEnew($C$15,X42,AB40) -> 19.45653067 | AC42: =[1]!srEnew($C$16,AB42,AC40) -> 9.837105882 | AD42: =[1]!srEnew($C$17,AC42,AD40) -> 9.837105882 | AE42: =[1]!srEnew($C$19,AD42,AE40) -> 2.589146059 | AF42: =AE42*$C$7 -> 103.5658423 | AG42: =[1]!srE2LETt($C$19,AE42,0) -> 17.06896154 | AH42: =[1]!srE2Rng($C$19,AE42) -> 27.64215811 | AI42: =[1]!srEnew($C$19,AE42,AI40) -> 2.081136734 | AJ42: =AI42*$C$7 -> 83.24546935 | AK42: =[1]!srE2LETt($C$19,AI42,0) -> 17.94818755 | AL42: =[1]!srE2Rng($C$19,AI42) -> 22.64215811 | AM42: =[1]!srEnew($C$19,AI42,AM40) -> 0.09386240171 | AN42: =AM42*$C$7 -> 3.754496068 | AO42: =[1]!srE2LETt($C$19,AM42,0) -> 8.946461524 | AP42: =[1]!srE2Rng($C$19,AM42) -> 2.642158113
B43: 2 | C43: 12.8 | F43: 1 | G43: 2 | H43: 3 | I43: 4 | J43: 5 | K43: 6 | L43: 7 | M43: 0 | N43: 0 | O43: 0 | P43: 0 | Q43: C | R43: =[2]!e5aEDthkI(ThEDtbl,F43:Q43) -> 2492.82 | S43: =R43-R42 -> 1.39 | T43: =[2]!e5aEDflgI2S(F43:Q43) -> 12345670000C0 | U43: =$C$33-$R43 -> 837.18 | V43: =[1]!srRng2E($C$11,U43) -> 36.98526996 | X43: =[1]!srEnewGas($C$12,V43,$C$36,$C$38*100,$C$37) -> 34.2471861 | Y43: 1369.887444 | AA43: 0 | AB43: =[1]!srEnew($C$15,X43,AB40) -> 19.39517982 | AC43: =[1]!srEnew($C$16,AB43,AC40) -> 9.742599848 | AD43: =[1]!srEnew($C$17,AC43,AD40) -> 9.742599848 | AE43: =[1]!srEnew($C$19,AD43,AE40) -> 2.425256413 | AF43: 97.0102565 | AG43: =[1]!srE2LETt($C$19,AE43,0) -> 17.35856636 | AH43: =[1]!srE2Rng($C$19,AE43) -> 26.00153336 | AI43: =[1]!srEnew($C$19,AE43,AI40) -> 1.909060737 | AJ43: 76.36242948 | AK43: =[1]!srE2LETt($C$19,AI43,0) -> 18.15804625 | AL43: =[1]!srE2Rng($C$19,AI43) -> 21.00153336 | AM43: =[1]!srEnew($C$19,AI43,AM40) -> 0.02532783492 | AN43: 1.013113397 | AO43: =[1]!srE2LETt($C$19,AM43,0) -> 4.910015123 | AP43: =[1]!srE2Rng($C$19,AM43) -> 1.001533357
B44: 3 | C44: 23.8
B45: 4 | C45: 48.59 | AA45: 45 | AB45: =$C$22/COS(RADIANS(AA45)) -> 707.1067812 | AC45: =$C$23/COS(RADIANS(AA45)) -> 282.8427125 | AD45: =$C$24/COS(RADIANS(AA45)) -> 0 | AE45: =$C$26/COS(RADIANS($AA45)) -> 141.4213562 | AF45: µm | AI45: =$C$28/COS(RADIANS($AA45)) -> 7.071067812 | AJ45: µm | AM45: =$C$30/COS(RADIANS($AA45)) -> 28.28427125 | AN45: µm
B46: 5 | C46: 100.24 | F46: 0 | G46: 0 | H46: 0 | I46: 0 | J46: 0 | K46: 0 | L46: 7 | M46: 0 | N46: 0 | O46: 0 | P46: 0 | Q46: C | R46: =[2]!e5aEDthkI(ThEDtbl,F46:Q46) -> 2196.39 | S46: =R46-R47 -> -4.65 | T46: =[2]!e5aEDflgI2S(F46:Q46) -> 00000070000C0 | U46: =$C$33-$R46 -> 1133.61 | V46: =[1]!srRng2E($C$11,U46) -> 44.40022727 | X46: =[1]!srEnewGas($C$12,V46,$C$36,$C$38*100,$C$37) -> 42.0458988 | Y46: =X46*$C$7 -> 1681.835952 | AA46: =AA45 -> 45 | AB46: =[1]!srEnew($C$15,X46,AB45) -> 23.9427361 | AC46: =[1]!srEnew($C$16,AB46,AC45) -> 12.18612004 | AD46: =[1]!srEnew($C$17,AC46,AD45) -> 12.18612004 | AE46: =[1]!srEnew($C$19,AD46,AE45) -> 2.844270344 | AF46: =AE46*$C$7 -> 113.7708137 | AG46: =[1]!srE2LETt($C$19,AE46,0) -> 16.66956068 | AH46: =[1]!srE2Rng($C$19,AE46) -> 30.24664076 | AI46: =[1]!srEnew($C$19,AE46,AI45) -> 2.136470223 | AJ46: =AI46*$C$7 -> 85.45880891 | AK46: =[1]!srE2LETt($C$19,AI46,0) -> 17.87024259 | AL46: =[1]!srE2Rng($C$19,AI46) -> 23.17557295 | AM46: =[1]!srEnew($C$19,AI46,AM45) -> 0 | AN46: =AM46*$C$7 -> 0 | AO46: =[1]!srE2LETt($C$19,AM46,0) ->  | AP46: =[1]!srE2Rng($C$19,AM46) -> 0
B47: 6 | C47: 100.8 | F47: 0 | G47: 0 | H47: 0 | I47: 0 | J47: 5 | K47: 6 | L47: 0 | M47: 0 | N47: 0 | O47: 0 | P47: 0 | Q47: C | R47: =[2]!e5aEDthkI(ThEDtbl,F47:Q47) -> 2201.04 | T47: =[2]!e5aEDflgI2S(F47:Q47) -> 00005600000C0 | U47: =$C$33-$R47 -> 1128.96 | V47: =[1]!srRng2E($C$11,U47) -> 44.29454545 | X47: =[1]!srEnewGas($C$12,V47,$C$36,$C$38*100,$C$37) -> 41.92909258 | Y47: =X47*$C$7 -> 1677.163703 | AA47: =AA46 -> 45 | AB47: =[1]!srEnew($C$15,X47,AB45) -> 23.76192152 | AC47: =[1]!srEnew($C$16,AB47,AC45) -> 11.89228634 | AD47: =[1]!srEnew($C$17,AC47,AD45) -> 11.89228634 | AE47: =[1]!srEnew($C$19,AD47,AE45) -> 2.27296588 | AF47: =AE47*$C$7 -> 90.91863519 | AG47: =[1]!srE2LETt($C$19,AE47,0) -> 17.66422564 | AH47: =[1]!srE2Rng($C$19,AE47) -> 24.49690289 | AI47: =[1]!srEnew($C$19,AE47,AI45) -> 1.528401184 | AJ47: =AI47*$C$7 -> 61.13604735 | AK47: =[1]!srE2LETt($C$19,AI47,0) -> 18.51786172 | AL47: =[1]!srE2Rng($C$19,AI47) -> 17.42583508 | AM47: =[1]!srEnew($C$19,AI47,AM45) -> 0 | AN47: =AM47*$C$7 -> 0 | AO47: =[1]!srE2LETt($C$19,AM47,0) ->  | AP47: =[1]!srE2Rng($C$19,AM47) -> 0
B48: 7 | C48: 196.39 | F48: 1 | G48: 2 | H48: 3 | I48: 4 | J48: 5 | K48: 0 | L48: 0 | M48: 0 | N48: 0 | O48: A | P48: 0 | Q48: C | R48: =[2]!e5aEDthkI(ThEDtbl,F48:Q48) -> 2201.11 | S48: =R48-R47 -> 0.07 | T48: =[2]!e5aEDflgI2S(F48:Q48) -> 123450000A0C0 | U48: =$C$33-$R48 -> 1128.89 | V48: =[1]!srRng2E($C$11,U48) -> 44.29295455 | X48: =[1]!srEnewGas($C$12,V48,$C$36,$C$38*100,$C$37) -> 41.9273342 | Y48: 1677.093368 | AA48: 45 | AB48: =[1]!srEnew($C$15,X48,AB45) -> 23.75919958 | AC48: =[1]!srEnew($C$16,AB48,AC45) -> 11.88786304 | AD48: =[1]!srEnew($C$17,AC48,AD45) -> 11.88786304 | AE48: =[1]!srEnew($C$19,AD48,AE45) -> 2.264205233 | AF48: 90.56820931 | AG48: =[1]!srE2LETt($C$19,AE48,0) -> 17.68180896 | AH48: =[1]!srE2Rng($C$19,AE48) -> 24.4103477 | AI48: =[1]!srEnew($C$19,AE48,AI45) -> 1.519153834 | AJ48: 60.76615336 | AK48: =[1]!srE2LETt($C$19,AI48,0) -> 18.52465963 | AL48: =[1]!srE2Rng($C$19,AI48) -> 17.33927989 | AM48: =[1]!srEnew($C$19,AI48,AM45) -> 0 | AN48: 0 | AO48: =[1]!srE2LETt($C$19,AM48,0) ->  | AP48: =[1]!srE2Rng($C$19,AM48) -> 0
B49: 8 | C49: 485.95
B50: 9 | C50: 5000 | AA50: 60 | AB50: =$C$22/COS(RADIANS(AA50)) -> 1000 | AC50: =$C$23/COS(RADIANS(AA50)) -> 400 | AD50: =$C$24/COS(RADIANS(AA50)) -> 0 | AE50: =$C$26/COS(RADIANS($AA50)) -> 200 | AF50: µm | AI50: =$C$28/COS(RADIANS($AA50)) -> 10 | AJ50: µm | AM50: =$C$30/COS(RADIANS($AA50)) -> 40 | AN50: µm
B51: A | C51: 5.48 | F51: 0 | G51: 0 | H51: 3 | I51: 0 | J51: 0 | K51: 6 | L51: 7 | M51: 8 | N51: 0 | O51: A | P51: B | Q51: 0 | R51: =[2]!e5aEDthkI(ThEDtbl,F51:Q51) -> 1787.81 | S51: =R51-R52 -> -4.16 | T51: =[2]!e5aEDflgI2S(F51:Q51) -> 003006780AB00 | U51: =$C$33-$R51 -> 1542.19 | V51: =[1]!srRng2E($C$11,U51) -> 53.37895833 | X51: =[1]!srEnewGas($C$12,V51,$C$36,$C$38*100,$C$37) -> 51.32248818 | Y51: =X51*$C$7 -> 2052.899527 | AA51: =AA50 -> 60 | AB51: =[1]!srEnew($C$15,X51,AB50) -> 29.3900118 | AC51: =[1]!srEnew($C$16,AB51,AC50) -> 15.01178634 | AD51: =[1]!srEnew($C$17,AC51,AD50) -> 15.01178634 | AE51: =[1]!srEnew($C$19,AD51,AE50) -> 2.979178729 | AF51: =AE51*$C$7 -> 119.1671492 | AG51: =[1]!srE2LETt($C$19,AE51,0) -> 16.45843446 | AH51: =[1]!srE2Rng($C$19,AE51) -> 31.64429163 | AI51: =[1]!srEnew($C$19,AE51,AI50) -> 1.977149537 | AJ51: =AI51*$C$7 -> 79.08598149 | AK51: =[1]!srE2LETt($C$19,AI51,0) -> 18.08649309 | AL51: =[1]!srE2Rng($C$19,AI51) -> 21.64429163 | AM51: =[1]!srEnew($C$19,AI51,AM50) -> 0 | AN51: =AM51*$C$7 -> 0 | AO51: =[1]!srE2LETt($C$19,AM51,0) ->  | AP51: =[1]!srE2Rng($C$19,AM51) -> 0
B52: B | C52: 975.39 | F52: 1 | G52: 0 | H52: 3 | I52: 0 | J52: 5 | K52: 0 | L52: 7 | M52: 8 | N52: 0 | O52: 0 | P52: B | Q52: 0 | R52: =[2]!e5aEDthkI(ThEDtbl,F52:Q52) -> 1791.97 | T52: =[2]!e5aEDflgI2S(F52:Q52) -> 1030507800B00 | U52: =$C$33-$R52 -> 1538.03 | V52: =[1]!srRng2E($C$11,U52) -> 53.29229167 | X52: =[1]!srEnewGas($C$12,V52,$C$36,$C$38*100,$C$37) -> 51.23582152 | Y52: =X52*$C$7 -> 2049.432861 | AA52: =AA51 -> 60 | AB52: =[1]!srEnew($C$15,X52,AB50) -> 29.25302035 | AC52: =[1]!srEnew($C$16,AB52,AC50) -> 14.78932204 | AD52: =[1]!srEnew($C$17,AC52,AD50) -> 14.78932204 | AE52: =[1]!srEnew($C$19,AD52,AE50) -> 2.498649578 | AF52: =AE52*$C$7 -> 99.94598311 | AG52: =[1]!srE2LETt($C$19,AE52,0) -> 17.21126041 | AH52: =[1]!srE2Rng($C$19,AE52) -> 26.72665783 | AI52: =[1]!srEnew($C$19,AE52,AI50) -> 1.453303645 | AJ52: =AI52*$C$7 -> 58.13214581 | AK52: =[1]!srE2LETt($C$19,AI52,0) -> 18.56945126 | AL52: =[1]!srE2Rng($C$19,AI52) -> 16.72665783 | AM52: =[1]!srEnew($C$19,AI52,AM50) -> 0 | AN52: =AM52*$C$7 -> 0 | AO52: =[1]!srE2LETt($C$19,AM52,0) ->  | AP52: =[1]!srE2Rng($C$19,AM52) -> 0
B53: C | C53: 2000 | F53: 1 | G53: 0 | H53: 3 | I53: 0 | J53: 0 | K53: 6 | L53: 7 | M53: 8 | N53: 0 | O53: 0 | P53: B | Q53: 0 | R53: =[2]!e5aEDthkI(ThEDtbl,F53:Q53) -> 1792.53 | S53: =R53-R52 -> 0.56 | T53: =[2]!e5aEDflgI2S(F53:Q53) -> 1030067800B00 | U53: =$C$33-$R53 -> 1537.47 | V53: =[1]!srRng2E($C$11,U53) -> 53.280625 | X53: =[1]!srEnewGas($C$12,V53,$C$36,$C$38*100,$C$37) -> 51.22415485 | Y53: 2048.966194 | AA53: 60 | AB53: =[1]!srEnew($C$15,X53,AB50) -> 29.23457919 | AC53: =[1]!srEnew($C$16,AB53,AC50) -> 14.75928127 | AD53: =[1]!srEnew($C$17,AC53,AD50) -> 14.75928127 | AE53: =[1]!srEnew($C$19,AD53,AE50) -> 2.43163554 | AF53: 97.2654216 | AG53: =[1]!srE2LETt($C$19,AE53,0) -> 17.34576294 | AH53: =[1]!srE2Rng($C$19,AE53) -> 26.06455913 | AI53: =[1]!srEnew($C$19,AE53,AI50) -> 1.381956803 | AJ53: 55.27827213 | AK53: =[1]!srE2LETt($C$19,AI53,0) -> 18.61637465 | AL53: =[1]!srE2Rng($C$19,AI53) -> 16.06455913 | AM53: =[1]!srEnew($C$19,AI53,AM50) -> 0 | AN53: 0 | AO53: =[1]!srE2LETt($C$19,AM53,0) ->  | AP53: =[1]!srE2Rng($C$19,AM53) -> 0
